Workbook

Sheet Meeting Agenda
A1: Update 2022 Costs of Production Study
A3: 1 | B3: Welcome
A4: 2 | B4: Publication Goals
A5: 3 | B5: Define the Farm
A6: 4 | B6: Define Systems
C7: Central Leader
C8: Vertical Axe
C9: Tall Spindle
C10: Super Spindle
C11: 2 Leader (Fruiting Wall)
A13: 5 | B13: Pesticide Program
C14: Full Bearing
C15: Partial Bearing Years
A16: 6 | B16: Herbicide Program
A18: 7 | B18: Nutrient Program
A19: 8 | B19: Wildlife Program
A20: 9 | B20: Trellis
A21: 10 | B21: Pruning & Training Costs and Time
A22: 11 | B22: Irrigation
A23: 12 | B23: Mowing Costs
A24: 13 | B24: Harvest Costs
A25: 14 | B25: Migrant Housing
A26: 15 | B26: Overall Factors
A27: 16 | B27: Equipment List
A28: 17 | B28: Practices
C29: Full Bearing Year
C30: Establishment Years
A31: 18 | B31: Other Items
A32: 19 | B32: Revisit any Items.
A33: 20 | B33: Adjourn
A98: 1 | I98: 100 | J98: =+G98*E98*A98*I98*0.01 -> 0
A99: 1 | E99: 5 | I99: 100 | J99: =+G99*E99*A99*I99*0.01 -> 0
A100: 1 | E100: 5 | I100: 100 | J100: =+G100*E100*A100*I100*0.01 -> 0
I102: 100 | J102: =+G102*E102*A102*I102*0.01 -> 0
C104: Calcium Sprays | D104: EG-615 | I104: 100 | J104: =+G104*E104*A104*I104*0.01 -> 0
I106: 100 | J106: =+G106*E106*A106*I106*0.01 -> 0
A108: 1 | B108: Post-Harvest | C108: Boron | E108: 2 | I108: 100 | J108: =+G108*E108*A108*I108*0.01 -> 0
A109: 1 | E109: 5 | I109: 100 | J109: =+G109*E109*A109*I109*0.01 -> 0
A110: 1 | E110: 5 | I110: 100 | J110: =+G110*E110*A110*I110*0.01 -> 0
C116: Sevin 80S

Sheet Descrip
A1: Definition | B1: Density | C1: Trees/acre | D1: Spacing
A3: Central Leader | B3: Low | C3: =+CLTree -> 181.5 | D3: =CLTrSp&" x "&CLRowSpace -> 12 x 20
A5: Vertical Axe | B5: Medium | C5: =+VATree -> 622.2857143 | D5: =VATrSp&" x "&VARowSpace -> 5 x 14
A7: Tall Spindle | B7: High | C7: =+TSTree -> 1210 | D7: =TSTrSp&" x "&TSRowSpace -> 3 x 12
A9: Super Spindle | B9: High | C9: =+SSTree -> 1980 | D9: =SSTrSp&" x "&SSRowSpace -> 2 x 11
A11: 2 Leader (Fruiting Wall) | B11: High | C11: =+FWTree -> 1320 | D11: =FWTrSp&" x "&FWRowSpace -> 3 x 11
A34: TRV Calculations
A35: Row | B35: Tree | C35: Height | D35: Width
A36: 20 | B36: 12 | C36: 16 | D36: 12
A37: 14 | B37: 5 | C37: 12 | D37: 6
A38: 12 | B38: 3 | C38: 10 | D38: 5
A39: 10 | B39: 2 | C39: 9 | D39: 4
A41: =+C36*D36 -> 192 | B41: =43560/A36 -> 2178 | C41: =+A41*B41 -> 418176
A42: =+C37*D37 -> 72 | B42: =43560/A37 -> 3111.428571 | C42: =+A42*B42 -> 224022.8571 | D42: =+C42/C41 -> 0.5357142857
A43: =+C38*D38 -> 50 | B43: =43560/A38 -> 3630 | C43: =+A43*B43 -> 181500 | D43: =+C43/C41 -> 0.4340277778
A44: =+C39*D39 -> 36 | B44: =43560/A39 -> 4356 | C44: =+A44*B44 -> 156816 | D44: =+C44/C41 -> 0.375

Sheet Factors & Yield
A1: Costs of Apple Production
A2: Labor Cost/Hr. (no-skill) | C2: 20 | D2: Cost of Gasoline/Gal | F2: 3.5
A3: Labor Cost/Hr. (skilled) | C3: 24 | D3: Cost of Diesel/Gal | F3: 2.75
A4: Harvest Piece Rate/Bin | C4: 35
A5: Harvest Cost per Lb. | C5: =+Harvest!H22 -> 0.05882352941 | D5: Interest Rate on Land | F5: 0.04
D6: Interest Rate on Operating | F6: 0.04
A7: Bulldozer Cost/Hr. | C7: 100 | D7: Expected Apple Price per lb. | F7: 0.3
A8: Cost of Trees-feathered (per tree) | C8: 11 | E8: Central Leader | F8: =+Price -> 0.3
A9: Cost of CL Trees | C9: =+TreeCost -> 11 | E9: Vertical Axe | F9: =+CLPrice -> 0.3
A10: Cost of VA Trees | C10: =+TreeCost -> 11 | E10: Tall Spindle | F10: =+VAPrice -> 0.3
A11: Cost of TS Trees | C11: =+TreeCost -> 11 | E11: SuperSpindle | F11: 0.3
A12: Cost of SS Trees | C12: 11 | E12: 2 Leader | F12: 0.3
A13: Cost of 2L Trees | C13: 15
A14: Deer Fence/foot | C14: 3.25 | D14: Land Investment / Acre | F14: 10000
A15: Cost of Wildlife Control/Tree | C15: 0.05 | D15: Real Estate Tax / Acre | F15: 40
A16: Cost of Mouse Guards/Tree | C16: 0.25 | D16: Expected Life of Orchard (years) | F16: 20
A17: Custom Planting Cost/Tree | C17: 0.35 | D17: Crop Insurance /Acre | F17: 200
A18: Bee Rental/Hive | C18: 45 | D18: Frost Fans | E18: $40000/10 acres | F18: 1500
D19: Management | E19: $40000/200 acres | F19: 200
A20: Lime Cost/Ton | C20: 35 | D20: Overhead Misc Costs/acre | F20: 40
A22: System Characteristics
B23: Central Leader | C23: Vertical Axe | D23: Tall Spindle | E23: Super Spindle | F23: 2 Leader
A24: Row Length | B24: 500 | C24: 500 | D24: 500 | E24: 500 | F24: 500
A25: Rows/acre | B25: =43560/B24/CLRowSpace -> 4.356 | C25: =43560/C24/VARowSpace -> 6.222857143 | D25: =43560/D24/TSRowSpace -> 7.26 | E25: =43560/E24/SSRowSpace -> 7.92 | F25: =43560/F24/FWRowSpace -> 7.92
A26: Tree spacing | B26: 12 | C26: 5 | D26: 3 | E26: 2 | F26: 3
A27: Row spacing | B27: 20 | C27: 14 | D27: 12 | E27: 11 | F27: 11
A28: Sq.ft. | B28: =+B26*B27 -> 240 | C28: =+C26*C27 -> 70 | D28: =+D26*D27 -> 36 | E28: =+E26*E27 -> 22 | F28: 33
A29: Trees/acre | B29: =43560/B28 -> 181.5 | C29: =43560/C28 -> 622.2857143 | D29: =43560/D28 -> 1210 | E29: =43560/E28 -> 1980 | F29: 1320
A30: Row Length/Acre | B30: =43560/B27 -> 2178 | C30: =43560/C27 -> 3111.428571 | D30: =43560/D27 -> 3630 | E30: =43560/E27 -> 3960 | F30: =43560/F27 -> 3960
A31: Tree Width | B31: =+CLRowSpace-6 -> 14 | C31: =+VARowSpace-5 -> 9 | D31: =+SSRowSpace-5 -> 6 | E31: 4 | F31: 3
A32: Tree Height | B32: 18 | C32: 12 | D32: 10 | E32: 10 | F32: 10
A33: Tree Row Volumn | B33: 100 | C33: 80 | D33: 75 | E33: 75 | F33: 75
A34: These factors are used universally throughout this spreadsheet.
A36: Yields | B36: The yield for different systems @ 42# bushels. | H36: Yield/acre of Systems
A37: Year | B37: Central Leader | C37: Vertical Axe | D37: Tall Spindle | E37: =+E23 -> Super Spindle | F37: =+F23 -> 2 Leader | H37: Bushels/acre
A38: 0 | B38: 0 | C38: 0 | D38: 0 | E38: 0 | F38: 0 | H38: Year
A39: =+A38+1 -> 1 | B39: 0 | C39: =+C38 -> 0 | D39: 0 | E39: 0 | F39: 0
A40: 2 | B40: 0 | C40: =+C39 -> 0 | D40: 0 | E40: 0 | F40: 0
A41: 3 | B41: 0 | C41: 0 | D41: 50 | E41: 300 | F41: =+E41 -> 300
A42: 4 | B42: 100 | C42: 200 | D42: 400 | E42: 700 | F42: =+E42 -> 700
A43: 5 | B43: 150 | C43: 600 | D43: 800 | E43: 1100 | F43: =+E43 -> 1100
A44: 6 | B44: 300 | C44: 1100 | D44: 1100 | E44: 1500 | F44: 1400
A45: 7 | B45: 400 | C45: =+C44 -> 1100 | D45: 1400 | E45: =+E44 -> 1500 | F45: 1500
A46: 8 | B46: 500 | C46: =+C45 -> 1100 | D46: =+D45 -> 1400 | E46: 1500 | F46: =+F45 -> 1500
A47: 9 | B47: 1000 | C47: =+C46 -> 1100 | D47: 1400 | E47: 1500 | F47: 1500
A48: 10 | B48: =+B47 -> 1000 | C48: 1100 | D48: 1400 | E48: 1500 | F48: 1500
A49: 11 | B49: =+B48 -> 1000 | C49: 1100 | D49: 1400 | E49: 1500 | F49: 1500
A50: 12 | B50: 1000 | C50: 1100 | D50: 1400 | E50: 1500 | F50: 1500
A51: 13 | B51: 1000 | C51: 1100 | D51: 1400 | E51: 1500 | F51: 1500
A52: 14 | B52: 1000 | C52: 1100 | D52: 1400 | E52: 1500 | F52: 1500
A53: 15 | B53: 1000 | C53: 1100 | D53: =+D52 -> 1400 | E53: 1500 | F53: 1500
A54: 16 | B54: 1000 | C54: 1100 | D54: 1400 | E54: 1500 | F54: 1500
A55: 17 | B55: 1000 | C55: 1100 | D55: 1400 | E55: 1500 | F55: 1500
A56: 18 | B56: 1000 | C56: 1100 | D56: 1400 | E56: 1500 | F56: 1500
A57: 19 | B57: 1000 | C57: 1100 | D57: 1400 | E57: 1500 | F57: 1500
A58: 20 | B58: 1000 | C58: 1100 | D58: 1400 | E58: 1500 | F58: 1500
A60: The yields of each system is based on grower survey at the time this cost study was completed.
A61: Perhapst a more realistic yield for the central leader system should be 700 bushel per acre.
A63: GAP Audit | C63: 1000 | D63: =+C63/200 -> 5
A64: Water Test | C64: 100 | D64: =+C64/200 -> 0.5
A65: Paper Labor HR request | C65: 100 | D65: 0.5
A66: Suveys | C66: 100 | D66: 0.5
A67: Primus | C67: 1000 | D67: 5
A68: Law Suits | D68: 0
A69: Fines | C69: 100 | D69: 0.5
A70: Frost | D70: 0
A73: Uhooks | B73: 0.12 | C73: each
A74: SM UHOOKS | B74: 0.115 | C74: each
A75: WIRE | B75: 0.024 | C75: per foot
A76: GARDS | B76: 35.5 | C76: each
A77: APPLE BAND | B77: 0.015 | C77: each
C99: Sevin 80S

Sheet Profit
A1: Profit Comparison of Systems | S1: Tabs
S2: Agenda
A3: Effect of varying yield. | S3: Descrip
S4: Factors and Yield
A5: This chart is based on Mature Bearing Years for each system. | S5: Profit
A6: Bin costs based on 850 lb bins. | S6: Comparisons
C7: Central Leader | F7: Vertical Axe | I7: Tall Spindle | L7: Super Spindle | N7: 2 Leader | S7: Spray Program
A8: Yield | B8: Cost | C8: Cost | D8: Cost | E8: =+B8 -> Cost | F8: =+C8 -> Cost | G8: Cost | H8: =+B8 -> Cost | I8: Cost | J8: Cost | K8: Cost | L8: Cost | M8: Cost | N8: =+K8 -> Cost | O8: =+L8 -> Cost | P8: =+M8 -> Cost | S8: Summary
A9: /Acre | B9: /Bin | C9: /Bushel | D9: /lb. | E9: /Bin | F9: /Bushel | G9: /lb. | H9: /Bin | I9: =+C9 -> /Bushel | J9: =+D9 -> /lb. | K9: /Bin | L9: =+F9 -> /Bushel | M9: =+G9 -> /lb. | N9: /Bin | O9: /Bushel | P9: /lb. | S9: Chart
A10: 200 | B10: =+'CL Profit'!H61*850 -> 355.4234786 | C10: =+'CL Profit'!G61 -> 17.56210129 | D10: =+'CL Profit'!H61 -> 0.4181452689 | E10: =+'VA Profit'!H61*850 -> 373.2042613 | F10: =+'VA Profit'!G61 -> 18.44068115 | G10: =+'VA Profit'!H61 -> 0.4390638369 | H10: =+'TS Profit'!H61*850 -> 382.5 | I10: =+'TS Profit'!G61 -> 18.93 | J10: =+'TS Profit'!H61 -> 0.45 | K10: =+'SS Profit'!H61*850 -> 371.4931977 | L10: =+'SS Profit'!G61 -> 18.35613448 | M10: =+'SS Profit'!H61 -> 0.4370508209 | N10: =+'FW Profit'!H61*850 -> 361.0853155 | O10: =+'FW Profit'!G61 -> 17.84186265 | P10: =+'FW Profit'!H61 -> 0.4248062535 | S10: Fruiting Wall
A11: =+A10+100 -> 300 | B11: =+'CL Profit'!H62*850 -> 253.6156524 | C11: =+'CL Profit'!G62 -> 12.53159694 | D11: =+'CL Profit'!H62 -> 0.2983713558 | E11: =+'VA Profit'!H62*850 -> 265.4695076 | F11: =+'VA Profit'!G62 -> 13.11731684 | G11: =+'VA Profit'!H62 -> 0.3123170677 | H11: =+'TS Profit'!H62*850 -> 272 | I11: =+'TS Profit'!G62 -> 13.59 | J11: =+'TS Profit'!H62 -> 0.32 | K11: =+'SS Profit'!H62*850 -> 264.3287985 | L11: =+'SS Profit'!G62 -> 13.0609524 | M11: =+'SS Profit'!H62 -> 0.3109750571 | N11: =+'FW Profit'!H62*850 -> 257.3902103 | O11: =+'FW Profit'!G62 -> 12.71810451 | P11: =+'FW Profit'!H62 -> 0.3028120121 | S11: Tall Spindle
A12: =+A11+100 -> 400 | B12: =+'CL Profit'!H63*850 -> 202.7117393 | C12: =+'CL Profit'!G63 -> 10.01634477 | D12: =+'CL Profit'!H63 -> 0.2384843992 | E12: =+'VA Profit'!H63*850 -> 211.6021307 | F12: =+'VA Profit'!G63 -> 10.45563469 | G12: =+'VA Profit'!H63 -> 0.2489436831 | H12: =+'TS Profit'!H63*850 -> 221 | I12: =+'TS Profit'!G63 -> 10.91 | J12: =+'TS Profit'!H63 -> 0.26 | K12: =+'SS Profit'!H63*850 -> 210.7465989 | L12: =+'SS Profit'!G63 -> 10.41336136 | M12: =+'SS Profit'!H63 -> 0.2479371751 | N12: =+'FW Profit'!H63*850 -> 205.5426577 | O12: =+'FW Profit'!G63 -> 10.15622544 | P12: =+'FW Profit'!H63 -> 0.2418148915 | S12: Vertical Axe
A13: 500 | B13: =+'CL Profit'!H64*850 -> 172.1693914 | C13: =+'CL Profit'!G64 -> 8.507193459 | D13: =+'CL Profit'!H64 -> 0.2025522252 | E13: =+'VA Profit'!H64*850 -> 179.2817045 | F13: =+'VA Profit'!G64 -> 8.858625401 | G13: =+'VA Profit'!H64 -> 0.2109196524 | H13: =+'TS Profit'!H64*850 -> 187 | I13: =+'TS Profit'!G64 -> 9.31 | J13: =+'TS Profit'!H64 -> 0.22 | K13: =+'SS Profit'!H64*850 -> 178.5972791 | L13: =+'SS Profit'!G64 -> 8.824806732 | M13: =+'SS Profit'!H64 -> 0.210114446 | N13: =+'FW Profit'!H64*850 -> 174.4341262 | O13: =+'FW Profit'!G64 -> 8.619098 | P13: =+'FW Profit'!H64 -> 0.205216619 | S13: Central Leader
A14: 600 | B14: =+'CL Profit'!H65*850 -> 151.8078262 | C14: =+'CL Profit'!G65 -> 7.501092589 | D14: =+'CL Profit'!H65 -> 0.1785974426 | E14: =+'VA Profit'!H65*850 -> 157.7347538 | F14: =+'VA Profit'!G65 -> 7.79395254 | G14: =+'VA Profit'!H65 -> 0.1855702986 | H14: =+'TS Profit'!H65*850 -> 170 | I14: =+'TS Profit'!G65 -> 8.24 | J14: =+'TS Profit'!H65 -> 0.2 | K14: =+'SS Profit'!H65*850 -> 157.1643992 | L14: =+'SS Profit'!G65 -> 7.765770316 | M14: =+'SS Profit'!H65 -> 0.1848992932 | N14: =+'FW Profit'!H65*850 -> 153.6951052 | O14: =+'FW Profit'!G65 -> 7.594346373 | P14: =+'FW Profit'!H65 -> 0.1808177708 | S14: CL Profit
A15: 700 | B15: =+'CL Profit'!H66*850 -> 137.263851 | C15: =+'CL Profit'!G66 -> 6.782449109 | D15: =+'CL Profit'!H66 -> 0.1614868836 | E15: =+'VA Profit'!H66*850 -> 142.3440747 | F15: =+'VA Profit'!G66 -> 7.033471925 | G15: =+'VA Profit'!H66 -> 0.1674636173 | H15: =+'TS Profit'!H66*850 -> 153 | I15: =+'TS Profit'!G66 -> 7.48 | J15: =+'TS Profit'!H66 -> 0.18 | K15: =+'SS Profit'!H66*850 -> 141.8551994 | L15: =+'SS Profit'!G66 -> 7.009315733 | M15: =+'SS Profit'!H66 -> 0.1668884698 | N15: =+'FW Profit'!H66*850 -> 138.8815187 | O15: =+'FW Profit'!G66 -> 6.862380924 | P15: =+'FW Profit'!H66 -> 0.163390022 | S15: TS Profit
A16: 800 | B16: =+'CL Profit'!H67*850 -> 126.3558696 | C16: =+'CL Profit'!G67 -> 6.2434665 | D16: =+'CL Profit'!H67 -> 0.1486539643 | E16: =+'VA Profit'!H67*850 -> 130.8010653 | F16: =+'VA Profit'!G67 -> 6.463111464 | G16: =+'VA Profit'!H67 -> 0.1538836063 | H16: =+'TS Profit'!H67*850 -> 136 | I16: =+'TS Profit'!G67 -> 6.91 | J16: =+'TS Profit'!H67 -> 0.16 | K16: =+'SS Profit'!H67*850 -> 130.3732994 | L16: =+'SS Profit'!G67 -> 6.441974796 | M16: =+'SS Profit'!H67 -> 0.1533803523 | N16: =+'FW Profit'!H67*850 -> 127.7713289 | O16: =+'FW Profit'!G67 -> 6.313406838 | P16: =+'FW Profit'!H67 -> 0.1503192104 | S16: VA Profit
A17: 900 | B17: =+'CL Profit'!H68*850 -> 117.8718841 | C17: =+'CL Profit'!G68 -> 5.824257804 | D17: =+'CL Profit'!H68 -> 0.1386728049 | E17: =+'VA Profit'!H68*850 -> 121.8231692 | F17: =+'VA Profit'!G68 -> 6.019497772 | G17: =+'VA Profit'!H68 -> 0.1433213755 | H17: =+'TS Profit'!H68*850 -> 127.5 | I17: =+'TS Profit'!G68 -> 6.46 | J17: =+'TS Profit'!H68 -> 0.15 | K17: =+'SS Profit'!H68*850 -> 121.4429328 | L17: =+'SS Profit'!G68 -> 6.000709622 | M17: =+'SS Profit'!H68 -> 0.1428740386 | N17: =+'FW Profit'!H68*850 -> 119.1300701 | O17: =+'FW Profit'!G68 -> 5.886426993 | P17: =+'FW Profit'!H68 -> 0.1401530237 | S17: FW Profit
A18: 1000 | B18: =+'CL Profit'!H69*850 -> 111.0846957 | C18: =+'CL Profit'!G69 -> 5.488890847 | D18: =+'CL Profit'!H69 -> 0.1306878773 | E18: =+'VA Profit'!H69*850 -> 114.6408523 | F18: =+'VA Profit'!G69 -> 5.664606818 | G18: =+'VA Profit'!H69 -> 0.1348715909 | H18: =+'TS Profit'!H69*850 -> 127.5 | I18: =+'TS Profit'!G69 -> 6.1 | J18: =+'TS Profit'!H69 -> 0.15 | K18: =+'SS Profit'!H69*850 -> 114.2986395 | L18: =+'SS Profit'!G69 -> 5.647697484 | M18: =+'SS Profit'!H69 -> 0.1344689877 | N18: =+'FW Profit'!H69*850 -> 112.2170631 | O18: =+'FW Profit'!G69 -> 5.544843118 | P18: =+'FW Profit'!H69 -> 0.1320200742 | S18: Spray Program
A19: 1100 | B19: =+'CL Profit'!H70*850 -> 105.5315416 | C19: =+'CL Profit'!G70 -> 5.214499701 | D19: =+'CL Profit'!H70 -> 0.1241547548 | E19: =+'VA Profit'!H70*850 -> 108.7644112 | F19: =+'VA Profit'!G70 -> 5.374241492 | G19: =+'VA Profit'!H70 -> 0.1279581308 | H19: =+'TS Profit'!H70*850 -> 119 | I19: =+'TS Profit'!G70 -> 5.81 | J19: =+'TS Profit'!H70 -> 0.14 | K19: =+'SS Profit'!H70*850 -> 108.4533087 | L19: =+'SS Profit'!G70 -> 5.35886937 | M19: =+'SS Profit'!H70 -> 0.1275921279 | N19: =+'FW Profit'!H70*850 -> 106.5609664 | O19: =+'FW Profit'!G70 -> 5.265365401 | P19: =+'FW Profit'!H70 -> 0.1253658429 | S19: Spray Costs
A20: 1200 | B20: =+'CL Profit'!H71*850 -> 100.9039131 | C20: =+'CL Profit'!G71 -> 4.985840412 | D20: =+'CL Profit'!H71 -> 0.118710486 | E20: =+'VA Profit'!H71*850 -> 103.8673769 | F20: =+'VA Profit'!G71 -> 5.132270387 | G20: =+'VA Profit'!H71 -> 0.122196914 | H20: =+'TS Profit'!H71*850 -> 110.5 | I20: =+'TS Profit'!G71 -> 5.57 | J20: =+'TS Profit'!H71 -> 0.13 | K20: =+'SS Profit'!H71*850 -> 103.5821996 | L20: =+'SS Profit'!G71 -> 5.118179275 | M20: =+'SS Profit'!H71 -> 0.1218614113 | N20: =+'FW Profit'!H71*850 -> 101.8475526 | O20: =+'FW Profit'!G71 -> 5.032467304 | P20: =+'FW Profit'!H71 -> 0.1198206501 | S20: Herbicide
A21: =+A20+100 -> 1300 | B21: =+'CL Profit'!H72*850 -> 96.98822748 | C21: =+'CL Profit'!G72 -> 4.792359475 | D21: =+'CL Profit'!H72 -> 0.114103797 | E21: =+'VA Profit'!H72*850 -> 99.72373251 | F21: =+'VA Profit'!G72 -> 4.927525607 | G21: =+'VA Profit'!H72 -> 0.1173220383 | H21: =+'TS Profit'!H72*850 -> 110.5 | I21: =+'TS Profit'!G72 -> 5.36 | J21: =+'TS Profit'!H72 -> 0.13 | K21: =+'SS Profit'!H72*850 -> 99.46049196 | L21: =+'SS Profit'!G72 -> 4.914518426 | M21: =+'SS Profit'!H72 -> 0.1170123435 | N21: =+'FW Profit'!H72*850 -> 97.8592793 | O21: =+'FW Profit'!G72 -> 4.835399683 | P21: =+'FW Profit'!H72 -> 0.1151285639 | S21: Irrigation
A22: =+A21+100 -> 1400 | B22: =+'CL Profit'!H73*850 -> 93.63192551 | C22: =+'CL Profit'!G73 -> 4.626518672 | D22: =+'CL Profit'!H73 -> 0.1101552065 | E22: =+'VA Profit'!H73*850 -> 96.17203733 | F22: =+'VA Profit'!G73 -> 4.75203008 | G22: =+'VA Profit'!H73 -> 0.1131435733 | H22: =+'TS Profit'!H73*850 -> 102 | I22: =+'TS Profit'!G73 -> 5.19 | J22: =+'TS Profit'!H73 -> 0.12 | K22: =+'SS Profit'!H73*850 -> 95.92759968 | L22: =+'SS Profit'!G73 -> 4.739951984 | M22: =+'SS Profit'!H73 -> 0.1128559996 | N22: =+'FW Profit'!H73*850 -> 94.44075935 | O22: =+'FW Profit'!G73 -> 4.66648458 | P22: =+'FW Profit'!H73 -> 0.1111067757 | S22: Fertilizer
A23: =+A22+100 -> 1500 | B23: =+'CL Profit'!H74*850 -> 90.72313048 | C23: =+'CL Profit'!G74 -> 4.482789977 | D23: =+'CL Profit'!H74 -> 0.1067330947 | E23: =+'VA Profit'!H74*850 -> 93.09390151 | F23: =+'VA Profit'!G74 -> 4.599933957 | G23: =+'VA Profit'!H74 -> 0.1095222371 | H23: =+'TS Profit'!H74*850 -> 102 | I23: =+'TS Profit'!G74 -> 5.03 | J23: =+'TS Profit'!H74 -> 0.12 | K23: =+'SS Profit'!H74*850 -> 92.8657597 | L23: =+'SS Profit'!G74 -> 4.588661067 | M23: =+'SS Profit'!H74 -> 0.1092538349 | N23: =+'FW Profit'!H74*850 -> 91.47804206 | O23: =+'FW Profit'!G74 -> 4.52009149 | P23: =+'FW Profit'!H74 -> 0.107621226 | S23: Wildlife
A24: Central Leader | D24: Cost/Lb | E24: =+D18 -> 0.1306878773 | F24: CL Price | G24: =CLPrice -> 0.3 | S24: Trellis
A25: Vertical Axe | D25: Cost/Lb | E25: =+G19 -> 0.1279581308 | F25: VA Price | G25: =VAPrice -> 0.3 | S25: Training
A26: Tall Spindle | D26: Cost/Lb | E26: =+J23 -> 0.12 | G26: =TSPrice -> 0.3
A27: Super Spindle | D27: Cost/Lb | E27: =+M23 -> 0.1092538349 | F27: TS Price | G27: =SSPrice -> 0.3 | S27: Mowing
A28: Fruiting Wall | D28: Cost/Lb | E28: =+P23 -> 0.107621226 | F28: FW Price | G28: =FWPrice -> 0.3 | S28: CostsComparison
S29: Harvest
A30: Sales Price /lb. | D30: =+Price -> 0.3 | F30: Unskilled Labor Cost | J30: =+LaborNoSkill -> 20 | M30: $/Bin | S30: Year0
S31: Equipment
A57: Profit Comparison of Systems
A60: Profit | B60: Central Leader | C60: Vertical Axe | D60: Tall Spindle | E60: Super Spindle | F60: 2 Leader
A61: =+'CL Profit'!A5 -> 0 | B61: =+'CL Profit'!I5 -> -2453.26 | C61: =+'VA Profit'!I5 -> -2453.26 | D61: =+'TS Profit'!I5 -> -2453.26 | E61: =+'SS Profit'!I5 -> -2453.26 | F61: =+'FW Profit'!I5 -> -2453.26
A62: =+'CL Profit'!A6 -> 1 | B62: =+'CL Profit'!I6 -> -5980.324059 | C62: =+'VA Profit'!I6 -> -17403.1193 | D62: =+'TS Profit'!I6 -> -27470.71548 | E62: =+'SS Profit'!I6 -> -28543.99088 | F62: =+'FW Profit'!I6 -> -34859.10654
A63: =+'CL Profit'!A7 -> 2 | B63: =+'CL Profit'!I7 -> -6987.646984 | C63: =+'VA Profit'!I7 -> -20280.41955 | D63: =+'TS Profit'!I7 -> -30368.5971 | E63: =+'SS Profit'!I7 -> -32520.70573 | F63: =+'FW Profit'!I7 -> -37965.75906
A64: =+'CL Profit'!A8 -> 3 | B64: =+'CL Profit'!I8 -> -8568.627315 | C64: =+'VA Profit'!I8 -> -22717.23111 | D64: =+'TS Profit'!I8 -> -32390.49443 | E64: =+'SS Profit'!I8 -> -32498.49435 | F64: =+'FW Profit'!I8 -> -37743.00198
A65: =+'CL Profit'!A9 -> 4 | B65: =+'CL Profit'!I9 -> -9445.669608 | C65: =+'VA Profit'!I9 -> -23449.63086 | D65: =+'TS Profit'!I9 -> -31026.16634 | E65: =+'SS Profit'!I9 -> -28585.01536 | F65: =+'FW Profit'!I9 -> -33726.66862
A66: =+'CL Profit'!A10 -> 5 | B66: =+'CL Profit'!I10 -> -10421.47349 | C66: =+'VA Profit'!I10 -> -20084.72539 | D66: =+'TS Profit'!I10 -> -25629.83825 | E66: =+'SS Profit'!I10 -> -20639.53637 | F66: =+'FW Profit'!I10 -> -25678.33527
A67: =+'CL Profit'!A11 -> 6 | B67: =+'CL Profit'!I11 -> -10006.56872 | C67: =+'VA Profit'!I11 -> -12136.39103 | D67: =+'TS Profit'!I11 -> -17209.51016 | E67: =+'SS Profit'!I11 -> -8662.057384 | F67: =+'FW Profit'!I11 -> -14606.00192
A68: =+'CL Profit'!A12 -> 7 | B68: =+'CL Profit'!I12 -> -8923.761695 | C68: =+'VA Profit'!I12 -> -4188.056673 | D68: =+'TS Profit'!I12 -> -5765.18207 | E68: =+'SS Profit'!I12 -> 3315.421603 | F68: =+'FW Profit'!I12 -> -2525.668565
A69: =+'CL Profit'!A13 -> 8 | B69: =+'CL Profit'!I13 -> -6877.358425 | C69: =+'VA Profit'!I13 -> 3760.277685 | D69: =+'TS Profit'!I13 -> 5679.146021 | E69: =+'SS Profit'!I13 -> 15292.90059 | F69: =+'FW Profit'!I13 -> 9554.664788
A70: =+'CL Profit'!A14 -> 9 | B70: =+'CL Profit'!I14 -> 209.0448455 | C70: =+'VA Profit'!I14 -> 11708.61204 | D70: =+'TS Profit'!I14 -> 17123.47411 | E70: =+'SS Profit'!I14 -> 27270.37958 | F70: =+'FW Profit'!I14 -> 21634.99814
A71: =+'CL Profit'!A15 -> 10 | B71: =+'CL Profit'!I15 -> 7295.448116 | C71: =+'VA Profit'!I15 -> 19656.9464 | D71: =+'TS Profit'!I15 -> 28567.8022 | E71: =+'SS Profit'!I15 -> 39247.85856 | F71: =+'FW Profit'!I15 -> 33715.33149
A72: =+'CL Profit'!A16 -> 11 | B72: =+'CL Profit'!I16 -> 14381.85139 | C72: =+'VA Profit'!I16 -> 27605.28076 | D72: =+'TS Profit'!I16 -> 40012.13029 | E72: =+'SS Profit'!I16 -> 51225.33755 | F72: =+'FW Profit'!I16 -> 45795.66485
A73: =+'CL Profit'!A17 -> 12 | B73: =+'CL Profit'!I17 -> 21468.25466 | C73: =+'VA Profit'!I17 -> 35553.61512 | D73: =+'TS Profit'!I17 -> 51456.45838 | E73: =+'SS Profit'!I17 -> 63202.81654 | F73: =+'FW Profit'!I17 -> 57875.9982
A74: =+'CL Profit'!A18 -> 13 | B74: =+'CL Profit'!I18 -> 28554.65793 | C74: =+'VA Profit'!I18 -> 43501.94948 | D74: =+'TS Profit'!I18 -> 62900.78647 | E74: =+'SS Profit'!I18 -> 75180.29552 | F74: =+'FW Profit'!I18 -> 69956.33155
A75: =+'CL Profit'!A19 -> 14 | B75: =+'CL Profit'!I19 -> 35641.0612 | C75: =+'VA Profit'!I19 -> 51450.28384 | D75: =+'TS Profit'!I19 -> 74345.11456 | E75: =+'SS Profit'!I19 -> 87157.77451 | F75: =+'FW Profit'!I19 -> 82036.66491
A76: =+'CL Profit'!A20 -> 15 | B76: =+'CL Profit'!I20 -> 42727.46447 | C76: =+'VA Profit'!I20 -> 59398.61819 | D76: =+'TS Profit'!I20 -> 85789.44265 | E76: =+'SS Profit'!I20 -> 99135.2535 | F76: =+'FW Profit'!I20 -> 94116.99826
A77: =+'CL Profit'!A21 -> 16 | B77: =+'CL Profit'!I21 -> 49813.86774 | C77: =+'VA Profit'!I21 -> 67346.95255 | D77: =+'TS Profit'!I21 -> 97233.77075 | E77: =+'SS Profit'!I21 -> 111112.7325 | F77: =+'FW Profit'!I21 -> 106197.3316
A78: =+'CL Profit'!A22 -> 17 | B78: =+'CL Profit'!I22 -> 56900.27101 | C78: =+'VA Profit'!I22 -> 75295.28691 | D78: =+'TS Profit'!I22 -> 108678.0988 | E78: =+'SS Profit'!I22 -> 123090.2115 | F78: =+'FW Profit'!I22 -> 118277.665
A79: =+'CL Profit'!A23 -> 18 | B79: =+'CL Profit'!I23 -> 63986.67428 | C79: =+'VA Profit'!I23 -> 83243.62127 | D79: =+'TS Profit'!I23 -> 120122.4269 | E79: =+'SS Profit'!I23 -> 135067.6905 | F79: =+'FW Profit'!I23 -> 130357.9983
A80: =+'CL Profit'!A24 -> 19 | B80: =+'CL Profit'!I24 -> 71073.07755 | C80: =+'VA Profit'!I24 -> 91191.95563 | D80: =+'TS Profit'!I24 -> 131566.755 | E80: =+'SS Profit'!I24 -> 147045.1694 | F80: =+'FW Profit'!I24 -> 142438.3317
A81: =+'CL Profit'!A25 -> 20 | B81: =+'CL Profit'!I25 -> 78159.48082 | C81: =+'VA Profit'!I25 -> 99140.28999 | D81: =+'TS Profit'!I25 -> 143011.0831 | E81: =+'SS Profit'!I25 -> 159022.6484 | F81: =+'FW Profit'!I25 -> 154518.665
A84: =+A8 -> Yield
A85: /Acre | B85: Central Leader | C85: Vertical Axe | D85: Tall Spindle | E85: Super Spindle | F85: 2 Leader
A86: 200 | B86: =+B10 -> 355.4234786 | C86: =+E10 -> 373.2042613 | D86: =+H10 -> 382.5 | E86: =+K10 -> 371.4931977 | F86: =+N10 -> 361.0853155
A87: 300 | B87: =+B11 -> 253.6156524 | C87: 265.4695076 | D87: =+H11 -> 272 | E87: 264.3287985 | F87: 257.3902103
A88: 400 | B88: =+B12 -> 202.7117393 | C88: 211.6021307 | D88: =+H12 -> 221 | E88: 210.7465989 | F88: 205.5426577
A89: 500 | B89: =+B13 -> 172.1693914 | C89: 179.2817045 | D89: 187 | E89: 178.5972791 | F89: 174.4341262
A90: 600 | B90: =+B14 -> 151.8078262 | C90: 157.7347538 | D90: 170 | E90: 157.1643992 | F90: 153.6951052
A91: 700 | B91: =+B15 -> 137.263851 | C91: 142.3440747 | D91: 153 | E91: 141.8551994 | F91: 138.8815187
A92: 800 | B92: =+B16 -> 126.3558696 | C92: 130.8010653 | D92: 136 | E92: 130.3732994 | F92: 127.7713289
A93: 900 | B93: =+B17 -> 117.8718841 | C93: 121.8231692 | D93: 127.5 | E93: 121.4429328 | F93: 119.1300701
A94: 1000 | B94: =+B18 -> 111.0846957 | C94: 114.6408523 | D94: 127.5 | E94: 114.2986395 | F94: 112.2170631
A95: 1100 | B95: =+B19 -> 105.5315416 | C95: 108.7644112 | D95: 119 | E95: 108.4533087 | F95: 106.5609664
A96: 1200 | B96: =+B20 -> 100.9039131 | C96: 103.8673769 | D96: 110.5 | E96: 103.5821996 | F96: 101.8475526
A97: 1300 | B97: =+B21 -> 96.98822748 | C97: 99.72373251 | D97: 110.5 | E97: 99.46049196 | F97: 97.8592793
A98: 1400 | B98: =+B22 -> 93.63192551 | C98: 96.17203733 | D98: 102 | E98: 95.92759968 | F98: 94.44075935
A99: 1500 | B99: =+B23 -> 90.72313048 | C99: 93.09390151 | D99: 102 | E99: 92.8657597 | F99: 91.47804206
A101: =+A60 -> Profit | B101: =+B60 -> Central Leader | C101: Vertical Axe | D101: Tall Spindle | E101: Super Spindle | F101: 2 Leader
A102: =+A61 -> 0 | B102: =+B61*-1 -> 2453.26 | C102: =+C61*-1 -> 2453.26 | D102: 2453.26 | E102: 2453.26 | F102: 2453.26
A103: Planting Year | B103: =+B62*-1 -> 5980.324059 | C103: =+C62*-1 -> 17403.1193 | D103: 27470.71548 | E103: 28543.99088 | F103: 34859.10654
A104: =+A63 -> 2 | B104: =+B63*-1 -> 6987.646984 | C104: =+C63*-1 -> 20280.41955 | D104: 30368.5971 | E104: 32520.70573 | F104: 37965.75906
A105: =+A64 -> 3 | B105: =+B64*-1 -> 8568.627315 | C105: =+C64*-1 -> 22717.23111 | D105: 32390.49443 | E105: 32498.49435 | F105: 37743.00198
A106: =+A65 -> 4 | B106: =+B65*-1 -> 9445.669608 | C106: =+C65*-1 -> 23449.63086 | D106: 31026.16634 | E106: 28585.01536 | F106: 33726.66862
A107: =+A66 -> 5 | B107: =+B66*-1 -> 10421.47349 | C107: =+C66*-1 -> 20084.72539 | D107: 25629.83825 | E107: 20639.53637 | F107: 25678.33527
A108: =+A67 -> 6 | B108: =+B67*-1 -> 10006.56872 | C108: =+C67*-1 -> 12136.39103 | D108: 17209.51016 | E108: 8662.057384 | F108: 14606.00192
G113: Cost/Bushel (Mature Orchard)
A114: Costs of Mature Orchard Costs/Bushel | G114: Mature Orchard Yield
B115: =+B101 -> Central Leader | C115: =+C101 -> Vertical Axe | D115: =+D74 -> 62900.78647 | E115: Super Spindle | F115: 2 Leader
A116: Costs/Bushel | B116: =+C18 -> 5.488890847 | C116: =+F19 -> 5.374241492 | D116: =+I23 -> 5.03 | E116: =+L23 -> 4.588661067 | F116: =+O23 -> 4.52009149
A117: Mature Yield/acre | B117: =+A18 -> 1000 | C117: =+A19 -> 1100 | D117: =+A23 -> 1500 | E117: =+A23 -> 1500 | F117: =+A23 -> 1500
B120: =+E29*42 -> 0

Sheet Named Cells
A1: Labor Cost/Hr. (no-skill) | C1: 20 | D1: Cost of Gasoline/Gal | F1: 3.5
A2: Labor Cost/Hr. (skilled) | C2: 24 | D2: Cost of Diesel/Gal | F2: 2.75
A3: Harvest Piece Rate/Bin | C3: 35
A4: Harvest Cost per Lb. | C4: =+Harvest!H21 -> 0 | D4: Interest Rate on Land | F4: 0.04
D5: Interest Rate on Operating | F5: 0.04
A6: Bulldozer Cost/Hr. | C6: 100 | D6: Expected Apple Price per lb. | F6: 0.3
A7: Cost of Trees-feathered (per tree) | C7: 11 | E7: Central Leader | F7: =+Price -> 0.3
A8: Cost of CL Trees | C8: =+TreeCost -> 11 | E8: Vertical Axe | F8: =+CLPrice -> 0.3
A9: Cost of VA Trees | C9: =+TreeCost -> 11 | E9: Tall Spindle | F9: =+VAPrice -> 0.3
A10: Cost of TS Trees | C10: =+TreeCost -> 11 | E10: SuperSpindle | F10: 0.3
A11: Cost of SS Trees | C11: 11 | E11: Fruiting Wall | F11: 0.3
A12: Cost of FW Trees | C12: 15
A13: Deer Fence/foot | C13: 3.25 | D13: Land Investment / Acre | F13: 10000
A14: Cost of Wildlife Control/Tree | C14: 0.05 | D14: Real Estate Tax / Acre | F14: 40
A15: Cost of Mouse Guards/Tree | C15: 0.25 | D15: Expected Life of Orchard (years) | F15: 20
A16: Custom Planting Cost/Tree | C16: 0.35 | D16: Crop Insurance /Acre | F16: 200
D17: Frost Fans | E17: $40000/10 acres | F17: 1500
D18: Management | E18: $40000/200 acres | F18: 200
A19: Lime Cost/Ton | C19: 35 | D19: Overhead Misc Costs/acre | F19: 40
A26: SprayMat4 | B26: =+SprayMat4 -> 1163.618096 | C26: =+SprayMat4
A27: TotSpCost | B27: =+TotSpCost -> 1200 | C27: =+TotSpCost
A29: CLYear8 | B29: =+SSYear4 -> 2688.746091 | D29: =+year0 -> 2013
A30: CLYear7 | B30: =CLYear7 -> 2499.208798 | C30: =+A30 -> CLYear7 | D30: =+CLYear1 -> 3065.749077
A31: CLYear6 | B31: =+CLYear6 -> 2165.779642 | C31: =+CLYear6 | D31: =+CLYear2 -> 595.4146322
A32: CLYear5 | B32: =CLYear5 -> 2046.866548 | D32: =+CLYear3 -> 1157.823854
A33: CLYear4 | B33: =CLYear4 -> 1455.923817 | D33: =+CLYear4 -> 1455.923817
A34: CLYear3 | B34: =CLYear3 -> 1157.823854 | D34: =+CLYear5 -> 2046.866548
A35: CLYear2 | B35: =CLYear2 -> 595.4146322 | D35: =+CLYear6 -> 2165.779642
A36: CLYear1 | B36: =CLYear1 -> 3065.749077 | D36: =+CLYear7 -> 2499.208798
A37: Year0 | B37: =year0 -> 2013 | C37: =year0 | D37: =+CLYear8 -> 2542.741892
D38: CL | F38: VA | H38: TS | J38: SS | L38: FW
A39: 1 | B39: Bait | C39: =+B39&A39 -> Bait1 | D39: ="="&$D$38&$C39 -> =CLBait1 | E39: =CLBait1 -> 17.5 | F39: ="="&$F$38&$C39 -> =VABait1 | G39: =VABait1 -> 17.5 | H39: ="="&$H$38&$C39 -> =TSBait1 | I39: =TSBait1 -> 17.5 | J39: ="="&$J$38&$C39 -> =SSBait1 | K39: =SSBait1 -> 17.5 | L39: ="="&$L$38&$C39 -> =FWBait1 | M39: =FWBait1 -> 17.5
A40: =+A39+1 -> 2 | B40: =+B39 -> Bait | C40: =+B40&A40 -> Bait2 | D40: ="="&$D$38&$C40 -> =CLBait2 | E40: =CLBait2 -> 17.5 | F40: =VABait2 | G40: =VABait2 -> 17.5 | H40: =TSBait2 | I40: =TSBait2 -> 17.5 | J40: ="="&$J$38&$C40 -> =SSBait2 | K40: =SSBait2 -> 17.5 | L40: ="="&$L$38&$C40 -> =FWBait2 | M40: =FWBait2 -> 17.5
A41: =+A40+1 -> 3 | B41: =+B40 -> Bait | C41: Bait3 | D41: =CLBait3 | E41: =CLBait3 -> 17.5 | F41: =VABait3 | G41: =VABait3 -> 17.5 | H41: =TSBait3 | I41: =TSBait3 -> 19.25 | J41: ="="&$J$38&$C41 -> =SSBait3 | K41: =SSBait3 -> 22.75 | L41: ="="&$L$38&$C41 -> =FWBait3 | M41: =FWBait3 -> 21.875
A42: 4 | B42: Bait | C42: Bait4 | D42: =CLBait4 | E42: =CLBait4 -> 17.5 | F42: =VABait4 | G42: =VABait4 -> 17.5 | H42: =TSBait4 | I42: =TSBait4 -> 19.25 | J42: ="="&$J$38&$C42 -> =SSBait4 | K42: =SSBait4 -> 22.75 | L42: ="="&$L$38&$C42 -> =FWBait4 | M42: =FWBait4 -> 21.875
A43: 5 | B43: Bait | C43: Bait5 | D43: =CLBait5 | E43: =CLBait5 -> 17.5 | F43: =VABait5 | G43: =VABait5 -> 17.5 | H43: =TSBait5
A44: 6 | B44: Bait | C44: Bait6 | D44: =CLBait6 | E44: =CLBait6 -> 17.5 | F44: =VABait6 | G44: =VABait6 -> 17.5 | H44: =TSBait6
A45: 7 | B45: Bait | C45: Bait7 | D45: =CLBait7 | E45: =CLBait7 -> 17.5 | F45: =VABait7
A46: 8 | B46: Bait | C46: Bait8 | D46: =CLBait8 | E46: =CLBait8 -> 17.5 | F46: =VABait8
A47: 1 | B47: BaitTime | C47: BaitTime1 | D47: =CLBaitTime1 | E47: =CLBaitTime1 -> 0.1176470588 | F47: =VABaitTime1 | G47: =VABaitTime1 -> 0.1428571429 | H47: ="="&$H$38&$C47 -> =TSBaitTime1 | I47: =TSBaitTime1 -> 0.1666666667 | J47: ="="&$J$38&$C47 -> =SSBaitTime1 | K47: =SSBaitTIme1 -> 0.1818181818 | L47: ="="&$L$38&$C47 -> =FWBaitTime1 | M47: =FWBaitTime1 -> 0.1818181818
A48: 2 | B48: =+B47 -> BaitTime | C48: BaitTime2 | D48: =CLBaitTime2 | E48: =CLBaitTime2 -> 0.1176470588 | F48: =VABaitTime2 | G48: =VABaitTime2 -> 0.1428571429 | H48: =TSBaitTime2 | I48: =TSBaitTime2 -> 0.1666666667 | J48: ="="&$J$38&$C48 -> =SSBaitTime2 | K48: =SSBaitTime2 -> 0.1818181818 | L48: ="="&$L$38&$C48 -> =FWBaitTime2 | M48: =FWBaitTime2 -> 0.1818181818
A49: 3 | B49: =+B48 -> BaitTime | C49: BaitTime3 | D49: =CLBaitTime3 | E49: =CLBaitTime3 -> 0.1176470588 | F49: =VABaitTime3 | G49: =VABaitTime3 -> 0.1428571429 | H49: =TSBaitTime3 | I49: =TSBaitTime3 -> 0.1666666667 | J49: ="="&$J$38&$C49 -> =SSBaitTime3 | K49: =SSBaitTime3 -> 0.1818181818 | L49: ="="&$L$38&$C49 -> =FWBaitTime3 | M49: =FWBaitTime3 -> 0.1818181818
A50: 4 | B50: BaitTime | C50: BaitTime4 | D50: =CLBaitTime4 | E50: =CLBaitTIme4 -> 0.1176470588 | F50: =VABaitTime4 | G50: =VABaitTime4 -> 0.1428571429 | H50: =TSBaitTime4 | I50: =TSBaitTime4 -> 0.1666666667 | J50: ="="&$J$38&$C50 -> =SSBaitTime4 | K50: =SSBaitTime4 -> 0.1818181818 | L50: ="="&$L$38&$C50 -> =FWBaitTime4 | M50: =FWBaitTIme4 -> 0.1818181818
A51: 5 | B51: BaitTime | C51: BaitTime5 | D51: =CLBaitTime5 | E51: =CLBaitTime5 -> 0.1176470588 | F51: =VABaitTime5 | G51: =VABaitTime5 -> 0.1428571429 | H51: =TSBaitTime5
A52: 6 | B52: BaitTime | C52: BaitTime6 | D52: =CLBaitTime6 | E52: =CLBaitTime6 -> 0.1176470588 | F52: =VABaitTime6 | G52: =VABaitTIme6 -> 0.1428571429 | H52: =TSBaitTime6
A53: 7 | B53: BaitTime | C53: BaitTime7 | D53: =CLBaitTime7 | E53: =CLBaitTime7 -> 0.1176470588 | F53: =VABaitTime7
A54: 8 | B54: BaitTime | C54: BaitTime8 | D54: =CLBaitTime8 | E54: =CLBaitTIme8 -> 0.1176470588 | F54: =VABaitTime8
A55: 1 | B55: Fert | C55: Fert1 | D55: =CLFert1 | E55: =CLFert1 -> 1.7015625 | F55: =VAFert1 | G55: =VAFert1 -> 5.833928571 | H55: ="="&$H$38&$C55 -> =TSFert1 | I55: =TSFert1 -> 11.34375 | J55: ="="&$J$38&$C55 -> =SSFert1 | K55: =SSFert1 -> 18.5625 | L55: ="="&$L$38&$C55 -> =FWFert1 | M55: =FWFert1 -> 12.375
A56: 2 | B56: =+B55 -> Fert | C56: Fert2 | D56: =CLFert2 | E56: =CLFert2 -> 3.403125 | F56: =VAFert2 | G56: =VAFert2 -> 8.750892857 | H56: =TSFert2 | I56: =TSFert2 -> 11.34375 | J56: ="="&$J$38&$C56 -> =SSFert2 | K56: =SSFert2 -> 18.5625 | L56: ="="&$L$38&$C56 -> =FWFert2 | M56: =FWFert2 -> 12.375
A57: 3 | B57: Fert | C57: Fert3 | D57: =CLFert3 | E57: =CLFert3 -> 5.1046875 | F57: =VAFert3 | G57: =VAFert3 -> 11.66785714 | H57: =TSFert3 | I57: =TSFert3 -> 19.4734375 | J57: ="="&$J$38&$C57 -> =SSFert3 | K57: =SSFert3 -> 31.865625 | L57: ="="&$L$38&$C57 -> =FWFert3 | M57: =FWFert3 -> 21.24375
A58: 4 | B58: Fert | C58: Fert4 | D58: =CLFert4 | E58: =CLFert4 -> 6.80625 | F58: =VAFert4 | G58: =VAFert4 -> 18.86303571 | H58: =TSFert4 | I58: =TSFert4 -> 27.603125 | J58: ="="&$J$38&$C58 -> =SSFert4 | K58: =SSFert4 -> 45.16875 | L58: ="="&$L$38&$C58 -> =FWFert4 | M58: =FWFert4 -> 30.1125
A59: 5 | B59: Fert | C59: Fert5 | D59: =CLFert5 | E59: =CLFert5 -> 10.60640625 | F59: =VAFert5 | G59: =VAFert5 -> 18.86303571 | H59: =TSFert5
A60: 6 | B60: Fert | C60: Fert6 | D60: =CLFert6 | E60: =CLFert6 -> 12.705 | F60: =VAFert6 | G60: =VAFert6 -> 22.460625 | H60: =TSFert6
A61: 7 | B61: Fert | C61: Fert7 | D61: =CLFert7 | E61: =CLFert7 -> 16.50515625 | F61: =VAFert7
A62: 8 | B62: Fert | C62: Fert8 | D62: =CLFert8 | E62: =CLFert8 -> 18.60375 | F62: =VAFert8
A63: 1 | B63: FertTime | C63: =+B63&A63 -> FertTime1 | D63: =CLFertTime1 | E63: =CLFertTime1 -> 0.1 | F63: =VAFertTime1 | G63: =VAFertTime1 -> 0.1428571429 | H63: ="="&$H$38&$C63 -> =TSFertTime1 | I63: =TSFertTime1 -> 0.1666666667 | J63: ="="&$J$38&$C63 -> =SSFertTime1 | K63: =SSFertTime1 -> 0.1818181818 | L63: ="="&$L$38&$C63 -> =FWFertTime1 | M63: =FWFertTime1 -> 0.1818181818
A64: 2 | B64: =+B63 -> FertTime | C64: FertTime2 | D64: =CLFertTime2 | E64: =CLFertTime2 -> 0.1 | F64: =VAFertTime2 | G64: =VAFertTime2 -> 0.1428571429 | H64: =TSFertTime2 | I64: =TSFertTime2 -> 0.1666666667 | J64: ="="&$J$38&$C64 -> =SSFertTime2 | K64: =SSFertTime2 -> 0.1818181818 | L64: ="="&$L$38&$C64 -> =FWFertTime2 | M64: =FWFertTime2 -> 0.1818181818
A65: 3 | B65: =+B64 -> FertTime | C65: FertTime3 | D65: =CLFertTime3 | E65: =CLFertTime3 -> 0.1 | F65: =VAFertTime3 | G65: =VAFertTime3 -> 0.1428571429 | H65: =TSFertTime3 | I65: =TSFertTime3 -> 0.1666666667 | J65: ="="&$J$38&$C65 -> =SSFertTime3 | K65: =SSFertTime3 -> 0.1818181818 | L65: ="="&$L$38&$C65 -> =FWFertTime3 | M65: =FWFertTime3 -> 0.1818181818
A66: 4 | B66: FertTime | C66: FertTime4 | D66: =CLFertTime4 | E66: =CLFertTime4 -> 0.1 | F66: =VAFertTime4 | G66: =VAFertTime4 -> 0.1428571429 | H66: =TSFertTime4 | I66: =TSFertTime4 -> 0.1666666667 | J66: ="="&$J$38&$C66 -> =SSFertTime4 | K66: =SSFertTime4 -> 0.1818181818 | L66: ="="&$L$38&$C66 -> =FWFertTime4 | M66: =FWFertTime4 -> 0.1818181818
A67: 5 | B67: FertTime | C67: FertTime5 | D67: =CLFertTime5 | E67: =CLFertTime5 -> 0.1 | F67: =VAFertTime5 | G67: =VAFertTime5 -> 0.1428571429 | H67: =TSFertTime5
A68: 6 | B68: FertTime | C68: FertTime6 | D68: =CLFertTime6 | E68: =CLFertTime6 -> 0.1 | F68: =VAFertTime6 | G68: =VAFertTime6 -> 0.1428571429 | H68: =TSFertTime6
A69: 7 | B69: FertTime | C69: FertTime7 | D69: =CLFertTime7 | E69: =CLFertTime7 -> 0.1 | F69: =VAFertTime7
A70: 8 | B70: FertTime | C70: FertTime8 | D70: =CLFertTime8 | E70: =CLFertTime8 -> 0.1 | F70: =VAFertTime8
A71: 1 | B71: Herb | C71: Herb1 | D71: =CLHerb1 | E71: =CLHerb1 -> 6 | F71: ="="&$F$38&$C71 -> =VAHerb1 | G71: =VAHerb1 -> 8.571428571 | H71: ="="&$H$38&$C71 -> =TSHerb1 | I71: =TSHerb1 -> 10 | J71: ="="&$J$38&$C71 -> =SSHerb1 | K71: =SSHerb1 -> 10.90909091 | L71: ="="&$L$38&$C71 -> =FWHerb1 | M71: =FWHerb1 -> 9.545454545
A72: 2 | B72: Herb | C72: Herb2 | D72: =CLHerb2 | E72: =CLHerb2 -> 6 | F72: =VAHerb2 | G72: =VAHerb2 -> 8.571428571 | H72: =TSHerb2 | I72: =TSHerb2 -> 10 | J72: ="="&$J$38&$C72 -> =SSHerb2 | K72: =SSHerb2 -> 10.90909091 | L72: ="="&$L$38&$C72 -> =FWHerb2 | M72: =FWHerb2 -> 9.545454545
A73: 3 | B73: Herb | C73: Herb3 | D73: =CLHerb3 | E73: =CLHerb3 -> 9 | F73: =VAHerb3 | G73: =VAHerb3 -> 8.571428571 | H73: =TSHerb3 | I73: =TSHerb3 -> 15 | J73: ="="&$J$38&$C73 -> =SSHerb3 | K73: =SSHerb3 -> 16.36363636 | L73: ="="&$L$38&$C73 -> =FWHerb3 | M73: =FWHerb3 -> 18.40909091
A74: 4 | B74: Herb | C74: Herb4 | D74: =CLHerb4 | E74: =CLHerb4 -> 9 | F74: =VAHerb4 | G74: =VAHerb4 -> 19.28571429 | H74: =TSHerb4 | I74: =TSHerb4 -> 22.5 | J74: ="="&$J$38&$C74 -> =SSHerb4 | K74: =SSHerb4 -> 24.54545455 | L74: ="="&$L$38&$C74 -> =FWHerb4 | M74: =FWHerb4 -> 18.40909091
A75: 5 | B75: Herb | C75: Herb5 | D75: =CLHerb5 | E75: =CLHerb5 -> 13.5 | F75: =VAHerb5 | G75: =VAHerb5 -> 19.28571429 | H75: =TSHerb5
A76: 6 | B76: Herb | C76: Herb6 | D76: =CLHerb6 | E76: =CLHerb6 -> 18 | F76: =VAHerb6 | G76: =VAHerb6 -> 19.28571429 | H76: =TSHerb6
A77: 7 | B77: Herb | C77: Herb7 | D77: =CLHerb7 | E77: =CLHerb7 -> 18 | F77: =VAHerb7
A78: 8 | B78: Herb | C78: Herb8 | D78: =CLHerb8 | E78: =CLHerb8 -> 18 | F78: =VAHerb8
A79: 1 | B79: MowTime | C79: MowTime1 | D79: =CLMowTime1 | E79: =CLMowTime1 -> 0 | F79: =VAMowTime1 | G79: =VAMowTIme1 -> 0 | H79: ="="&$H$38&$C79 -> =TSMowTime1 | I79: =TSMowtime1 -> 0 | J79: ="="&$J$38&$C79 -> =SSMowTime1 | K79: =SSMowTime1 -> 0 | L79: ="="&$L$38&$C79 -> =FWMowTime1 | M79: =FWMowTime1 -> 0
A80: 2 | B80: MowTime | C80: MowTime2 | D80: =CLMowTime2 | E80: =CLMowTime2 -> 0.5 | F80: =VAMowTime2 | G80: =VAMowTime2 -> 0.7142857143 | H80: =TSMowTime2 | I80: =TSMowtime2 -> 0.8333333333 | J80: ="="&$J$38&$C80 -> =SSMowTime2 | K80: =SSMowTime2 -> 0.9090909091 | L80: ="="&$L$38&$C80 -> =FWMowTime2 | M80: =FWMowTime2 -> 0.9090909091
A81: 3 | B81: MowTime | C81: MowTime3 | D81: =CLMowTime3 | E81: =CLMowTime3 -> 0.75 | F81: =VAMowTime3 | G81: =VAMowTime3 -> 1.25 | H81: =TSMowTime3 | I81: =TSMowtime3 -> 1.458333333 | J81: ="="&$J$38&$C81 -> =SSMowTime3 | K81: =SSMowTime3 -> 1.590909091 | L81: ="="&$L$38&$C81 -> =FWMowTime3 | M81: =FWMowTime3 -> 1.590909091
A82: 4 | B82: MowTime | C82: MowTime4 | D82: =CLMowTime4 | E82: =CLMowTime4 -> 0.75 | F82: =VAMowTime4 | G82: =VAMowTime4 -> 1.25 | H82: =TSMowTime4 | I82: =TSMowtime4 -> 1.458333333 | J82: ="="&$J$38&$C82 -> =SSMowTime4 | K82: =SSMowTime4 -> 1.590909091 | L82: ="="&$L$38&$C82 -> =FWMowTime4 | M82: =FWMowTime4 -> 1.590909091
A83: 5 | B83: MowTime | C83: MowTime5 | D83: =CLMowTime5 | E83: =CLMowTime5 -> 0.75 | F83: =VAMowTime5 | G83: =VAMowTime5 -> 1.25 | H83: =TSMowTime5
A84: 6 | B84: MowTime | C84: MowTime6 | D84: =CLMowTime6 | E84: =CLMowTime6 -> 0.75 | F84: =VAMowTime6 | G84: =VAMowTime6 -> 1.25 | H84: =TSMowTime6
A85: 7 | B85: MowTime | C85: MowTime7 | D85: =CLMowTime7 | E85: =CLMowTime7 -> 0.75 | F85: =VAMowTime7 | H85: =TSMowTime7
A86: 8 | B86: MowTime | C86: MowTime8 | D86: =CLMowTime8 | E86: =CLMowTime8 -> 0.75 | F86: =VAMowTime8 | H86: =TSMowTime8
A87: 1 | B87: Prune | C87: Prune1 | D87: =CLPrune1 | E87: =CLPrune1 -> 0.3025 | F87: =VAPrune1 | G87: =VAPrune1 -> 1.037142857 | H87: =TSPrune1 | I87: =TSPrune1 -> 2.016666667 | J87: ="="&$J$38&$C87 -> =SSPrune1 | K87: =SSPrune1 -> 3.3 | L87: ="="&$L$38&$C87 -> =FWPrune1 | M87: =FWPrune1 -> 2.2
A88: 2 | B88: Prune | C88: Prune2 | D88: =CLPrune2 | E88: =CLPrune2 -> 0.3025 | F88: =VAPrune2 | G88: =VAPrune2 -> 1.037142857 | H88: =TSPrune2 | I88: =TSPrune2 -> 2.016666667 | J88: ="="&$J$38&$C88 -> =SSPrune2 | K88: =SSPrune2 -> 3.3 | L88: ="="&$L$38&$C88 -> =FWPrune2 | M88: =FWPrune2 -> 2.2
A89: 3 | B89: Prune | C89: Prune3 | D89: =CLPrune3 | E89: =CLPrune3 -> 0.3025 | F89: =VAPrune3 | G89: =VAPrune3 -> 2.074285714 | H89: =TSPrune3 | I89: =TSPrune3 -> 4.033333333 | J89: ="="&$J$38&$C89 -> =SSPrune3 | K89: =SSPrune3 -> 16.5 | L89: ="="&$L$38&$C89 -> =FWPrune3 | M89: =FWPrune3 -> 8.8
A90: 4 | B90: Prune | C90: Prune4 | D90: =CLPrune4 | E90: =CLPrune4 -> 0.3025 | F90: =VAPrune4 | G90: =VAPrune4 -> 5.185714286 | H90: =TSPrune4 | I90: =TSPrune4 -> 20.16666667 | J90: ="="&$J$38&$C90 -> =SSPrune4 | K90: =SSPrune4 -> 19.8 | L90: ="="&$L$38&$C90 -> =FWPrune4 | M90: =FWPrune4 -> 22
A91: 5 | B91: Prune | C91: Prune5 | D91: =CLPrune5 | E91: =CLPrune5 -> 6.05 | F91: =VAPrune5 | G91: =VAPrune5 -> 10.37142857 | H91: =TSPrune5
A92: 6 | B92: Prune | C92: Prune6 | D92: =CLPrune6 | E92: =CLPrune6 -> 12.1 | F92: =VAPrune6 | G92: =VAPrune6 -> 31.11428571 | H92: =TSPrune6
A93: 7 | B93: Prune | C93: Prune7 | D93: =CLPrune7 | E93: =CLPrune7 -> 24.2 | F93: =VAPrune7 | H93: =TSPrune7
A94: 8 | B94: Prune | C94: Prune8 | D94: =CLPrune8 | E94: =CLPrune8 -> 30.25 | F94: =VAPrune8 | H94: =TSPrune8
A95: 1 | B95: SprayMat | C95: SprayMat1 | D95: =CLSprayMat1 | E95: =CLSprayMat1 -> 60 | F95: =VASprayMat1 | G95: =VASprayMat1 -> 48 | H95: =TSSprayMat1 | I95: =TSSprayMat1 -> 45 | J95: ="="&$J$38&$C95 -> =SSSprayMat1 | K95: =SSSprayMat1 -> 45 | L95: ="="&$L$38&$C95 -> =FWSprayMat1 | M95: =FWSprayMat1 -> 45
A96: 2 | B96: SprayMat | C96: =+B96&A96 -> SprayMat2 | D96: ="="&$D$38&$C96 -> =CLSprayMat2 | E96: =CLSprayMat2 -> 120 | F96: =VASprayMat2 | G96: =VASprayMat2 -> 192 | H96: =TSSprayMat2 | I96: =TSSprayMat2 -> 180 | J96: ="="&$J$38&$C96 -> =SSSprayMat2 | K96: =SSSprayMat2 -> 450 | L96: ="="&$L$38&$C96 -> =FWSprayMat2 | M96: =FWSprayMat2 -> 450
A97: =+A96+1 -> 3 | B97: SprayMat | C97: SprayMat3 | D97: =CLSprayMat3 | E97: =CLSprayMat3 -> 480 | F97: =VASprayMat3 | G97: =VASprayMat3 -> 768 | H97: =TSSprayMat3 | I97: =TSSprayMat3 -> 450 | J97: ="="&$J$38&$C97 -> =SSSprayMat3 | K97: =SSSprayMat3 -> 720 | L97: ="="&$L$38&$C97 -> =FWSprayMat3 | M97: =FWSprayMat3 -> 720
A98: 4 | B98: SprayMat | C98: SprayMat4 | D98: =CLSprayMat4 | E98: =CLSprayMat4 -> 720 | F98: =VASprayMat4 | G98: =VASprayMat4 -> 960 | H98: =TSSprayMat4 | I98: =TSSprayMat4 -> 720 | J98: ="="&$J$38&$C98 -> =SSSprayMat4 | K98: =SSSprayMat4 -> 900 | L98: ="="&$L$38&$C98 -> =FWSprayMat4 | M98: =FWSprayMat4 -> 900
A99: 5 | B99: SprayMat | C99: SprayMat5 | D99: =CLSprayMat5 | E99: =CLSprayMat5 -> 1200 | F99: =VASprayMat5 | G99: =VASprayMat5 -> 960 | H99: =TSSprayMat5 | I99: =TSSprayMat5 -> 900 | J99: ="="&$J$38&$C99 -> =SSSprayMat5
A100: 6 | B100: SprayMat | C100: SprayMat6 | D100: =CLSprayMat6 | E100: =CLSprayMat6 -> 1200 | F100: =VASprayMat6 | G100: =VASprayMat6 -> 960 | H100: =TSSprayMat6
A101: 7 | B101: SprayMat | C101: SprayMat7 | D101: =CLSprayMat7 | E101: =CLSprayMat7 -> 1200 | F101: =VASprayMat7 | H101: =TSSprayMat7
A102: 8 | B102: SprayMat | C102: SprayMat8 | D102: =CLSprayMat8 | E102: =CLSprayMat8 -> 1200 | F102: =VASprayMat8 | H102: =TSSprayMat8
A103: 1 | B103: SprayTime | C103: SprayTime1 | D103: =CLSprayTime1 | E103: =CLSprayTime1 -> 0.09 | F103: ="="&$F$38&$C103 -> =VASprayTime1 | G103: =VASprayTime1 -> 0.1285714286 | H103: =TSSprayTime1 | I103: =TSSprayTime1 -> 0.105 | J103: ="="&$J$38&$C103 -> =SSSprayTime1 | K103: =SSSprayTime1 -> 0.1636363636 | L103: ="="&$L$38&$C103 -> =FWSprayTime1 | M103: =FWSprayTime1 -> 0.1636363636
A104: 2 | B104: SprayTime | C104: SprayTime2 | D104: =CLSprayTime2 | E104: =CLSprayTime2 -> 0.18 | F104: =VASprayTime2 | G104: =VASprayTime2 -> 0.5142857143 | H104: =TSSprayTime2 | I104: =TSSPrayTime2 -> 1.26 | J104: ="="&$J$38&$C104 -> =SSSprayTime2 | K104: =SSSprayTime2 -> 1.963636364 | L104: ="="&$L$38&$C104 -> =FWSprayTime2 | M104: =FWSprayTime2 -> 1.963636364
A105: 3 | B105: SprayTime | C105: SprayTime3 | D105: =CLSprayTime3 | E105: =CLSprayTime3 -> 0.72 | F105: =VASprayTime3 | G105: =VASprayTIme3 -> 2.057142857 | H105: =TSSprayTime3 | I105: =TSSprayTIme3 -> 2.1 | J105: ="="&$J$38&$C105 -> =SSSprayTime3 | K105: =SSSprayTime3 -> 3.272727273 | L105: ="="&$L$38&$C105 -> =FWSprayTime3 | M105: =FWSprayTime3 -> 3.272727273
A106: 4 | B106: SprayTime | C106: SprayTime4 | D106: =CLSprayTime4 | E106: =CLSprayTime4 -> 1.08 | F106: =VASprayTime4 | G106: =VASprayTime4 -> 2.571428571 | H106: =TSSprayTime4 | I106: =TSSprayTime4 -> 2.1 | J106: ="="&$J$38&$C106 -> =SSSprayTime4 | K106: =SSSprayTime4 -> 3.272727273 | L106: ="="&$L$38&$C106 -> =FWSprayTime4 | M106: =FWSprayTime4 -> 3.272727273
A107: 5 | B107: SprayTime | C107: SprayTime5 | D107: =CLSprayTime5 | E107: =CLSprayTIme5 -> 1.8 | F107: =VASprayTime5 | G107: =VASprayTime5 -> 2.571428571 | H107: =TSSprayTime5
A108: 6 | B108: SprayTime | C108: SprayTime6 | D108: =CLSprayTime6 | E108: =CLSprayTIme6 -> 1.8 | F108: =VASprayTime6
A109: 7 | B109: SprayTime | C109: SprayTime7 | D109: =CLSprayTime7 | E109: =CLSprayTime7 -> 1.8 | F109: =VASprayTime7
A110: 8 | B110: SprayTime | C110: SprayTime8 | D110: =CLSprayTime8 | E110: =CLSprayTIme8 -> 1.8 | F110: =VASprayTime8
A111: 1 | B111: Train | C111: Train1 | D111: =CLTrain1 | E111: =CLTrain1 -> 5 | F111: =VATrain1 | G111: =VATrain1 -> 30 | H111: ="="&$H$38&$C111 -> =TSTrain1 | I111: =TSTrain1 -> 80 | J111: ="="&$J$38&$C111 -> =SSTrain1 | K111: =SSTrain1 -> 100 | L111: ="="&$L$38&$C111 -> =FWTrain1 | M111: =FWTrain1 -> 100
A112: 2 | B112: Train | C112: Train2 | D112: =CLTrain2 | E112: =CLTrain2 -> 5 | F112: =VATrain2 | G112: =VATrain2 -> 80 | H112: =TSTrain2 | I112: =TSTrain2 -> 40 | J112: ="="&$J$38&$C112 -> =SSTrain2 | K112: =SSTrain2 -> 50 | L112: ="="&$L$38&$C112 -> =FWTrain2 | M112: =FWTrain2 -> 60
A113: 3 | B113: Train | C113: Train3 | D113: =CLTrain3 | E113: =CLTrain3 -> 8 | F113: =VATrain3 | G113: =VATrain3 -> 60 | H113: =TSTrain3 | I113: =TSTrain3 -> 30 | J113: ="="&$J$38&$C113 -> =SSTrain3 | K113: =SSTrain3 -> 30 | L113: ="="&$L$38&$C113 -> =FWTrain3 | M113: =FWTrain3 -> 30
A114: 4 | B114: Train | C114: Train4 | D114: =CLTrain4 | E114: =CLTrain4 -> 15 | F114: =VATrain4 | G114: =VATrain4 -> 20 | H114: =TSTrain4 | I114: =TSTrain4 -> 10 | J114: ="="&$J$38&$C114 -> =SSTrain4 | K114: =SSTrain4 -> 10 | L114: ="="&$L$38&$C114 -> =FWTrain4 | M114: =FWTrain4 -> 5
A115: 5 | B115: Train | C115: Train5 | D115: =CLTrain5 | E115: =CLTrain5 -> 10 | F115: =VATrain5 | G115: =VATrain5 -> 10 | H115: =TSTrain5
A116: 6 | B116: Train | C116: Train6 | D116: =CLTrain6 | E116: =CLTrain6 -> 5 | F116: =VATrain6 | G116: =VATrain6 -> 4 | H116: =TSTrain6
A117: 7 | B117: Train | C117: Train7 | D117: =CLTrain7 | E117: =CLTrain7 -> 5 | F117: =VATrain7
A118: 8 | B118: Train | C118: Train8 | D118: =CLTrain8 | E118: =CLTrain8 -> 0 | F118: =VATrain8
A119: 1 | B119: Year | C119: Year1 | D119: =CLYear1 | E119: =CLYear1 -> 3065.749077 | F119: =VAYear1 | G119: =VAYear1 -> 14264.56794 | H119: ="="&$H$38&$C119 -> =TSYear1 | I119: =TSYear1 -> 24134.76027 | J119: ="="&$J$38&$C119 -> =SSYear1 | K119: =SSYear1 -> 25186.99106 | L119: ="="&$L$38&$C119 -> =FWYear1 | M119: =FWYear1 -> 31378.28092
A120: 2 | B120: Year | C120: Year2 | D120: =CLYear2 | E120: =CLYear2 -> 595.4146322 | F120: =VAYear2 | G120: =VAYear2 -> 2428.725731 | H120: =TSYear2 | I120: =TSYear2 -> 2448.903555 | J120: ="="&$J$38&$C120 -> =SSYear2 | K120: =SSYear2 -> 3506.583194 | L120: ="="&$L$38&$C120 -> =FWYear2 | M120: =FWYear2 -> 2653.580899
A121: 3 | B121: =+B120 -> Year | C121: Year3 | D121: =CLYear3 | E121: =CLYear3 -> 1157.823854 | F121: =VAYear3 | G121: =VAYear3 -> 1996.874082 | H121: =TSYear3 | I121: =TSYear3 -> 2084.213067 | J121: ="="&$J$38&$C121 -> =SSYear3 | K121: =SSYear3 -> 2550.773148 | L121: ="="&$L$38&$C121 -> =FWYear3 | M121: =FWYear3 -> 2354.159727
A122: 4 | B122: Year | C122: Year4 | D122: =CLYear4 | E122: =CLYear4 -> 1455.923817 | F122: =VAYear4 | G122: =VAYear4 -> 2302.352689 | H122: =TSYear4 | I122: =TSYear4 -> 2223.207754 | J122: ="="&$J$38&$C122 -> =SSYear4 | K122: =SSYear4 -> 2688.746091 | L122: ="="&$L$38&$C122 -> =FWYear4 | M122: =FWYear4 -> 2587.908477
A123: 5 | B123: Year | C123: Year5 | D123: =CLYear5 | E123: =CLYear5 -> 2046.866548 | F123: =VAYear5 | G123: =VAYear5 -> 2238.327975 | H123: =TSYear5
A124: 6 | B124: Year | C124: Year6 | D124: =CLYear6 | E124: =CLYear6 -> 2165.779642 | F124: =VAYear6 | G124: =VAYear6 -> 2685.946707 | H124: =TSYear6
A125: 7 | B125: Year | C125: Year7 | D125: =CLYear7 | E125: =CLYear7 -> 2499.208798 | F125: =VAYear7
A126: 8 | B126: Year | C126: Year8 | D126: =CLYear8 | E126: =CLYear8 -> 2542.741892 | F126: =VAYear8
C128: Price | D128: =CLPrice | E128: =CLPrice -> 0.3 | F128: ="="&$F$38&$C128 -> =VAPrice | G128: =VAPrice -> 0.3 | H128: ="="&$H$38&$C128 -> =TSPrice | I128: =TSPrice -> 0.3 | J128: ="="&$J$38&$C128 -> =SSPrice | K128: =SSPrice -> 0.3 | L128: ="="&$L$38&$C128 -> =FWPrice | M128: =FWPrice -> 0.3
C129: PROFIT | D129: =CLPROFIT | E129: =CLProfit -> 78159.48082 | F129: =VAPROFIT | G129: =VAProfit -> 99140.28999 | H129: =TSPROFIT | I129: =TSProfit -> 143011.0831 | J129: =SSPROFIT | K129: =SSProfit -> 159022.6484 | L129: =FWPROFIT | M129: =FWPROFIT -> 
C130: Row | D130: =CLRow | E130: =CLRow -> 4.356 | F130: =VARow | G130: =VARow -> 6.222857143 | H130: =TSRow | I130: =TSRow -> 7.26 | J130: =SSRow | K130: =SSRow -> 7.92 | L130: =FWRow | M130: =FWRow -> 7.92
C131: RowSpace | D131: =CLRowSpace | E131: =CLRowSpace -> 20 | F131: =VARowSpace | G131: =VARowSpace -> 14 | H131: =TSRowSpace | I131: =TSRowSpace -> 12 | J131: =SSRowSpace | K131: =SSRowSpace -> 11 | L131: =FWRowSpace | M131: =FWRowSpace -> 11
C132: FertTime | D132: =CLFertTime | E132: =CLFertTime -> 0.1 | F132: =VAFertTime | G132: =VAFertTime -> 0.1428571429 | H132: =TSFertTime | I132: =TSFertTime -> 0.1666666667 | J132: =SSFertTime | K132: =SSFertTime -> 0.1818181818 | L132: =FWFertTime | M132: =FWFertTime -> 0.1818181818
C133: HerbTime | D133: =CLHerbTime | E133: =CLHerbTime -> 0.8 | F133: =VAHerbTime | G133: =VAHerbTime -> 1.142857143 | H133: =TSHerbTime | I133: =TSHerbTime -> 1.333333333 | J133: =SSHerbTime | K133: =SSHerbTIme -> 1.454545455 | L133: =FWHerbTime | M133: =FWHerbTime -> 1.454545455
C134: Irr | D134: =CLIrr | E134: =CLIrr -> 0 | F134: =VAIrr | G134: =VAIrr -> 2333.687406 | H134: =TSIrr | I134: =TSIrr -> 2440.51312 | J134: =SSIrr | K134: =SSIrr -> 2508.49312 | L134: =FWIrr | M134: =FWIrr -> 2508.49312
C135: MowTime | D135: =CLMowTime | E135: =CLMowTime -> 0.25 | F135: =VAMowTime | G135: =VAMowTime -> 0.3571428571 | H135: =TSMowTime | I135: =TSMowtime -> 0.4166666667 | J135: =SSMowTime | K135: =SSMowTime -> 0.4545454545 | L135: =FWMowTime | M135: =FWMowTime -> 0.4545454545
C136: TrSp | D136: =CLTrSp | E136: =CLTrSp -> 12 | F136: =VATrSp | G136: =VATrSp -> 5 | H136: =TSTrSp | I136: =TSTrSp -> 3 | J136: =SSTrSp | K136: =SSTrSp -> 2 | L136: =FWTrSp | M136: =FWTrSp -> 3
C137: TRV | D137: =CLTRV | E137: =CLTRV -> 100 | F137: =VATRV | G137: =VATRV -> 80 | H137: =TSTRV | I137: =TSTRV -> 75 | J137: =SSTRV | K137: =SSTrV -> 75 | L137: =FWTRV | M137: =FWTRV -> 75
C138: Wild | D138: =CLWild | E138: =CLWild -> 0.05 | F138: =VAWild | G138: =VAWild -> 0.04 | H138: =TSWild | I138: =TSWild -> 0.03 | J138: =SSWild | K138: =SSWild -> 0.03 | L138: =FWWild | M138: =FWWild -> 0.02
C139: Time | D139: =CLTime | E139: =CLTime -> 0.1 | F139: =VATime | G139: =VATime -> 0.1428571429 | H139: =TSTime | I139: =TSTime -> 0.1166666667 | J139: =SSTime | K139: =SSTime -> 0.1818181818 | L139: =FWTime | M139: =FWTime -> 0.1818181818
C141: Bulldozer | D141: ="="&$C141 -> =Bulldozer | E141: =Bulldozer -> 100
C142: BushelHour | D142: ="="&$C142 -> =BushelHour | E142: =BushelHour -> 12.5
C143: CampDepPerYear | D143: =CampDepPerYear | E143: =CampDepPerYear -> 4000
C144: CampWorker | D144: =CampWorker | E144: =CampWorker -> 35
C145: CustomPlant | D145: =CustomPlant | E145: =CustomPlant -> 0.35
C146: DeerFence | D146: =DeerFence | E146: =DeerFence -> 3.25
C147: Diesel | D147: =Diesel | E147: =Diesel -> 2.75
C148: EqOther | D148: =EqOther | E148: =EqOther -> 0.03
C149: FertTon | D149: ="="&$C149 -> =FertTon | E149: =FertTon -> 300
C150: FoliarMat | D150: =FoliarMat | E150: =FoliarMat -> 0
C151: Gas | D151: =Gas | E151: =Gas -> 3.5
C152: IntLand | D152: =IntLand | E152: =IntLand -> 0.04
C153: IntOper | D153: =IntOper | E153: =IntOper -> 0.04
C154: IntRate | D154: =IntRate | E154: =IntRate -> 0.04
C155: Kton | D155: =Kton | E155: =KTon -> 185
C156: LaborNoSkill | D156: =LaborNoSkill | E156: =LaborNoSkill -> 20
C157: LaborPicking | D157: =LaborPicking | E157: =LaborPicking -> 0.05882352941
C158: LaborSkill | D158: =LaborSkill | E158: =LaborSkill -> 24
C159: LandCost | D159: =LandCost | E159: =LandCost -> 10000
C160: Lime | D160: =Lime | E160: =Lime -> 35
C161: ManHours | D161: =ManHours | E161: =ManHours -> 520
C162: OrchLife | D162: =OrchLife | E162: =OrchLife -> 20
C163: Other | D163: =Other | E163: =other -> 40
C164: PestCat | D164: =PestCat | E164: =PestCat -> d | F164: i | G164: pgr | H164: h | I164: f | J164: n
C165: PieceRateBin | D165: =PieceRateBin | E165: =PieceRateBin -> 35
C166: Price | D166: =Price | E166: =Price -> 0.3
C167: RETax | D167: =RETax | E167: =RETax -> 40
C168: SoftHerb | D168: =SoftHerb | E168: =SoftHerb -> 30
C169: SprayMat4 | D169: =SprayMat4 | E169: =SprayMat4 -> 1163.618096
C170: SprayTrip4 | D170: =SprayTrip4 | E170: =SprayTrip4 -> 1163.618096
C171: SprayTrip5 | D171: =SprayTrip5 | E171: =SprayTrip5 -> 1163.618096
C172: StandHerb | D172: =StandHerb | E172: =StandHerb -> 45
C173: StRV | D173: =StRV | E173: =StRV -> 75
C174: TotMatCost | D174: =TotMatCost | E174: =TotMatCost -> 1200.368096
C175: TotSpCost | D175: =TotSpCost | E175: =TotSpCost -> 1200
C176: TotSprTrips | D176: =TotSprTrips | E176: =TotSprTrips -> 18
C177: TreeCost | D177: =TreeCost | E177: =TreeCost -> 11
C178: UreaTon | D178: =UreaTon | E178: =UreaTon -> 300
C179: WeekUse | D179: =WeekUse | E179: =WeekUse -> 13
C180: Wildlife | D180: =Wildlife | E180: =Wildlife -> 0.05
C181: Year0EqCost | D181: =Year0EqCost | E181: =Year0EqCost -> 320
C182: Year0EqHours | D182: =Year0EqHours | E182: =Year0EqHours -> 3.2
C183: Year0LCost | D183: =Year0LCost | E183: =Year0LCost -> 24
C184: Year0LHours | D184: =Year0LHours | E184: =Year0LHours -> 1
C185: Year0MatCost | D185: =Year0MatCost | E185: =Year0MatCost -> 105
C186: Year0OtCost | D186: =Year0OtCost | E186: =Year0OtCost -> 1564
C187: Year1 | D187: =Year1 | E187: =Year1 -> 14264.56794
C188: Year2 | D188: ="="&$C188 -> =Year2 | E188: =Year2 -> 2428.725731
C189: Year3 | D189: =Year3 | E189: =Year3 -> 1996.874082
C190: Year4 | D190: =Year4 | E190: =Year4 -> 2302.352689
C191: Year5 | D191: =Year5 | E191: =Year5 -> 2238.327975
C192: Year6 | D192: =Year6 | E192: =Year6 -> 2685.946707
C193: TrellisPost | D193: ="="&$C193 -> =TrellisPost | E193: =TrellisPost -> 12.5
B197: Tables
C199: EquipCost
C200: EquipCostTab
C201: IPestC
C202: ISprayC

Sheet Past Comparisons
A1: Comparisons
A2: Cost of Bearing Year Classes | D2: 2008 % of Total Material Costs | H2: 674.9 | I2: 674.9 | J2: 674.9 | K2: 674.9
D3: 2014 % of Total Material Costs | G3: 43.68795377 | H3: 38.37975996 | I3: 6.889909616 | J3: 6.389835531 | K3: 4.652541117
C5: 2022 | D5: 2022 | E5: 2008 | F5: 2008 | G5: 1998 | H5: 2014 | I5: 2022
A6: Pesticides | C6: Costs | D6: =+D5 -> 2022 | E6: 2008 | F6: 2008 | G6: 1998 | H6: =+H5 -> 2014 | I6: =+I5 -> 2022
B7: Fungicides | C7: =Disease -> 417.696 | D7: =+C7/TotMatCost*100 -> 34.79732603 | E7: 445.8308333 | F7: 44.24164681 | G7: =+H7/H$12*100 -> 43.68795377 | H7: 294.85
B8: Insecticides | C8: =Insect -> 407.7435963 | D8: 33.96821338 | E8: 394.2975 | F8: 39.12777993 | G8: 38.37975996 | H8: 259.025
B9: PGR's | C9: =PGR -> 329.9285 | D9: 27.48561054 | E9: 90.78725 | F9: 9.0091962 | G9: 6.889909616 | H9: 46.5
B10: Herbicides | C10: =HerbCost -> 45 | D10: 3.748850052 | E10: 29.65195312 | F10: 2.942486565 | G10: 6.389835531 | H10: 43.125
B11: Fertilizers | C11: =Foliar -> 0 | D11: 0 | E11: 47.15 | F11: 4.678890492 | G11: 4.652541117 | H11: 31.4
B12: Total | C12: =SUM(C7:C11) -> 1200.368096 | D12: 100 | E12: 1007.717536 | F12: 100 | G12: 100 | H12: 674.9
B14: Fungicides | C14: =Disease -> 417.696 | D14: 34.79732603 | G14: % of Total Costs/Acre
B15: Insecticides | C15: =Insect -> 407.7435963 | D15: 33.96821338 | G15: Costs/Bushel
B16: PGR's | C16: =PGR -> 329.9285 | D16: 27.48561054 | G16: $/Bushel
B17: Herbicides | C17: =HerbCost -> 45 | D17: 3.748850052 | G17: %
B18: Fertilizers | C18: =Foliar -> 0 | D18: 0
B19: Total | C19: =SUM(C14:C18) -> 1200.368096 | D19: 100
B22: Central Leader | C22: Vertical Axe | E22: Tall Spindle | F22: Fruiting Wall | G22: 1998 | H22: 2008 | I22: 2014 | J22: 1998 | K22: =+B22 -> Central Leader | L22: =+C22 -> Vertical Axe | M22: =+E22 -> Tall Spindle | O22: 1997 | P22: Central Leader | Q22: Vertical Axe | R22: Tall Spindle | S22: Fruiting Wall | T22: 1998 | V22: 2008 | W22: Central Leader | X22: Vertical Axe | Y22: Tall Spindle | Z22: Fruiting Wall | AA22: 1998 | AB22: 2008 | AC22: 2014
A23: Harv Labor | B23: =+'CL Profit'!E14 -> 2470.588235 | C23: =+'VA Profit'!E12 -> 2717.647059 | E23: =+'SS Profit'!E10 -> 2717.647059 | F23: =+'FW Profit'!E10 -> 2717.647059 | G23: =+L23 -> 1111 | H23: =+X23 -> 1401.588483 | I23: =+E23 -> 2717.647059 | J23: =+A23 -> Harv Labor | K23: 903 | L23: 1111 | M23: 1389 | O23: Harv Labor | P23: 902.5935882 | Q23: 1110.884416 | R23: 1388.60552 | T23: 1110.884416 | V23: Harv Labor | W23: 1138.790642 | X23: 1401.588483 | Y23: 1751.985603 | AA23: 0 | AB23: 1401.588483
A24: Non-Harvest Labor | B24: =+'Central Leader'!D270 -> 792.7529412 | C24: =+'Vertical Axe'!D209 -> 950.1428571 | E24: =+'Super Spindle'!D148 -> 790.5454545 | F24: =+'Fruiting Wall'!D148 -> 820.5454545 | G24: =+L24 -> 410 | H24: =+X24 -> 464.4302521 | I24: =+E24 -> 790.5454545 | J24: =+A24 -> Non-Harvest Labor | K24: 348 | L24: 410 | M24: 463 | O24: Non-Harvest Labor | P24: 348.4 | Q24: 409.5857143 | R24: 462.85 | T24: 409.5857143 | V24: Non-Harvest Labor | W24: 349.9588235 | X24: 464.4302521 | Y24: 469.6588235 | AA24: 0 | AB24: 464.4302521
A25: Machinery | B25: =+'Central Leader'!F270 -> 311.8452006 | C25: =+'Vertical Axe'!F209 -> 452.2146537 | E25: =+'Super Spindle'!F148 -> 413.536432 | F25: =+'Fruiting Wall'!F148 -> 446.366432 | G25: =+L25 -> 334 | H25: =+X25 -> 363.5093638 | I25: =+E25 -> 413.536432 | J25: =+A25 -> Machinery | K25: 213 | L25: 334 | M25: 342 | O25: Machinery | P25: 213.46753 | Q25: 334.6509097 | R25: 341.9638074 | T25: 334.6509097 | V25: Machinery | W25: 1052.23949 | X25: 363.5093638 | Y25: 785.8797016 | AA25: 0 | AB25: 363.5093638
A26: =+A6 -> Pesticides | B26: =+C12 -> 1200.368096 | C26: =+'Vertical Axe'!G189+'Vertical Axe'!G187 -> 979.2857143 | E26: =+'Super Spindle'!G128+'Super Spindle'!G126 -> 924.5454545 | F26: =+'Fruiting Wall'!G128+'Fruiting Wall'!G126 -> 918.4090909 | G26: =+L26 -> 474 | H26: =+X26 -> 782.3004466 | I26: =+E26 -> 924.5454545 | J26: =+A26 -> Pesticides | K26: 632 | L26: 474 | M26: 316 | O26: Pesticides | P26: 649.025 | Q26: 492.3133929 | R26: 337.45 | T26: 492.3133929 | V26: Pesticides | W26: 973.8513646 | X26: 782.3004466 | Y26: 592.0203266 | AA26: 0 | AB26: 782.3004466
A27: Tot Labor | B27: =+B23+B24 -> 3263.341176 | C27: =+C23+C24 -> 3667.789916 | E27: =+E23+E24 -> 3508.192513 | F27: =+F23+F24 -> 3538.192513 | G27: =+L27 -> 1521 | H27: =+X27 -> 1866.018735 | I27: =+E27 -> 3508.192513 | J27: =+A27 -> Tot Labor | K27: =+K23+K24 -> 1251 | L27: =+L23+L24 -> 1521 | M27: 1852 | O27: Tot Labor | P27: 1250.993588 | Q27: 1520.470131 | R27: 1851.45552 | T27: 1520.470131 | V27: Tot Labor | W27: 1488.749466 | X27: 1866.018735 | Y27: 2221.644427 | AA27: 0 | AB27: 1866.018735
A29: Total | B29: =+'CL Profit'!G14 -> 5513.59673 | C29: =+'VA Profit'!G12 -> 5911.665641 | E29: =+'SS Profit'!G10 -> 5914.521013 | F29: =+'FW Profit'!G10 -> 5811.666647 | G29: =+L29 -> 2847 | H29: =+X29 -> 3703.341624 | I29: =+E29 -> 5914.521013 | J29: =+A29 -> Total | K29: 2782 | L29: 2847 | M29: 2783 | O29: Total | P29: 2564.326072 | Q29: 2847.245698 | R29: 2806.870361 | T29: 0 | V29: Total | W29: 3239.402509 | X29: 3703.341624 | Y29: 3934.790265 | AA29: 0 | AB29: 3703.341624 | AC29: 3934.790265
B30: =+B22 -> Central Leader | C30: =+C22 -> Vertical Axe | E30: =+E22 -> Tall Spindle | F30: =+F22 -> Fruiting Wall | G30: =+G22 -> 1998 | H30: =+H22 -> 2008 | I30: 2014 | K30: =+B30 -> Central Leader | L30: =+C30 -> Vertical Axe | M30: =+E30 -> Tall Spindle | P30: Central Leader | Q30: Vertical Axe | R30: Tall Spindle | S30: Fruiting Wall | T30: 1998 | W30: Central Leader | X30: Vertical Axe | Y30: Tall Spindle | Z30: Fruiting Wall | AA30: 1998 | AB30: 2008 | AC30: 2014
A31: Total Labor | B31: =(+B23+B24)/B29*100 -> 59.18715743 | C31: =(+C23+C24)/C29*100 -> 62.04325715 | E31: =(+E23+E24)/E29*100 -> 59.31490489 | F31: =(+F23+F24)/F29*100 -> 60.88085791 | G31: =+L31 -> 53.42465753 | H31: =+X31 -> 50.38743179 | I31: =+C31 -> 62.04325715 | J31: =+A31 -> Total Labor | K31: =(+K23+K24)/K$29*100 -> 44.96764917 | L31: =(+L23+L24)/L$29*100 -> 53.42465753 | M31: =(+M23+M24)/M$29*100 -> 66.54689184 | O31: Total Labor | P31: 48.7844975 | Q31: 53.40143745 | R31: 65.96156153 | T31: 53.40143745 | V31: Total Labor | W31: 45.95753264 | X31: 50.38743179 | Y31: 56.46157171 | AA31: 0 | AB31: 50.38743179
A32: =+A24 -> Non-Harvest Labor | B32: =+B24/B$29*100 -> 14.37814516 | C32: =+C24/C$29*100 -> 16.07233756 | E32: =+E24/E$29*100 -> 13.36617881 | F32: 14.11893531 | G32: =+L32 -> 14.40112399 | H32: =+X32 -> 12.54084282 | I32: =+C32 -> 16.07233756 | J32: =+A32 -> Non-Harvest Labor | K32: =(+K24)/K$29*100 -> 12.50898634 | L32: 14.40112399 | M32: 16.63672296 | O32: Non-Harvest Labor | P32: 13.5864157 | Q32: 14.38533087 | R32: 16.48989588 | T32: 14.38533087 | V32: Non-Harvest Labor | W32: 10.80319048 | X32: 12.54084282 | Y32: 11.93605737 | AA32: 0 | AB32: 12.54084282
A33: =+A25 -> Machinery | B33: =+B25/B$29*100 -> 5.655930527 | C33: 7.649530288 | E33: 6.991883724 | F33: 7.680523663 | G33: =+L33 -> 11.73164735 | H33: =+X33 -> 9.815712422 | I33: =+C33 -> 7.649530288 | J33: =+A33 -> Machinery | K33: 7.656362329 | L33: 11.73164735 | M33: 12.28889687 | O33: Machinery | P33: 8.32450804 | Q33: 11.75349602 | R33: 12.18309944 | T33: 11.75349602 | V33: Machinery | W33: 32.48251758 | X33: 9.815712422 | Y33: 19.97259444 | AA33: 0 | AB33: 9.815712422
A34: =+A26 -> Pesticides | B34: =+B26/B$29*100 -> 21.77105354 | C34: =+C26/C$29*100 -> 16.56530957 | E34: 15.63178916 | F34: 15.80285221 | G34: =+L34 -> 16.64910432 | H34: =+X34 -> 21.12417719 | I34: =+C34 -> 16.56530957 | J34: =+A34 -> Pesticides | K34: 22.71746945 | L34: 16.64910432 | M34: 11.35465325 | O34: Pesticides | P34: 25.3097688 | Q34: 17.2908644 | R34: 12.02228662 | T34: 17.2908644 | V34: Pesticides | W34: 30.06268476 | X34: 21.12417719 | Y34: 15.04579118 | AA34: 0 | AB34: 21.12417719
O36: Yield | P36: Costs/Bushel | V36: Yield | W36: Costs/Bushel
O37: 650 | P37: =+P23/O37 -> 1.38860552 | Q37: =+Q23/O37 -> 1.709052948 | R37: =+R23/O37 -> 2.136316185 | V37: 800 | W37: =+W23/V37 -> 1.423488303 | X37: =+X23/V37 -> 1.751985603 | Y37: =+Y23/V37 -> 2.189982004
O38: 650 | P38: =+P24/O38 -> 0.536 | Q38: =+Q24/O38 -> 0.6301318681 | R38: =+R24/O38 -> 0.7120769231 | V38: 800 | W38: =+W24/V38 -> 0.4374485294 | X38: =+X24/V38 -> 0.5805378151 | Y38: =+Y24/V38 -> 0.5870735294
B39: =+'CL Profit'!B14 -> 1000 | C39: =+'VA Profit'!B13 -> 1100 | D39: =+'SS Profit'!B13 -> 1500 | F39: 650 | G39: =+C39 -> 1100 | H39: 1000 | J39: 1998 | K39: =+B39 -> 1000 | L39: 800 | M39: =+D39 -> 1500 | O39: 650 | P39: 0.3284115846 | Q39: 0.5148475534 | R39: 0.5260981652 | V39: 800 | W39: 1.315299362 | X39: 0.4543867048 | Y39: 0.982349627
O40: 650 | P40: 0.9985 | Q40: 0.7574052198 | R40: 0.5191538462 | V40: 800 | W40: 1.217314206 | X40: 0.9778755582 | Y40: 0.7400254082
A41: =+A31 -> Total Labor | B41: =+B27/B$39 -> 3.263341176 | C41: =+C27/C$39 -> 3.334354469 | D41: =+E27/D$39 -> 2.338795009 | F41: =+K41 -> 1.251 | G41: =+X37 -> 1.751985603 | H41: =+I27/H$39 -> 3.508192513 | J41: =+A41 -> Total Labor | K41: =+K27/K$39 -> 1.251 | L41: =+L27/L$39 -> 1.90125 | M41: =+M27/M$39 -> 1.234666667 | O41: 650 | P41: 1.92460552 | Q41: 2.339184816 | R41: 2.848393108 | V41: 800 | W41: 1.860936832 | X41: 2.332523418 | Y41: 2.777055534
A42: =+A32 -> Non-Harvest Labor | B42: =+B24/B$39 -> 0.7927529412 | C42: =+C24/C$39 -> 0.8637662338 | D42: =+E24/D$39 -> 0.527030303 | F42: =+K42 -> 0.348 | G42: =+X38 -> 0.5805378151 | H42: =+I24/H$39 -> 0.7905454545 | J42: =+A42 -> Non-Harvest Labor | K42: =+K24/K$39 -> 0.348 | L42: 0.5125 | M42: 0.3086666667 | V42: 800
A43: Machinery | B43: =+B25/B$39 -> 0.3118452006 | C43: 0.4111042307 | D43: =+E25/D$39 -> 0.2756909547 | F43: 0.213 | G43: =+X39 -> 0.4543867048 | H43: =+I25/H$39 -> 0.413536432 | J43: =+A43 -> Machinery | K43: 0.213 | L43: 0.4175 | M43: 0.228 | O43: 650 | P43: 3.945117033 | Q43: =+Q29/O43 -> 4.380377997 | R43: =+R29/O43 -> 4.318262094 | V43: 800 | W43: 4.049253137 | X43: =+X29/V43 -> 4.62917703 | Y43: =+Y29/V43 -> 4.918487831
A44: Pesticides | B44: =+B26/B$39 -> 1.200368096 | C44: 0.8902597403 | D44: =+E26/D$39 -> 0.6163636364 | F44: 0.632 | G44: =+X40 -> 0.9778755582 | H44: =+I26/H$39 -> 0.9245454545 | J44: =+A44 -> Pesticides | K44: 0.632 | L44: 0.5925 | M44: 0.2106666667

Sheet Costs Comparisons
B2: Costs Comparisons | C2: $ / Acre | H2: Percent of Total
B3: Practice | C3: Central Leader | D3: Vertical Axe | E3: Tall Spindle | F3: Super Spindle | G3: 2 Leader | H3: =+C3 -> Central Leader | I3: =+D3 -> Vertical Axe | J3: =+E3 -> Tall Spindle | K3: Super Spindle | L3: 2 Leader | M3: Total Cl | N3: Tatal VA | O3: Total TS | P3: CL | Q3: TS
B4: Training | C4: =+'Central Leader'!I242 -> 33.8496 | D4: =VATrain6 -> 4 | E4: =TSTrain4 -> 10 | F4: =TSTrain4 -> 10 | G4: =TSTrain4 -> 10 | H4: =+C4/M4*100 -> 1.814019293 | I4: =+D4/N4*100 -> 0.2086593636 | J4: =+E4/O4*100 -> 0.5577244841 | K4: =TSTrain4 -> 10 | L4: =TSTrain4 -> 10 | M4: 1866 | N4: 1917 | O4: 1793 | P4: =+'Central Leader'!A242 -> Training | Q4: =+'Tsll Spindle'!A120 -> Training
B5: Pruning/ Brush | C5: =+'Central Leader'!I243 -> 746.8725 | D5: =+VAPrune6 -> 31.11428571 | E5: =+TSPrune4 -> 20.16666667 | F5: =+SSPrune4 -> 19.8 | G5: =+FWPrune4 -> 22 | H5: 40.02532154 | I5: 1.623071764 | J5: 1.124744376 | K5: =386+54 -> 440 | L5: =386+54 -> 440 | M5: 1866 | N5: 1917 | O5: 1793 | P5: =+'Central Leader'!A243 -> Pruning
B6: Tree replacement | C6: =+'Central Leader'!I244 -> 53.82 | D6: 58.79742857 | E6: 102.876 | F6: 102.876 | G6: 102.876 | H6: 2.884244373 | I6: 3.067158507 | J6: 5.737646403 | K6: 102.876 | L6: 102.876 | M6: 1866 | N6: 1917 | O6: 1793 | P6: =+'Central Leader'!A244 -> Brush Removal
B7: Herbicide Program | C7: =+'Central Leader'!I245 -> 38.4274 | D7: 48.08504658 | E7: 55.2569099 | F7: 55.2569099 | G7: 55.2569099 | H7: 2.059346195 | I7: 2.508348804 | J7: 3.081813156 | K7: 55.2569099 | L7: 55.2569099 | M7: 1866 | N7: 1917 | O7: 1793 | P7: =+'Central Leader'!A245 -> Tree replacement
B8: Spray Program | C8: =+'Central Leader'!I246 -> 0 | D8: 937.1184667 | E8: 746.97035 | F8: 746.97035 | G8: 746.97035 | H8: 0 | I8: 48.88463572 | J8: 41.66036531 | K8: 746.97035 | L8: 746.97035 | M8: 1866 | N8: 1917 | O8: 1793 | P8: =+'Central Leader'!A246 -> Herbicide Program
B9: Hand Pheromone | C9: =+'Central Leader'!I247 -> 28.704 | D9: 9 | E9: 9 | F9: 9 | G9: 9 | H9: 1.538263666 | I9: 0.4694835681 | J9: 0.5019520357 | K9: 9 | L9: 9 | M9: 1866 | N9: 1917 | O9: 1793 | P9: =+'Central Leader'!A247 -> 40 hp tractor
B10: Mowing | C10: =+'Central Leader'!I248 -> 22.064 | D10: 27.65841837 | E10: 32.26815476 | F10: 32.26815476 | G10: 32.26815476 | H10: 1.182422294 | I10: 1.442796994 | J10: 1.799673997 | K10: 32.26815476 | L10: 32.26815476 | M10: 1866 | N10: 1917 | O10: 1793 | P10: =+'Central Leader'!A248 -> Weed sprayer
B11: Mouse control | C11: =+'Central Leader'!I249 -> 0 | D11: 8.35767507 | E11: 8.35767507 | F11: 8.35767507 | G11: 8.35767507 | H11: 0 | I11: 0.4359767903 | J11: 0.4661280017 | K11: 8.35767507 | L11: 8.35767507 | M11: 1866 | N11: 1917 | O11: 1793 | P11: =+'Central Leader'!A249 -> Spray Program
B12: Wildlife Control | C12: =+'Central Leader'!I250 -> 1287.282 | D12: 58.14342857 | E12: 69.552 | F12: 69.552 | G12: 69.552 | H12: 68.98617363 | I12: 3.033042701 | J12: 3.879085332 | K12: 69.552 | L12: 69.552 | M12: 1866 | N12: 1917 | O12: 1793 | P12: =+'Central Leader'!A250 -> 80 hp tractor
B13: Fertilizer | C13: =+'Central Leader'!I251 -> 19.71 | D13: 21.0003631 | E13: 24.73839881 | F13: 24.73839881 | G13: 24.73839881 | H13: 1.056270096 | I13: 1.0954806 | J13: 1.379721071 | K13: 24.73839881 | L13: 24.73839881 | M13: 1866 | N13: 1917 | O13: 1793 | P13: =+'Central Leader'!A251 -> Airblast spr.
B14: Lime | C14: =+'Central Leader'!I252 -> 20 | D14: 35 | E14: 35 | F14: 35 | G14: 35 | H14: 1.071811361 | I14: 1.825769431 | J14: 1.952035694 | K14: 35 | L14: 35 | M14: 1866 | N14: 1917 | O14: 1793 | P14: =+'Central Leader'!A252 -> Hand Pheromone
B15: Scouting | C15: =+'Central Leader'!I253 -> 0 | D15: 15 | E15: 15 | F15: 15 | G15: 15 | H15: 0 | I15: 0.7824726135 | J15: 0.8365867262 | K15: 15 | L15: 15 | M15: 1866 | N15: 1917 | O15: 1793 | P15: =+'Central Leader'!A253 -> Mowing
B16: Bees | C16: =+'Central Leader'!I254 -> 23.91 | D16: 35 | E16: 35 | F16: 35 | G16: 35 | H16: 1.281350482 | I16: 1.825769431 | J16: 1.952035694 | K16: 35 | L16: 35 | M16: 1866 | N16: 1917 | O16: 1793 | P16: =+'Central Leader'!A254 -> 40 hp tractor
B17: Trickle Irrigation | C17: =+'Central Leader'!I255 -> 3.399642857 | D17: 92.5 | E17: 99 | F17: 99 | G17: 99 | H17: 0.1821887919 | I17: 4.825247783 | J17: 5.521472393 | K17: 99 | L17: 99 | M17: 1866 | N17: 1917 | O17: 1793 | P17: =+'Central Leader'!A255 -> Mower
B18: Real Estate Tax | C18: =+'Central Leader'!I256 -> 0 | D18: 35 | E18: 35 | F18: 35 | G18: 35 | H18: 0 | I18: 1.825769431 | J18: 1.952035694 | K18: 35 | L18: 35 | M18: 1866 | N18: 1917 | O18: 1793 | P18: =+'Central Leader'!A256 -> Mouse control
B19: Management | C19: =+'Central Leader'!I257 -> 3.750588235 | D19: 12.5 | E19: 12.5 | F19: 12.5 | G19: 12.5 | H19: 0.2009961541 | I19: 0.6520605112 | J19: 0.6971556051 | K19: 12.5 | L19: 12.5 | M19: 1866 | N19: 1917 | O19: 1793 | P19: =+'Central Leader'!A257 -> 40 hp tractor
C20: 0 | D20: 0 | E20: 0 | F20: 0 | G20: 0 | H20: 0 | I20: 0 | J20: 0 | K20: 0 | L20: 0 | M20: 1866 | N20: 1917 | O20: 1793 | P20: =+'Central Leader'!A258 -> Vicon Spreader
B21: Total | C21: 1866.113415 | D21: 1916.557513 | E21: 1793.399989 | F21: 1793.399989 | G21: 1793.399989 | H21: 100.006078 | I21: 99.97691772 | J21: 100.0223083 | K21: 1793.399989 | L21: 1793.399989 | M21: 1866 | N21: 1917 | O21: 1793 | P21: =+'Central Leader'!A259 -> Wildlife Control
P22: =+'Central Leader'!A260 -> Fertilizer
P23: =+'Central Leader'!A261 -> 40 hp tractor
P24: =+'Central Leader'!A262 -> Vicon Spreader
B25: Included | P25: =+'Central Leader'!A263 -> Lime
E26: CL | F26: VA | G26: TS | P26: =+'Central Leader'!A264 -> Scouting
B27: Practice | C27: Trellis | E27: 0 | F27: =+Trellis!J29 -> 2657.044433 | G27: =+Trellis!J46 -> 4522.331314 | P27: =+'Central Leader'!A265 -> Bees
B28: Training | P28: =+'Central Leader'!A266 -> Trickle Irrigation
B29: Pruning/ Brush | C29: Price Rate | E29: 15 | F29: /Bin | P29: =+'Central Leader'!A267 -> Real Estate Tax
B30: Tree replacement | C30: Un-skilled | E30: =+LaborNoSkill -> 20 | F30: /Hour | P30: =+'Central Leader'!A268 -> Management
B31: Herbicide Program | C31: Skilled | E31: =+LaborSkill -> 24 | F31: /Hour | P31: =+'Central Leader'!A269 -> 0
B32: Spray Program | P32: =+'Central Leader'!A270 -> Total
B33: Hand Pheromone | C33: Harvest Included
B34: Mowing | C34: Migrant Housing Unit Costs
B35: Mouse control | C35: Flat Bed Truck
B36: Wildlife Control | C36: Loading Truck
B37: Fertilizer | C37: Potable Toilets
B38: Lime | C38: Harvest Supervision
B39: Scouting | C39: Hauling Bins Out of Orchard
B40: Bees | C40: Bin Rent
B41: Trickle Irrigation
B42: Real Estate Tax
B43: Management
B45: Not Inculded
B46: Crop Insurance /Acre | D46: 150
B47: Frost Fans | C47: $30000/100 acres | D47: 300
B48: Management | C48: $30000/200 acres | D48: 150

Sheet Summary
A1: Summaries
A2: Costs Per Acre
B3: Central Leader | F3: Vertical Axe | J3: Tall Spindle | N3: SuperSpindle | R3: 2Leader
A4: Activity | B4: Labor | C4: Equipment | D4: Labor | E4: Total | F4: Labor | G4: Equipment | H4: Labor | I4: Total | J4: Labor | K4: Equipment | L4: Labor | M4: Total | N4: Labor | O4: Equipment | P4: Labor | Q4: Total | R4: Labor | S4: Equipment | T4: Labor | U4: Total
A5: Year | B5: hours | C5: cost | D5: cost | E5: cost | F5: hours | G5: cost | H5: cost | I5: cost | J5: hours | K5: cost | L5: cost | M5: cost | N5: hours | O5: cost | P5: cost | Q5: cost | R5: hours | S5: cost | T5: cost | U5: cost
A6: 0 | B6: =Year0LHours -> 1 | C6: =Year0EqCost -> 320 | D6: =Year0LCost -> 24 | E6: =year0 -> 2013 | F6: =Year0LHours -> 1 | G6: =Year0EqCost -> 320 | H6: =Year0LCost -> 24 | I6: =year0 -> 2013 | J6: =Year0LHours -> 1 | K6: =Year0EqCost -> 320 | L6: =Year0LCost -> 24 | M6: =year0 -> 2013 | N6: =Year0LHours -> 1 | O6: =Year0EqCost -> 320 | P6: =Year0LCost -> 24 | Q6: =year0 -> 2013 | R6: =Year0LHours -> 1 | S6: =Year0EqCost -> 320 | T6: =Year0LCost -> 24 | U6: =year0 -> 2013
A7: 1 | B7: =+'Central Leader'!B53 -> 21.41014706 | C7: =+'Central Leader'!F53 -> 162.6345735 | D7: =+'Central Leader'!D53 -> 448.1629412 | E7: =+'Central Leader'!I53 -> 3065.749077 | F7: =+'Vertical Axe'!B55 -> 88.59428571 | G7: =+'Vertical Axe'!F55 -> 201.7250343 | H7: =+'Vertical Axe'!D55 -> 1793.371429 | I7: =+'Vertical Axe'!I55 -> 14264.56794 | J7: =+'Tsll Spindle'!B55 -> 139.7883333 | K7: =+'Tsll Spindle'!F55 -> 209.3520876 | L7: =+'Tsll Spindle'!D55 -> 2817.92 | M7: =+TSYear1 -> 24134.76027 | N7: =+'Super Spindle'!B55 -> 161.2818182 | O7: =+'Super Spindle'!F55 -> 219.9107397 | P7: =+'Super Spindle'!D55 -> 3248.509091 | Q7: =+'Super Spindle'!I55 -> 25186.99106 | R7: =+'Fruiting Wall'!B55 -> 160.1818182 | S7: =+'Fruiting Wall'!F55 -> 214.7517397 | T7: =+'Fruiting Wall'!D55 -> 3226.509091 | U7: =+'Fruiting Wall'!I55 -> 31378.28092
A8: 2 | B8: =+'Central Leader'!B83 -> 5.911932773 | C8: =+'Central Leader'!F83 -> 54.82477471 | D8: =+'Central Leader'!D83 -> 122.1586555 | E8: =+'Central Leader'!I83 -> 595.4146322 | F8: =+'Vertical Axe'!B85 -> 5.157142857 | G8: =+'Vertical Axe'!F85 -> 161.0361741 | H8: =+'Vertical Axe'!D85 -> 109.7714286 | I8: =+'Vertical Axe'!I85 -> 2428.725731 | J8: =+'Tsll Spindle'!B85 -> 6.26 | K8: =+'Tsll Spindle'!F85 -> 192.8303587 | L8: =+'Tsll Spindle'!D85 -> 135.5733333 | M8: =+TSYear2 -> 2448.903555 | N8: =+'Super Spindle'!C85 -> 50.61818182 | O8: =+'Super Spindle'!F85 -> 221.2923758 | P8: =+'Super Spindle'!D85 -> 157.4909091 | Q8: =+'Super Spindle'!I85 -> 3506.583194 | R8: =+'Fruiting Wall'!B85 -> 7.190909091 | S8: =+'Fruiting Wall'!F85 -> 221.2923758 | T8: =+'Fruiting Wall'!D85 -> 157.4909091 | U8: =+'Fruiting Wall'!I85 -> 2653.580899
A9: 3 | B9: =+'Central Leader'!B114 -> 4.487647059 | C9: =+'Central Leader'!F114 -> 71.56550056 | D9: =+'Central Leader'!D114 -> 95.83294118 | E9: =+'Central Leader'!I114 -> 1157.823854 | F9: =+'Vertical Axe'!B115 -> 7.235714286 | G9: =+'Vertical Axe'!F115 -> 221.990368 | H9: =+'Vertical Axe'!D115 -> 157.5142857 | I9: =+'Vertical Axe'!I115 -> 1996.874082 | J9: =+'Tsll Spindle'!B116 -> 6.391666667 | K9: =+'Tsll Spindle'!F116 -> 215.029296 | L9: =+'Tsll Spindle'!D116 -> 136.2333333 | M9: =+TSYear3 -> 2084.213067 | N9: =+'Super Spindle'!B116 -> 7.727272727 | O9: =+'Super Spindle'!F116 -> 259.834432 | P9: =+'Super Spindle'!D116 -> 167.6363636 | Q9: =+'Super Spindle'!I116 -> 2550.773148 | R9: =+'Fruiting Wall'!B116 -> 7.727272727 | S9: =+'Fruiting Wall'!F116 -> 259.834432 | T9: =+'Fruiting Wall'!D116 -> 167.6363636 | U9: =+'Fruiting Wall'!I116 -> 2354.159727
A10: 4 | B10: =+'Central Leader'!B145 -> 20.65014706 | C10: =+'Central Leader'!F145 -> 128.0546256 | D10: =+'Central Leader'!D145 -> 420.5229412 | E10: =+'Central Leader'!I145 -> 1455.923817 | F10: =+'Vertical Axe'!B146 -> 33.93571429 | G10: =+'Vertical Axe'!F146 -> 312.7896537 | H10: =+'Vertical Axe'!D146 -> 695.5714286 | I10: =+'Vertical Axe'!I146 -> 2302.352689 | J10: =+'Tsll Spindle'!B148 -> 33.725 | K10: =+'Tsll Spindle'!F148 -> 353.221296 | L10: =+'Tsll Spindle'!D148 -> 696.2333333 | M10: =+TSYear4 -> 2223.207754 | N10: =+'Super Spindle'!B148 -> 38.18181818 | O10: =+'Super Spindle'!F148 -> 413.536432 | P10: =+'Super Spindle'!D148 -> 790.5454545 | Q10: =+'Super Spindle'!I148 -> 2688.746091 | R10: =+'Fruiting Wall'!B148 -> 39.68181818 | S10: =+'Fruiting Wall'!F148 -> 446.366432 | T10: =+'Fruiting Wall'!D148 -> 820.5454545 | U10: =+'Fruiting Wall'!I148 -> 2587.908477
A11: 5 | B11: =+'Central Leader'!B176 -> 22.61764706 | C11: =+'Central Leader'!F176 -> 186.4672006 | D11: =+'Central Leader'!D176 -> 464.7529412 | E11: =+'Central Leader'!I176 -> 2046.866548 | F11: =+'Vertical Axe'!B177 -> 29.62142857 | G11: =+'Vertical Axe'!F177 -> 343.0506537 | H11: =+'Vertical Axe'!D177 -> 611.2857143 | I11: =+'Vertical Axe'!I177 -> 2238.327975
A12: 6 | B12: =+'Central Leader'!B207 -> 24.16764706 | C12: =+'Central Leader'!F207 -> 220.7817006 | D12: =+'Central Leader'!D207 -> 497.7529412 | E12: =+'Central Leader'!I207 -> 2165.779642 | F12: =+'Vertical Axe'!B209 -> 46.36428571 | G12: =+'Vertical Axe'!F209 -> 452.2146537 | H12: =+'Vertical Axe'!D209 -> 950.1428571 | I12: =+'Vertical Axe'!I209 -> 2685.946707
A13: 7 | B13: =+'Central Leader'!B238 -> 37.26764706 | C13: =+'Central Leader'!F238 -> 289.4107006 | D13: =+'Central Leader'!D238 -> 763.7529412 | E13: =+'Central Leader'!I238 -> 2499.208798
A14: 8 | B14: =+'Central Leader'!B270 -> 38.81764706 | C14: =+'Central Leader'!F270 -> 311.8452006 | D14: =+'Central Leader'!D270 -> 792.7529412 | E14: =+'Central Leader'!I270 -> 2542.741892
A15: =+B3 -> Central Leader
A16: =+'Central Leader'!A273 -> Year 0, Site Preparation Cost. | I16: =+'Central Leader'!I273 -> 2013
A17: =+'Central Leader'!A274 -> Year 1, Planting Year. | I17: =+'Central Leader'!I274 -> 3065.749077
A18: =+'Central Leader'!A275 -> Year 2, Non-bearing Year | I18: =+'Central Leader'!I275 -> 595.4146322
A19: =+'Central Leader'!A276 -> Year 3, Non-bearing Year | I19: =+'Central Leader'!I276 -> 1157.823854
A20: =+'Central Leader'!A277 -> Year 4, Early Cropping Year | I20: =+'Central Leader'!I277 -> 1455.923817
A21: =+'Central Leader'!A278 -> Year 5, Early Cropping Year | I21: =+'Central Leader'!I278 -> 2046.866548
A22: =+'Central Leader'!A279 -> Year 6, Early Cropping Year | I22: =+'Central Leader'!I279 -> 2165.779642
A23: =+'Central Leader'!A280 -> Year 7, Early Cropping Year | I23: =+'Central Leader'!I280 -> 2499.208798
A24: =+'Central Leader'!A281 -> Year 8, Full Bearing Year | I24: =+'Central Leader'!I281 -> 2542.741892
A25: =+F3 -> Vertical Axe
A26: =+'Vertical Axe'!A212 -> Year 0, Site Preparation Cost. | I26: =+'Vertical Axe'!I212 -> 2013
A27: =+'Vertical Axe'!A213 -> Year 1, Planting Year. | I27: =+'Vertical Axe'!I213 -> 14264.56794
A28: =+'Vertical Axe'!A214 -> Year 2, Non-bearing Year | I28: =+'Vertical Axe'!I214 -> 2428.725731
A29: =+'Vertical Axe'!A215 -> Year 3, Early Cropping Year | I29: =+'Vertical Axe'!I215 -> 1996.874082
A30: =+'Vertical Axe'!A216 -> Year 4, Early Cropping Year | I30: =+'Vertical Axe'!I216 -> 2302.352689
A31: =+'Vertical Axe'!A217 -> Year 5, Early Cropping Year | I31: =+'Vertical Axe'!I217 -> 2238.327975
A32: =+'Vertical Axe'!A218 -> Year 6, Full Bearing Year | I32: =+'Vertical Axe'!I218 -> 2685.946707
A33: =+J3 -> Tall Spindle
A34: =+'Super Spindle'!A152 -> Year 0, Site Preparation Cost. | I34: =+'Tsll Spindle'!I152 -> 2013
A35: =+'Super Spindle'!A153 -> Year 1, Planting Year. | I35: =+'Tsll Spindle'!I153 -> 24134.76027
A36: =+'Super Spindle'!A154 -> Year 2, Early Bearing Year | I36: =+'Tsll Spindle'!I154 -> 2448.903555
A37: =+'Super Spindle'!A155 -> Year 3, Early Bearing Year | I37: =+'Tsll Spindle'!I155 -> 2084.213067
A38: =+'Super Spindle'!A156 -> Year 4, Full Bearing Year | I38: =+'Tsll Spindle'!I156 -> 2223.207754
A39: SuperSpindle
A40: =+'Fruiting Wall'!A152 -> Year 0, Site Preparation Cost. | I40: =+'Super Spindle'!I152 -> 2013
A41: =+'Fruiting Wall'!A153 -> Year 1, Planting Year. | I41: =+'Super Spindle'!I153 -> 25186.99106
A42: =+'Fruiting Wall'!A154 -> Year 2, Early Bearing Year | I42: =+'Super Spindle'!I154 -> 3506.583194
A43: =+'Fruiting Wall'!A155 -> Year 3, Early Bearing Year | I43: =+'Super Spindle'!I155 -> 2550.773148
A44: =+'Fruiting Wall'!A156 -> Year 4, Full Bearing Year | I44: =+'Super Spindle'!I156 -> 2688.746091
A45: 2Leader
A46: =+'Fruiting Wall'!A152 -> Year 0, Site Preparation Cost. | I46: =+'Fruiting Wall'!I152 -> 2013
A47: =+'Fruiting Wall'!A153 -> Year 1, Planting Year. | I47: =+'Fruiting Wall'!I153 -> 31378.28092
A48: =+'Fruiting Wall'!A154 -> Year 2, Early Bearing Year | I48: =+'Fruiting Wall'!I154 -> 2653.580899
A49: =+'Fruiting Wall'!A155 -> Year 3, Early Bearing Year | I49: =+'Fruiting Wall'!I155 -> 2354.159727
A50: =+'Fruiting Wall'!A156 -> Year 4, Full Bearing Year | I50: =+'Fruiting Wall'!I156 -> 2587.908477

Sheet Chart
A1: Year | B1: Price | C1: Cost | O1: Year | P1: cents_lb | Q1: lbs/acre
A2: 1970 | B2: 3.7 | C2: 3.9 | O2: 1970 | P2: 0.037 | Q2: 12278
A3: =+A2+1 -> 1971 | B3: 3.6 | C3: =+C2+0.133 -> 4.033 | O3: =O2+1 -> 1971 | P3: 0.036 | Q3: 13153
A4: =+A3+1 -> 1972 | B4: 4.3 | C4: =+C3+0.133 -> 4.166 | O4: =O3+1 -> 1972 | P4: 0.043 | Q4: 13394
A5: 1973 | B5: 9.3 | C5: =+C4+0.133 -> 4.299 | O5: 1973 | P5: 0.093 | Q5: 8785
A6: 1974 | B6: 6.2 | C6: =+C5+0.133 -> 4.432 | O6: 1974 | P6: 0.062 | Q6: 12762
A7: 1975 | B7: 5.1 | C7: =+C6+0.133 -> 4.565 | O7: 1975 | P7: 0.051 | Q7: 13540
A8: 1976 | B8: 8.8 | C8: 4.7 | O8: 1976 | P8: 0.088 | Q8: 9816
A9: 1977 | B9: 7.9 | C9: =+C8+0.5 -> 5.2 | O9: 1977 | P9: 0.079 | Q9: 12364
A10: 1978 | B10: 7.6 | C10: =+C9+0.5 -> 5.7 | O10: 1978 | P10: 0.076 | Q10: 21247
A11: 1979 | B11: 7.8 | C11: 6.2 | O11: 1979 | P11: 0.078 | Q11: 16000
A12: 1980 | B12: 6.2 | C12: =+C11+1.12 -> 7.32 | O12: 1980 | P12: 0.062 | Q12: 20930
A13: 1981 | B13: 9.1 | C13: =+C12+1.12 -> 8.44 | O13: 1981 | P13: 0.091 | Q13: 15000
A14: 1982 | B14: 6.9 | C14: =+C13+1.12 -> 9.56 | O14: 1982 | P14: 0.069 | Q14: 22022
A15: 1983 | B15: 7.7 | C15: =+C14+1.12 -> 10.68 | O15: 1983 | P15: 0.077 | Q15: 16816
A16: 1984 | B16: 8 | C16: 11.8 | O16: 1984 | P16: 0.08 | Q16: 17188
A17: 1985 | B17: 7.5 | C17: =+C16+0.14 -> 11.94 | O17: 1985 | P17: 0.075 | Q17: 23810
A18: 1986 | B18: 9.3 | C18: =+C17+0.14 -> 12.08 | O18: 1986 | P18: 0.093 | Q18: 14785
A19: 1987 | B19: 7.6 | C19: =+C18+0.14 -> 12.22 | O19: 1987 | P19: 0.076 | Q19: 21212
A20: 1988 | B20: 8.8 | C20: =+C19+0.14 -> 12.36 | O20: 1988 | P20: 0.088 | Q20: 16275
A21: 1989 | B21: 8.2 | C21: 12.5 | O21: 1989 | P21: 0.082 | Q21: 18304
A22: 1990 | B22: 10.3 | C22: =+C21-0.125 -> 12.375 | O22: 1990 | P22: 0.103 | Q22: 14395
A23: 1991 | B23: 10.9 | C23: =+C22-0.125 -> 12.25 | O23: 1991 | P23: 0.109 | Q23: 16604
A24: 1992 | B24: 8.5 | C24: 12.125 | O24: 1992 | P24: 0.085 | Q24: 20000
A25: 1993 | B25: 8.5 | C25: 12 | O25: 1993 | P25: 0.085 | Q25: 18545
A26: 1994 | B26: 8.6 | C26: 11.875 | O26: 1994 | P26: 0.086 | Q26: 18889
A27: 1995 | B27: 9.9 | C27: 11.75 | O27: 1995 | P27: 0.099 | Q27: 22593
A28: 1996 | B28: 12 | C28: 11.625 | O28: 1996 | P28: 0.126 | Q28: 13000
A29: 1997 | B29: =+P29*100 -> 9.8 | C29: 11.5 | D29: =+C40-C29 -> 1.5 | O29: 1997 | P29: 0.098 | Q29: 18500
A30: 1998 | B30: =+P30*100 -> 8.7 | C30: =+$D$29*1/$D$39+C29 -> 11.65 | D30: 1 | O30: 1998 | P30: 0.087 | Q30: 18500
A31: 1999 | B31: 8.8 | C31: 11.8 | D31: 2 | O31: 1999 | P31: 0.088 | Q31: 23100
A32: 2000 | B32: 9.3 | C32: 11.95 | D32: 3 | O32: 2000 | P32: 0.093 | Q32: 16500
A33: 2001 | B33: 9.4 | C33: 12.1 | D33: 4 | O33: 2001 | P33: 0.094 | Q33: 20200
A34: 2002 | B34: 12.4 | C34: 12.25 | D34: 5 | O34: 2002 | P34: 0.124 | Q34: 12000
A35: 2003 | B35: 11.7 | C35: 12.4 | D35: 6 | O35: 2003 | P35: 0.117 | Q35: 21400
A36: 2004 | B36: 12.3 | C36: 12.55 | D36: 7 | O36: 2004 | P36: 0.123 | Q36: 18000
A37: 2005 | B37: 12.6 | C37: 12.7 | D37: 8 | O37: 2005 | P37: 0.126 | Q37: 19000
A38: 2006 | B38: 14.1 | C38: 12.85 | D38: 9 | O38: 2006 | P38: =+B38*0.01 -> 0.141 | Q38: 22900
A39: 2007 | B39: 16.9 | C39: 13 | D39: 10 | O39: 2007 | P39: =+B39*0.01 -> 0.169 | Q39: 21400
A40: 2008 | B40: 20 | C40: 13 | O40: 2008 | P40: 0.2 | Q40: 15900
A41: 2009 | B41: 13.1 | C41: 13.1 | O41: 2009 | P41: 0.131 | Q41: 30300
A42: 2010 | B42: 17.6 | C42: =+C41+0.5 -> 13.6 | O42: 2010 | P42: 0.176 | Q42: 39000
A43: 2011 | B43: 17 | C43: =+C42+0.5 -> 14.1 | O43: 2011 | P43: 0.17 | Q43: 22000
A44: 2012 | B44: 17 | C44: =+C43+0.5 -> 14.6 | O44: 2012 | P44: 0.17 | Q44: 22000
A45: 2013 | B45: 17 | C45: 15 | O45: 2013 | P45: 0.17 | Q45: 22000
A46: 2014 | B46: =+S87 -> 21.6 | C46: 15 | O46: 2014 | P46: 0.216 | Q46: 22000
A47: 2015 | B47: =+S88 -> 23.6 | C47: 15.25 | O47: 2015 | P47: 0.236 | Q47: 22000
A48: 2016 | B48: 25.5 | C48: 15.5 | O48: 2016 | P48: 0.255 | Q48: 22000
A49: 2017 | B49: 30.3 | C49: 15.75
A50: 2018 | B50: 27.6 | C50: 16
A51: 2019 | B51: 27.4 | C51: 16.25
A52: 2020 | B52: 29.2 | C52: 16.5
A53: 2021 | C53: 16.5
A54: 2022
A55: 2023
B56: Michigan Agricultural Statistics 2010-2011
B58: Fruit: Acres, production, and value, 2006-2010
B59: -----------------------------------------------------------------------------------------------------
B60: Fruit : : : Production : :
B61: and Year : Bearing : Yield :---------------------------: Price : Value of
B62: : acres : : Total : Utilized : : production
B63: -----------------------------------------------------------------------------------------------------
B64: : Acres Pounds --- Million pounds -- Dollars 1,000 dollars
B65: : per pound
B66: Apples :
B67: 2006 : 38,500 22,900 880 855 0.141 120,386
B68: 2007 : 36,000 21,400 770 770 0.169 130,325
B69: 2008 : 37,000 15,900 590 590 0.200 118,063
B70: 2009 : 38,000 30,300 1,150 995 0.131 130,038
B71: 2010 : 39,000 15,100 590 590 0.176 104,100
R83: 2010 | S83: 18.1
R84: =+R83+1 -> 2011 | S84: 20.7
R85: =+R84+1 -> 2012 | S85: 35.2
R86: 2013 | S86: 20.4
R87: 2014 | S87: 21.6
R88: 2015 | S88: 23.6
R89: 2016 | S89: 25.5
R90: 2017 | S90: 30.3
R91: 2018 | S91: 27.6
R92: 2019 | S92: 27.4
R93: 2020 | S93: 29.2
R94: 2021
R95: 2022
R96: 2023
R97: 2024
R98: 2025
R99: 2026

Sheet Central Leader
A1: Central Leader
A3: The central leader orchard remains non-bearing for years 1 through 3. The 1st crop is produced in the 4th year and the orchard
A4: becomes full bearing in the 8th year. A reduced spray program is followed during the 2nd through 6th year. A full bearing spray
A5: program is followed starting in year 7.
A7: Year 1, Planting Year.
A8: Activity | B8: Labor Hours | C8: Eq. Hours | D8: Labor Cost | E8: Eq. Code | F8: Eq. Cost | G8: Material Cost | H8: Other Cost | I8: Total Cost
A10: Ground Preparation
A11: 80hp tractor | B11: 0.5 | C11: =B11 -> 0.5 | D11: =B11*LaborSkill -> 12 | E11: 2 | F11: =IF(E11>0,VLOOKUP(E11,EquipCost,15)*C11,0) -> 12.245 | I11: =SUM(F11:H11)+D11 -> 24.245
A12: Plow | C12: =B11 -> 0.5 | E12: 8 | F12: =IF(E12>0,VLOOKUP(E12,EquipCost,15)*C12,0) -> 2.095555556 | I12: =SUM(F12:H12)+D12 -> 2.095555556
A13: 80hp tractor | B13: 0.3 | C13: =B13 -> 0.3 | D13: =B13*LaborSkill -> 7.2 | E13: 2 | F13: =IF(E13>0,VLOOKUP(E13,EquipCost,15)*C13,0) -> 7.347 | I13: =SUM(F13:H13)+D13 -> 14.547
A14: Disc | C14: =B13 -> 0.3 | E14: 9 | F14: =IF(E14>0,VLOOKUP(E14,EquipCost,15)*C14,0) -> 1.564 | I14: =SUM(F14:H14)+D14 -> 1.564
A15: Pick stone & roots | B15: 3 | C15: =B15 -> 3 | D15: =B15*LaborNoSkill -> 60 | E15: 15 | F15: =IF(E15>0,VLOOKUP(E15,EquipCost,15)*C15,0) -> 29.8125 | I15: =SUM(F15:H15)+D15 -> 89.8125
A16: Planting Trees
A17: Layout | B17: 0.5 | C17: =B17 -> 0.5 | D17: =B17*LaborSkill -> 12 | E17: 1 | F17: =IF(E17>0,VLOOKUP(E17,EquipCost,15)*C17,0) -> 8.4624 | I17: =SUM(F17:H17)+D17 -> 20.4624
A18: Marking | B18: 0.5 | C18: 0.5 | D18: =B18*LaborSkill -> 12 | E18: 1 | F18: =IF(E18>0,VLOOKUP(E18,EquipCost,15)*C18,0) -> 8.4624 | I18: 20.4624
A19: Purchase trees | G19: =CLTree*CLTreeCost -> 1996.5 | I19: 1996.5
A20: Custom Plant @ .30 /tree | H20: =VATree*CustomPlant -> 217.8 | I20: 217.8
A21: Watering Trees | B21: 2 | C21: =+B21 -> 2 | D21: =B21*LaborNoSkill -> 40 | E21: 13 | F21: =IF(E21>0,VLOOKUP(E21,EquipCost,15)*C21,0) -> 16.422 | I21: 56.422
A22: 40 hp tractor | C22: =+B22 -> 0 | E22: 3 | F22: =IF(E22>0,VLOOKUP(E22,EquipCost,15)*C22,0) -> 0 | I22: 0
A23: Training | B23: =+CLTrain1 -> 5 | C23: 2 | D23: =B23*LaborNoSkill -> 100 | E23: 1 | F23: =IF(E23>0,VLOOKUP(E23,EquipCost,15)*C23,0) -> 33.8496 | G23: =+CLTrainMat1 -> 10 | I23: 143.8496
A24: Pruning | B24: =+CLPrune1 -> 0.3025 | C24: =+B24 -> 0.3025 | D24: =B24*LaborNoSkill -> 6.05 | E24: 18 | F24: =IF(E24>0,VLOOKUP(E24,EquipCost,15)*C24,0) -> 1.418725 | I24: 7.468725
A25: Nematode Control | I25: 0
A26: Herbicide Program
A27: 40 hp tractor | B27: =+CLHerbTime -> 0.8 | C27: =+B27 -> 0.8 | D27: =B27*LaborSkill -> 19.2 | E27: 3 | F27: =IF(E27>0,VLOOKUP(E27,EquipCost,15)*C27,0) -> 9.504 | I27: =SUM(F27:H27)+D27 -> 28.704
A28: Weed sprayer | C28: =+C27 -> 0.8 | E28: 5 | F28: =IF(E28>0,VLOOKUP(E28,EquipCost,15)*C28,0) -> 4.064 | G28: =+CLHerb1 -> 6 | I28: =SUM(F28:H28)+D28 -> 10.064
A29: Spray Program
A30: 80 hp tractor | B30: =+CLSprayTime1 -> 0.09 | C30: =+B30 -> 0.09 | D30: =B30*LaborSkill -> 2.16 | E30: 2 | F30: =IF(E30>0,VLOOKUP(E30,EquipCost,15)*C30,0) -> 2.2041 | G30: =+CLSprayMat1 -> 60 | I30: =SUM(F30:H30)+D30 -> 64.3641
A31: Airblast spr. | C31: =+C30 -> 0.09 | E31: 4 | F31: =IF(E31>0,VLOOKUP(E31,EquipCost,15)*C31,0) -> 0.9855 | I31: =SUM(F31:H31)+D31 -> 0.9855
A32: Fertilize | I32: =SUM(F32:H32)+D32 -> 0
A33: 40 hp tractor | B33: =+CLFertTime1 -> 0.1 | C33: =+B33 -> 0.1 | D33: =B33*LaborNoSkill -> 2 | E33: 3 | F33: =IF(E33>0,VLOOKUP(E33,EquipCost,15)*C33,0) -> 1.188 | G33: =+CLFert1 -> 1.7015625 | I33: =SUM(F33:H33)+D33 -> 4.8895625
A34: Vicon Spreader | C34: 0.2 | E34: 6 | F34: =IF(E34>0,VLOOKUP(E34,EquipCost,15)*C34,0) -> 0.607047619 | I34: =SUM(F34:H34)+D34 -> 0.607047619
A35: Sod Establishment
A36: 40 hp tractor | B36: 0.3 | C36: =0.3*3 -> 0.9 | D36: =B36*LaborSkill -> 7.2 | E36: 3 | F36: =IF(E36>0,VLOOKUP(E36,EquipCost,15)*C36,0) -> 10.692 | I36: =SUM(F36:H36)+D36 -> 17.892
A37: Spreader | C37: =+B36 -> 0.3 | E37: 6 | F37: =IF(E37>0,VLOOKUP(E37,EquipCost,15)*C37,0) -> 0.9105714286 | G37: 11 | I37: =SUM(F37:H37)+D37 -> 11.91057143
A38: Cultipack | B38: 0.3 | C38: =B38 -> 0.3 | D38: =B38*LaborNoSkill -> 6 | E38: 12 | F38: =IF(E38>0,VLOOKUP(E38,EquipCost,15)*C38,0) -> 1.984 | I38: =SUM(F38:H38)+D38 -> 7.984
A39: Drag | B39: 0.3 | C39: =B39 -> 0.3 | D39: =B39*LaborNoSkill -> 6 | E39: 12 | F39: =IF(E39>0,VLOOKUP(E39,EquipCost,15)*C39,0) -> 1.984 | I39: =SUM(F39:H39)+D39 -> 7.984
A40: Mowing
A41: 40 hp tractor | B41: =+CLMowTime1 -> 0 | C41: =B41 -> 0 | D41: =+B41*LaborNoSkill -> 0 | E41: 3 | F41: =IF(E41>0,VLOOKUP(E41,EquipCost,15)*C41,0) -> 0 | I41: =SUM(F41:H41)+D41 -> 0
A42: Mower | C42: =B41 -> 0 | E42: 7 | F42: =IF(E42>0,VLOOKUP(E42,EquipCost,15)*C42,0) -> 0 | I42: =SUM(F42:H42)+D42 -> 0
A43: Mouse control
A44: 40 hp tractor | B44: =+CLBaitTime1 -> 0.1176470588 | C44: =+B44 -> 0.1176470588 | D44: =+B44*LaborNoSkill -> 2.352941176 | E44: 3 | F44: =IF(E44>0,VLOOKUP(E44,EquipCost,15)*C44,0) -> 1.397647059 | I44: =SUM(F44:H44)+D44 -> 3.750588235
A45: Vicon Spreader | C45: =+B44 -> 0.1176470588 | E45: 6 | F45: =IF(E45>0,VLOOKUP(E45,EquipCost,15)*C45,0) -> 0.3570868347 | G45: =+CLBait1 -> 17.5 | I45: =SUM(F45:H45)+D45 -> 17.85708683
A46: Mouse guards | B46: 5 | D46: =+B46*LaborNoSkill -> 100 | G46: =+'Factors & Yield'!C16*CLTree -> 45.375 | I46: =SUM(F46:G46)+D46 -> 145.375
A47: Wildlife Control | B47: 0.3 | C47: =B47 -> 0.3 | D47: =B47*LaborNoSkill -> 6 | E47: 1 | F47: =IF(E47>0,VLOOKUP(E47,EquipCost,15)*C47,0) -> 5.07744 | G47: =+CLWild*CLTree -> 9.075 | I47: =SUM(F47:H47)+D47 -> 20.15244
A48: Scouting | I48: =SUM(F48:H48)+D48 -> 0
A49: Bees | I49: =SUM(F49:H49)+D49 -> 0
A50: Real Estate Tax | H50: =+RETax -> 40 | I50: =SUM(F50:H50)+D50 -> 40
A51: Management | B51: 2 | D51: =B51*LaborSkill -> 48 | F51: =IF(E51>0,VLOOKUP(E51,EquipCost,15)*C51,0) -> 0 | H51: =+other -> 40 | I51: =SUM(F51:H51)+D51 -> 88
A53: Total | B53: =SUM(B9:B52) -> 21.41014706 | C53: =SUM(C9:C52) -> 14.31779412 | D53: =SUM(D9:D52) -> 448.1629412 | F53: =SUM(F9:F52) -> 162.6345735 | G53: =SUM(G9:G52) -> 2157.151562 | H53: =SUM(H9:H52) -> 297.8 | I53: =SUM(I9:I52) -> 3065.749077
A54: Year 2, Non-bearing Year
A55: Activity | B55: Labor Hours | C55: Eq. Hours | D55: Labor Cost | E55: Eq. Code | F55: Eq. Cost | G55: Material Cost | H55: Other Cost | I55: Total Cost
A57: Training | B57: =+CLTrain2 -> 5 | C57: 2 | D57: =B57*LaborNoSkill -> 100 | E57: 1 | F57: =IF(E57>0,VLOOKUP(E57,EquipCost,15)*C57,0) -> 33.8496 | G57: =+CLTrainMat2 -> 10 | I57: =SUM(F57:H57)+D57 -> 143.8496
A58: Pruning | B58: =+CLPrune2 -> 0.3025 | C58: =+B58 -> 0.3025 | D58: =B58*LaborNoSkill -> 6.05 | E58: 18 | F58: =IF(E58>0,VLOOKUP(E58,EquipCost,15)*C58,0) -> 1.418725 | I58: =SUM(F58:H58)+D58 -> 7.468725
A59: Brush Removal | B59: 0 | C59: =+B59 -> 0 | D59: =B59*LaborSkill -> 0 | E59: 3 | F59: =IF(E59>0,VLOOKUP(E59,EquipCost,15)*C59,0) -> 0 | I59: =SUM(F59:H59)+D59 -> 0
A60: Tree replacement | B60: =0.0333333333333333*CLTree*0.05 -> 0.3025 | C60: =B60 -> 0.3025 | D60: =B60*LaborNoSkill -> 6.05 | E60: 1 | F60: =IF(E60>0,VLOOKUP(E60,EquipCost,15)*C60,0) -> 5.119752 | G60: =+CLTree*TreeCost*0.01 -> 19.965 | I60: =SUM(F60:H60)+D60 -> 31.134752
A61: Herbicide Program
A62: 40 hp tractor | B62: =+CLHerbTime -> 0.8 | C62: =+B62 -> 0.8 | D62: =B62*LaborSkill -> 19.2 | E62: 3 | F62: =IF(E62>0,VLOOKUP(E62,EquipCost,15)*C62,0) -> 9.504 | I62: =SUM(F62:H62)+D62 -> 28.704
A63: Weed sprayer | C63: =+C62 -> 0.8 | E63: 5 | F63: =IF(E63>0,VLOOKUP(E63,EquipCost,15)*C63,0) -> 4.064 | G63: =+CLHerb2 -> 6 | I63: =SUM(F63:H63)+D63 -> 10.064
A64: Spray Program
A65: 80 hp tractor | B65: =+CLSprayTime2 -> 0.18 | C65: =+B65 -> 0.18 | D65: =B65*LaborSkill -> 4.32 | E65: 2 | F65: =IF(E65>0,VLOOKUP(E65,EquipCost,15)*C65,0) -> 4.4082 | G65: =+CLSprayMat2 -> 120 | I65: =SUM(F65:H65)+D65 -> 128.7282
A66: Airblast spr. | C66: =+C65 -> 0.18 | E66: 4 | F66: =IF(E66>0,VLOOKUP(E66,EquipCost,15)*C66,0) -> 1.971 | I66: =SUM(F66:H66)+D66 -> 1.971
A67: Fertilizer
A68: 40 hp tractor | B68: =+CLFertTime2 -> 0.1 | C68: 0.3 | D68: =+B68*LaborNoSkill -> 2 | E68: 3 | F68: =IF(E68>0,VLOOKUP(E68,EquipCost,15)*C68,0) -> 3.564 | G68: =+CLFert2 -> 3.403125 | I68: =SUM(F68:H68)+D68 -> 8.967125
A69: Vicon Spreader | C69: =+C68 -> 0.3 | E69: 6 | F69: =IF(E69>0,VLOOKUP(E69,EquipCost,15)*C69,0) -> 0.9105714286 | I69: =SUM(F69:H69)+D69 -> 0.9105714286
A70: Mowing
A71: 40 hp tractor | B71: =+VAMowTime2 -> 0.7142857143 | C71: =B71 -> 0.7142857143 | D71: =+B71*LaborNoSkill -> 14.28571429 | E71: 3 | F71: =IF(E71>0,VLOOKUP(E71,EquipCost,15)*C71,0) -> 8.485714286 | I71: =SUM(F71:H71)+D71 -> 22.77142857
A72: Mower | C72: =B71 -> 0.7142857143 | E72: 7 | F72: =IF(E72>0,VLOOKUP(E72,EquipCost,15)*C72,0) -> 3.237755102 | I72: =SUM(F72:H72)+D72 -> 3.237755102
A73: Mouse control
A74: 40 hp tractor | B74: =+CLBaitTime3 -> 0.1176470588 | C74: =+B74 -> 0.1176470588 | D74: =B74*LaborNoSkill -> 2.352941176 | E74: 3 | F74: =IF(E74>0,VLOOKUP(E74,EquipCost,15)*C74,0) -> 1.397647059 | I74: =SUM(F74:H74)+D74 -> 3.750588235
A75: Vicon Spreader | C75: =+C74 -> 0.1176470588 | E75: 6 | F75: =IF(E75>0,VLOOKUP(E75,EquipCost,15)*C75,0) -> 0.3570868347 | G75: =+CLBait3 -> 17.5 | I75: 17.85708683
A76: Wildlife Control | B76: 2 | C76: 1 | D76: =B76*LaborNoSkill -> 40 | E76: 1 | F76: =IF(E76>0,VLOOKUP(E76,EquipCost,15)*C76,0) -> 16.9248 | G76: =+CLWild*CLTree -> 9.075 | I76: 65.9998
A77: Scouting | I77: 0
A78: Bees | I78: 0
A79: Trickle Irrigation | B79: 0 | C79: 0 | D79: =B79*LaborNoSkill -> 0 | E79: 17 | F79: =IF(E79>0,VLOOKUP(E79,EquipCost,15)*C79,0) -> 0 | I79: 0
A80: Real Estate Tax | B80: =-B1274 -> 0 | D80: =B80*LaborNoSkill -> 0 | F80: =IF(E80>0,VLOOKUP(E80,EquipCost,15)*C80,0) -> 0 | H80: =+RETax -> 40 | I80: =SUM(F80:H80)+D80 -> 40
A81: Management | B81: 2 | D81: =B81*LaborNoSkill -> 40 | F81: =IF(E81>0,VLOOKUP(E81,EquipCost,15)*C81,0) -> 0 | H81: =+other -> 40 | I81: =SUM(F81:H81)+D81 -> 80
A83: Total | B83: =SUM(B61:B82) -> 5.911932773 | C83: =SUM(C61:C82) -> 5.223865546 | D83: =SUM(D61:D82) -> 122.1586555 | F83: =SUM(F61:F82) -> 54.82477471 | G83: =SUM(G61:G82) -> 155.978125 | H83: =SUM(H61:H82) -> 80 | I83: =SUM(I56:I82) -> 595.4146322
A84: Year 3, Non-bearing Year
A85: Activity | B85: Labor Hours | C85: Eq. Hours | D85: Labor Cost | E85: Eq. Code | F85: Eq. Cost | G85: Material Cost | H85: Other Cost | I85: Total Cost
A87: Training | B87: =+CLTrain4 -> 15 | C87: 2 | D87: =B87*LaborNoSkill -> 300 | E87: 1 | F87: =IF(E87>0,VLOOKUP(E87,EquipCost,15)*C87,0) -> 33.8496 | G87: =+CLTrainMat3 -> 10 | I87: =SUM(F87:H87)+D87 -> 343.8496
A88: Pruning | B88: =+CLPrune4 -> 0.3025 | C88: =+B88 -> 0.3025 | D88: =B88*LaborNoSkill -> 6.05 | E88: 18 | F88: =IF(E88>0,VLOOKUP(E88,EquipCost,15)*C88,0) -> 1.418725 | I88: =SUM(F88:H88)+D88 -> 7.468725
A89: Brush Removal | B89: 0 | C89: =+B89 -> 0 | D89: =B89*LaborSkill -> 0 | E89: 3 | F89: =IF(E89>0,VLOOKUP(E89,EquipCost,15)*C89,0) -> 0 | I89: =SUM(F89:H89)+D89 -> 0
A90: Tree replacement | B90: 0.5 | C90: =B90 -> 0.5 | D90: =B90*LaborNoSkill -> 10 | E90: 1 | F90: =IF(E90>0,VLOOKUP(E90,EquipCost,15)*C90,0) -> 8.4624 | G90: =+CLTree*TreeCost*0.01 -> 19.965 | I90: =SUM(F90:H90)+D90 -> 38.4274
A91: Herbicide Program
A92: 40 hp tractor | B92: =+CLHerbTime -> 0.8 | C92: =+B92 -> 0.8 | D92: =B92*LaborSkill -> 19.2 | E92: 3 | F92: =IF(E92>0,VLOOKUP(E92,EquipCost,15)*C92,0) -> 9.504 | I92: =SUM(F92:H92)+D92 -> 28.704
A93: Weed sprayer | C93: =+C92 -> 0.8 | E93: 5 | F93: =IF(E93>0,VLOOKUP(E93,EquipCost,15)*C93,0) -> 4.064 | G93: =+CLHerb3 -> 9 | I93: =SUM(F93:H93)+D93 -> 13.064
A94: Spray Program
A95: 80 hp tractor | B95: =+CLSprayTime3 -> 0.72 | C95: =+B95 -> 0.72 | D95: =B95*LaborSkill -> 17.28 | E95: 2 | F95: =IF(E95>0,VLOOKUP(E95,EquipCost,15)*C95,0) -> 17.6328 | G95: =+CLSprayMat3 -> 480 | I95: =SUM(F95:H95)+D95 -> 514.9128
A96: Airblast spr. | C96: =+C95 -> 0.72 | E96: 4 | F96: =IF(E96>0,VLOOKUP(E96,EquipCost,15)*C96,0) -> 7.884 | I96: =SUM(F96:H96)+D96 -> 7.884
A97: Fertilizer
A98: 40 hp tractor | B98: =+CLFertTime3 -> 0.1 | C98: =+B98 -> 0.1 | D98: =B98*LaborNoSkill -> 2 | E98: 3 | F98: =IF(E98>0,VLOOKUP(E98,EquipCost,15)*C98,0) -> 1.188 | G98: =+CLFert3 -> 5.1046875 | I98: =SUM(F98:H98)+D98 -> 8.2926875
A99: Vicon Spreader | C99: =+C98 -> 0.1 | E99: 6 | F99: =IF(E99>0,VLOOKUP(E99,EquipCost,15)*C99,0) -> 0.3035238095 | I99: =SUM(F99:H99)+D99 -> 0.3035238095
A100: Lime | G100: 0 | I100: =SUM(F100:H100)+D100 -> 0
A101: Mowing
A102: 40 hp tractor | B102: =+CLMowTime3 -> 0.75 | C102: =+B102 -> 0.75 | D102: =B102*LaborNoSkill -> 15 | E102: 3 | F102: =IF(E102>0,VLOOKUP(E102,EquipCost,15)*C102,0) -> 8.91 | I102: =SUM(F102:H102)+D102 -> 23.91
A103: Mower | C103: =+C102 -> 0.75 | E103: 7 | F103: =IF(E103>0,VLOOKUP(E103,EquipCost,15)*C103,0) -> 3.399642857 | I103: =SUM(F103:H103)+D103 -> 3.399642857
A104: Mouse control | C104: Sevin 80S
A105: 40 hp tractor | B105: =+CLBaitTime3 -> 0.1176470588 | C105: =+B105 -> 0.1176470588 | D105: =B105*LaborNoSkill -> 2.352941176 | E105: 3 | F105: =IF(E105>0,VLOOKUP(E105,EquipCost,15)*C105,0) -> 1.397647059 | I105: =SUM(F105:H105)+D105 -> 3.750588235
A106: Vicon Spreader | C106: =+C105 -> 0.1176470588 | E106: 6 | F106: =IF(E106>0,VLOOKUP(E106,EquipCost,15)*C106,0) -> 0.3570868347 | G106: =+CLBait3 -> 17.5 | I106: 17.85708683
A107: Wildlife Control | B107: 2 | C107: 1 | D107: =B107*LaborNoSkill -> 40 | E107: 1 | F107: =IF(E107>0,VLOOKUP(E107,EquipCost,15)*C107,0) -> 16.9248 | G107: =+CLWild*CLTree -> 9.075 | I107: 65.9998
A108: Scouting | I108: 0
A109: Bees | I109: 0
A110: Trickle Irrigation | B110: 0 | C110: 0 | D110: =B110*LaborNoSkill -> 0 | E110: 17 | F110: =IF(E110>0,VLOOKUP(E110,EquipCost,15)*C110,0) -> 0 | I110: 0
A111: Real Estate Tax | D111: =B111*LaborNoSkill -> 0 | F111: =IF(E111>0,VLOOKUP(E111,EquipCost,15)*C111,0) -> 0 | H111: =+RETax -> 40 | I111: 40
A112: Management | D112: =B112*LaborNoSkill -> 0 | F112: =IF(E112>0,VLOOKUP(E112,EquipCost,15)*C112,0) -> 0 | H112: =+other -> 40 | I112: 40
A114: Total | B114: =SUM(B91:B113) -> 4.487647059 | C114: =SUM(C91:C113) -> 5.975294118 | D114: =SUM(D91:D113) -> 95.83294118 | F114: =SUM(F91:F113) -> 71.56550056 | G114: =SUM(G91:G113) -> 520.6796875 | H114: =SUM(H91:H113) -> 80 | I114: =SUM(I86:I113) -> 1157.823854
A115: Year 4, Early Cropping Year
A116: Activity | B116: Labor Hours | C116: Eq. Hours | D116: Labor Cost | E116: Eq. Code | F116: Eq. Cost | G116: Material Cost | H116: Other Cost | I116: Total Cost
A118: Training | B118: =+CLTrain4 -> 15 | C118: 2 | D118: =B118*LaborNoSkill -> 300 | E118: 1 | F118: =IF(E118>0,VLOOKUP(E118,EquipCost,15)*C118,0) -> 33.8496 | G118: =+CLTrainMat4 -> 10 | I118: =SUM(F118:H118)+D118 -> 343.8496
A119: Pruning | B119: =+CLPrune4 -> 0.3025 | C119: =+B119 -> 0.3025 | D119: =B119*LaborNoSkill -> 6.05 | E119: 18 | F119: =IF(E119>0,VLOOKUP(E119,EquipCost,15)*C119,0) -> 1.418725 | I119: =SUM(F119:H119)+D119 -> 7.468725
A120: Brush Removal | B120: 0 | C120: =+B120 -> 0 | D120: =B120*LaborSkill -> 0 | E120: 3 | F120: =IF(E120>0,VLOOKUP(E120,EquipCost,15)*C120,0) -> 0 | I120: =SUM(F120:H120)+D120 -> 0
A121: Tree replacement | B121: 0.5 | C121: =B121 -> 0.5 | D121: =B121*LaborNoSkill -> 10 | E121: 1 | F121: =IF(E121>0,VLOOKUP(E121,EquipCost,15)*C121,0) -> 8.4624 | G121: =+CLTree*TreeCost*0.01 -> 19.965 | I121: =SUM(F121:H121)+D121 -> 38.4274
A122: Herbicide Program
A123: 40 hp tractor | B123: =+CLHerbTime -> 0.8 | C123: =+B123 -> 0.8 | D123: =B123*LaborSkill -> 19.2 | E123: 3 | F123: =IF(E123>0,VLOOKUP(E123,EquipCost,15)*C123,0) -> 9.504 | I123: =SUM(F123:H123)+D123 -> 28.704
A124: Weed sprayer | C124: =+C123 -> 0.8 | E124: 5 | F124: =IF(E124>0,VLOOKUP(E124,EquipCost,15)*C124,0) -> 4.064 | G124: =+CLHerb4 -> 9 | I124: =SUM(F124:H124)+D124 -> 13.064
A125: Spray Program
A126: 80 hp tractor | B126: =+CLSprayTime4 -> 1.08 | C126: =+B126 -> 1.08 | D126: =B126*LaborSkill -> 25.92 | E126: 2 | F126: =IF(E126>0,VLOOKUP(E126,EquipCost,15)*C126,0) -> 26.4492 | G126: =+CLSprayMat4 -> 720 | I126: =SUM(F126:H126)+D126 -> 772.3692
A127: Airblast spr. | C127: =+C126 -> 1.08 | E127: 4 | F127: =IF(E127>0,VLOOKUP(E127,EquipCost,15)*C127,0) -> 11.826 | I127: =SUM(F127:H127)+D127 -> 11.826
A128: Mowing
A129: 40 hp tractor | B129: =+CLMowTime4 -> 0.75 | C129: =+B129 -> 0.75 | D129: =B129*LaborNoSkill -> 15 | E129: 3 | F129: =IF(E129>0,VLOOKUP(E129,EquipCost,15)*C129,0) -> 8.91 | I129: =SUM(F129:H129)+D129 -> 23.91
A130: Mower | C130: =+C129 -> 0.75 | E130: 7 | F130: =IF(E130>0,VLOOKUP(E130,EquipCost,15)*C130,0) -> 3.399642857 | I130: =SUM(F130:H130)+D130 -> 3.399642857
A131: Mouse control
A132: 40 hp tractor | B132: =+CLBaitTIme4 -> 0.1176470588 | C132: =+B132 -> 0.1176470588 | D132: =B132*LaborNoSkill -> 2.352941176 | E132: 3 | F132: =IF(E132>0,VLOOKUP(E132,EquipCost,15)*C132,0) -> 1.397647059 | I132: =SUM(F132:H132)+D132 -> 3.750588235
A133: Vicon Spreader | C133: =+C132 -> 0.1176470588 | E133: 6 | F133: =IF(E133>0,VLOOKUP(E133,EquipCost,15)*C133,0) -> 0.3570868347 | G133: =+CLBait4 -> 17.5 | I133: =SUM(F133:H133)+D133 -> 17.85708683
A134: Wildlife Control | B134: 2 | C134: 1 | D134: =B134*LaborNoSkill -> 40 | E134: 1 | F134: =IF(E134>0,VLOOKUP(E134,EquipCost,15)*C134,0) -> 16.9248 | G134: =+CLWild*CLTree -> 9.075 | I134: =SUM(F134:H134)+D134 -> 65.9998
A135: Fertilizer
A136: 40 hp tractor | B136: =+CLFertTime4 -> 0.1 | C136: =+B136 -> 0.1 | D136: =B136*LaborNoSkill -> 2 | E136: 3 | F136: =IF(E136>0,VLOOKUP(E136,EquipCost,15)*C136,0) -> 1.188 | G136: =+CLFert4 -> 6.80625 | I136: =SUM(F136:H136)+D136 -> 9.99425
A137: Vicon Spreader | C137: =+C136 -> 0.1 | E137: 6 | F137: =IF(E137>0,VLOOKUP(E137,EquipCost,15)*C137,0) -> 0.3035238095 | I137: =SUM(F137:H137)+D137 -> 0.3035238095
A138: Lime (1 tons) | G138: =+Lime -> 35 | I138: =SUM(F138:H138)+D138 -> 35
A139: Scouting | I139: =SUM(F139:H139)+D139 -> 0
A140: Bees | I140: =SUM(F140:H140)+D140 -> 0
A141: Trickle Irrigation | B141: 0 | C141: 0 | D141: =B141*LaborNoSkill -> 0 | E141: 17 | F141: =IF(E141>0,VLOOKUP(E141,EquipCost,15)*C141,0) -> 0 | I141: 0
A142: Real Estate Tax | D142: =B142*LaborNoSkill -> 0 | F142: =IF(E142>0,VLOOKUP(E142,EquipCost,15)*C142,0) -> 0 | H142: =+RETax -> 40 | I142: 40
A143: Management | D143: =B143*LaborNoSkill -> 0 | F143: =IF(E143>0,VLOOKUP(E143,EquipCost,15)*C143,0) -> 0 | H143: =+other -> 40 | I143: 40
A145: Total | B145: =SUM(B117:B144) -> 20.65014706 | C145: =SUM(C117:C144) -> 9.497794118 | D145: =SUM(D117:D144) -> 420.5229412 | F145: =SUM(F117:F144) -> 128.0546256 | G145: =SUM(G117:G144) -> 827.34625 | H145: =SUM(H117:H144) -> 80 | I145: =SUM(I117:I144) -> 1455.923817
A146: Year 5, Early Cropping Year
A147: Activity | B147: Labor Hours | C147: Eq. Hours | D147: Labor Cost | E147: Eq. Code | F147: Eq. Cost | G147: Material Cost | H147: Other Cost | I147: Total Cost
A149: Training | B149: =+CLTrain5 -> 10 | C149: 2 | D149: =B149*LaborNoSkill -> 200 | E149: 1 | F149: =IF(E149>0,VLOOKUP(E149,EquipCost,15)*C149,0) -> 33.8496 | G149: =+CLTrainMat5 -> 10 | I149: =SUM(F149:H149)+D149 -> 243.8496
A150: Pruning | B150: =+CLPrune5 -> 6.05 | C150: =+B150 -> 6.05 | D150: =B150*LaborNoSkill -> 121 | E150: 18 | F150: =IF(E150>0,VLOOKUP(E150,EquipCost,15)*C150,0) -> 28.3745 | I150: =SUM(F150:H150)+D150 -> 149.3745
A151: Brush Removal | B151: 0.5 | C151: =+B151 -> 0.5 | D151: =B151*LaborSkill -> 12 | E151: 3 | F151: =IF(E151>0,VLOOKUP(E151,EquipCost,15)*C151,0) -> 5.94 | I151: =SUM(F151:H151)+D151 -> 17.94
A152: Tree replacement | B152: 0.5 | C152: =B152 -> 0.5 | D152: =B152*LaborNoSkill -> 10 | E152: 1 | F152: =IF(E152>0,VLOOKUP(E152,EquipCost,15)*C152,0) -> 8.4624 | G152: =+CLTree*TreeCost*0.01 -> 19.965 | I152: =SUM(F152:H152)+D152 -> 38.4274
A153: Herbicide Program
A154: 40 hp tractor | B154: =+CLHerbTime -> 0.8 | C154: =+B154 -> 0.8 | D154: =B154*LaborSkill -> 19.2 | E154: 3 | F154: =IF(E154>0,VLOOKUP(E154,EquipCost,15)*C154,0) -> 9.504 | I154: =SUM(F154:H154)+D154 -> 28.704
A155: Weed sprayer | C155: =+C154 -> 0.8 | E155: 5 | F155: =IF(E155>0,VLOOKUP(E155,EquipCost,15)*C155,0) -> 4.064 | G155: =+CLHerb5 -> 13.5 | I155: =SUM(F155:H155)+D155 -> 17.564
A156: Spray Program
A157: 80 hp tractor | B157: =+CLSprayTIme5 -> 1.8 | C157: =+B157 -> 1.8 | D157: =B157*LaborSkill -> 43.2 | E157: 2 | F157: =IF(E157>0,VLOOKUP(E157,EquipCost,15)*C157,0) -> 44.082 | G157: =+CLSprayMat5 -> 1200 | I157: =SUM(F157:H157)+D157 -> 1287.282
A158: Airblast spr. | C158: =+C157 -> 1.8 | E158: 4 | F158: =IF(E158>0,VLOOKUP(E158,EquipCost,15)*C158,0) -> 19.71 | I158: =SUM(F158:H158)+D158 -> 19.71
A159: Mowing
A160: 40 hp tractor | B160: =+CLMowTime5 -> 0.75 | C160: =+B160 -> 0.75 | D160: =B160*LaborNoSkill -> 15 | E160: 3 | F160: =IF(E160>0,VLOOKUP(E160,EquipCost,15)*C160,0) -> 8.91 | I160: =SUM(F160:H160)+D160 -> 23.91
A161: Mower | C161: =+C160 -> 0.75 | E161: 7 | F161: =IF(E161>0,VLOOKUP(E161,EquipCost,15)*C161,0) -> 3.399642857 | I161: =SUM(F161:H161)+D161 -> 3.399642857
A162: Mouse control
A163: 40 hp tractor | B163: =+CLBaitTime5 -> 0.1176470588 | C163: =+B163 -> 0.1176470588 | D163: =B163*LaborNoSkill -> 2.352941176 | E163: 3 | F163: =IF(E163>0,VLOOKUP(E163,EquipCost,15)*C163,0) -> 1.397647059 | I163: =SUM(F163:H163)+D163 -> 3.750588235
A164: Vicon Spreader | C164: =+C163 -> 0.1176470588 | E164: 6 | F164: =IF(E164>0,VLOOKUP(E164,EquipCost,15)*C164,0) -> 0.3570868347 | G164: =+CLBait5 -> 17.5 | I164: =SUM(F164:H164)+D164 -> 17.85708683
A165: Wildlife Control | B165: 2 | C165: 1 | D165: =B165*LaborNoSkill -> 40 | E165: 1 | F165: =IF(E165>0,VLOOKUP(E165,EquipCost,15)*C165,0) -> 16.9248 | G165: =+CLWild*CLTree -> 9.075 | I165: =SUM(F165:H165)+D165 -> 65.9998
A166: Fertilizer
A167: 40 hp tractor | B167: =+CLFertTime5 -> 0.1 | C167: =+B167 -> 0.1 | D167: =B167*LaborNoSkill -> 2 | E167: 3 | F167: =IF(E167>0,VLOOKUP(E167,EquipCost,15)*C167,0) -> 1.188 | G167: =+CLFert5 -> 10.60640625 | I167: =SUM(F167:H167)+D167 -> 13.79440625
A168: Vicon Spreader | C168: =+C167 -> 0.1 | E168: 6 | F168: =IF(E168>0,VLOOKUP(E168,EquipCost,15)*C168,0) -> 0.3035238095 | I168: =SUM(F168:H168)+D168 -> 0.3035238095
A169: Lime (1 tons) | G169: =+Lime -> 35 | I169: =SUM(F169:H169)+D169 -> 35
A170: Scouting | I170: =SUM(F170:H170)+D170 -> 0
A171: Bees | I171: =SUM(F171:H171)+D171 -> 0
A172: Trickle Irrigation | B172: 0 | C172: 0 | D172: =B172*LaborNoSkill -> 0 | E172: 17 | F172: =IF(E172>0,VLOOKUP(E172,EquipCost,15)*C172,0) -> 0 | I172: 0
A173: Real Estate Tax | D173: =B173*LaborNoSkill -> 0 | F173: =IF(E173>0,VLOOKUP(E173,EquipCost,15)*C173,0) -> 0 | H173: =+RETax -> 40 | I173: 40
A174: Management | D174: =B174*LaborNoSkill -> 0 | F174: =IF(E174>0,VLOOKUP(E174,EquipCost,15)*C174,0) -> 0 | H174: =+other -> 40 | I174: 40
A176: Total | B176: =SUM(B148:B175) -> 22.61764706 | C176: =SUM(C148:C175) -> 17.18529412 | D176: =SUM(D148:D175) -> 464.7529412 | F176: =SUM(F148:F175) -> 186.4672006 | G176: =SUM(G148:G175) -> 1315.646406 | H176: =SUM(H148:H175) -> 80 | I176: =SUM(I148:I175) -> 2046.866548
A177: Year 6, Early Cropping Year
A178: Activity | B178: Labor Hours | C178: Eq. Hours | D178: Labor Cost | E178: Eq. Code | F178: Eq. Cost | G178: Material Cost | H178: Other Cost | I178: Total Cost
A180: Training | B180: =+CLTrain6 -> 5 | C180: 2 | D180: =B180*LaborNoSkill -> 100 | E180: 1 | F180: =IF(E180>0,VLOOKUP(E180,EquipCost,15)*C180,0) -> 33.8496 | G180: =+CLTrainMat6 -> 5 | I180: =SUM(F180:H180)+D180 -> 138.8496
A181: Pruning | B181: =+CLPrune6 -> 12.1 | C181: =+B181 -> 12.1 | D181: =B181*LaborNoSkill -> 242 | E181: 18 | F181: =IF(E181>0,VLOOKUP(E181,EquipCost,15)*C181,0) -> 56.749 | I181: =SUM(F181:H181)+D181 -> 298.749
A182: Brush Removal | B182: 1 | C182: =+B182 -> 1 | D182: =B182*LaborSkill -> 24 | E182: 3 | F182: =IF(E182>0,VLOOKUP(E182,EquipCost,15)*C182,0) -> 11.88 | I182: =SUM(F182:H182)+D182 -> 35.88
A183: Tree replacement | B183: 0.5 | C183: =B183 -> 0.5 | D183: =B183*LaborNoSkill -> 10 | E183: 1 | F183: =IF(E183>0,VLOOKUP(E183,EquipCost,15)*C183,0) -> 8.4624 | G183: =+CLTree*TreeCost*0.01 -> 19.965 | I183: =SUM(F183:H183)+D183 -> 38.4274
A184: Herbicide Program
A185: 40 hp tractor | B185: =+CLHerbTime -> 0.8 | C185: =+B185 -> 0.8 | D185: =B185*LaborSkill -> 19.2 | E185: 3 | F185: =IF(E185>0,VLOOKUP(E185,EquipCost,15)*C185,0) -> 9.504 | I185: =SUM(F185:H185)+D185 -> 28.704
A186: Weed sprayer | C186: =+C185 -> 0.8 | E186: 5 | F186: =IF(E186>0,VLOOKUP(E186,EquipCost,15)*C186,0) -> 4.064 | G186: =+CLHerb6 -> 18 | I186: =SUM(F186:H186)+D186 -> 22.064
A187: Spray Program
A188: 80 hp tractor | B188: =+CLSprayTIme6 -> 1.8 | C188: =+B188 -> 1.8 | D188: =B188*LaborSkill -> 43.2 | E188: 2 | F188: =IF(E188>0,VLOOKUP(E188,EquipCost,15)*C188,0) -> 44.082 | G188: =+CLSprayMat6 -> 1200 | I188: =SUM(F188:H188)+D188 -> 1287.282
A189: Airblast spr. | C189: =+C188 -> 1.8 | E189: 4 | F189: =IF(E189>0,VLOOKUP(E189,EquipCost,15)*C189,0) -> 19.71 | I189: =SUM(F189:H189)+D189 -> 19.71
A190: Mowing
A191: 40 hp tractor | B191: =+CLMowTime6 -> 0.75 | C191: =+B191 -> 0.75 | D191: =B191*LaborNoSkill -> 15 | E191: 3 | F191: =IF(E191>0,VLOOKUP(E191,EquipCost,15)*C191,0) -> 8.91 | I191: =SUM(F191:H191)+D191 -> 23.91
A192: Mower | C192: =+C191 -> 0.75 | E192: 7 | F192: =IF(E192>0,VLOOKUP(E192,EquipCost,15)*C192,0) -> 3.399642857 | I192: =SUM(F192:H192)+D192 -> 3.399642857
A193: Mouse control
A194: 40 hp tractor | B194: =+CLBaitTime6 -> 0.1176470588 | C194: =+B194 -> 0.1176470588 | D194: =B194*LaborNoSkill -> 2.352941176 | E194: 3 | F194: =IF(E194>0,VLOOKUP(E194,EquipCost,15)*C194,0) -> 1.397647059 | I194: =SUM(F194:H194)+D194 -> 3.750588235
A195: Vicon Spreader | C195: =+C194 -> 0.1176470588 | E195: 6 | F195: =IF(E195>0,VLOOKUP(E195,EquipCost,15)*C195,0) -> 0.3570868347 | G195: =+CLBait6 -> 17.5 | I195: =SUM(F195:H195)+D195 -> 17.85708683
A196: Wildlife Control | B196: 2 | C196: 1 | D196: =B196*LaborNoSkill -> 40 | E196: 1 | F196: =IF(E196>0,VLOOKUP(E196,EquipCost,15)*C196,0) -> 16.9248 | G196: =+CLWild*CLTree -> 9.075 | I196: =SUM(F196:H196)+D196 -> 65.9998
A197: Fertilizer
A198: 40 hp tractor | B198: =+CLFertTime6 -> 0.1 | C198: =+B198 -> 0.1 | D198: =B198*LaborNoSkill -> 2 | E198: 3 | F198: =IF(E198>0,VLOOKUP(E198,EquipCost,15)*C198,0) -> 1.188 | G198: =+CLFert6 -> 12.705 | I198: =SUM(F198:H198)+D198 -> 15.893
A199: Vicon Spreader | C199: =+C198 -> 0.1 | E199: 6 | F199: =IF(E199>0,VLOOKUP(E199,EquipCost,15)*C199,0) -> 0.3035238095 | I199: 0.3035238095
A200: Lime | G200: =+Lime -> 35 | I200: 35
A201: Scouting | H201: 15 | I201: 15
A202: Bees | H202: 35 | I202: 35
A203: Trickle Irrigation | B203: 0 | C203: 0 | D203: =B203*LaborNoSkill -> 0 | E203: 17 | F203: =IF(E203>0,VLOOKUP(E203,EquipCost,15)*C203,0) -> 0 | I203: 0
A204: Real Estate Tax | D204: =B204*LaborNoSkill -> 0 | F204: =IF(E204>0,VLOOKUP(E204,EquipCost,15)*C204,0) -> 0 | H204: =+RETax -> 40 | I204: 40
A205: Management | D205: =B205*LaborNoSkill -> 0 | F205: =IF(E205>0,VLOOKUP(E205,EquipCost,15)*C205,0) -> 0 | H205: =+other -> 40 | I205: 40
A207: Total | B207: =SUM(B179:B206) -> 24.16764706 | C207: =SUM(C179:C206) -> 23.73529412 | D207: =SUM(D179:D206) -> 497.7529412 | F207: =SUM(F179:F206) -> 220.7817006 | G207: =SUM(G179:G206) -> 1317.245 | H207: =SUM(H179:H206) -> 130 | I207: =SUM(I179:I206) -> 2165.779642
A208: Year 7, Early Cropping Year
A209: Activity | B209: Labor Hours | C209: Eq. Hours | D209: Labor Cost | E209: Eq. Code | F209: Eq. Cost | G209: Material Cost | H209: Other Cost | I209: Total Cost
A211: Training | B211: =+CLTrain7 -> 5 | C211: 2 | D211: =B211*LaborNoSkill -> 100 | E211: 1 | F211: =IF(E211>0,VLOOKUP(E211,EquipCost,15)*C211,0) -> 33.8496 | G211: =+CLTrainMat7 -> 0 | I211: =SUM(F211:H211)+D211 -> 133.8496
A212: Pruning | B212: =+CLPrune7 -> 24.2 | C212: =+B212 -> 24.2 | D212: =B212*LaborNoSkill -> 484 | E212: 18 | F212: =IF(E212>0,VLOOKUP(E212,EquipCost,15)*C212,0) -> 113.498 | I212: =SUM(F212:H212)+D212 -> 597.498
A213: Brush Removal | B213: 2 | C213: =+B213 -> 2 | D213: =B213*LaborSkill -> 48 | E213: 3 | F213: =IF(E213>0,VLOOKUP(E213,EquipCost,15)*C213,0) -> 23.76 | I213: =SUM(F213:H213)+D213 -> 71.76
A214: Tree replacement | B214: 0.5 | C214: =B214 -> 0.5 | D214: =B214*LaborNoSkill -> 10 | E214: 1 | F214: =IF(E214>0,VLOOKUP(E214,EquipCost,15)*C214,0) -> 8.4624 | G214: =+CLTree*TreeCost*0.01 -> 19.965 | I214: =SUM(F214:H214)+D214 -> 38.4274
A215: Herbicide Program
... 63 more rows

Sheet Vertical Axe
A1: Vertical Axe
A3: The vertical axe orchard remains non-bearing for years 1 through 3. The 1st crop is produced in the 4th year and the orchard
A4: become full bearing in the 6th year. A reduced spray program is followed during the 2nd through 4th year. A full bearing spray
A5: program is followed starting in year 5.
A8: Year 1, Planting Year.
A9: Activity | B9: Labor Hours | C9: Eq. Hours | D9: Labor Cost | E9: Eq. Code | F9: Eq. Cost | G9: Material Cost | H9: Other Cost | I9: Total Cost
A11: Ground Preparation
A12: 80hp tractor | B12: 0.5 | C12: =B12 -> 0.5 | D12: =B12*LaborSkill -> 12 | E12: 2 | F12: =IF(E12>0,VLOOKUP(E12,EquipCost,15)*C12,0) -> 12.245 | I12: =SUM(F12:H12)+D12 -> 24.245
A13: Plow | C13: =B12 -> 0.5 | E13: 8 | F13: =IF(E13>0,VLOOKUP(E13,EquipCost,15)*C13,0) -> 2.095555556 | I13: =SUM(F13:H13)+D13 -> 2.095555556
A14: 80hp tractor | B14: 0.3 | C14: =B14 -> 0.3 | D14: =B14*LaborSkill -> 7.2 | E14: 2 | F14: =IF(E14>0,VLOOKUP(E14,EquipCost,15)*C14,0) -> 7.347 | I14: =SUM(F14:H14)+D14 -> 14.547
A15: Disc | C15: =B14 -> 0.3 | E15: 9 | F15: =IF(E15>0,VLOOKUP(E15,EquipCost,15)*C15,0) -> 1.564 | I15: =SUM(F15:H15)+D15 -> 1.564
A16: Pick stone & roots | B16: 3 | C16: =B16 -> 3 | D16: =B16*LaborNoSkill -> 60 | E16: 15 | F16: =IF(E16>0,VLOOKUP(E16,EquipCost,15)*C16,0) -> 29.8125 | I16: =SUM(F16:H16)+D16 -> 89.8125
A17: Planting Trees
A18: Layout | B18: 0.5 | C18: =B18 -> 0.5 | D18: =B18*LaborSkill -> 12 | E18: 1 | F18: =IF(E18>0,VLOOKUP(E18,EquipCost,15)*C18,0) -> 8.4624 | I18: =SUM(F18:H18)+D18 -> 20.4624
A19: Marking | B19: 0.5 | C19: 0.5 | D19: =B19*LaborSkill -> 12 | E19: 1 | F19: =IF(E19>0,VLOOKUP(E19,EquipCost,15)*C19,0) -> 8.4624 | I19: =SUM(F19:H19)+D19 -> 20.4624
A20: Purchase trees | G20: =VATree*VATreeCost -> 6845.142857 | I20: =SUM(F20:H20)+D20 -> 6845.142857
A21: Custom Plant @ .30 /tree | H21: =VATree*CustomPlant -> 217.8 | I21: =SUM(F21:H21)+D21 -> 217.8
A22: System
A23: Trellis | B23: 40 | D23: =B23*LaborNoSkill -> 800 | F23: =IF(E23>0,VLOOKUP(E23,EquipCost,15)*C23,0) -> 0 | G23: =+VATrellis -> 2657.044433 | I23: =SUM(F23:H23)+D23 -> 3457.044433
A24: Trickle irrigation | B24: 8 | C24: 20 | D24: =B24*LaborNoSkill -> 160 | E24: 17 | F24: =IF(E24>0,VLOOKUP(E24,EquipCost,15)*C24,0) -> 44 | G24: =+VAIrr -> 2333.687406 | I24: =SUM(F24:H24)+D24 -> 2537.687406
A25: Training | B25: =+VATrain1 -> 30 | C25: 2 | D25: =B25*LaborNoSkill -> 600 | E25: 1 | F25: =IF(E25>0,VLOOKUP(E25,EquipCost,15)*C25,0) -> 33.8496 | G25: =+VATrainMat1 -> 20 | I25: =SUM(F25:H25)+D25 -> 653.8496
A26: Pruning | B26: =+VAPrune1 -> 1.037142857 | C26: =+B26 -> 1.037142857 | D26: =B26*LaborNoSkill -> 20.74285714 | E26: 18 | F26: =IF(E26>0,VLOOKUP(E26,EquipCost,15)*C26,0) -> 4.8642 | I26: =SUM(F26:H26)+D26 -> 25.60705714
A27: Nematode Control | I27: =SUM(F27:H27)+D27 -> 0
A28: Herbicide Program
A29: 40 hp tractor | B29: =+VAHerbTime -> 1.142857143 | C29: =+B29 -> 1.142857143 | D29: =B29*LaborSkill -> 27.42857143 | E29: 3 | F29: =IF(E29>0,VLOOKUP(E29,EquipCost,15)*C29,0) -> 13.57714286 | I29: =SUM(F29:H29)+D29 -> 41.00571429
A30: Weed sprayer | C30: =+C29 -> 1.142857143 | E30: 5 | F30: =IF(E30>0,VLOOKUP(E30,EquipCost,15)*C30,0) -> 5.805714286 | G30: =+VAHerb1 -> 8.571428571 | I30: =SUM(F30:H30)+D30 -> 14.37714286
A31: Spray Program
A32: 80 hp tractor | B32: =+VASprayTime1 -> 0.1285714286 | C32: =+B32 -> 0.1285714286 | D32: =B32*LaborSkill -> 3.085714286 | E32: 2 | F32: =IF(E32>0,VLOOKUP(E32,EquipCost,15)*C32,0) -> 3.148714286 | G32: =+VASprayMat1 -> 48 | I32: =SUM(F32:H32)+D32 -> 54.23442857
A33: Airblast spr. | C33: =+C32 -> 0.1285714286 | E33: 4 | F33: =IF(E33>0,VLOOKUP(E33,EquipCost,15)*C33,0) -> 1.407857143 | I33: =SUM(F33:H33)+D33 -> 1.407857143
A34: Fertilize | I34: =SUM(F34:H34)+D34 -> 0
A35: 40 hp tractor | B35: =+VAFertTime1 -> 0.1428571429 | C35: =+B35 -> 0.1428571429 | D35: =B35*LaborNoSkill -> 2.857142857 | E35: 3 | F35: =IF(E35>0,VLOOKUP(E35,EquipCost,15)*C35,0) -> 1.697142857 | G35: =+VAFert1 -> 5.833928571 | I35: =SUM(F35:H35)+D35 -> 10.38821429
A36: Vicon Spreader | C36: 0.2 | E36: 6 | F36: =IF(E36>0,VLOOKUP(E36,EquipCost,15)*C36,0) -> 0.607047619 | I36: =SUM(F36:H36)+D36 -> 0.607047619
A37: Sod Establishment
A38: 40 hp tractor | B38: 0.3 | C38: =0.3*3 -> 0.9 | D38: =B38*LaborSkill -> 7.2 | E38: 3 | F38: =IF(E38>0,VLOOKUP(E38,EquipCost,15)*C38,0) -> 10.692 | I38: =SUM(F38:H38)+D38 -> 17.892
A39: Spreader | C39: =+B38 -> 0.3 | E39: 6 | F39: =IF(E39>0,VLOOKUP(E39,EquipCost,15)*C39,0) -> 0.9105714286 | G39: 11 | I39: =SUM(F39:H39)+D39 -> 11.91057143
A40: Cultipack | B40: 0.3 | C40: =B40 -> 0.3 | D40: =B40*LaborNoSkill -> 6 | E40: 12 | F40: =IF(E40>0,VLOOKUP(E40,EquipCost,15)*C40,0) -> 1.984 | I40: =SUM(F40:H40)+D40 -> 7.984
A41: Drag | B41: 0.3 | C41: =B41 -> 0.3 | D41: =B41*LaborNoSkill -> 6 | E41: 12 | F41: =IF(E41>0,VLOOKUP(E41,EquipCost,15)*C41,0) -> 1.984 | I41: =SUM(F41:H41)+D41 -> 7.984
A42: Mowing
A43: 40 hp tractor | B43: =+VAMowTIme1 -> 0 | C43: =B43 -> 0 | D43: =+B43*LaborNoSkill -> 0 | E43: 3 | F43: =IF(E43>0,VLOOKUP(E43,EquipCost,15)*C43,0) -> 0 | I43: =SUM(F43:H43)+D43 -> 0
A44: Mower | C44: =B43 -> 0 | E44: 7 | F44: =IF(E44>0,VLOOKUP(E44,EquipCost,15)*C44,0) -> 0 | I44: =SUM(F44:H44)+D44 -> 0
A45: Mouse control
A46: 40 hp tractor | B46: =+VABaitTime1 -> 0.1428571429 | C46: =+B46 -> 0.1428571429 | D46: =+B46*LaborNoSkill -> 2.857142857 | E46: 3 | F46: =IF(E46>0,VLOOKUP(E46,EquipCost,15)*C46,0) -> 1.697142857 | I46: =SUM(F46:H46)+D46 -> 4.554285714
A47: Vicon Spreader | C47: =+B46 -> 0.1428571429 | E47: 6 | F47: =IF(E47>0,VLOOKUP(E47,EquipCost,15)*C47,0) -> 0.4336054422 | G47: =+VABait1 -> 17.5 | I47: =SUM(F47:H47)+D47 -> 17.93360544
A48: Mouse guards | I48: =SUM(F48:G48)+D48 -> 0
A49: Wildlife Control | B49: 0.3 | C49: =B49 -> 0.3 | D49: =B49*LaborNoSkill -> 6 | E49: 1 | F49: =IF(E49>0,VLOOKUP(E49,EquipCost,15)*C49,0) -> 5.07744 | G49: =+VAWild*VATree -> 24.89142857 | I49: =SUM(F49:H49)+D49 -> 35.96886857
A50: Scouting | I50: =SUM(F50:H50)+D50 -> 0
A51: Bees | I51: =SUM(F51:H51)+D51 -> 0
A52: Real Estate Tax | H52: =+RETax -> 40 | I52: =SUM(F52:H52)+D52 -> 40
A53: Management | B53: 2 | D53: =B53*LaborSkill -> 48 | F53: =IF(E53>0,VLOOKUP(E53,EquipCost,15)*C53,0) -> 0 | H53: =+other -> 40 | I53: =SUM(F53:H53)+D53 -> 88
A55: Total | B55: =SUM(B10:B54) -> 88.59428571 | C55: =SUM(C10:C54) -> 33.90857143 | D55: =SUM(D10:D54) -> 1793.371429 | F55: =SUM(F10:F54) -> 201.7250343 | G55: =SUM(G10:G54) -> 11971.67148 | H55: =SUM(H10:H54) -> 297.8 | I55: =SUM(I10:I54) -> 14264.56794
A56: Year 2, Non-bearing Year
A57: Activity | B57: Labor Hours | C57: Eq. Hours | D57: Labor Cost | E57: Eq. Code | F57: Eq. Cost | G57: Material Cost | H57: Other Cost | I57: Total Cost
A59: Training | B59: =+VATrain2 -> 80 | C59: 2 | D59: =B59*LaborNoSkill -> 1600 | E59: 1 | F59: =IF(E59>0,VLOOKUP(E59,EquipCost,15)*C59,0) -> 33.8496 | G59: =+VATrainMat2 -> 60 | I59: =SUM(F59:H59)+D59 -> 1693.8496
A60: Pruning | B60: =+VAPrune2 -> 1.037142857 | C60: =+B60 -> 1.037142857 | D60: =B60*LaborNoSkill -> 20.74285714 | E60: 18 | F60: =IF(E60>0,VLOOKUP(E60,EquipCost,15)*C60,0) -> 4.8642 | I60: =SUM(F60:H60)+D60 -> 25.60705714
A61: Brush Removal | B61: 0 | C61: =+B61 -> 0 | D61: =B61*LaborSkill -> 0 | E61: 3 | F61: =IF(E61>0,VLOOKUP(E61,EquipCost,15)*C61,0) -> 0 | I61: =SUM(F61:H61)+D61 -> 0
A62: Tree replacement | B62: =0.0333333333333333*VATree*0.05 -> 1.037142857 | C62: =B62 -> 1.037142857 | D62: =B62*LaborNoSkill -> 20.74285714 | E62: 1 | F62: =IF(E62>0,VLOOKUP(E62,EquipCost,15)*C62,0) -> 17.55343543 | G62: =+VATree*TreeCost*0.01 -> 68.45142857 | I62: =SUM(F62:H62)+D62 -> 106.7477211
A63: Herbicide Program
A64: 40 hp tractor | B64: =+VAHerbTime -> 1.142857143 | C64: =+B64 -> 1.142857143 | D64: =B64*LaborSkill -> 27.42857143 | E64: 3 | F64: =IF(E64>0,VLOOKUP(E64,EquipCost,15)*C64,0) -> 13.57714286 | I64: =SUM(F64:H64)+D64 -> 41.00571429
A65: Weed sprayer | C65: =+C64 -> 1.142857143 | E65: 5 | F65: =IF(E65>0,VLOOKUP(E65,EquipCost,15)*C65,0) -> 5.805714286 | G65: =+VAHerb2 -> 8.571428571 | I65: =SUM(F65:H65)+D65 -> 14.37714286
A66: Spray Program
A67: 80 hp tractor | B67: =+VASprayTime2 -> 0.5142857143 | C67: =+B67 -> 0.5142857143 | D67: =B67*LaborSkill -> 12.34285714 | E67: 2 | F67: =IF(E67>0,VLOOKUP(E67,EquipCost,15)*C67,0) -> 12.59485714 | G67: =+VASprayMat2 -> 192 | I67: =SUM(F67:H67)+D67 -> 216.9377143
A68: Airblast spr. | C68: =+C67 -> 0.5142857143 | E68: 4 | F68: =IF(E68>0,VLOOKUP(E68,EquipCost,15)*C68,0) -> 5.631428571 | I68: =SUM(F68:H68)+D68 -> 5.631428571
A69: Fertilizer
A70: 40 hp tractor | B70: =+VAFertTime2 -> 0.1428571429 | C70: 0.3 | D70: =+B70*LaborNoSkill -> 2.857142857 | E70: 3 | F70: =IF(E70>0,VLOOKUP(E70,EquipCost,15)*C70,0) -> 3.564 | G70: =+VAFert2 -> 8.750892857 | I70: =SUM(F70:H70)+D70 -> 15.17203571
A71: Vicon Spreader | C71: =+C70 -> 0.3 | D71: =B71*LaborNoSkill -> 0 | E71: 6 | F71: =IF(E71>0,VLOOKUP(E71,EquipCost,15)*C71,0) -> 0.9105714286 | I71: =SUM(F71:H71)+D71 -> 0.9105714286
A72: Mowing
A73: 40 hp tractor | B73: =+VAMowTime2 -> 0.7142857143 | C73: =B73 -> 0.7142857143 | D73: =+B73*LaborNoSkill -> 14.28571429 | E73: 3 | F73: =IF(E73>0,VLOOKUP(E73,EquipCost,15)*C73,0) -> 8.485714286 | I73: =SUM(F73:H73)+D73 -> 22.77142857
A74: Mower | C74: =B73 -> 0.7142857143 | E74: 7 | F74: =IF(E74>0,VLOOKUP(E74,EquipCost,15)*C74,0) -> 3.237755102 | I74: =SUM(F74:H74)+D74 -> 3.237755102
A75: Mouse control
A76: 40 hp tractor | B76: =+VABaitTime2 -> 0.1428571429 | C76: =B76 -> 0.1428571429 | D76: =B76*LaborNoSkill -> 2.857142857 | E76: 3 | F76: =IF(E76>0,VLOOKUP(E76,EquipCost,15)*C76,0) -> 1.697142857 | I76: =SUM(F76:H76)+D76 -> 4.554285714
A77: Vicon Spreader | C77: 0.2 | E77: 6 | F77: =IF(E77>0,VLOOKUP(E77,EquipCost,15)*C77,0) -> 0.607047619 | G77: =+VABait2 -> 17.5 | I77: =SUM(F77:H77)+D77 -> 18.10704762
A78: Wildlife Control | B78: 2 | C78: 1 | D78: =B78*LaborNoSkill -> 40 | E78: 1 | F78: =IF(E78>0,VLOOKUP(E78,EquipCost,15)*C78,0) -> 16.9248 | G78: =+VAWild*VATree -> 24.89142857 | I78: =SUM(F78:H78)+D78 -> 81.81622857
A79: Scouting | I79: =SUM(F79:H79)+D79 -> 0
A80: Bees | I80: 0
A81: Trickle Irrigation | B81: 0.5 | C81: 40 | D81: =B81*LaborNoSkill -> 10 | E81: 17 | F81: =IF(E81>0,VLOOKUP(E81,EquipCost,15)*C81,0) -> 88 | I81: 98
A82: Real Estate Tax | D82: =B82*LaborNoSkill -> 0 | F82: =IF(E82>0,VLOOKUP(E82,EquipCost,15)*C82,0) -> 0 | H82: =+RETax -> 40 | I82: 40
A83: Management | D83: =B83*LaborNoSkill -> 0 | F83: =IF(E83>0,VLOOKUP(E83,EquipCost,15)*C83,0) -> 0 | H83: =+other -> 40 | I83: 40
A85: Total | B85: =SUM(B63:B84) -> 5.157142857 | C85: =SUM(C63:C84) -> 46.68571429 | D85: =SUM(D63:D84) -> 109.7714286 | F85: =SUM(F63:F84) -> 161.0361741 | G85: =SUM(G63:G84) -> 251.71375 | H85: =SUM(H63:H84) -> 80 | I85: =SUM(I59:I84) -> 2428.725731
A86: Year 3, Early Cropping Year
A87: Activity | B87: Labor Hours | C87: Eq. Hours | D87: Labor Cost | E87: Eq. Code | F87: Eq. Cost | G87: Material Cost | H87: Other Cost | I87: Total Cost
A88: Training | B88: =+VATrain4 -> 20 | C88: 2 | D88: =B88*LaborNoSkill -> 400 | E88: 1 | F88: =IF(E88>0,VLOOKUP(E88,EquipCost,15)*C88,0) -> 33.8496 | G88: =+VATrainMat3 -> 40 | I88: =SUM(F88:H88)+D88 -> 473.8496
A89: Pruning | B89: =+VAPrune4 -> 5.185714286 | C89: =+B89 -> 5.185714286 | D89: =B89*LaborNoSkill -> 103.7142857 | E89: 18 | F89: =IF(E89>0,VLOOKUP(E89,EquipCost,15)*C89,0) -> 24.321 | I89: =SUM(F89:H89)+D89 -> 128.0352857
A90: Brush Removal | B90: 0.5 | C90: =+B90 -> 0.5 | D90: =B90*LaborSkill -> 12 | E90: 3 | F90: =IF(E90>0,VLOOKUP(E90,EquipCost,15)*C90,0) -> 5.94 | I90: =SUM(F90:H90)+D90 -> 17.94
A91: Tree replacement | B91: 0.5 | C91: =B91 -> 0.5 | D91: =B91*LaborNoSkill -> 10 | E91: 1 | F91: =IF(E91>0,VLOOKUP(E91,EquipCost,15)*C91,0) -> 8.4624 | G91: =+VATree*TreeCost*0.01 -> 68.45142857 | I91: =SUM(F91:H91)+D91 -> 86.91382857
A92: Herbicide Program
A93: 40 hp tractor | B93: =+VAHerbTime -> 1.142857143 | C93: =+B93 -> 1.142857143 | D93: =B93*LaborSkill -> 27.42857143 | E93: 3 | F93: =IF(E93>0,VLOOKUP(E93,EquipCost,15)*C93,0) -> 13.57714286 | I93: =SUM(F93:H93)+D93 -> 41.00571429
A94: Weed sprayer | C94: =+B93 -> 1.142857143 | E94: 5 | F94: =IF(E94>0,VLOOKUP(E94,EquipCost,15)*C94,0) -> 5.805714286 | G94: =+VAHerb3 -> 8.571428571 | I94: =SUM(F94:H94)+D94 -> 14.37714286
A95: Spray Program
A96: 80 hp tractor | B96: =+VASprayTIme3 -> 2.057142857 | C96: =+B96 -> 2.057142857 | D96: =B96*LaborSkill -> 49.37142857 | E96: 2 | F96: =IF(E96>0,VLOOKUP(E96,EquipCost,15)*C96,0) -> 50.37942857 | G96: =+VASprayMat3 -> 768 | I96: =SUM(F96:H96)+D96 -> 867.7508571
A97: Airblast spr. | C97: =+C96 -> 2.057142857 | E97: 4 | F97: =IF(E97>0,VLOOKUP(E97,EquipCost,15)*C97,0) -> 22.52571429 | I97: =SUM(F97:H97)+D97 -> 22.52571429
A98: Fertilizer
A99: 40 hp tractor | B99: =+VAFertTime3 -> 0.1428571429 | C99: =+B99 -> 0.1428571429 | D99: =B99*LaborNoSkill -> 2.857142857 | E99: 3 | F99: =IF(E99>0,VLOOKUP(E99,EquipCost,15)*C99,0) -> 1.697142857 | G99: =+VAFert3 -> 11.66785714 | I99: =SUM(F99:H99)+D99 -> 16.22214286
A100: Vicon Spreader | C100: =+C99 -> 0.1428571429 | E100: 6 | F100: =IF(E100>0,VLOOKUP(E100,EquipCost,15)*C100,0) -> 0.4336054422 | I100: =SUM(F100:H100)+D100 -> 0.4336054422
A101: Lime | G101: 0 | I101: =SUM(F101:H101)+D101 -> 0
A102: Mowing
A103: 40 hp tractor | B103: =+VAMowTime3 -> 1.25 | C103: =+B103 -> 1.25 | D103: =B103*LaborNoSkill -> 25 | E103: 3 | F103: =IF(E103>0,VLOOKUP(E103,EquipCost,15)*C103,0) -> 14.85 | I103: =SUM(F103:H103)+D103 -> 39.85
A104: Mower | C104: =+C103 -> 1.25 | E104: 7 | F104: =IF(E104>0,VLOOKUP(E104,EquipCost,15)*C104,0) -> 5.666071429 | I104: =SUM(F104:H104)+D104 -> 5.666071429
A105: Mouse control | C105: Sevin 80S
A106: 40 hp tractor | B106: =+VABaitTime3 -> 0.1428571429 | C106: =+B106 -> 0.1428571429 | D106: =B106*LaborNoSkill -> 2.857142857 | E106: 3 | F106: =IF(E106>0,VLOOKUP(E106,EquipCost,15)*C106,0) -> 1.697142857 | I106: =SUM(F106:H106)+D106 -> 4.554285714
A107: Vicon Spreader | C107: =+C106 -> 0.1428571429 | E107: 6 | F107: =IF(E107>0,VLOOKUP(E107,EquipCost,15)*C107,0) -> 0.4336054422 | G107: =+VABait3 -> 17.5 | I107: 17.93360544
A108: Wildlife Control | B108: 2 | C108: 1 | D108: =B108*LaborNoSkill -> 40 | E108: 1 | F108: =IF(E108>0,VLOOKUP(E108,EquipCost,15)*C108,0) -> 16.9248 | G108: =+VAWild*VATree -> 24.89142857 | I108: 81.81622857
A109: Scouting | I109: 0
A110: Bees | I110: 0
A111: Trickle Irrigation | B111: 0.5 | C111: 40 | D111: =B111*LaborNoSkill -> 10 | E111: 17 | F111: =IF(E111>0,VLOOKUP(E111,EquipCost,15)*C111,0) -> 88 | I111: 98
A112: Real Estate Tax | D112: =B112*LaborNoSkill -> 0 | F112: =IF(E112>0,VLOOKUP(E112,EquipCost,15)*C112,0) -> 0 | H112: =+RETax -> 40 | I112: 40
A113: Management | D113: =B113*LaborNoSkill -> 0 | F113: =IF(E113>0,VLOOKUP(E113,EquipCost,15)*C113,0) -> 0 | H113: =+other -> 40 | I113: 40
A115: Total | B115: =SUM(B93:B114) -> 7.235714286 | C115: =SUM(C93:C114) -> 50.47142857 | D115: =SUM(D93:D114) -> 157.5142857 | F115: =SUM(F93:F114) -> 221.990368 | G115: =SUM(G93:G114) -> 830.6307143 | H115: =SUM(H93:H114) -> 80 | I115: =SUM(I88:I114) -> 1996.874082
A116: Year 4, Early Cropping Year
A117: Activity | B117: Labor Hours | C117: Eq. Hours | D117: Labor Cost | E117: Eq. Code | F117: Eq. Cost | G117: Material Cost | H117: Other Cost | I117: Total Cost
A119: Training | B119: =+VATrain4 -> 20 | C119: 2 | D119: =B119*LaborNoSkill -> 400 | E119: 1 | F119: =IF(E119>0,VLOOKUP(E119,EquipCost,15)*C119,0) -> 33.8496 | G119: =+VATrainMat4 -> 20 | I119: =SUM(F119:H119)+D119 -> 453.8496
A120: Pruning | B120: =+VAPrune4 -> 5.185714286 | C120: =+B120 -> 5.185714286 | D120: =B120*LaborNoSkill -> 103.7142857 | E120: 18 | F120: =IF(E120>0,VLOOKUP(E120,EquipCost,15)*C120,0) -> 24.321 | I120: =SUM(F120:H120)+D120 -> 128.0352857
A121: Brush Removal | B121: 0.5 | C121: =+B121 -> 0.5 | D121: =B121*LaborSkill -> 12 | E121: 3 | F121: =IF(E121>0,VLOOKUP(E121,EquipCost,15)*C121,0) -> 5.94 | I121: =SUM(F121:H121)+D121 -> 17.94
A122: Tree replacement | B122: 0.5 | C122: =B122 -> 0.5 | D122: =B122*LaborNoSkill -> 10 | E122: 1 | F122: =IF(E122>0,VLOOKUP(E122,EquipCost,15)*C122,0) -> 8.4624 | G122: =+VATree*TreeCost*0.01 -> 68.45142857 | I122: =SUM(F122:H122)+D122 -> 86.91382857
A123: Herbicide Program
A124: 40 hp tractor | B124: =+VAHerbTime -> 1.142857143 | C124: =+B124 -> 1.142857143 | D124: =B124*LaborSkill -> 27.42857143 | E124: 3 | F124: =IF(E124>0,VLOOKUP(E124,EquipCost,15)*C124,0) -> 13.57714286 | I124: =SUM(F124:H124)+D124 -> 41.00571429
A125: Weed sprayer | C125: =+C124 -> 1.142857143 | E125: 5 | F125: =IF(E125>0,VLOOKUP(E125,EquipCost,15)*C125,0) -> 5.805714286 | G125: =+VAHerb4 -> 19.28571429 | I125: =SUM(F125:H125)+D125 -> 25.09142857
A126: Spray Program
A127: 80 hp tractor | B127: =+VASprayTime4 -> 2.571428571 | C127: =+B127 -> 2.571428571 | D127: =B127*LaborSkill -> 61.71428571 | E127: 2 | F127: =IF(E127>0,VLOOKUP(E127,EquipCost,15)*C127,0) -> 62.97428571 | G127: =+VASprayMat4 -> 960 | I127: =SUM(F127:H127)+D127 -> 1084.688571
A128: Airblast spr. | C128: =+C127 -> 2.571428571 | E128: 4 | F128: =IF(E128>0,VLOOKUP(E128,EquipCost,15)*C128,0) -> 28.15714286 | I128: =SUM(F128:H128)+D128 -> 28.15714286
A129: Mowing
A130: 40 hp tractor | B130: =+VAMowTime4 -> 1.25 | C130: =+B130 -> 1.25 | D130: =B130*LaborNoSkill -> 25 | E130: 3 | F130: =IF(E130>0,VLOOKUP(E130,EquipCost,15)*C130,0) -> 14.85 | I130: =SUM(F130:H130)+D130 -> 39.85
A131: Mower | C131: =+C130 -> 1.25 | E131: 7 | F131: =IF(E131>0,VLOOKUP(E131,EquipCost,15)*C131,0) -> 5.666071429 | I131: =SUM(F131:H131)+D131 -> 5.666071429
A132: Mouse control
A133: 40 hp tractor | B133: =+VABaitTime4 -> 0.1428571429 | C133: =+B133 -> 0.1428571429 | D133: =B133*LaborNoSkill -> 2.857142857 | E133: 3 | F133: =IF(E133>0,VLOOKUP(E133,EquipCost,15)*C133,0) -> 1.697142857 | I133: =SUM(F133:H133)+D133 -> 4.554285714
A134: Vicon Spreader | C134: =+C133 -> 0.1428571429 | E134: 6 | F134: =IF(E134>0,VLOOKUP(E134,EquipCost,15)*C134,0) -> 0.4336054422 | G134: =+VABait4 -> 17.5 | I134: =SUM(F134:H134)+D134 -> 17.93360544
A135: Wildlife Control | B135: 2 | C135: 1 | D135: =B135*LaborNoSkill -> 40 | E135: 1 | F135: =IF(E135>0,VLOOKUP(E135,EquipCost,15)*C135,0) -> 16.9248 | G135: =+VAWild*VATree -> 24.89142857 | I135: =SUM(F135:H135)+D135 -> 81.81622857
A136: Fertilizer
A137: 40 hp tractor | B137: =+VAFertTime4 -> 0.1428571429 | C137: =+B137 -> 0.1428571429 | D137: =B137*LaborNoSkill -> 2.857142857 | E137: 3 | F137: =IF(E137>0,VLOOKUP(E137,EquipCost,15)*C137,0) -> 1.697142857 | G137: =+VAFert4 -> 18.86303571 | I137: =SUM(F137:H137)+D137 -> 23.41732143
A138: Vicon Spreader | C138: =+C137 -> 0.1428571429 | E138: 6 | F138: =IF(E138>0,VLOOKUP(E138,EquipCost,15)*C138,0) -> 0.4336054422 | I138: =SUM(F138:H138)+D138 -> 0.4336054422
A139: Lime (1 tons) | G139: =+Lime -> 35 | I139: =SUM(F139:H139)+D139 -> 35
A140: Scouting | H140: 15 | I140: =SUM(F140:H140)+D140 -> 15
A141: Bees | H141: 35 | I141: =SUM(F141:H141)+D141 -> 35
A142: Trickle Irrigation | B142: 0.5 | C142: 40 | D142: =B142*LaborNoSkill -> 10 | E142: 17 | F142: =IF(E142>0,VLOOKUP(E142,EquipCost,15)*C142,0) -> 88 | I142: 98
A143: Real Estate Tax | D143: =B143*LaborNoSkill -> 0 | F143: =IF(E143>0,VLOOKUP(E143,EquipCost,15)*C143,0) -> 0 | H143: =+RETax -> 40 | I143: 40
A144: Management | D144: =B144*LaborNoSkill -> 0 | F144: =IF(E144>0,VLOOKUP(E144,EquipCost,15)*C144,0) -> 0 | H144: =+other -> 40 | I144: 40
A146: Total | B146: =SUM(B118:B145) -> 33.93571429 | C146: =SUM(C118:C145) -> 59.68571429 | D146: =SUM(D118:D145) -> 695.5714286 | F146: =SUM(F118:F145) -> 312.7896537 | G146: =SUM(G118:G145) -> 1163.991607 | H146: =SUM(H118:H145) -> 130 | I146: =SUM(I118:I145) -> 2302.352689
A147: Year 5, Early Cropping Year
A148: Activity | B148: Labor Hours | C148: Eq. Hours | D148: Labor Cost | E148: Eq. Code | F148: Eq. Cost | G148: Material Cost | H148: Other Cost | I148: Total Cost
A150: Training | B150: =+VATrain5 -> 10 | C150: 2 | D150: =B150*LaborNoSkill -> 200 | E150: 1 | F150: =IF(E150>0,VLOOKUP(E150,EquipCost,15)*C150,0) -> 33.8496 | G150: =+VATrainMat5 -> 10 | I150: =SUM(F150:H150)+D150 -> 243.8496
A151: Pruning | B151: =+VAPrune5 -> 10.37142857 | C151: =+B151 -> 10.37142857 | D151: =B151*LaborNoSkill -> 207.4285714 | E151: 18 | F151: =IF(E151>0,VLOOKUP(E151,EquipCost,15)*C151,0) -> 48.642 | I151: =SUM(F151:H151)+D151 -> 256.0705714
A152: Brush Removal | B152: 1 | C152: =+B152 -> 1 | D152: =B152*LaborSkill -> 24 | E152: 3 | F152: =IF(E152>0,VLOOKUP(E152,EquipCost,15)*C152,0) -> 11.88 | I152: =SUM(F152:H152)+D152 -> 35.88
A153: Tree replacement | B153: 0.5 | C153: =B153 -> 0.5 | D153: =B153*LaborNoSkill -> 10 | E153: 1 | F153: =IF(E153>0,VLOOKUP(E153,EquipCost,15)*C153,0) -> 8.4624 | G153: =+VATree*TreeCost*0.01 -> 68.45142857 | I153: =SUM(F153:H153)+D153 -> 86.91382857
A154: Herbicide Program
A155: 40 hp tractor | B155: =+VAHerbTime -> 1.142857143 | C155: =+B155 -> 1.142857143 | D155: =B155*LaborSkill -> 27.42857143 | E155: 3 | F155: =IF(E155>0,VLOOKUP(E155,EquipCost,15)*C155,0) -> 13.57714286 | I155: =SUM(F155:H155)+D155 -> 41.00571429
A156: Weed sprayer | C156: =+C155 -> 1.142857143 | E156: 5 | F156: =IF(E156>0,VLOOKUP(E156,EquipCost,15)*C156,0) -> 5.805714286 | G156: =+VAHerb5 -> 19.28571429 | I156: =SUM(F156:H156)+D156 -> 25.09142857
A157: Spray Program
A158: 80 hp tractor | B158: =+VASprayTime4 -> 2.571428571 | C158: =+B158 -> 2.571428571 | D158: =B158*LaborSkill -> 61.71428571 | E158: 2 | F158: =IF(E158>0,VLOOKUP(E158,EquipCost,15)*C158,0) -> 62.97428571 | G158: =+VASprayMat5 -> 960 | I158: =SUM(F158:H158)+D158 -> 1084.688571
A159: Airblast spr. | C159: =+C158 -> 2.571428571 | E159: 4 | F159: =IF(E159>0,VLOOKUP(E159,EquipCost,15)*C159,0) -> 28.15714286 | I159: =SUM(F159:H159)+D159 -> 28.15714286
A160: Mowing
A161: 40 hp tractor | B161: =+VAMowTime5 -> 1.25 | C161: =+B161 -> 1.25 | D161: =B161*LaborNoSkill -> 25 | E161: 3 | F161: =IF(E161>0,VLOOKUP(E161,EquipCost,15)*C161,0) -> 14.85 | I161: =SUM(F161:H161)+D161 -> 39.85
A162: Mower | C162: =+C161 -> 1.25 | E162: 7 | F162: =IF(E162>0,VLOOKUP(E162,EquipCost,15)*C162,0) -> 5.666071429 | I162: =SUM(F162:H162)+D162 -> 5.666071429
A163: Mouse control
A164: 40 hp tractor | B164: =+VABaitTime5 -> 0.1428571429 | C164: =+B164 -> 0.1428571429 | D164: =B164*LaborNoSkill -> 2.857142857 | E164: 3 | F164: =IF(E164>0,VLOOKUP(E164,EquipCost,15)*C164,0) -> 1.697142857 | I164: =SUM(F164:H164)+D164 -> 4.554285714
A165: Vicon Spreader | C165: =+C164 -> 0.1428571429 | E165: 6 | F165: =IF(E165>0,VLOOKUP(E165,EquipCost,15)*C165,0) -> 0.4336054422 | G165: =+VABait5 -> 17.5 | I165: =SUM(F165:H165)+D165 -> 17.93360544
A166: Wildlife Control | B166: 2 | C166: 1 | D166: =B166*LaborNoSkill -> 40 | E166: 1 | F166: =IF(E166>0,VLOOKUP(E166,EquipCost,15)*C166,0) -> 16.9248 | G166: =+VAWild*VATree -> 24.89142857 | I166: =SUM(F166:H166)+D166 -> 81.81622857
A167: Fertilizer
A168: 40 hp tractor | B168: =+VAFertTime5 -> 0.1428571429 | C168: =+B168 -> 0.1428571429 | D168: =B168*LaborNoSkill -> 2.857142857 | E168: 3 | F168: =IF(E168>0,VLOOKUP(E168,EquipCost,15)*C168,0) -> 1.697142857 | G168: =+VAFert5 -> 18.86303571 | I168: =SUM(F168:H168)+D168 -> 23.41732143
A169: Vicon Spreader | C169: =+C168 -> 0.1428571429 | E169: 6 | F169: =IF(E169>0,VLOOKUP(E169,EquipCost,15)*C169,0) -> 0.4336054422 | I169: =SUM(F169:H169)+D169 -> 0.4336054422
A170: Lime (1 tons) | G170: =+Lime -> 35 | I170: =SUM(F170:H170)+D170 -> 35
A171: Scouting | H171: 15 | I171: =SUM(F171:H171)+D171 -> 15
A172: Bees | H172: 35 | I172: =SUM(F172:H172)+D172 -> 35
A173: Trickle Irrigation | B173: 0.5 | C173: 40 | D173: =B173*LaborNoSkill -> 10 | E173: 17 | F173: =IF(E173>0,VLOOKUP(E173,EquipCost,15)*C173,0) -> 88 | I173: 98
A174: Real Estate Tax | D174: =B174*LaborNoSkill -> 0 | F174: =IF(E174>0,VLOOKUP(E174,EquipCost,15)*C174,0) -> 0 | H174: =+RETax -> 40 | I174: 40
A175: Management | D175: =B175*LaborNoSkill -> 0 | F175: =IF(E175>0,VLOOKUP(E175,EquipCost,15)*C175,0) -> 0 | H175: =+other -> 40 | I175: 40
A177: Total | B177: =SUM(B149:B176) -> 29.62142857 | C177: =SUM(C149:C176) -> 65.37142857 | D177: =SUM(D149:D176) -> 611.2857143 | F177: =SUM(F149:F176) -> 343.0506537 | G177: =SUM(G149:G176) -> 1153.991607 | H177: =SUM(H149:H176) -> 130 | I177: =SUM(I149:I176) -> 2238.327975
A178: Year 6, Full Bearing Year
A179: Activity | B179: Labor Hours | C179: Eq. Hours | D179: Labor Cost | E179: Eq. Code | F179: Eq. Cost | G179: Material Cost | H179: Other Cost | I179: Total Cost
A181: Training | B181: =+VATrain6 -> 4 | C181: 2 | D181: =B181*LaborNoSkill -> 80 | E181: 1 | F181: =IF(E181>0,VLOOKUP(E181,EquipCost,15)*C181,0) -> 33.8496 | G181: =+VATrainMat6 -> 6 | I181: =SUM(F181:H181)+D181 -> 119.8496
A182: Pruning | B182: =+VAPrune6 -> 31.11428571 | C182: =+B182 -> 31.11428571 | D182: =B182*LaborNoSkill -> 622.2857143 | E182: 18 | F182: =IF(E182>0,VLOOKUP(E182,EquipCost,15)*C182,0) -> 145.926 | I182: =SUM(F182:H182)+D182 -> 768.2117143
A183: Brush Removal | B183: 2 | C183: =+B183 -> 2 | D183: =B183*LaborSkill -> 48 | E183: 3 | F183: =IF(E183>0,VLOOKUP(E183,EquipCost,15)*C183,0) -> 23.76 | I183: =SUM(F183:H183)+D183 -> 71.76
A184: Tree replacement | B184: 0.5 | C184: =B184 -> 0.5 | D184: =B184*LaborNoSkill -> 10 | E184: 1 | F184: =IF(E184>0,VLOOKUP(E184,EquipCost,15)*C184,0) -> 8.4624 | G184: =+VATree*TreeCost*0.01 -> 68.45142857 | I184: =SUM(F184:H184)+D184 -> 86.91382857
A185: Herbicide Program
A186: 40 hp tractor | B186: =+VAHerbTime -> 1.142857143 | C186: =+B186 -> 1.142857143 | D186: =B186*LaborSkill -> 27.42857143 | E186: 3 | F186: =IF(E186>0,VLOOKUP(E186,EquipCost,15)*C186,0) -> 13.57714286 | I186: =SUM(F186:H186)+D186 -> 41.00571429
A187: Weed sprayer | C187: =+C186 -> 1.142857143 | E187: 5 | F187: =IF(E187>0,VLOOKUP(E187,EquipCost,15)*C187,0) -> 5.805714286 | G187: =+VAHerb6 -> 19.28571429 | I187: =SUM(F187:H187)+D187 -> 25.09142857
A188: Spray Program
A189: 80 hp tractor | B189: =+VASprayTime4 -> 2.571428571 | C189: =+B189 -> 2.571428571 | D189: =B189*LaborSkill -> 61.71428571 | E189: 2 | F189: =IF(E189>0,VLOOKUP(E189,EquipCost,15)*C189,0) -> 62.97428571 | G189: =+VASprayMat6 -> 960 | I189: =SUM(F189:H189)+D189 -> 1084.688571
A190: Airblast spr. | C190: =+C189 -> 2.571428571 | E190: 4 | F190: =IF(E190>0,VLOOKUP(E190,EquipCost,15)*C190,0) -> 28.15714286 | I190: =SUM(F190:H190)+D190 -> 28.15714286
A191: Hand Pheromone | B191: 1 | D191: =B191*LaborNoSkill -> 20 | I191: =SUM(F191:H191)+D191 -> 20
A192: Mowing
A193: 40 hp tractor | B193: =+VAMowTime6 -> 1.25 | C193: =+B193 -> 1.25 | D193: =B193*LaborNoSkill -> 25 | E193: 3 | F193: =IF(E193>0,VLOOKUP(E193,EquipCost,15)*C193,0) -> 14.85 | I193: =SUM(F193:H193)+D193 -> 39.85
A194: Mower | C194: =+C193 -> 1.25 | E194: 7 | F194: =IF(E194>0,VLOOKUP(E194,EquipCost,15)*C194,0) -> 5.666071429 | I194: =SUM(F194:H194)+D194 -> 5.666071429
A195: Mouse control
A196: 40 hp tractor | B196: =+VABaitTIme6 -> 0.1428571429 | C196: =+B196 -> 0.1428571429 | D196: =B196*LaborNoSkill -> 2.857142857 | E196: 3 | F196: =IF(E196>0,VLOOKUP(E196,EquipCost,15)*C196,0) -> 1.697142857 | I196: =SUM(F196:H196)+D196 -> 4.554285714
A197: Vicon Spreader | C197: =+C196 -> 0.1428571429 | E197: 6 | F197: =IF(E197>0,VLOOKUP(E197,EquipCost,15)*C197,0) -> 0.4336054422 | G197: =+VABait6 -> 17.5 | I197: =SUM(F197:H197)+D197 -> 17.93360544
A198: Wildlife Control | B198: 2 | C198: 1 | D198: =B198*LaborNoSkill -> 40 | E198: 1 | F198: =IF(E198>0,VLOOKUP(E198,EquipCost,15)*C198,0) -> 16.9248 | G198: =+VAWild*VATree -> 24.89142857 | I198: =SUM(F198:H198)+D198 -> 81.81622857
A199: Fertilizer
A200: 40 hp tractor | B200: =+VAFertTime6 -> 0.1428571429 | C200: =+B200 -> 0.1428571429 | D200: =B200*LaborNoSkill -> 2.857142857 | E200: 3 | F200: =IF(E200>0,VLOOKUP(E200,EquipCost,15)*C200,0) -> 1.697142857 | G200: =+VAFert6 -> 22.460625 | I200: =SUM(F200:H200)+D200 -> 27.01491071
A201: Vicon Spreader | C201: =+C200 -> 0.1428571429 | E201: 6 | F201: =IF(E201>0,VLOOKUP(E201,EquipCost,15)*C201,0) -> 0.4336054422 | I201: =SUM(F201:H201)+D201 -> 0.4336054422
A202: Lime | G202: =+Lime -> 35 | I202: =SUM(F202:H202)+D202 -> 35
A203: Scouting | H203: 15 | I203: =SUM(F203:H203)+D203 -> 15
A204: Bees | H204: 35 | I204: =SUM(F204:H204)+D204 -> 35
A205: Trickle Irrigation | B205: 0.5 | C205: 40 | D205: =B205*LaborNoSkill -> 10 | E205: 17 | F205: =IF(E205>0,VLOOKUP(E205,EquipCost,15)*C205,0) -> 88 | I205: 98
A206: Real Estate Tax | D206: =B206*LaborNoSkill -> 0 | F206: =IF(E206>0,VLOOKUP(E206,EquipCost,15)*C206,0) -> 0 | H206: =+RETax -> 40 | I206: 40
A207: Management | D207: =B207*LaborNoSkill -> 0 | F207: =IF(E207>0,VLOOKUP(E207,EquipCost,15)*C207,0) -> 0 | H207: =+other -> 40 | I207: 40
A209: Total | B209: =SUM(B180:B208) -> 46.36428571 | C209: =SUM(C180:C208) -> 87.11428571 | D209: =SUM(D180:D208) -> 950.1428571 | F209: =SUM(F180:F208) -> 452.2146537 | G209: =SUM(G180:G208) -> 1153.589196 | H209: =SUM(H180:H208) -> 130 | I209: =SUM(I180:I208) -> 2685.946707
A210: Vertical Axe
I211: Total Costs
A212: Year 0, Site Preparation Cost. | I212: =+year0 -> 2013
A213: =+A8 -> Year 1, Planting Year. | I213: =+VAYear1 -> 14264.56794
A214: =+A56 -> Year 2, Non-bearing Year | I214: =+VAYear2 -> 2428.725731
... 4 more rows

Sheet Tsll Spindle
A1: Tall Spindle
A3: The Tall Spindle orchard remains non-bearing for the 1st year.. The 1st crop is produced in the 2nd year and the orchard
A4: become full bearing in the 4th year. A reduced spray program is followed only during the 1st & 2nd year. A full bearing spray
A5: program is followed starting in year 3.
A8: Year 1, Planting Year.
A9: Activity | B9: Labor Hours | C9: Eq. Hours | D9: Labor Cost | E9: Eq. Code | F9: Eq. Cost | G9: Material Cost | H9: Other Cost | I9: Total Cost
A11: Ground Preparation
A12: 80hp tractor | B12: 0.5 | C12: =B12 -> 0.5 | D12: =B12*LaborSkill -> 12 | E12: 2 | F12: =IF(E12>0,VLOOKUP(E12,EquipCost,15)*C12,0) -> 12.245 | I12: =SUM(F12:H12)+D12 -> 24.245
A13: Plow | C13: =B12 -> 0.5 | E13: 8 | F13: =IF(E13>0,VLOOKUP(E13,EquipCost,15)*C13,0) -> 2.095555556 | I13: =SUM(F13:H13)+D13 -> 2.095555556
A14: 80hp tractor | B14: 0.3 | C14: =B14 -> 0.3 | D14: =B14*LaborSkill -> 7.2 | E14: 2 | F14: =IF(E14>0,VLOOKUP(E14,EquipCost,15)*C14,0) -> 7.347 | G14: 3x times | I14: =SUM(F14:H14)+D14 -> 14.547
A15: Disc | C15: =B14 -> 0.3 | E15: 9 | F15: =IF(E15>0,VLOOKUP(E15,EquipCost,15)*C15,0) -> 1.564 | I15: =SUM(F15:H15)+D15 -> 1.564
A16: Pick stone & roots | B16: 3 | C16: =B16 -> 3 | D16: =B16*LaborNoSkill -> 60 | E16: 15 | F16: =IF(E16>0,VLOOKUP(E16,EquipCost,15)*C16,0) -> 29.8125 | I16: =SUM(F16:H16)+D16 -> 89.8125
A17: Planting Trees
A18: Layout | B18: 0.5 | C18: =B18 -> 0.5 | D18: =B18*LaborSkill -> 12 | E18: 1 | F18: =IF(E18>0,VLOOKUP(E18,EquipCost,15)*C18,0) -> 8.4624 | I18: =SUM(F18:H18)+D18 -> 20.4624
A19: Marking | B19: 0.5 | C19: 0.5 | D19: =B19*LaborSkill -> 12 | E19: 1 | F19: =IF(E19>0,VLOOKUP(E19,EquipCost,15)*C19,0) -> 8.4624 | I19: =SUM(F19:H19)+D19 -> 20.4624
A20: Purchase trees | G20: =TSTree*TSTreeCost -> 13310 | I20: =SUM(F20:H20)+D20 -> 13310
A21: Custom Plant @ .30 /tree | H21: =TSTree*CustomPlant -> 423.5 | I21: =SUM(F21:H21)+D21 -> 423.5
A22: System
A23: Trellis | B23: 40 | D23: =B23*LaborNoSkill -> 800 | F23: =IF(E23>0,VLOOKUP(E23,EquipCost,15)*C23,0) -> 0 | G23: =+TSTrellis -> 4522.331314 | I23: =SUM(F23:H23)+D23 -> 5322.331314
A24: Trickle irrigation | B24: 8 | C24: 20 | D24: =B24*LaborNoSkill -> 160 | E24: 17 | F24: =IF(E24>0,VLOOKUP(E24,EquipCost,15)*C24,0) -> 44 | G24: =+TSIrr -> 2440.51312 | I24: =SUM(F24:H24)+D24 -> 2644.51312
A25: Training | B25: =+TSTrain1 -> 80 | C25: 2 | D25: =B25*LaborNoSkill -> 1600 | E25: 1 | F25: =IF(E25>0,VLOOKUP(E25,EquipCost,15)*C25,0) -> 33.8496 | G25: =+TSTrainMat1 -> 200 | I25: =SUM(F25:H25)+D25 -> 1833.8496
A26: Pruning | B26: =+TSPrune1 -> 2.016666667 | C26: =+B26 -> 2.016666667 | D26: =B26*LaborNoSkill -> 40.33333333 | E26: 18 | F26: =IF(E26>0,VLOOKUP(E26,EquipCost,15)*C26,0) -> 9.458166667 | I26: =SUM(F26:H26)+D26 -> 49.7915
A27: Nematode Control | I27: =SUM(F27:H27)+D27 -> 0
A28: Herbicide Program
A29: 40 hp tractor | B29: =+TSHerbTime -> 1.333333333 | C29: =+B29 -> 1.333333333 | D29: =B29*LaborSkill -> 32 | E29: 3 | F29: =IF(E29>0,VLOOKUP(E29,EquipCost,15)*C29,0) -> 15.84 | I29: =SUM(F29:H29)+D29 -> 47.84
A30: Weed sprayer | C30: =+C29 -> 1.333333333 | E30: 5 | F30: =IF(E30>0,VLOOKUP(E30,EquipCost,15)*C30,0) -> 6.773333333 | G30: =+TSHerb1 -> 10 | I30: =SUM(F30:H30)+D30 -> 16.77333333
A31: Spray Program
A32: 80 hp tractor | B32: =+TSSprayTime1 -> 0.105 | C32: =+B32 -> 0.105 | D32: =B32*LaborSkill -> 2.52 | E32: 2 | F32: =IF(E32>0,VLOOKUP(E32,EquipCost,15)*C32,0) -> 2.57145 | G32: =+TSSprayMat1 -> 45 | I32: =SUM(F32:H32)+D32 -> 50.09145
A33: Airblast spr. | C33: =+C32 -> 0.105 | E33: 4 | F33: =IF(E33>0,VLOOKUP(E33,EquipCost,15)*C33,0) -> 1.14975 | I33: =SUM(F33:H33)+D33 -> 1.14975
A34: Fertilize | I34: =SUM(F34:H34)+D34 -> 0
A35: 40 hp tractor | B35: =+TSFertTime1 -> 0.1666666667 | C35: =+B35 -> 0.1666666667 | D35: =B35*LaborNoSkill -> 3.333333333 | E35: 3 | F35: =IF(E35>0,VLOOKUP(E35,EquipCost,15)*C35,0) -> 1.98 | G35: =+TSFert1 -> 11.34375 | I35: =SUM(F35:H35)+D35 -> 16.65708333
A36: Vicon Spreader | C36: 0.2 | E36: 6 | F36: =IF(E36>0,VLOOKUP(E36,EquipCost,15)*C36,0) -> 0.607047619 | I36: =SUM(F36:H36)+D36 -> 0.607047619
A37: Sod Establishment
A38: 40 hp tractor | B38: 0.3 | C38: =0.3*3 -> 0.9 | D38: =B38*LaborSkill -> 7.2 | E38: 3 | F38: =IF(E38>0,VLOOKUP(E38,EquipCost,15)*C38,0) -> 10.692 | I38: =SUM(F38:H38)+D38 -> 17.892
A39: Spreader | C39: =+B38 -> 0.3 | E39: 6 | F39: =IF(E39>0,VLOOKUP(E39,EquipCost,15)*C39,0) -> 0.9105714286 | G39: 11 | I39: =SUM(F39:H39)+D39 -> 11.91057143
A40: Cultipack | B40: 0.3 | C40: =B40 -> 0.3 | D40: =B40*LaborNoSkill -> 6 | E40: 12 | F40: =IF(E40>0,VLOOKUP(E40,EquipCost,15)*C40,0) -> 1.984 | I40: =SUM(F40:H40)+D40 -> 7.984
A41: Drag | B41: 0.3 | C41: =B41 -> 0.3 | D41: =B41*LaborNoSkill -> 6 | E41: 12 | F41: =IF(E41>0,VLOOKUP(E41,EquipCost,15)*C41,0) -> 1.984 | I41: =SUM(F41:H41)+D41 -> 7.984
A42: Mowing
A43: 40 hp tractor | B43: =+TSMowtime1 -> 0 | C43: =B43 -> 0 | D43: =+B43*LaborNoSkill -> 0 | E43: 3 | F43: =IF(E43>0,VLOOKUP(E43,EquipCost,15)*C43,0) -> 0 | I43: =SUM(F43:H43)+D43 -> 0
A44: Mower | C44: =B43 -> 0 | E44: 7 | F44: =IF(E44>0,VLOOKUP(E44,EquipCost,15)*C44,0) -> 0 | I44: =SUM(F44:H44)+D44 -> 0
A45: Mouse control
A46: 40 hp tractor | B46: =+TSBaitTime1 -> 0.1666666667 | C46: =+B46 -> 0.1666666667 | D46: =+B46*LaborNoSkill -> 3.333333333 | E46: 3 | F46: =IF(E46>0,VLOOKUP(E46,EquipCost,15)*C46,0) -> 1.98 | I46: =SUM(F46:H46)+D46 -> 5.313333333
A47: Vicon Spreader | C47: =+B46 -> 0.1666666667 | E47: 6 | F47: =IF(E47>0,VLOOKUP(E47,EquipCost,15)*C47,0) -> 0.5058730159 | G47: =+TSBait1 -> 17.5 | I47: =SUM(F47:H47)+D47 -> 18.00587302
A48: Mouse guards | I48: =SUM(F48:G48)+D48 -> 0
A49: Wildlife Control | B49: 0.3 | C49: =B49 -> 0.3 | D49: =B49*LaborNoSkill -> 6 | E49: 1 | F49: =IF(E49>0,VLOOKUP(E49,EquipCost,15)*C49,0) -> 5.07744 | G49: =+TSWild*TSTree -> 36.3 | I49: =SUM(F49:H49)+D49 -> 47.37744
A50: Scouting | I50: =SUM(F50:H50)+D50 -> 0
A51: Bees | I51: =SUM(F51:H51)+D51 -> 0
A52: Real Estate Tax | H52: =+RETax -> 40 | I52: =SUM(F52:H52)+D52 -> 40
A53: Management | B53: 2 | D53: =B53*LaborSkill -> 48 | F53: =IF(E53>0,VLOOKUP(E53,EquipCost,15)*C53,0) -> 0 | H53: =+other -> 40 | I53: =SUM(F53:H53)+D53 -> 88
A55: Total | B55: =SUM(B10:B54) -> 139.7883333 | C55: =SUM(C10:C54) -> 35.29333333 | D55: =SUM(D10:D54) -> 2817.92 | F55: =SUM(F10:F54) -> 209.3520876 | G55: =SUM(G10:G54) -> 20603.98818 | H55: =SUM(H10:H54) -> 503.5 | I55: =SUM(I10:I54) -> 24134.76027
A56: Year 2, Early Bearing Year
A57: Activity | B57: Labor Hours | C57: Eq. Hours | D57: Labor Cost | E57: Eq. Code | F57: Eq. Cost | G57: Material Cost | H57: Other Cost | I57: Total Cost
A59: Training | B59: =+TSTrain2 -> 40 | C59: 2 | D59: =B59*LaborNoSkill -> 800 | E59: 1 | F59: =IF(E59>0,VLOOKUP(E59,EquipCost,15)*C59,0) -> 33.8496 | G59: =+TSTrainMat2 -> 100 | I59: =SUM(F59:H59)+D59 -> 933.8496
A60: Pruning | B60: =+TSPrune2 -> 2.016666667 | C60: =+B60 -> 2.016666667 | D60: =B60*LaborNoSkill -> 40.33333333 | E60: 18 | F60: =IF(E60>0,VLOOKUP(E60,EquipCost,15)*C60,0) -> 9.458166667 | I60: =SUM(F60:H60)+D60 -> 49.7915
A61: Brush Removal | B61: 0 | C61: =+B61 -> 0 | D61: =B61*LaborSkill -> 0 | E61: 3 | F61: =IF(E61>0,VLOOKUP(E61,EquipCost,15)*C61,0) -> 0 | I61: =SUM(F61:H61)+D61 -> 0
A62: Tree replacement | B62: =0.0333333333333333*TSTree*0.05 -> 2.016666667 | C62: =B62 -> 2.016666667 | D62: =B62*LaborNoSkill -> 40.33333333 | E62: 1 | F62: =IF(E62>0,VLOOKUP(E62,EquipCost,15)*C62,0) -> 34.13168 | G62: =+TSTree*TreeCost*0.05 -> 665.5 | I62: =SUM(F62:H62)+D62 -> 739.9650133
A63: Herbicide Program
A64: 40 hp tractor | B64: =+TSHerbTime -> 1.333333333 | C64: =+B64 -> 1.333333333 | D64: =B64*LaborSkill -> 32 | E64: 3 | F64: =IF(E64>0,VLOOKUP(E64,EquipCost,15)*C64,0) -> 15.84 | I64: =SUM(F64:H64)+D64 -> 47.84
A65: Weed sprayer | C65: =+C64 -> 1.333333333 | E65: 5 | F65: =IF(E65>0,VLOOKUP(E65,EquipCost,15)*C65,0) -> 6.773333333 | G65: =+TSHerb2 -> 10 | I65: =SUM(F65:H65)+D65 -> 16.77333333
A66: Spray Program
A67: 80 hp tractor | B67: =+TSSPrayTime2 -> 1.26 | C67: =+B67 -> 1.26 | D67: =B67*LaborSkill -> 30.24 | E67: 2 | F67: =IF(E67>0,VLOOKUP(E67,EquipCost,15)*C67,0) -> 30.8574 | G67: =+TSSprayMat2 -> 180 | I67: =SUM(F67:H67)+D67 -> 241.0974
A68: Airblast spr. | C68: =+C67 -> 1.26 | E68: 4 | F68: =IF(E68>0,VLOOKUP(E68,EquipCost,15)*C68,0) -> 13.797 | I68: =SUM(F68:H68)+D68 -> 13.797
A69: Fertilizer
A70: 40 hp tractor | B70: =+TSFertTime2 -> 0.1666666667 | C70: 0.3 | D70: =+B70*LaborNoSkill -> 3.333333333 | E70: 3 | F70: =IF(E70>0,VLOOKUP(E70,EquipCost,15)*C70,0) -> 3.564 | G70: =+TSFert2 -> 11.34375 | I70: =SUM(F70:H70)+D70 -> 18.24108333
A71: Vicon Spreader | C71: =+C70 -> 0.3 | E71: 6 | F71: =IF(E71>0,VLOOKUP(E71,EquipCost,15)*C71,0) -> 0.9105714286 | I71: =SUM(F71:H71)+D71 -> 0.9105714286
A72: Mowing
A73: 40 hp tractor | B73: =+TSMowtime2 -> 0.8333333333 | C73: =B73 -> 0.8333333333 | D73: =+B73*LaborNoSkill -> 16.66666667 | E73: 3 | F73: =IF(E73>0,VLOOKUP(E73,EquipCost,15)*C73,0) -> 9.9 | I73: =SUM(F73:H73)+D73 -> 26.56666667
A74: Mower | C74: =B73 -> 0.8333333333 | E74: 7 | F74: =IF(E74>0,VLOOKUP(E74,EquipCost,15)*C74,0) -> 3.777380952 | I74: =SUM(F74:H74)+D74 -> 3.777380952
A75: Mouse control
A76: 40 hp tractor | B76: =+TSBaitTime3 -> 0.1666666667 | C76: =+B76 -> 0.1666666667 | D76: =B76*LaborNoSkill -> 3.333333333 | E76: 3 | F76: =IF(E76>0,VLOOKUP(E76,EquipCost,15)*C76,0) -> 1.98 | I76: =SUM(F76:H76)+D76 -> 5.313333333
A77: Vicon Spreader | C77: =+C76 -> 0.1666666667 | E77: 6 | F77: =IF(E77>0,VLOOKUP(E77,EquipCost,15)*C77,0) -> 0.5058730159 | G77: =+TSBait3 -> 19.25 | I77: 19.75587302
A78: Wildlife Control | B78: 2 | C78: 1 | D78: =B78*LaborNoSkill -> 40 | E78: 1 | F78: =IF(E78>0,VLOOKUP(E78,EquipCost,15)*C78,0) -> 16.9248 | G78: =+TSWild*TSTree -> 36.3 | I78: 93.2248
A79: Scouting | H79: 15 | I79: 15
A80: Bees | H80: =BeeHive -> 45 | I80: 45
A81: Trickle Irrigation | B81: 0.5 | C81: 40 | D81: =B81*LaborNoSkill -> 10 | E81: 17 | F81: =IF(E81>0,VLOOKUP(E81,EquipCost,15)*C81,0) -> 88 | I81: 98
A82: Real Estate Tax | D82: =B82*LaborNoSkill -> 0 | F82: =IF(E82>0,VLOOKUP(E82,EquipCost,15)*C82,0) -> 0 | H82: =+RETax -> 40 | I82: 40
A83: Management | D83: =B83*LaborNoSkill -> 0 | F83: =IF(E83>0,VLOOKUP(E83,EquipCost,15)*C83,0) -> 0 | H83: =+other -> 40 | I83: 40
A85: Total | B85: =SUM(B64:B84) -> 6.26 | C85: =SUM(C64:C84) -> 48.78666667 | D85: =SUM(D64:D84) -> 135.5733333 | F85: =SUM(F64:F84) -> 192.8303587 | G85: =SUM(G64:G84) -> 256.89375 | H85: =SUM(H64:H84) -> 140 | I85: =SUM(I58:I84) -> 2448.903555
A86: Year 3, Early Bearing Year
A87: Activity | B87: Labor Hours | C87: Eq. Hours | D87: Labor Cost | E87: Eq. Code | F87: Eq. Cost | G87: Material Cost | H87: Other Cost | I87: Total Cost
A89: Training | B89: =+TSTrain4 -> 10 | C89: 2 | D89: =B89*LaborNoSkill -> 200 | E89: 1 | F89: =IF(E89>0,VLOOKUP(E89,EquipCost,15)*C89,0) -> 33.8496 | G89: =+TSTrainMat3 -> 50 | I89: =SUM(F89:H89)+D89 -> 283.8496
A90: Pruning | B90: =+TSPrune4 -> 20.16666667 | C90: =+B90 -> 20.16666667 | D90: =B90*LaborNoSkill -> 403.3333333 | E90: 18 | F90: =IF(E90>0,VLOOKUP(E90,EquipCost,15)*C90,0) -> 94.58166667 | I90: =SUM(F90:H90)+D90 -> 497.915
A91: Brush Removal | B91: 2 | C91: =+B91 -> 2 | D91: =B91*LaborSkill -> 48 | E91: 3 | F91: =IF(E91>0,VLOOKUP(E91,EquipCost,15)*C91,0) -> 23.76 | I91: =SUM(F91:H91)+D91 -> 71.76
A92: Tree replacement | B92: 0.5 | C92: =B92 -> 0.5 | D92: =B92*LaborNoSkill -> 10 | E92: 1 | F92: =IF(E92>0,VLOOKUP(E92,EquipCost,15)*C92,0) -> 8.4624 | G92: =+TSTree*TreeCost*0.01 -> 133.1 | I92: =SUM(F92:H92)+D92 -> 151.5624
A93: Herbicide Program
A94: 40 hp tractor | B94: =+TSHerbTime -> 1.333333333 | C94: =+B94 -> 1.333333333 | D94: =B94*LaborSkill -> 32 | E94: 3 | F94: =IF(E94>0,VLOOKUP(E94,EquipCost,15)*C94,0) -> 15.84 | I94: =SUM(F94:H94)+D94 -> 47.84
A95: Weed sprayer | C95: =+C94 -> 1.333333333 | E95: 5 | F95: =IF(E95>0,VLOOKUP(E95,EquipCost,15)*C95,0) -> 6.773333333 | G95: =+TSHerb3 -> 15 | I95: =SUM(F95:H95)+D95 -> 21.77333333
A96: Spray Program
A97: 80 hp tractor | B97: =+TSSprayTIme3 -> 2.1 | C97: =+B97 -> 2.1 | D97: =B97*LaborSkill -> 50.4 | E97: 2 | F97: =IF(E97>0,VLOOKUP(E97,EquipCost,15)*C97,0) -> 51.429 | G97: =+TSSprayMat3 -> 450 | I97: =SUM(F97:H97)+D97 -> 551.829
A98: Airblast spr. | C98: =+C97 -> 2.1 | E98: 4 | F98: =IF(E98>0,VLOOKUP(E98,EquipCost,15)*C98,0) -> 22.995 | I98: =SUM(F98:H98)+D98 -> 22.995
A99: Fertilizer
A100: 40 hp tractor | B100: =+TSFertTime3 -> 0.1666666667 | C100: =+B100 -> 0.1666666667 | D100: =B100*LaborNoSkill -> 3.333333333 | E100: 3 | F100: =IF(E100>0,VLOOKUP(E100,EquipCost,15)*C100,0) -> 1.98 | G100: =+TSFert3 -> 19.4734375 | I100: =SUM(F100:H100)+D100 -> 24.78677083
A101: Vicon Spreader | C101: =+C100 -> 0.1666666667 | E101: 6 | F101: =IF(E101>0,VLOOKUP(E101,EquipCost,15)*C101,0) -> 0.5058730159 | I101: =SUM(F101:H101)+D101 -> 0.5058730159
A102: Lime | G102: 0 | I102: =SUM(F102:H102)+D102 -> 0
A103: Mowing
A104: 40 hp tractor | B104: =+TSMowtime3 -> 1.458333333 | C104: =+B104 -> 1.458333333 | D104: =B104*LaborNoSkill -> 29.16666667 | E104: 3 | F104: =IF(E104>0,VLOOKUP(E104,EquipCost,15)*C104,0) -> 17.325 | I104: =SUM(F104:H104)+D104 -> 46.49166667
A105: Mower | C105: =+C104 -> 1.458333333 | E105: 7 | F105: =IF(E105>0,VLOOKUP(E105,EquipCost,15)*C105,0) -> 6.610416667 | I105: =SUM(F105:H105)+D105 -> 6.610416667
A106: Mouse control
A107: 40 hp tractor | B107: =+TSBaitTime3 -> 0.1666666667 | C107: =+B107 -> 0.1666666667 | D107: =B107*LaborNoSkill -> 3.333333333 | E107: 3 | F107: =IF(E107>0,VLOOKUP(E107,EquipCost,15)*C107,0) -> 1.98 | I107: =SUM(F107:H107)+D107 -> 5.313333333
A108: Vicon Spreader | C108: =+C107 -> 0.1666666667 | E108: 6 | F108: =IF(E108>0,VLOOKUP(E108,EquipCost,15)*C108,0) -> 0.5058730159 | G108: =+TSBait3 -> 19.25 | I108: 19.75587302
A109: Wildlife Control | B109: 2 | C109: 1 | D109: =B109*LaborNoSkill -> 40 | E109: 1 | F109: =IF(E109>0,VLOOKUP(E109,EquipCost,15)*C109,0) -> 16.9248 | G109: =+TSWild*TSTree -> 36.3 | I109: 93.2248
A110: Scouting | H110: 15 | I110: 15
A111: Bees | H111: =BeeHive -> 45 | I111: 45
A112: Trickle Irrigation | B112: 0.5 | C112: 40 | D112: =B112*LaborNoSkill -> 10 | E112: 17 | F112: =IF(E112>0,VLOOKUP(E112,EquipCost,15)*C112,0) -> 88 | I112: 98
A113: Real Estate Tax | D113: =B113*LaborNoSkill -> 0 | F113: =IF(E113>0,VLOOKUP(E113,EquipCost,15)*C113,0) -> 0 | H113: =+RETax -> 40 | I113: 40
A114: Management | D114: =B114*LaborNoSkill -> 0 | F114: =IF(E114>0,VLOOKUP(E114,EquipCost,15)*C114,0) -> 0 | H114: =+other -> 40 | I114: 40
A116: Total | B116: =SUM(B95:B115) -> 6.391666667 | C116: =SUM(C95:C115) -> 50.11666667 | D116: =SUM(D95:D115) -> 136.2333333 | F116: =SUM(F95:F115) -> 215.029296 | G116: =SUM(G95:G115) -> 540.0234375 | H116: =SUM(H95:H115) -> 140 | I116: =SUM(I88:I115) -> 2084.213067
A117: Year 4, Full Bearing Year
A118: Activity | B118: Labor Hours | C118: Eq. Hours | D118: Labor Cost | E118: Eq. Code | F118: Eq. Cost | G118: Material Cost | H118: Other Cost | I118: Total Cost
A120: Training | B120: =+TSTrain4 -> 10 | C120: 2 | D120: =B120*LaborNoSkill -> 200 | E120: 1 | F120: =IF(E120>0,VLOOKUP(E120,EquipCost,15)*C120,0) -> 33.8496 | G120: =+TSTrainMat4 -> 40 | I120: =SUM(F120:H120)+D120 -> 273.8496
A121: Pruning | B121: 12 | C121: =+B121 -> 12 | D121: =B121*LaborNoSkill -> 240 | E121: 18 | F121: =IF(E121>0,VLOOKUP(E121,EquipCost,15)*C121,0) -> 56.28 | I121: =SUM(F121:H121)+D121 -> 296.28
A122: Brush Removal | B122: 2 | C122: =+B122 -> 2 | D122: =B122*LaborSkill -> 48 | E122: 3 | F122: =IF(E122>0,VLOOKUP(E122,EquipCost,15)*C122,0) -> 23.76 | I122: =SUM(F122:H122)+D122 -> 71.76
A123: Tree replacement | B123: 0.5 | C123: =B123 -> 0.5 | D123: =B123*LaborNoSkill -> 10 | E123: 1 | F123: =IF(E123>0,VLOOKUP(E123,EquipCost,15)*C123,0) -> 8.4624 | G123: =+TSTree*TreeCost*0.01 -> 133.1 | I123: =SUM(F123:H123)+D123 -> 151.5624
A124: Herbicide Program
A125: 40 hp tractor | B125: =+TSHerbTime -> 1.333333333 | C125: =+B125 -> 1.333333333 | D125: =B125*LaborSkill -> 32 | E125: 3 | F125: =IF(E125>0,VLOOKUP(E125,EquipCost,15)*C125,0) -> 15.84 | I125: =SUM(F125:H125)+D125 -> 47.84
A126: Weed sprayer | C126: =+C125 -> 1.333333333 | E126: 5 | F126: =IF(E126>0,VLOOKUP(E126,EquipCost,15)*C126,0) -> 6.773333333 | G126: =+TSHerb4 -> 22.5 | I126: =SUM(F126:H126)+D126 -> 29.27333333
A127: Spray Program
A128: 80 hp tractor | B128: =+TSSprayTIme3 -> 2.1 | C128: =+B128 -> 2.1 | D128: =B128*LaborSkill -> 50.4 | E128: 2 | F128: =IF(E128>0,VLOOKUP(E128,EquipCost,15)*C128,0) -> 51.429 | G128: =+TSSprayMat4 -> 720 | I128: =SUM(F128:H128)+D128 -> 821.829
A129: Airblast spr. | C129: =+C128 -> 2.1 | E129: 4 | F129: =IF(E129>0,VLOOKUP(E129,EquipCost,15)*C129,0) -> 22.995 | I129: =SUM(F129:H129)+D129 -> 22.995
A130: Hand Pheromone | B130: 1 | D130: =B130*LaborNoSkill -> 20 | I130: =SUM(F130:H130)+D130 -> 20
A131: Mowing
A132: 40 hp tractor | B132: =+TSMowtime4 -> 1.458333333 | C132: =+B132 -> 1.458333333 | D132: =B132*LaborNoSkill -> 29.16666667 | E132: 3 | F132: =IF(E132>0,VLOOKUP(E132,EquipCost,15)*C132,0) -> 17.325 | I132: =SUM(F132:H132)+D132 -> 46.49166667
A133: Mower | C133: =+C132 -> 1.458333333 | E133: 7 | F133: =IF(E133>0,VLOOKUP(E133,EquipCost,15)*C133,0) -> 6.610416667 | I133: =SUM(F133:H133)+D133 -> 6.610416667
A134: Mouse control
A135: 40 hp tractor | B135: =+TSBaitTime4 -> 0.1666666667 | C135: =+B135 -> 0.1666666667 | D135: =B135*LaborNoSkill -> 3.333333333 | E135: 3 | F135: =IF(E135>0,VLOOKUP(E135,EquipCost,15)*C135,0) -> 1.98 | I135: =SUM(F135:H135)+D135 -> 5.313333333
A136: Vicon Spreader | C136: =+C135 -> 0.1666666667 | E136: 6 | F136: =IF(E136>0,VLOOKUP(E136,EquipCost,15)*C136,0) -> 0.5058730159 | G136: =+TSBait4 -> 19.25 | I136: =SUM(F136:H136)+D136 -> 19.75587302
A137: Wildlife Control | B137: 2 | C137: 1 | D137: =B137*LaborNoSkill -> 40 | E137: 1 | F137: =IF(E137>0,VLOOKUP(E137,EquipCost,15)*C137,0) -> 16.9248 | G137: =+TSWild*TSTree -> 36.3 | I137: =SUM(F137:H137)+D137 -> 93.2248
A138: Fertilizer
A139: 40 hp tractor | B139: =+TSFertTime4 -> 0.1666666667 | C139: =+B139 -> 0.1666666667 | D139: =B139*LaborNoSkill -> 3.333333333 | E139: 3 | F139: =IF(E139>0,VLOOKUP(E139,EquipCost,15)*C139,0) -> 1.98 | G139: =+TSFert4 -> 27.603125 | I139: =SUM(F139:H139)+D139 -> 32.91645833
A140: Vicon Spreader | C140: =+C139 -> 0.1666666667 | E140: 6 | F140: =IF(E140>0,VLOOKUP(E140,EquipCost,15)*C140,0) -> 0.5058730159 | I140: =SUM(F140:H140)+D140 -> 0.5058730159
A141: Lime (1 tons) | G141: =+Lime -> 35 | I141: =SUM(F141:H141)+D141 -> 35
A142: Scouting | H142: 15 | I142: =SUM(F142:H142)+D142 -> 15
A143: Bees | H143: =BeeHive -> 45 | I143: =SUM(F143:H143)+D143 -> 45
A144: Trickle Irrigation | B144: 1 | C144: 40 | D144: =B144*LaborNoSkill -> 20 | E144: 17 | F144: =IF(E144>0,VLOOKUP(E144,EquipCost,15)*C144,0) -> 88 | I144: 108
A145: Real Estate Tax | D145: =B145*LaborNoSkill -> 0 | F145: =IF(E145>0,VLOOKUP(E145,EquipCost,15)*C145,0) -> 0 | H145: =+RETax -> 40 | I145: 40
A146: Management | D146: =B146*LaborNoSkill -> 0 | F146: =IF(E146>0,VLOOKUP(E146,EquipCost,15)*C146,0) -> 0 | H146: =+other -> 40 | I146: 40
A148: Total | B148: =SUM(B119:B147) -> 33.725 | C148: =SUM(C119:C147) -> 67.95 | D148: =SUM(D119:D147) -> 696.2333333 | F148: =SUM(F119:F147) -> 353.221296 | G148: =SUM(G119:G147) -> 1033.753125 | H148: =SUM(H119:H147) -> 140 | I148: =SUM(I119:I147) -> 2223.207754
A150: Tall Spindle
I151: Total Cost
A152: Year 0, Site Preparation Cost. | I152: =+year0 -> 2013
A153: =+A8 -> Year 1, Planting Year. | I153: =+TSYear1 -> 24134.76027
A154: =+A56 -> Year 2, Early Bearing Year | I154: =+TSYear2 -> 2448.903555
A155: =+A86 -> Year 3, Early Bearing Year | I155: =+TSYear3 -> 2084.213067
A156: =+A117 -> Year 4, Full Bearing Year | I156: =+TSYear4 -> 2223.207754

Sheet Super Spindle
A1: Super Spindle
A3: The Tall Spindle orchard remains non-bearing for the 1st year.. The 1st crop is produced in the 2nd year and the orchard
A4: become full bearing in the 4th year. A reduced spray program is followed only during the 1st & 2nd year. A full bearing spray
A5: program is followed starting in year 3.
A8: Year 1, Planting Year.
A9: Activity | B9: Labor Hours | C9: Eq. Hours | D9: Labor Cost | E9: Eq. Code | F9: Eq. Cost | G9: Material Cost | H9: Other Cost | I9: Total Cost
A11: Ground Preparation
A12: 80hp tractor | B12: 0.5 | C12: =B12 -> 0.5 | D12: =B12*LaborSkill -> 12 | E12: 2 | F12: =IF(E12>0,VLOOKUP(E12,EquipCost,15)*C12,0) -> 12.245 | I12: =SUM(F12:H12)+D12 -> 24.245
A13: Plow | C13: =B12 -> 0.5 | E13: 8 | F13: =IF(E13>0,VLOOKUP(E13,EquipCost,15)*C13,0) -> 2.095555556 | I13: =SUM(F13:H13)+D13 -> 2.095555556
A14: 80hp tractor | B14: 0.3 | C14: =B14 -> 0.3 | D14: =B14*LaborSkill -> 7.2 | E14: 2 | F14: =IF(E14>0,VLOOKUP(E14,EquipCost,15)*C14,0) -> 7.347 | G14: 3x times | I14: =SUM(F14:H14)+D14 -> 14.547
A15: Disc | C15: =B14 -> 0.3 | E15: 9 | F15: =IF(E15>0,VLOOKUP(E15,EquipCost,15)*C15,0) -> 1.564 | I15: =SUM(F15:H15)+D15 -> 1.564
A16: Pick stone & roots | B16: 3 | C16: =B16 -> 3 | D16: =B16*LaborNoSkill -> 60 | E16: 15 | F16: =IF(E16>0,VLOOKUP(E16,EquipCost,15)*C16,0) -> 29.8125 | I16: =SUM(F16:H16)+D16 -> 89.8125
A17: Planting Trees
A18: Layout | B18: 0.5 | C18: =B18 -> 0.5 | D18: =B18*LaborSkill -> 12 | E18: 1 | F18: =IF(E18>0,VLOOKUP(E18,EquipCost,15)*C18,0) -> 8.4624 | I18: =SUM(F18:H18)+D18 -> 20.4624
A19: Marking | B19: 0.5 | C19: 0.5 | D19: =B19*LaborSkill -> 12 | E19: 1 | F19: =IF(E19>0,VLOOKUP(E19,EquipCost,15)*C19,0) -> 8.4624 | I19: =SUM(F19:H19)+D19 -> 20.4624
A20: Purchase trees | G20: =TSTree*TSTreeCost -> 13310 | I20: =SUM(F20:H20)+D20 -> 13310
A21: Custom Plant @ .30 /tree | H21: =SSTree*CustomPlant -> 693 | I21: =SUM(F21:H21)+D21 -> 693
A22: System
A23: Trellis | B23: 40 | D23: =B23*LaborNoSkill -> 800 | F23: =IF(E23>0,VLOOKUP(E23,EquipCost,15)*C23,0) -> 0 | G23: =+SSTrellis -> 4664.706514 | I23: =SUM(F23:H23)+D23 -> 5464.706514
A24: Trickle irrigation | B24: 8 | C24: 20 | D24: =B24*LaborNoSkill -> 160 | E24: 17 | F24: =IF(E24>0,VLOOKUP(E24,EquipCost,15)*C24,0) -> 44 | G24: =+SSIrr -> 2508.49312 | I24: =SUM(F24:H24)+D24 -> 2712.49312
A25: Training | B25: =+SSTrain1 -> 100 | C25: 2 | D25: =B25*LaborNoSkill -> 2000 | E25: 1 | F25: =IF(E25>0,VLOOKUP(E25,EquipCost,15)*C25,0) -> 33.8496 | G25: =+SSTrainMat1 -> 300 | I25: =SUM(F25:H25)+D25 -> 2333.8496
A26: Pruning | B26: =+SSPrune1 -> 3.3 | C26: =+B26 -> 3.3 | D26: =B26*LaborNoSkill -> 66 | E26: 18 | F26: =IF(E26>0,VLOOKUP(E26,EquipCost,15)*C26,0) -> 15.477 | I26: =SUM(F26:H26)+D26 -> 81.477
A27: Nematode Control | I27: =SUM(F27:H27)+D27 -> 0
A28: Herbicide Program
A29: 40 hp tractor | B29: =+SSHerbTIme -> 1.454545455 | C29: =+B29 -> 1.454545455 | D29: =B29*LaborSkill -> 34.90909091 | E29: 3 | F29: =IF(E29>0,VLOOKUP(E29,EquipCost,15)*C29,0) -> 17.28 | I29: =SUM(F29:H29)+D29 -> 52.18909091
A30: Weed sprayer | C30: =+C29 -> 1.454545455 | E30: 5 | F30: =IF(E30>0,VLOOKUP(E30,EquipCost,15)*C30,0) -> 7.389090909 | G30: =+SSHerb1 -> 10.90909091 | I30: =SUM(F30:H30)+D30 -> 18.29818182
A31: Spray Program
A32: 80 hp tractor | B32: =+SSSprayTime1 -> 0.1636363636 | C32: =+B32 -> 0.1636363636 | D32: =B32*LaborSkill -> 3.927272727 | E32: 2 | F32: =IF(E32>0,VLOOKUP(E32,EquipCost,15)*C32,0) -> 4.007454545 | G32: =+SSSprayMat1 -> 45 | I32: =SUM(F32:H32)+D32 -> 52.93472727
A33: Airblast spr. | C33: =+C32 -> 0.1636363636 | E33: 4 | F33: =IF(E33>0,VLOOKUP(E33,EquipCost,15)*C33,0) -> 1.791818182 | I33: =SUM(F33:H33)+D33 -> 1.791818182
A34: Fertilize | I34: =SUM(F34:H34)+D34 -> 0
A35: 40 hp tractor | B35: =+SSFertTime1 -> 0.1818181818 | C35: =+B35 -> 0.1818181818 | D35: =B35*LaborNoSkill -> 3.636363636 | E35: 3 | F35: =IF(E35>0,VLOOKUP(E35,EquipCost,15)*C35,0) -> 2.16 | G35: =+SSFert1 -> 18.5625 | I35: =SUM(F35:H35)+D35 -> 24.35886364
A36: Vicon Spreader | C36: 0.2 | E36: 6 | F36: =IF(E36>0,VLOOKUP(E36,EquipCost,15)*C36,0) -> 0.607047619 | I36: =SUM(F36:H36)+D36 -> 0.607047619
A37: Sod Establishment
A38: 40 hp tractor | B38: 0.3 | C38: =0.3*3 -> 0.9 | D38: =B38*LaborSkill -> 7.2 | E38: 3 | F38: =IF(E38>0,VLOOKUP(E38,EquipCost,15)*C38,0) -> 10.692 | I38: =SUM(F38:H38)+D38 -> 17.892
A39: Spreader | C39: =+B38 -> 0.3 | E39: 6 | F39: =IF(E39>0,VLOOKUP(E39,EquipCost,15)*C39,0) -> 0.9105714286 | G39: 11 | I39: =SUM(F39:H39)+D39 -> 11.91057143
A40: Cultipack | B40: 0.3 | C40: =B40 -> 0.3 | D40: =B40*LaborNoSkill -> 6 | E40: 12 | F40: =IF(E40>0,VLOOKUP(E40,EquipCost,15)*C40,0) -> 1.984 | I40: =SUM(F40:H40)+D40 -> 7.984
A41: Drag | B41: 0.3 | C41: =B41 -> 0.3 | D41: =B41*LaborNoSkill -> 6 | E41: 12 | F41: =IF(E41>0,VLOOKUP(E41,EquipCost,15)*C41,0) -> 1.984 | I41: =SUM(F41:H41)+D41 -> 7.984
A42: Mowing
A43: 40 hp tractor | B43: =+SSMowTime1 -> 0 | C43: =B43 -> 0 | D43: =+B43*LaborNoSkill -> 0 | E43: 3 | F43: =IF(E43>0,VLOOKUP(E43,EquipCost,15)*C43,0) -> 0 | I43: =SUM(F43:H43)+D43 -> 0
A44: Mower | C44: =B43 -> 0 | E44: 7 | F44: =IF(E44>0,VLOOKUP(E44,EquipCost,15)*C44,0) -> 0 | I44: =SUM(F44:H44)+D44 -> 0
A45: Mouse control
A46: 40 hp tractor | B46: =+SSBaitTIme1 -> 0.1818181818 | C46: =+B46 -> 0.1818181818 | D46: =+B46*LaborNoSkill -> 3.636363636 | E46: 3 | F46: =IF(E46>0,VLOOKUP(E46,EquipCost,15)*C46,0) -> 2.16 | I46: =SUM(F46:H46)+D46 -> 5.796363636
A47: Vicon Spreader | C47: =+B46 -> 0.1818181818 | E47: 6 | F47: =IF(E47>0,VLOOKUP(E47,EquipCost,15)*C47,0) -> 0.5518614719 | G47: =+SSBait1 -> 17.5 | I47: =SUM(F47:H47)+D47 -> 18.05186147
A48: Mouse guards | I48: =SUM(F48:G48)+D48 -> 0
A49: Wildlife Control | B49: 0.3 | C49: =B49 -> 0.3 | D49: =B49*LaborNoSkill -> 6 | E49: 1 | F49: =IF(E49>0,VLOOKUP(E49,EquipCost,15)*C49,0) -> 5.07744 | G49: =+SSWild*SSTree -> 59.4 | I49: =SUM(F49:H49)+D49 -> 70.47744
A50: Scouting | I50: =SUM(F50:H50)+D50 -> 0
A51: Bees | I51: =SUM(F51:H51)+D51 -> 0
A52: Real Estate Tax | H52: =+RETax -> 40 | I52: =SUM(F52:H52)+D52 -> 40
A53: Management | B53: 2 | D53: =B53*LaborSkill -> 48 | F53: =IF(E53>0,VLOOKUP(E53,EquipCost,15)*C53,0) -> 0 | H53: =+other -> 40 | I53: =SUM(F53:H53)+D53 -> 88
A55: Total | B55: =SUM(B10:B54) -> 161.2818182 | C55: =SUM(C10:C54) -> 36.98181818 | D55: =SUM(D10:D54) -> 3248.509091 | F55: =SUM(F10:F54) -> 219.9107397 | G55: =SUM(G10:G54) -> 20945.57123 | H55: =SUM(H10:H54) -> 773 | I55: =SUM(I10:I54) -> 25186.99106
A56: Year 2, Early Bearing Year
A57: Activity | B57: Labor Hours | C57: Eq. Hours | D57: Labor Cost | E57: Eq. Code | F57: Eq. Cost | G57: Material Cost | H57: Other Cost | I57: Total Cost
A59: Training | B59: =+SSTrain2 -> 50 | C59: 2 | D59: =B59*LaborNoSkill -> 1000 | E59: 1 | F59: =IF(E59>0,VLOOKUP(E59,EquipCost,15)*C59,0) -> 33.8496 | G59: =+SSTrainMat2 -> 100 | I59: =SUM(F59:H59)+D59 -> 1133.8496
A60: Pruning | B60: =+SSPrune2 -> 3.3 | C60: =+B60 -> 3.3 | D60: =B60*LaborNoSkill -> 66 | E60: 18 | F60: =IF(E60>0,VLOOKUP(E60,EquipCost,15)*C60,0) -> 15.477 | I60: =SUM(F60:H60)+D60 -> 81.477
A61: Brush Removal | B61: 0 | C61: =+B61 -> 0 | D61: =B61*LaborSkill -> 0 | E61: 3 | F61: =IF(E61>0,VLOOKUP(E61,EquipCost,15)*C61,0) -> 0 | I61: =SUM(F61:H61)+D61 -> 0
A62: Tree replacement | B62: =0.0333333*SSTree*0.05 -> 3.2999967 | C62: =B62 -> 3.2999967 | D62: =B62*LaborNoSkill -> 65.999934 | E62: 1 | F62: =IF(E62>0,VLOOKUP(E62,EquipCost,15)*C62,0) -> 55.85178415 | G62: =+SSTree*TreeCost*0.05 -> 1089 | I62: =SUM(F62:H62)+D62 -> 1210.851718
A63: Herbicide Program
A64: 40 hp tractor | B64: =+SSHerbTIme -> 1.454545455 | C64: =+B64 -> 1.454545455 | D64: =B64*LaborSkill -> 34.90909091 | E64: 3 | F64: =IF(E64>0,VLOOKUP(E64,EquipCost,15)*C64,0) -> 17.28 | I64: =SUM(F64:H64)+D64 -> 52.18909091
A65: Weed sprayer | C65: =+C64 -> 1.454545455 | E65: 5 | F65: =IF(E65>0,VLOOKUP(E65,EquipCost,15)*C65,0) -> 7.389090909 | G65: =+SSHerb2 -> 10.90909091 | I65: =SUM(F65:H65)+D65 -> 18.29818182
A66: Spray Program
A67: 80 hp tractor | B67: =+SSSprayTime2 -> 1.963636364 | C67: =+B67 -> 1.963636364 | D67: =B67*LaborSkill -> 47.12727273 | E67: 2 | F67: =IF(E67>0,VLOOKUP(E67,EquipCost,15)*C67,0) -> 48.08945455 | G67: =+SSSprayMat2 -> 450 | I67: =SUM(F67:H67)+D67 -> 545.2167273
A68: Airblast spr. | C68: =+C67 -> 1.963636364 | E68: 4 | F68: =IF(E68>0,VLOOKUP(E68,EquipCost,15)*C68,0) -> 21.50181818 | I68: =SUM(F68:H68)+D68 -> 21.50181818
A69: Fertilizer
A70: 40 hp tractor | B70: =+SSFertTime2 -> 0.1818181818 | C70: 0.3 | D70: =+B70*LaborNoSkill -> 3.636363636 | E70: 3 | F70: =IF(E70>0,VLOOKUP(E70,EquipCost,15)*C70,0) -> 3.564 | G70: =+SSFert2 -> 18.5625 | I70: =SUM(F70:H70)+D70 -> 25.76286364
A71: Vicon Spreader | C71: =+C70 -> 0.3 | E71: 6 | F71: =IF(E71>0,VLOOKUP(E71,EquipCost,15)*C71,0) -> 0.9105714286 | I71: =SUM(F71:H71)+D71 -> 0.9105714286
A72: Mowing
A73: 40 hp tractor | B73: =+SSMowTime2 -> 0.9090909091 | C73: =B73 -> 0.9090909091 | D73: =+B73*LaborNoSkill -> 18.18181818 | E73: 3 | F73: =IF(E73>0,VLOOKUP(E73,EquipCost,15)*C73,0) -> 10.8 | I73: =SUM(F73:H73)+D73 -> 28.98181818
A74: Mower | C74: =B73 -> 0.9090909091 | E74: 7 | F74: =IF(E74>0,VLOOKUP(E74,EquipCost,15)*C74,0) -> 4.120779221 | I74: =SUM(F74:H74)+D74 -> 4.120779221
A75: Mouse control
A76: 40 hp tractor | B76: =+SSBaitTime3 -> 0.1818181818 | C76: =+B76 -> 0.1818181818 | D76: =B76*LaborNoSkill -> 3.636363636 | E76: 3 | F76: =IF(E76>0,VLOOKUP(E76,EquipCost,15)*C76,0) -> 2.16 | I76: =SUM(F76:H76)+D76 -> 5.796363636
A77: Vicon Spreader | C77: =+C76 -> 0.1818181818 | E77: 6 | F77: =IF(E77>0,VLOOKUP(E77,EquipCost,15)*C77,0) -> 0.5518614719 | G77: =+SSBait3 -> 22.75 | I77: 23.30186147
A78: Wildlife Control | B78: 2 | C78: 1 | D78: =B78*LaborNoSkill -> 40 | E78: 1 | F78: =IF(E78>0,VLOOKUP(E78,EquipCost,15)*C78,0) -> 16.9248 | G78: =+SSWild*SSTree -> 59.4 | I78: 116.3248
A79: Scouting | H79: 15 | I79: 15
A80: Bees | H80: =BeeHive -> 45 | I80: 45
A81: Trickle Irrigation | B81: 0.5 | C81: 40 | D81: =B81*LaborNoSkill -> 10 | E81: 17 | F81: =IF(E81>0,VLOOKUP(E81,EquipCost,15)*C81,0) -> 88 | I81: 98
A82: Real Estate Tax | D82: =B82*LaborNoSkill -> 0 | F82: =IF(E82>0,VLOOKUP(E82,EquipCost,15)*C82,0) -> 0 | H82: =+RETax -> 40 | I82: 40
A83: Management | D83: =B83*LaborNoSkill -> 0 | F83: =IF(E83>0,VLOOKUP(E83,EquipCost,15)*C83,0) -> 0 | H83: =+other -> 40 | I83: 40
A85: Total | B85: =SUM(B64:B84) -> 7.190909091 | C85: =SUM(C64:C84) -> 50.61818182 | D85: =SUM(D64:D84) -> 157.4909091 | F85: =SUM(F64:F84) -> 221.2923758 | G85: =SUM(G64:G84) -> 561.6215909 | H85: =SUM(H64:H84) -> 140 | I85: =SUM(I58:I84) -> 3506.583194
A86: Year 3, Early Bearing Year
A87: Activity | B87: Labor Hours | C87: Eq. Hours | D87: Labor Cost | E87: Eq. Code | F87: Eq. Cost | G87: Material Cost | H87: Other Cost | I87: Total Cost
A89: Training | B89: =+SSTrain4 -> 10 | C89: 2 | D89: =B89*LaborNoSkill -> 200 | E89: 1 | F89: =IF(E89>0,VLOOKUP(E89,EquipCost,15)*C89,0) -> 33.8496 | G89: =+SSTrainMat3 -> 50 | I89: =SUM(F89:H89)+D89 -> 283.8496
A90: Pruning | B90: =+SSPrune4 -> 19.8 | C90: =+B90 -> 19.8 | D90: =B90*LaborNoSkill -> 396 | E90: 18 | F90: =IF(E90>0,VLOOKUP(E90,EquipCost,15)*C90,0) -> 92.862 | I90: =SUM(F90:H90)+D90 -> 488.862
A91: Brush Removal | B91: 2 | C91: =+B91 -> 2 | D91: =B91*LaborSkill -> 48 | E91: 3 | F91: =IF(E91>0,VLOOKUP(E91,EquipCost,15)*C91,0) -> 23.76 | I91: =SUM(F91:H91)+D91 -> 71.76
A92: Tree replacement | B92: 0.5 | C92: =B92 -> 0.5 | D92: =B92*LaborNoSkill -> 10 | E92: 1 | F92: =IF(E92>0,VLOOKUP(E92,EquipCost,15)*C92,0) -> 8.4624 | G92: =+SSTree*TreeCost*0.01 -> 217.8 | I92: =SUM(F92:H92)+D92 -> 236.2624
A93: Herbicide Program
A94: 40 hp tractor | B94: =+SSHerbTIme -> 1.454545455 | C94: =+B94 -> 1.454545455 | D94: =B94*LaborSkill -> 34.90909091 | E94: 3 | F94: =IF(E94>0,VLOOKUP(E94,EquipCost,15)*C94,0) -> 17.28 | I94: =SUM(F94:H94)+D94 -> 52.18909091
A95: Weed sprayer | C95: =+C94 -> 1.454545455 | E95: 5 | F95: =IF(E95>0,VLOOKUP(E95,EquipCost,15)*C95,0) -> 7.389090909 | G95: =+SSHerb3 -> 16.36363636 | I95: =SUM(F95:H95)+D95 -> 23.75272727
A96: Spray Program
A97: 80 hp tractor | B97: =+SSSprayTime3 -> 3.272727273 | C97: =+B97 -> 3.272727273 | D97: =B97*LaborSkill -> 78.54545455 | E97: 2 | F97: =IF(E97>0,VLOOKUP(E97,EquipCost,15)*C97,0) -> 80.14909091 | G97: =+SSSprayMat3 -> 720 | I97: =SUM(F97:H97)+D97 -> 878.6945455
A98: Airblast spr. | C98: =+C97 -> 3.272727273 | E98: 4 | F98: =IF(E98>0,VLOOKUP(E98,EquipCost,15)*C98,0) -> 35.83636364 | I98: =SUM(F98:H98)+D98 -> 35.83636364
A99: Fertilizer
A100: 40 hp tractor | B100: =+SSFertTime3 -> 0.1818181818 | C100: =+B100 -> 0.1818181818 | D100: =B100*LaborNoSkill -> 3.636363636 | E100: 3 | F100: =IF(E100>0,VLOOKUP(E100,EquipCost,15)*C100,0) -> 2.16 | G100: =+SSFert3 -> 31.865625 | I100: =SUM(F100:H100)+D100 -> 37.66198864
A101: Vicon Spreader | C101: =+C100 -> 0.1818181818 | E101: 6 | F101: =IF(E101>0,VLOOKUP(E101,EquipCost,15)*C101,0) -> 0.5518614719 | I101: =SUM(F101:H101)+D101 -> 0.5518614719
A102: Lime | G102: 0 | I102: =SUM(F102:H102)+D102 -> 0
A103: Mowing
A104: 40 hp tractor | B104: =+SSMowTime3 -> 1.590909091 | C104: =+B104 -> 1.590909091 | D104: =B104*LaborNoSkill -> 31.81818182 | E104: 3 | F104: =IF(E104>0,VLOOKUP(E104,EquipCost,15)*C104,0) -> 18.9 | I104: =SUM(F104:H104)+D104 -> 50.71818182
A105: Mower | C105: =+C104 -> 1.590909091 | E105: 7 | F105: =IF(E105>0,VLOOKUP(E105,EquipCost,15)*C105,0) -> 7.211363636 | I105: =SUM(F105:H105)+D105 -> 7.211363636
A106: Mouse control
A107: 40 hp tractor | B107: =+SSBaitTime3 -> 0.1818181818 | C107: =+B107 -> 0.1818181818 | D107: =B107*LaborNoSkill -> 3.636363636 | E107: 3 | F107: =IF(E107>0,VLOOKUP(E107,EquipCost,15)*C107,0) -> 2.16 | I107: =SUM(F107:H107)+D107 -> 5.796363636
A108: Vicon Spreader | C108: =+C107 -> 0.1818181818 | E108: 6 | F108: =IF(E108>0,VLOOKUP(E108,EquipCost,15)*C108,0) -> 0.5518614719 | G108: =+SSBait3 -> 22.75 | I108: 23.30186147
A109: Wildlife Control | B109: 2 | C109: 1 | D109: =B109*LaborNoSkill -> 40 | E109: 1 | F109: =IF(E109>0,VLOOKUP(E109,EquipCost,15)*C109,0) -> 16.9248 | G109: =+SSWild*SSTree -> 59.4 | I109: 116.3248
A110: Scouting | H110: 15 | I110: 15
A111: Bees | H111: =BeeHive -> 45 | I111: 45
A112: Trickle Irrigation | B112: 0.5 | C112: 40 | D112: =B112*LaborNoSkill -> 10 | E112: 17 | F112: =IF(E112>0,VLOOKUP(E112,EquipCost,15)*C112,0) -> 88 | I112: 98
A113: Real Estate Tax | D113: =B113*LaborNoSkill -> 0 | F113: =IF(E113>0,VLOOKUP(E113,EquipCost,15)*C113,0) -> 0 | H113: =+RETax -> 40 | I113: 40
A114: Management | D114: =B114*LaborNoSkill -> 0 | F114: =IF(E114>0,VLOOKUP(E114,EquipCost,15)*C114,0) -> 0 | H114: =+other -> 40 | I114: 40
A116: Total | B116: =SUM(B95:B115) -> 7.727272727 | C116: =SUM(C95:C115) -> 52.90909091 | D116: =SUM(D95:D115) -> 167.6363636 | F116: =SUM(F95:F115) -> 259.834432 | G116: =SUM(G95:G115) -> 850.3792614 | H116: =SUM(H95:H115) -> 140 | I116: =SUM(I88:I115) -> 2550.773148
A117: Year 4, Full Bearing Year
A118: Activity | B118: Labor Hours | C118: Eq. Hours | D118: Labor Cost | E118: Eq. Code | F118: Eq. Cost | G118: Material Cost | H118: Other Cost | I118: Total Cost
A120: Training | B120: =+SSTrain4 -> 10 | C120: 2 | D120: =B120*LaborNoSkill -> 200 | E120: 1 | F120: =IF(E120>0,VLOOKUP(E120,EquipCost,15)*C120,0) -> 33.8496 | G120: =+SSTrainMat4 -> 40 | I120: =SUM(F120:H120)+D120 -> 273.8496
A121: Pruning | B121: 15 | C121: =+B121 -> 15 | D121: =B121*LaborNoSkill -> 300 | E121: 18 | F121: =IF(E121>0,VLOOKUP(E121,EquipCost,15)*C121,0) -> 70.35 | I121: =SUM(F121:H121)+D121 -> 370.35
A122: Brush Removal | B122: 2 | C122: =+B122 -> 2 | D122: =B122*LaborSkill -> 48 | E122: 3 | F122: =IF(E122>0,VLOOKUP(E122,EquipCost,15)*C122,0) -> 23.76 | I122: =SUM(F122:H122)+D122 -> 71.76
A123: Tree replacement | B123: 0.5 | C123: =B123 -> 0.5 | D123: =B123*LaborNoSkill -> 10 | E123: 1 | F123: =IF(E123>0,VLOOKUP(E123,EquipCost,15)*C123,0) -> 8.4624 | G123: =+SSTree*TreeCost*0.01 -> 217.8 | I123: =SUM(F123:H123)+D123 -> 236.2624
A124: Herbicide Program
A125: 40 hp tractor | B125: =+SSHerbTIme -> 1.454545455 | C125: =+B125 -> 1.454545455 | D125: =B125*LaborSkill -> 34.90909091 | E125: 3 | F125: =IF(E125>0,VLOOKUP(E125,EquipCost,15)*C125,0) -> 17.28 | I125: =SUM(F125:H125)+D125 -> 52.18909091
A126: Weed sprayer | C126: =+C125 -> 1.454545455 | E126: 5 | F126: =IF(E126>0,VLOOKUP(E126,EquipCost,15)*C126,0) -> 7.389090909 | G126: =+SSHerb4 -> 24.54545455 | I126: =SUM(F126:H126)+D126 -> 31.93454545
A127: Spray Program
A128: 80 hp tractor | B128: =+SSSprayTime3 -> 3.272727273 | C128: =+B128 -> 3.272727273 | D128: =B128*LaborSkill -> 78.54545455 | E128: 2 | F128: =IF(E128>0,VLOOKUP(E128,EquipCost,15)*C128,0) -> 80.14909091 | G128: =+SSSprayMat4 -> 900 | I128: =SUM(F128:H128)+D128 -> 1058.694545
A129: Airblast spr. | C129: =+C128 -> 3.272727273 | E129: 4 | F129: =IF(E129>0,VLOOKUP(E129,EquipCost,15)*C129,0) -> 35.83636364 | I129: =SUM(F129:H129)+D129 -> 35.83636364
A130: Hand Pheromone | B130: 1 | D130: =B130*LaborNoSkill -> 20 | I130: =SUM(F130:H130)+D130 -> 20
A131: Mowing
A132: 40 hp tractor | B132: =+SSMowTime4 -> 1.590909091 | C132: =+B132 -> 1.590909091 | D132: =B132*LaborNoSkill -> 31.81818182 | E132: 3 | F132: =IF(E132>0,VLOOKUP(E132,EquipCost,15)*C132,0) -> 18.9 | I132: =SUM(F132:H132)+D132 -> 50.71818182
A133: Mower | C133: =+C132 -> 1.590909091 | E133: 7 | F133: =IF(E133>0,VLOOKUP(E133,EquipCost,15)*C133,0) -> 7.211363636 | I133: =SUM(F133:H133)+D133 -> 7.211363636
A134: Mouse control
A135: 40 hp tractor | B135: =+SSBaitTime4 -> 0.1818181818 | C135: =+B135 -> 0.1818181818 | D135: =B135*LaborNoSkill -> 3.636363636 | E135: 3 | F135: =IF(E135>0,VLOOKUP(E135,EquipCost,15)*C135,0) -> 2.16 | I135: =SUM(F135:H135)+D135 -> 5.796363636
A136: Vicon Spreader | C136: =+C135 -> 0.1818181818 | E136: 6 | F136: =IF(E136>0,VLOOKUP(E136,EquipCost,15)*C136,0) -> 0.5518614719 | G136: =+SSBait4 -> 22.75 | I136: =SUM(F136:H136)+D136 -> 23.30186147
A137: Wildlife Control | B137: 2 | C137: 1 | D137: =B137*LaborNoSkill -> 40 | E137: 1 | F137: =IF(E137>0,VLOOKUP(E137,EquipCost,15)*C137,0) -> 16.9248 | G137: =+SSWild*SSTree -> 59.4 | I137: =SUM(F137:H137)+D137 -> 116.3248
A138: Fertilizer
A139: 40 hp tractor | B139: =+SSFertTime4 -> 0.1818181818 | C139: =+B139 -> 0.1818181818 | D139: =B139*LaborNoSkill -> 3.636363636 | E139: 3 | F139: =IF(E139>0,VLOOKUP(E139,EquipCost,15)*C139,0) -> 2.16 | G139: =+SSFert4 -> 45.16875 | I139: =SUM(F139:H139)+D139 -> 50.96511364
A140: Vicon Spreader | C140: =+C139 -> 0.1818181818 | E140: 6 | F140: =IF(E140>0,VLOOKUP(E140,EquipCost,15)*C140,0) -> 0.5518614719 | I140: =SUM(F140:H140)+D140 -> 0.5518614719
A141: Lime (1 tons) | G141: =+Lime -> 35 | I141: =SUM(F141:H141)+D141 -> 35
A142: Scouting | H142: 15 | I142: =SUM(F142:H142)+D142 -> 15
A143: Bees | H143: =BeeHive -> 45 | I143: =SUM(F143:H143)+D143 -> 45
A144: Trickle Irrigation | B144: 1 | C144: 40 | D144: =B144*LaborNoSkill -> 20 | E144: 17 | F144: =IF(E144>0,VLOOKUP(E144,EquipCost,15)*C144,0) -> 88 | I144: 108
A145: Real Estate Tax | D145: =B145*LaborNoSkill -> 0 | F145: =IF(E145>0,VLOOKUP(E145,EquipCost,15)*C145,0) -> 0 | H145: =+RETax -> 40 | I145: 40
A146: Management | D146: =B146*LaborNoSkill -> 0 | F146: =IF(E146>0,VLOOKUP(E146,EquipCost,15)*C146,0) -> 0 | H146: =+other -> 40 | I146: 40
A148: Total | B148: =SUM(B119:B147) -> 38.18181818 | C148: =SUM(C119:C147) -> 73.86363636 | D148: =SUM(D119:D147) -> 790.5454545 | F148: =SUM(F119:F147) -> 413.536432 | G148: =SUM(G119:G147) -> 1344.664205 | H148: =SUM(H119:H147) -> 140 | I148: =SUM(I119:I147) -> 2688.746091
A150: Super Spindle
I151: Total Cost
A152: Year 0, Site Preparation Cost. | I152: =+year0 -> 2013
A153: =+A8 -> Year 1, Planting Year. | I153: =+SSYear1 -> 25186.99106
A154: =+A56 -> Year 2, Early Bearing Year | I154: =+SSYear2 -> 3506.583194
A155: =+A86 -> Year 3, Early Bearing Year | I155: =+SSYear3 -> 2550.773148
A156: =+A117 -> Year 4, Full Bearing Year | I156: =+SSYear4 -> 2688.746091

Sheet Fruiting Wall
A1: Fruiting Wall
A3: The Fruiting Wall orchard remains non-bearing for the 1st year.. The 1st crop is produced in the 2nd year and the orchard
A4: become full bearing in the 4th year. A reduced spray program is followed only during the 1st year. A full bearing spray
A5: program is followed starting in year 2.
A8: Year 1, Planting Year.
A9: Activity | B9: Labor Hours | C9: Eq. Hours | D9: Labor Cost | E9: Eq. Code | F9: Eq. Cost | G9: Material Cost | H9: Other Cost | I9: Total Cost
A11: Ground Preparation
A12: 80hp tractor | B12: 0.5 | C12: =B12 -> 0.5 | D12: =B12*LaborSkill -> 12 | E12: 2 | F12: =IF(E12>0,VLOOKUP(E12,EquipCost,15)*C12,0) -> 12.245 | I12: =SUM(F12:H12)+D12 -> 24.245
A13: Plow | C13: =B12 -> 0.5 | E13: 8 | F13: =IF(E13>0,VLOOKUP(E13,EquipCost,15)*C13,0) -> 2.095555556 | I13: =SUM(F13:H13)+D13 -> 2.095555556
A14: 80hp tractor | B14: 0.3 | C14: =B14 -> 0.3 | D14: =B14*LaborSkill -> 7.2 | E14: 2 | F14: =IF(E14>0,VLOOKUP(E14,EquipCost,15)*C14,0) -> 7.347 | I14: =SUM(F14:H14)+D14 -> 14.547
A15: Disc | C15: =B14 -> 0.3 | E15: 9 | F15: =IF(E15>0,VLOOKUP(E15,EquipCost,15)*C15,0) -> 1.564 | I15: =SUM(F15:H15)+D15 -> 1.564
A16: Pick stone & roots | B16: 3 | C16: =B16 -> 3 | D16: =B16*LaborNoSkill -> 60 | E16: 15 | F16: =IF(E16>0,VLOOKUP(E16,EquipCost,15)*C16,0) -> 29.8125 | I16: =SUM(F16:H16)+D16 -> 89.8125
A17: Planting Trees
A18: Layout | B18: 0.5 | C18: =B18 -> 0.5 | D18: =B18*LaborSkill -> 12 | E18: 1 | F18: =IF(E18>0,VLOOKUP(E18,EquipCost,15)*C18,0) -> 8.4624 | I18: =SUM(F18:H18)+D18 -> 20.4624
A19: Marking | B19: 0.5 | C19: 0.5 | D19: =B19*LaborSkill -> 12 | E19: 1 | F19: =IF(E19>0,VLOOKUP(E19,EquipCost,15)*C19,0) -> 8.4624 | I19: =SUM(F19:H19)+D19 -> 20.4624
A20: Purchase trees | G20: =FWTree*FWTreeCost -> 19800 | I20: =SUM(F20:H20)+D20 -> 19800
A21: Custom Plant @ .30 /tree | H21: =FWTree*CustomPlant -> 462 | I21: =SUM(F21:H21)+D21 -> 462
A22: System
A23: Trellis | B23: 40 | D23: =B23*LaborNoSkill -> 800 | F23: =IF(E23>0,VLOOKUP(E23,EquipCost,15)*C23,0) -> 0 | G23: =+FWTrellis -> 4664.706514 | I23: =SUM(F23:H23)+D23 -> 5464.706514
A24: Trickle irrigation | B24: 8 | C24: 20 | D24: =B24*LaborNoSkill -> 160 | E24: 17 | F24: =IF(E24>0,VLOOKUP(E24,EquipCost,15)*C24,0) -> 44 | G24: =+FWIrr -> 2508.49312 | I24: =SUM(F24:H24)+D24 -> 2712.49312
A25: Training | B25: =+FWTrain1 -> 100 | C25: 2 | D25: =B25*LaborNoSkill -> 2000 | E25: 1 | F25: =IF(E25>0,VLOOKUP(E25,EquipCost,15)*C25,0) -> 33.8496 | G25: =+FWTrainMat1 -> 300 | I25: =SUM(F25:H25)+D25 -> 2333.8496
A26: Pruning | B26: =+FWPrune1 -> 2.2 | C26: =+B26 -> 2.2 | D26: =B26*LaborNoSkill -> 44 | E26: 18 | F26: =IF(E26>0,VLOOKUP(E26,EquipCost,15)*C26,0) -> 10.318 | I26: =SUM(F26:H26)+D26 -> 54.318
A27: Nematode Control | I27: =SUM(F27:H27)+D27 -> 0
A28: Herbicide Program
A29: 40 hp tractor | B29: =+FWHerbTime -> 1.454545455 | C29: =+B29 -> 1.454545455 | D29: =B29*LaborSkill -> 34.90909091 | E29: 3 | F29: =IF(E29>0,VLOOKUP(E29,EquipCost,15)*C29,0) -> 17.28 | I29: =SUM(F29:H29)+D29 -> 52.18909091
A30: Weed sprayer | C30: =+C29 -> 1.454545455 | E30: 5 | F30: =IF(E30>0,VLOOKUP(E30,EquipCost,15)*C30,0) -> 7.389090909 | G30: =+FWHerb1 -> 9.545454545 | I30: =SUM(F30:H30)+D30 -> 16.93454545
A31: Spray Program
A32: 80 hp tractor | B32: =+FWSprayTime1 -> 0.1636363636 | C32: =+B32 -> 0.1636363636 | D32: =B32*LaborSkill -> 3.927272727 | E32: 2 | F32: =IF(E32>0,VLOOKUP(E32,EquipCost,15)*C32,0) -> 4.007454545 | G32: =+FWSprayMat1 -> 45 | I32: =SUM(F32:H32)+D32 -> 52.93472727
A33: Airblast spr. | C33: =+C32 -> 0.1636363636 | E33: 4 | F33: =IF(E33>0,VLOOKUP(E33,EquipCost,15)*C33,0) -> 1.791818182 | I33: =SUM(F33:H33)+D33 -> 1.791818182
A34: Fertilize | I34: =SUM(F34:H34)+D34 -> 0
A35: 40 hp tractor | B35: =+FWFertTime1 -> 0.1818181818 | C35: =+B35 -> 0.1818181818 | D35: =B35*LaborNoSkill -> 3.636363636 | E35: 3 | F35: =IF(E35>0,VLOOKUP(E35,EquipCost,15)*C35,0) -> 2.16 | G35: =+FWFert1 -> 12.375 | I35: =SUM(F35:H35)+D35 -> 18.17136364
A36: Vicon Spreader | C36: 0.2 | E36: 6 | F36: =IF(E36>0,VLOOKUP(E36,EquipCost,15)*C36,0) -> 0.607047619 | I36: =SUM(F36:H36)+D36 -> 0.607047619
A37: Sod Establishment
A38: 40 hp tractor | B38: 0.3 | C38: =0.3*3 -> 0.9 | D38: =B38*LaborSkill -> 7.2 | E38: 3 | F38: =IF(E38>0,VLOOKUP(E38,EquipCost,15)*C38,0) -> 10.692 | I38: =SUM(F38:H38)+D38 -> 17.892
A39: Spreader | C39: =+B38 -> 0.3 | E39: 6 | F39: =IF(E39>0,VLOOKUP(E39,EquipCost,15)*C39,0) -> 0.9105714286 | G39: 11 | I39: =SUM(F39:H39)+D39 -> 11.91057143
A40: Cultipack | B40: 0.3 | C40: =B40 -> 0.3 | D40: =B40*LaborNoSkill -> 6 | E40: 12 | F40: =IF(E40>0,VLOOKUP(E40,EquipCost,15)*C40,0) -> 1.984 | I40: =SUM(F40:H40)+D40 -> 7.984
A41: Drag | B41: 0.3 | C41: =B41 -> 0.3 | D41: =B41*LaborNoSkill -> 6 | E41: 12 | F41: =IF(E41>0,VLOOKUP(E41,EquipCost,15)*C41,0) -> 1.984 | I41: =SUM(F41:H41)+D41 -> 7.984
A42: Mowing
A43: 40 hp tractor | B43: =+FWMowTime1 -> 0 | C43: =B43 -> 0 | D43: =+B43*LaborNoSkill -> 0 | E43: 3 | F43: =IF(E43>0,VLOOKUP(E43,EquipCost,15)*C43,0) -> 0 | I43: =SUM(F43:H43)+D43 -> 0
A44: Mower | C44: =B43 -> 0 | E44: 7 | F44: =IF(E44>0,VLOOKUP(E44,EquipCost,15)*C44,0) -> 0 | I44: =SUM(F44:H44)+D44 -> 0
A45: Mouse control
A46: 40 hp tractor | B46: =+FWBaitTime1 -> 0.1818181818 | C46: =+B46 -> 0.1818181818 | D46: =+B46*LaborNoSkill -> 3.636363636 | E46: 3 | F46: =IF(E46>0,VLOOKUP(E46,EquipCost,15)*C46,0) -> 2.16 | I46: =SUM(F46:H46)+D46 -> 5.796363636
A47: Vicon Spreader | C47: =+B46 -> 0.1818181818 | E47: 6 | F47: =IF(E47>0,VLOOKUP(E47,EquipCost,15)*C47,0) -> 0.5518614719 | G47: =+FWBait1 -> 17.5 | I47: =SUM(F47:H47)+D47 -> 18.05186147
A48: Mouse guards | I48: =SUM(F48:G48)+D48 -> 0
A49: Wildlife Control | B49: 0.3 | C49: =B49 -> 0.3 | D49: =B49*LaborNoSkill -> 6 | E49: 1 | F49: =IF(E49>0,VLOOKUP(E49,EquipCost,15)*C49,0) -> 5.07744 | G49: =+FWWild*FWTree -> 26.4 | I49: =SUM(F49:H49)+D49 -> 37.47744
A50: Scouting | I50: =SUM(F50:H50)+D50 -> 0
A51: Bees | I51: =SUM(F51:H51)+D51 -> 0
A52: Real Estate Tax | H52: =+RETax -> 40 | I52: =SUM(F52:H52)+D52 -> 40
A53: Management | B53: 2 | D53: =B53*LaborSkill -> 48 | F53: =IF(E53>0,VLOOKUP(E53,EquipCost,15)*C53,0) -> 0 | H53: =+other -> 40 | I53: =SUM(F53:H53)+D53 -> 88
A55: Total | B55: =SUM(B10:B54) -> 160.1818182 | C55: =SUM(C10:C54) -> 35.88181818 | D55: =SUM(D10:D54) -> 3226.509091 | F55: =SUM(F10:F54) -> 214.7517397 | G55: =SUM(G10:G54) -> 27395.02009 | H55: =SUM(H10:H54) -> 542 | I55: =SUM(I10:I54) -> 31378.28092
A56: Year 2, Early Bearing Year
A57: Activity | B57: Labor Hours | C57: Eq. Hours | D57: Labor Cost | E57: Eq. Code | F57: Eq. Cost | G57: Material Cost | H57: Other Cost | I57: Total Cost
A59: Training | B59: =+FWTrain2 -> 60 | C59: 2 | D59: =B59*LaborNoSkill -> 1200 | E59: 1 | F59: =IF(E59>0,VLOOKUP(E59,EquipCost,15)*C59,0) -> 33.8496 | G59: =+FWTrainMAt2 -> 100 | I59: =SUM(F59:H59)+D59 -> 1333.8496
A60: Pruning | B60: =+FWPrune2 -> 2.2 | C60: =+B60 -> 2.2 | D60: =B60*LaborNoSkill -> 44 | E60: 18 | F60: =IF(E60>0,VLOOKUP(E60,EquipCost,15)*C60,0) -> 10.318 | I60: =SUM(F60:H60)+D60 -> 54.318
A61: Brush Removal | B61: 0 | C61: =+B61 -> 0 | D61: =B61*LaborSkill -> 0 | E61: 3 | F61: =IF(E61>0,VLOOKUP(E61,EquipCost,15)*C61,0) -> 0 | I61: =SUM(F61:H61)+D61 -> 0
A62: Tree replacement | B62: =0.0333333333333333*FWTree*0.05 -> 2.2 | C62: =B62 -> 2.2 | D62: =B62*LaborNoSkill -> 44 | E62: 1 | F62: =IF(E62>0,VLOOKUP(E62,EquipCost,15)*C62,0) -> 37.23456 | G62: =+FWTree*TreeCost*0.01 -> 145.2 | I62: =SUM(F62:H62)+D62 -> 226.43456
A63: Herbicide Program
A64: 40 hp tractor | B64: =+FWHerbTime -> 1.454545455 | C64: =+B64 -> 1.454545455 | D64: =B64*LaborSkill -> 34.90909091 | E64: 3 | F64: =IF(E64>0,VLOOKUP(E64,EquipCost,15)*C64,0) -> 17.28 | I64: =SUM(F64:H64)+D64 -> 52.18909091
A65: Weed sprayer | C65: =+C64 -> 1.454545455 | E65: 5 | F65: =IF(E65>0,VLOOKUP(E65,EquipCost,15)*C65,0) -> 7.389090909 | G65: =+FWHerb2 -> 9.545454545 | I65: =SUM(F65:H65)+D65 -> 16.93454545
A66: Spray Program
A67: 80 hp tractor | B67: =+FWSprayTime2 -> 1.963636364 | C67: =+B67 -> 1.963636364 | D67: =B67*LaborSkill -> 47.12727273 | E67: 2 | F67: =IF(E67>0,VLOOKUP(E67,EquipCost,15)*C67,0) -> 48.08945455 | G67: =+FWSprayMat2 -> 450 | I67: =SUM(F67:H67)+D67 -> 545.2167273
A68: Airblast spr. | C68: =+C67 -> 1.963636364 | E68: 4 | F68: =IF(E68>0,VLOOKUP(E68,EquipCost,15)*C68,0) -> 21.50181818 | I68: =SUM(F68:H68)+D68 -> 21.50181818
A69: Fertilizer
A70: 40 hp tractor | B70: =+FWFertTime2 -> 0.1818181818 | C70: 0.3 | D70: =+B70*LaborNoSkill -> 3.636363636 | E70: 3 | F70: =IF(E70>0,VLOOKUP(E70,EquipCost,15)*C70,0) -> 3.564 | G70: =+FWFert2 -> 12.375 | I70: =SUM(F70:H70)+D70 -> 19.57536364
A71: Vicon Spreader | C71: =+C70 -> 0.3 | E71: 6 | F71: =IF(E71>0,VLOOKUP(E71,EquipCost,15)*C71,0) -> 0.9105714286 | I71: =SUM(F71:H71)+D71 -> 0.9105714286
A72: Mowing
A73: 40 hp tractor | B73: =+FWMowTime2 -> 0.9090909091 | C73: =B73 -> 0.9090909091 | D73: =+B73*LaborNoSkill -> 18.18181818 | E73: 3 | F73: =IF(E73>0,VLOOKUP(E73,EquipCost,15)*C73,0) -> 10.8 | I73: =SUM(F73:H73)+D73 -> 28.98181818
A74: Mower | C74: =B73 -> 0.9090909091 | E74: 7 | F74: =IF(E74>0,VLOOKUP(E74,EquipCost,15)*C74,0) -> 4.120779221 | I74: =SUM(F74:H74)+D74 -> 4.120779221
A75: Mouse control
A76: 40 hp tractor | B76: =+FWBaitTime3 -> 0.1818181818 | C76: =+B76 -> 0.1818181818 | D76: =B76*LaborNoSkill -> 3.636363636 | E76: 3 | F76: =IF(E76>0,VLOOKUP(E76,EquipCost,15)*C76,0) -> 2.16 | I76: =SUM(F76:H76)+D76 -> 5.796363636
A77: Vicon Spreader | C77: =+C76 -> 0.1818181818 | E77: 6 | F77: =IF(E77>0,VLOOKUP(E77,EquipCost,15)*C77,0) -> 0.5518614719 | G77: =+FWBait3 -> 21.875 | I77: 22.42686147
A78: Wildlife Control | B78: 2 | C78: 1 | D78: =B78*LaborNoSkill -> 40 | E78: 1 | F78: =IF(E78>0,VLOOKUP(E78,EquipCost,15)*C78,0) -> 16.9248 | G78: =+FWWild*FWTree -> 26.4 | I78: 83.3248
A79: Scouting | H79: 15 | I79: 15
A80: Bees | H80: =BeeHive -> 45 | I80: 45
A81: Trickle Irrigation | B81: 0.5 | C81: 40 | D81: =B81*LaborNoSkill -> 10 | E81: 17 | F81: =IF(E81>0,VLOOKUP(E81,EquipCost,15)*C81,0) -> 88 | I81: 98
A82: Real Estate Tax | D82: =B82*LaborNoSkill -> 0 | F82: =IF(E82>0,VLOOKUP(E82,EquipCost,15)*C82,0) -> 0 | H82: =+RETax -> 40 | I82: 40
A83: Management | D83: =B83*LaborNoSkill -> 0 | F83: =IF(E83>0,VLOOKUP(E83,EquipCost,15)*C83,0) -> 0 | H83: =+other -> 40 | I83: 40
A85: Total | B85: =SUM(B64:B84) -> 7.190909091 | C85: =SUM(C64:C84) -> 50.61818182 | D85: =SUM(D64:D84) -> 157.4909091 | F85: =SUM(F64:F84) -> 221.2923758 | G85: =SUM(G64:G84) -> 520.1954545 | H85: =SUM(H64:H84) -> 140 | I85: =SUM(I58:I84) -> 2653.580899
A86: Year 3, Early Bearing Year
A87: Activity | B87: Labor Hours | C87: Eq. Hours | D87: Labor Cost | E87: Eq. Code | F87: Eq. Cost | G87: Material Cost | H87: Other Cost | I87: Total Cost
A89: Training | B89: =+FWTrain4 -> 5 | C89: 2 | D89: =B89*LaborNoSkill -> 100 | E89: 1 | F89: =IF(E89>0,VLOOKUP(E89,EquipCost,15)*C89,0) -> 33.8496 | G89: =+FWTrainMat3 -> 50 | I89: =SUM(F89:H89)+D89 -> 183.8496
A90: Pruning | B90: =+FWPrune4 -> 22 | C90: =+B90 -> 22 | D90: =B90*LaborNoSkill -> 440 | E90: 18 | F90: =IF(E90>0,VLOOKUP(E90,EquipCost,15)*C90,0) -> 103.18 | I90: =SUM(F90:H90)+D90 -> 543.18
A91: Brush Removal | B91: 1 | C91: =+B91 -> 1 | D91: =B91*LaborSkill -> 24 | E91: 3 | F91: =IF(E91>0,VLOOKUP(E91,EquipCost,15)*C91,0) -> 11.88 | I91: =SUM(F91:H91)+D91 -> 35.88
A92: Tree replacement | B92: 0.5 | C92: =B92 -> 0.5 | D92: =B92*LaborNoSkill -> 10 | E92: 1 | F92: =IF(E92>0,VLOOKUP(E92,EquipCost,15)*C92,0) -> 8.4624 | G92: =+FWTree*TreeCost*0.01 -> 145.2 | I92: =SUM(F92:H92)+D92 -> 163.6624
A93: Herbicide Program
A94: 40 hp tractor | B94: =+FWHerbTime -> 1.454545455 | C94: =+B94 -> 1.454545455 | D94: =B94*LaborSkill -> 34.90909091 | E94: 3 | F94: =IF(E94>0,VLOOKUP(E94,EquipCost,15)*C94,0) -> 17.28 | I94: =SUM(F94:H94)+D94 -> 52.18909091
A95: Weed sprayer | C95: =+C94 -> 1.454545455 | E95: 5 | F95: =IF(E95>0,VLOOKUP(E95,EquipCost,15)*C95,0) -> 7.389090909 | G95: =+FWHerb3 -> 18.40909091 | I95: =SUM(F95:H95)+D95 -> 25.79818182
A96: Spray Program
A97: 80 hp tractor | B97: =+FWSprayTime3 -> 3.272727273 | C97: =+B97 -> 3.272727273 | D97: =B97*LaborSkill -> 78.54545455 | E97: 2 | F97: =IF(E97>0,VLOOKUP(E97,EquipCost,15)*C97,0) -> 80.14909091 | G97: =+FWSprayMat3 -> 720 | I97: =SUM(F97:H97)+D97 -> 878.6945455
A98: Airblast spr. | C98: =+C97 -> 3.272727273 | E98: 4 | F98: =IF(E98>0,VLOOKUP(E98,EquipCost,15)*C98,0) -> 35.83636364 | I98: =SUM(F98:H98)+D98 -> 35.83636364
A99: Fertilizer
A100: 40 hp tractor | B100: =+FWFertTime3 -> 0.1818181818 | C100: =+B100 -> 0.1818181818 | D100: =B100*LaborNoSkill -> 3.636363636 | E100: 3 | F100: =IF(E100>0,VLOOKUP(E100,EquipCost,15)*C100,0) -> 2.16 | G100: =+FWFert3 -> 21.24375 | I100: =SUM(F100:H100)+D100 -> 27.04011364
A101: Vicon Spreader | C101: =+C100 -> 0.1818181818 | E101: 6 | F101: =IF(E101>0,VLOOKUP(E101,EquipCost,15)*C101,0) -> 0.5518614719 | I101: =SUM(F101:H101)+D101 -> 0.5518614719
A102: Lime | G102: 0 | I102: =SUM(F102:H102)+D102 -> 0
A103: Mowing
A104: 40 hp tractor | B104: =+FWMowTime3 -> 1.590909091 | C104: =+B104 -> 1.590909091 | D104: =B104*LaborNoSkill -> 31.81818182 | E104: 3 | F104: =IF(E104>0,VLOOKUP(E104,EquipCost,15)*C104,0) -> 18.9 | I104: =SUM(F104:H104)+D104 -> 50.71818182
A105: Mower | C105: =+C104 -> 1.590909091 | E105: 7 | F105: =IF(E105>0,VLOOKUP(E105,EquipCost,15)*C105,0) -> 7.211363636 | I105: =SUM(F105:H105)+D105 -> 7.211363636
A106: Mouse control
A107: 40 hp tractor | B107: =+FWBaitTime3 -> 0.1818181818 | C107: =+B107 -> 0.1818181818 | D107: =B107*LaborNoSkill -> 3.636363636 | E107: 3 | F107: =IF(E107>0,VLOOKUP(E107,EquipCost,15)*C107,0) -> 2.16 | I107: =SUM(F107:H107)+D107 -> 5.796363636
A108: Vicon Spreader | C108: =+C107 -> 0.1818181818 | E108: 6 | F108: =IF(E108>0,VLOOKUP(E108,EquipCost,15)*C108,0) -> 0.5518614719 | G108: =+FWBait3 -> 21.875 | I108: 22.42686147
A109: Wildlife Control | B109: 2 | C109: 1 | D109: =B109*LaborNoSkill -> 40 | E109: 1 | F109: =IF(E109>0,VLOOKUP(E109,EquipCost,15)*C109,0) -> 16.9248 | G109: =+FWWild*FWTree -> 26.4 | I109: 83.3248
A110: Scouting | H110: 15 | I110: 15
A111: Bees | H111: =BeeHive -> 45 | I111: 45
A112: Trickle Irrigation | B112: 0.5 | C112: 40 | D112: =B112*LaborNoSkill -> 10 | E112: 17 | F112: =IF(E112>0,VLOOKUP(E112,EquipCost,15)*C112,0) -> 88 | I112: 98
A113: Real Estate Tax | D113: =B113*LaborNoSkill -> 0 | F113: =IF(E113>0,VLOOKUP(E113,EquipCost,15)*C113,0) -> 0 | H113: =+RETax -> 40 | I113: 40
A114: Management | D114: =B114*LaborNoSkill -> 0 | F114: =IF(E114>0,VLOOKUP(E114,EquipCost,15)*C114,0) -> 0 | H114: =+other -> 40 | I114: 40
A116: Total | B116: =SUM(B95:B115) -> 7.727272727 | C116: =SUM(C95:C115) -> 52.90909091 | D116: =SUM(D95:D115) -> 167.6363636 | F116: =SUM(F95:F115) -> 259.834432 | G116: =SUM(G95:G115) -> 807.9278409 | H116: =SUM(H95:H115) -> 140 | I116: =SUM(I88:I115) -> 2354.159727
A117: Year 4, Full Bearing Year
A118: Activity | B118: Labor Hours | C118: Eq. Hours | D118: Labor Cost | E118: Eq. Code | F118: Eq. Cost | G118: Material Cost | H118: Other Cost | I118: Total Cost
A120: Training | B120: =+FWTrain4 -> 5 | C120: 2 | D120: =B120*LaborNoSkill -> 100 | E120: 1 | F120: =IF(E120>0,VLOOKUP(E120,EquipCost,15)*C120,0) -> 33.8496 | G120: =+FWTrainMat4 -> 4 | I120: =SUM(F120:H120)+D120 -> 137.8496
A121: Pruning | B121: =+FWPrune4 -> 22 | C121: =+B121 -> 22 | D121: =B121*LaborNoSkill -> 440 | E121: 18 | F121: =IF(E121>0,VLOOKUP(E121,EquipCost,15)*C121,0) -> 103.18 | I121: =SUM(F121:H121)+D121 -> 543.18
A122: Brush Removal | B122: 2 | C122: =+B122 -> 2 | D122: =B122*LaborSkill -> 48 | E122: 3 | F122: =IF(E122>0,VLOOKUP(E122,EquipCost,15)*C122,0) -> 23.76 | I122: =SUM(F122:H122)+D122 -> 71.76
A123: Tree replacement | B123: 0.5 | C123: =B123 -> 0.5 | D123: =B123*LaborNoSkill -> 10 | E123: 1 | F123: =IF(E123>0,VLOOKUP(E123,EquipCost,15)*C123,0) -> 8.4624 | G123: =+FWTree*TreeCost*0.01 -> 145.2 | I123: =SUM(F123:H123)+D123 -> 163.6624
A124: Herbicide Program
A125: 40 hp tractor | B125: =+FWHerbTime -> 1.454545455 | C125: =+B125 -> 1.454545455 | D125: =B125*LaborSkill -> 34.90909091 | E125: 3 | F125: =IF(E125>0,VLOOKUP(E125,EquipCost,15)*C125,0) -> 17.28 | I125: =SUM(F125:H125)+D125 -> 52.18909091
A126: Weed sprayer | C126: =+C125 -> 1.454545455 | E126: 5 | F126: =IF(E126>0,VLOOKUP(E126,EquipCost,15)*C126,0) -> 7.389090909 | G126: =+FWHerb4 -> 18.40909091 | I126: =SUM(F126:H126)+D126 -> 25.79818182
A127: Spray Program
A128: 80 hp tractor | B128: =+FWSprayTime3 -> 3.272727273 | C128: =+B128 -> 3.272727273 | D128: =B128*LaborSkill -> 78.54545455 | E128: 2 | F128: =IF(E128>0,VLOOKUP(E128,EquipCost,15)*C128,0) -> 80.14909091 | G128: =+FWSprayMat4 -> 900 | I128: =SUM(F128:H128)+D128 -> 1058.694545
A129: Airblast spr. | C129: =+C128 -> 3.272727273 | E129: 4 | F129: =IF(E129>0,VLOOKUP(E129,EquipCost,15)*C129,0) -> 35.83636364 | I129: =SUM(F129:H129)+D129 -> 35.83636364
A130: Hand Pheromone | B130: 1 | D130: =B130*LaborNoSkill -> 20 | I130: =SUM(F130:H130)+D130 -> 20
A131: Mowing
A132: 40 hp tractor | B132: =+FWMowTime4 -> 1.590909091 | C132: =+B132 -> 1.590909091 | D132: =B132*LaborNoSkill -> 31.81818182 | E132: 3 | F132: =IF(E132>0,VLOOKUP(E132,EquipCost,15)*C132,0) -> 18.9 | I132: =SUM(F132:H132)+D132 -> 50.71818182
A133: Mower | C133: =+C132 -> 1.590909091 | E133: 7 | F133: =IF(E133>0,VLOOKUP(E133,EquipCost,15)*C133,0) -> 7.211363636 | I133: =SUM(F133:H133)+D133 -> 7.211363636
A134: Mouse control
A135: 40 hp tractor | B135: =+FWBaitTIme4 -> 0.1818181818 | C135: =+B135 -> 0.1818181818 | D135: =B135*LaborNoSkill -> 3.636363636 | E135: 3 | F135: =IF(E135>0,VLOOKUP(E135,EquipCost,15)*C135,0) -> 2.16 | I135: =SUM(F135:H135)+D135 -> 5.796363636
A136: Vicon Spreader | C136: =+C135 -> 0.1818181818 | E136: 6 | F136: =IF(E136>0,VLOOKUP(E136,EquipCost,15)*C136,0) -> 0.5518614719 | G136: =+FWBait4 -> 21.875 | I136: =SUM(F136:H136)+D136 -> 22.42686147
A137: Wildlife Control | B137: 2 | C137: 1 | D137: =B137*LaborNoSkill -> 40 | E137: 1 | F137: =IF(E137>0,VLOOKUP(E137,EquipCost,15)*C137,0) -> 16.9248 | G137: =+FWWild*FWTree -> 26.4 | I137: =SUM(F137:H137)+D137 -> 83.3248
A138: Fertilizer
A139: 40 hp tractor | B139: =+FWFertTime4 -> 0.1818181818 | C139: =+B139 -> 0.1818181818 | D139: =B139*LaborNoSkill -> 3.636363636 | E139: 3 | F139: =IF(E139>0,VLOOKUP(E139,EquipCost,15)*C139,0) -> 2.16 | G139: =+FWFert4 -> 30.1125 | I139: =SUM(F139:H139)+D139 -> 35.90886364
A140: Vicon Spreader | C140: =+C139 -> 0.1818181818 | E140: 6 | F140: =IF(E140>0,VLOOKUP(E140,EquipCost,15)*C140,0) -> 0.5518614719 | I140: =SUM(F140:H140)+D140 -> 0.5518614719
A141: Lime (1 tons) | G141: =+Lime -> 35 | I141: =SUM(F141:H141)+D141 -> 35
A142: Scouting | H142: 15 | I142: =SUM(F142:H142)+D142 -> 15
A143: Bees | H143: =BeeHive -> 45 | I143: =SUM(F143:H143)+D143 -> 45
A144: Trickle Irrigation | B144: 0.5 | C144: 40 | D144: =B144*LaborNoSkill -> 10 | E144: 17 | F144: =IF(E144>0,VLOOKUP(E144,EquipCost,15)*C144,0) -> 88 | I144: 98
A145: Real Estate Tax | D145: =B145*LaborNoSkill -> 0 | F145: =IF(E145>0,VLOOKUP(E145,EquipCost,15)*C145,0) -> 0 | H145: =+RETax -> 40 | I145: 40
A146: Management | D146: =B146*LaborNoSkill -> 0 | F146: =IF(E146>0,VLOOKUP(E146,EquipCost,15)*C146,0) -> 0 | H146: =+other -> 40 | I146: 40
A148: Total | B148: =SUM(B119:B147) -> 39.68181818 | C148: =SUM(C119:C147) -> 80.86363636 | D148: =SUM(D119:D147) -> 820.5454545 | F148: =SUM(F119:F147) -> 446.366432 | G148: =SUM(G119:G147) -> 1180.996591 | H148: =SUM(H119:H147) -> 140 | I148: =SUM(I119:I147) -> 2587.908477
A150: Tall Spindle
I151: Total Cost
A152: Year 0, Site Preparation Cost. | I152: =+year0 -> 2013
A153: =+A8 -> Year 1, Planting Year. | I153: =+FWYear1 -> 31378.28092
A154: =+A56 -> Year 2, Early Bearing Year | I154: =+FWYear2 -> 2653.580899
A155: =+A86 -> Year 3, Early Bearing Year | I155: =+FWYear3 -> 2354.159727
A156: =+A117 -> Year 4, Full Bearing Year | I156: =+FWYear4 -> 2587.908477

Sheet CL Profit
A1: Potential Profit for Central Leader
B3: Bushel | C3: Gross | D3: Annual | E3: Harvest | G3: Total | H3: Annual | I3: Accum
A4: Year | B4: Yield | C4: Income | D4: Costs | E4: Costs | F4: Interest | G4: Cost | H4: Profit | I4: Profit
A5: 0 | B5: =+'Factors & Yield'!B38 -> 0 | C5: =+B5*42*CLPrice -> 0 | D5: =+year0 -> 2013 | E5: =+B5*42*LaborPicking -> 0 | F5: =+(+D5+E5)*0.5*IntOper+LandCost*IntLand -> 440.26 | G5: =SUM(D5:F5) -> 2453.26 | H5: =+C5-G5 -> -2453.26 | I5: =+H5 -> -2453.26
A6: =+A5+1 -> 1 | B6: =+'Factors & Yield'!B39 -> 0 | C6: 0 | D6: =+CLYear1 -> 3065.749077 | E6: =+B6*42*LaborPicking -> 0 | F6: =+(+D6+E6)*0.5*IntOper+LandCost*IntLand -> 461.3149815 | G6: =SUM(D6:F6) -> 3527.064059 | H6: =+C6-G6 -> -3527.064059 | I6: =+H6+I5 -> -5980.324059
A7: =+A6+1 -> 2 | B7: =+'Factors & Yield'!B40 -> 0 | C7: 0 | D7: =+CLYear2 -> 595.4146322 | E7: 0 | F7: 411.9082926 | G7: 1007.322925 | H7: =+C7-G7 -> -1007.322925 | I7: -6987.646984
A8: =+A7+1 -> 3 | B8: =+'Factors & Yield'!B41 -> 0 | C8: 0 | D8: =+CLYear3 -> 1157.823854 | E8: 0 | F8: 423.1564771 | G8: 1580.980331 | H8: -1580.980331 | I8: -8568.627315
A9: 4 | B9: =+'Factors & Yield'!B42 -> 100 | C9: 1260 | D9: =+CLYear4 -> 1455.923817 | E9: 247.0588235 | F9: 434.0596528 | G9: 2137.042293 | H9: -877.0422931 | I9: -9445.669608
A10: 5 | B10: =+'Factors & Yield'!B43 -> 150 | C10: 1890 | D10: =+CLYear5 -> 2046.866548 | E10: 370.5882353 | F10: 448.3490957 | G10: 2865.803879 | H10: -975.8038789 | I10: -10421.47349
A11: 6 | B11: =+'Factors & Yield'!B44 -> 300 | C11: 3780 | D11: =+CLYear6 -> 2165.779642 | E11: 741.1764706 | F11: 458.1391222 | G11: 3365.095235 | H11: 414.9047654 | I11: -10006.56872
A12: 7 | B12: =+'Factors & Yield'!B45 -> 400 | C12: 5040 | D12: =+CLYear7 -> 2499.208798 | E12: 988.2352941 | F12: 469.7488818 | G12: 3957.192974 | H12: 1082.807026 | I12: -8923.761695
A13: 8 | B13: =+'Factors & Yield'!B46 -> 500 | C13: 6300 | D13: =+CLYear8 -> 2542.741892 | E13: 1235.294118 | F13: 475.5607202 | G13: 4253.59673 | H13: 2046.40327 | I13: -6877.358425
A14: 9 | B14: =+'Factors & Yield'!B47 -> 1000 | C14: 12600 | D14: =+CLYear8 -> 2542.741892 | E14: 2470.588235 | F14: 500.2666025 | G14: 5513.59673 | H14: 7086.40327 | I14: 209.0448455
A15: 10 | B15: =+'Factors & Yield'!B48 -> 1000 | C15: 12600 | D15: 2542.741892 | E15: 2470.588235 | F15: 500.2666025 | G15: 5513.59673 | H15: 7086.40327 | I15: 7295.448116
A16: 11 | B16: =+'Factors & Yield'!B49 -> 1000 | C16: 12600 | D16: 2542.741892 | E16: 2470.588235 | F16: 500.2666025 | G16: 5513.59673 | H16: 7086.40327 | I16: 14381.85139
A17: 12 | B17: =+'Factors & Yield'!B50 -> 1000 | C17: 12600 | D17: 2542.741892 | E17: 2470.588235 | F17: 500.2666025 | G17: 5513.59673 | H17: 7086.40327 | I17: 21468.25466
A18: 13 | B18: =+'Factors & Yield'!B51 -> 1000 | C18: 12600 | D18: 2542.741892 | E18: 2470.588235 | F18: 500.2666025 | G18: 5513.59673 | H18: 7086.40327 | I18: 28554.65793
A19: 14 | B19: =+'Factors & Yield'!B52 -> 1000 | C19: 12600 | D19: 2542.741892 | E19: 2470.588235 | F19: 500.2666025 | G19: 5513.59673 | H19: 7086.40327 | I19: 35641.0612
A20: 15 | B20: =+'Factors & Yield'!B53 -> 1000 | C20: 12600 | D20: 2542.741892 | E20: 2470.588235 | F20: 500.2666025 | G20: 5513.59673 | H20: 7086.40327 | I20: 42727.46447
A21: 16 | B21: =+'Factors & Yield'!B54 -> 1000 | C21: 12600 | D21: 2542.741892 | E21: 2470.588235 | F21: 500.2666025 | G21: 5513.59673 | H21: 7086.40327 | I21: 49813.86774
A22: 17 | B22: =+'Factors & Yield'!B55 -> 1000 | C22: 12600 | D22: 2542.741892 | E22: 2470.588235 | F22: 500.2666025 | G22: 5513.59673 | H22: 7086.40327 | I22: 56900.27101
A23: 18 | B23: =+'Factors & Yield'!B56 -> 1000 | C23: 12600 | D23: 2542.741892 | E23: 2470.588235 | F23: 500.2666025 | G23: 5513.59673 | H23: 7086.40327 | I23: 63986.67428
A24: 19 | B24: =+'Factors & Yield'!B57 -> 1000 | C24: 12600 | D24: 2542.741892 | E24: 2470.588235 | F24: 500.2666025 | G24: 5513.59673 | H24: 7086.40327 | I24: 71073.07755
A25: 20 | B25: =+'Factors & Yield'!B58 -> 1000 | C25: 12600 | D25: 2542.741892 | E25: 2470.588235 | F25: 500.2666025 | G25: 5513.59673 | H25: 7086.40327 | I25: 78159.48082
B27: =SUM(B5:B26) -> 13450 | C27: =SUM(C5:C26) -> 169470 | D27: 48055.41096 | E27: 33229.41176 | F27: 10025.69645 | G27: 91310.51918 | H27: 78159.48082 | I27: =+I25 -> 78159.48082
A29: Sales Price /lb. | D29: =+CLPrice -> 0.3 | F29: Unskilled Labor Cost | J29: =+LaborNoSkill -> 20
A52: =+A1 -> Potential Profit for Central Leader
A54: Effect of varing yield.
A56: This chart is based on Year 8, Mature Bearing Year.
B59: Yield | C59: Growing | D59: Interest | E59: Harvest | F59: Total | G59: Cost | H59: Cost
B60: /Acre | C60: Costs | D60: Costs | E60: Costs | F60: Costs | G60: /Bushel | H60: /lb.
B61: 200 | C61: =+CLYear8 -> 2542.741892 | D61: =+F13 -> 475.5607202 | E61: =+B61*42*LaborPicking -> 494.1176471 | F61: =SUM(C61:E61) -> 3512.420259 | G61: =+F61/B61 -> 17.56210129 | H61: =+G61/42 -> 0.4181452689
B62: =+B61+100 -> 300 | C62: =+CLYear8 -> 2542.741892 | D62: =+D61 -> 475.5607202 | E62: =+B62*42*LaborPicking -> 741.1764706 | F62: =SUM(C62:E62) -> 3759.479083 | G62: =+F62/B62 -> 12.53159694 | H62: =+G62/42 -> 0.2983713558
B63: =+B62+100 -> 400 | C63: 2542.741892 | D63: =+D62 -> 475.5607202 | E63: 988.2352941 | F63: =SUM(C63:E63) -> 4006.537906 | G63: =+F63/B63 -> 10.01634477 | H63: =+G63/42 -> 0.2384843992
B64: 500 | C64: 2542.741892 | D64: 475.5607202 | E64: 1235.294118 | F64: 4253.59673 | G64: 8.507193459 | H64: 0.2025522252
B65: 600 | C65: 2542.741892 | D65: 475.5607202 | E65: 1482.352941 | F65: 4500.655553 | G65: 7.501092589 | H65: 0.1785974426
B66: 700 | C66: 2542.741892 | D66: 475.5607202 | E66: 1729.411765 | F66: 4747.714377 | G66: 6.782449109 | H66: 0.1614868836
B67: 800 | C67: 2542.741892 | D67: 475.5607202 | E67: 1976.470588 | F67: 4994.7732 | G67: 6.2434665 | H67: 0.1486539643
B68: 900 | C68: 2542.741892 | D68: 475.5607202 | E68: 2223.529412 | F68: 5241.832024 | G68: 5.824257804 | H68: 0.1386728049
B69: 1000 | C69: 2542.741892 | D69: 475.5607202 | E69: 2470.588235 | F69: 5488.890847 | G69: 5.488890847 | H69: 0.1306878773
B70: 1100 | C70: 2542.741892 | D70: 475.5607202 | E70: 2717.647059 | F70: 5735.949671 | G70: 5.214499701 | H70: 0.1241547548
B71: 1200 | C71: 2542.741892 | D71: 475.5607202 | E71: 2964.705882 | F71: 5983.008494 | G71: 4.985840412 | H71: 0.118710486
B72: =+B71+100 -> 1300 | C72: 2542.741892 | D72: =+D71 -> 475.5607202 | E72: 3211.764706 | F72: =SUM(C72:E72) -> 6230.067318 | G72: =+F72/B72 -> 4.792359475 | H72: 0.114103797
B73: =+B72+100 -> 1400 | C73: 2542.741892 | D73: =+D72 -> 475.5607202 | E73: 3458.823529 | F73: =SUM(C73:E73) -> 6477.126141 | G73: =+F73/B73 -> 4.626518672 | H73: 0.1101552065
B74: =+B73+100 -> 1500 | C74: 2542.741892 | D74: =+D73 -> 475.5607202 | E74: 3705.882353 | F74: =SUM(C74:E74) -> 6724.184965 | G74: =+F74/B74 -> 4.482789977 | H74: 0.1067330947

Sheet VA Profit
A1: Potential Profit for Vertical Axe
B3: Bushel | C3: Gross | D3: Annual | E3: Harvest | G3: Total | H3: Annual | I3: Accum
A4: Year | B4: Yield | C4: Income | D4: Costs | E4: Costs | F4: Interest | G4: Cost | H4: Profit | I4: Profit
A5: 0 | B5: =+'Factors & Yield'!C38 -> 0 | C5: =+B5*42*VAPrice -> 0 | D5: =+year0 -> 2013 | E5: =+B5*42*LaborPicking -> 0 | F5: =+(+D5+E5)*0.5*IntOper+LandCost*IntLand -> 440.26 | G5: =SUM(D5:F5) -> 2453.26 | H5: =+C5-G5 -> -2453.26 | I5: =+H5 -> -2453.26
A6: =+A5+1 -> 1 | B6: =+'Factors & Yield'!C39 -> 0 | C6: 0 | D6: =+VAYear1 -> 14264.56794 | E6: =+B6*42*LaborPicking -> 0 | F6: =+(+D6+E6)*0.5*IntOper+LandCost*IntLand -> 685.2913589 | G6: =SUM(D6:F6) -> 14949.8593 | H6: =+C6-G6 -> -14949.8593 | I6: =+H6+I5 -> -17403.1193
A7: =+A6+1 -> 2 | B7: =+'Factors & Yield'!C40 -> 0 | C7: 0 | D7: =+VAYear2 -> 2428.725731 | E7: 0 | F7: 448.5745146 | G7: 2877.300246 | H7: =+C7-G7 -> -2877.300246 | I7: -20280.41955
A8: =+A7+1 -> 3 | B8: =+'Factors & Yield'!C41 -> 0 | C8: 0 | D8: =+VAYear3 -> 1996.874082 | E8: 0 | F8: 439.9374816 | G8: 2436.811564 | H8: -2436.811564 | I8: -22717.23111
A9: 4 | B9: =+'Factors & Yield'!C42 -> 200 | C9: 2520 | D9: =+VAYear4 -> 2302.352689 | E9: 494.1176471 | F9: 455.9294067 | G9: 3252.399743 | H9: -732.3997432 | I9: -23449.63086
A10: 5 | B10: =+'Factors & Yield'!C43 -> 600 | C10: =+B10*42*VAPrice -> 7560 | D10: =+VAYear5 -> 2238.327975 | E10: 1482.352941 | F10: 474.4136183 | G10: 4195.094535 | H10: 3364.905465 | I10: -20084.72539
A11: 6 | B11: =+'Factors & Yield'!C44 -> 1100 | C11: 13860 | D11: =+VAYear6 -> 2685.946707 | E11: 2717.647059 | F11: 508.0718753 | G11: 5911.665641 | H11: 7948.334359 | I11: -12136.39103
A12: 7 | B12: =+'Factors & Yield'!C45 -> 1100 | C12: 13860 | D12: =+VAYear6 -> 2685.946707 | E12: 2717.647059 | F12: 508.0718753 | G12: 5911.665641 | H12: 7948.334359 | I12: -4188.056673
A13: 8 | B13: =+'Factors & Yield'!C46 -> 1100 | C13: 13860 | D13: =+VAYear6 -> 2685.946707 | E13: 2717.647059 | F13: 508.0718753 | G13: 5911.665641 | H13: 7948.334359 | I13: 3760.277685
A14: 9 | B14: =+'Factors & Yield'!C47 -> 1100 | C14: 13860 | D14: 2685.946707 | E14: 2717.647059 | F14: 508.0718753 | G14: 5911.665641 | H14: 7948.334359 | I14: 11708.61204
A15: 10 | B15: =+'Factors & Yield'!C48 -> 1100 | C15: 13860 | D15: 2685.946707 | E15: 2717.647059 | F15: 508.0718753 | G15: 5911.665641 | H15: 7948.334359 | I15: 19656.9464
A16: 11 | B16: =+'Factors & Yield'!C49 -> 1100 | C16: 13860 | D16: 2685.946707 | E16: 2717.647059 | F16: 508.0718753 | G16: 5911.665641 | H16: 7948.334359 | I16: 27605.28076
A17: 12 | B17: =+'Factors & Yield'!C50 -> 1100 | C17: 13860 | D17: 2685.946707 | E17: 2717.647059 | F17: 508.0718753 | G17: 5911.665641 | H17: 7948.334359 | I17: 35553.61512
A18: 13 | B18: =+'Factors & Yield'!C51 -> 1100 | C18: 13860 | D18: 2685.946707 | E18: 2717.647059 | F18: 508.0718753 | G18: 5911.665641 | H18: 7948.334359 | I18: 43501.94948
A19: 14 | B19: =+'Factors & Yield'!C52 -> 1100 | C19: 13860 | D19: 2685.946707 | E19: 2717.647059 | F19: 508.0718753 | G19: 5911.665641 | H19: 7948.334359 | I19: 51450.28384
A20: 15 | B20: =+'Factors & Yield'!C53 -> 1100 | C20: 13860 | D20: 2685.946707 | E20: 2717.647059 | F20: 508.0718753 | G20: 5911.665641 | H20: 7948.334359 | I20: 59398.61819
A21: 16 | B21: =+'Factors & Yield'!C54 -> 1100 | C21: 13860 | D21: 2685.946707 | E21: 2717.647059 | F21: 508.0718753 | G21: 5911.665641 | H21: 7948.334359 | I21: 67346.95255
A22: 17 | B22: =+'Factors & Yield'!C55 -> 1100 | C22: 13860 | D22: 2685.946707 | E22: 2717.647059 | F22: 508.0718753 | G22: 5911.665641 | H22: 7948.334359 | I22: 75295.28691
A23: 18 | B23: =+'Factors & Yield'!C56 -> 1100 | C23: 13860 | D23: 2685.946707 | E23: 2717.647059 | F23: 508.0718753 | G23: 5911.665641 | H23: 7948.334359 | I23: 83243.62127
A24: 19 | B24: =+'Factors & Yield'!C57 -> 1100 | C24: 13860 | D24: 2685.946707 | E24: 2717.647059 | F24: 508.0718753 | G24: 5911.665641 | H24: 7948.334359 | I24: 91191.95563
A25: 20 | B25: =+'Factors & Yield'!C58 -> 1100 | C25: 13860 | D25: 2685.946707 | E25: 2717.647059 | F25: 508.0718753 | G25: 5911.665641 | H25: 7948.334359 | I25: 99140.28999
B27: =SUM(B5:B26) -> 17300 | C27: =SUM(C5:C26) -> 217980 | D27: 65533.04903 | E27: 42741.17647 | F27: 10565.48451 | G27: 118839.71 | H27: 99140.28999 | I27: =+I25 -> 99140.28999
A29: Sales Price /lb. | D29: =+VAPrice -> 0.3 | F29: Unskilled Labor Cost | J29: =+LaborNoSkill -> 20
A52: =+A1 -> Potential Profit for Vertical Axe
A54: Effect of varing yield.
A56: This chart is based on Year 6, Mature Bearing Year.
B59: Yield | C59: Growing | D59: Interest | E59: Harvest | F59: Total | G59: Cost | H59: Cost
B60: /Acre | C60: Costs | D60: Costs | E60: Costs | F60: Costs | G60: /Bushel | H60: /lb.
B61: 200 | C61: =+VAYear6 -> 2685.946707 | D61: =+F11 -> 508.0718753 | E61: =+B61*42*LaborPicking -> 494.1176471 | F61: =SUM(C61:E61) -> 3688.13623 | G61: =+F61/B61 -> 18.44068115 | H61: =+G61/42 -> 0.4390638369
B62: =+B61+100 -> 300 | C62: =+VAYear6 -> 2685.946707 | D62: =+D61 -> 508.0718753 | E62: =+B62*42*LaborPicking -> 741.1764706 | F62: =SUM(C62:E62) -> 3935.195053 | G62: =+F62/B62 -> 13.11731684 | H62: =+G62/42 -> 0.3123170677
B63: =+B62+100 -> 400 | C63: 2685.946707 | D63: =+D62 -> 508.0718753 | E63: 988.2352941 | F63: =SUM(C63:E63) -> 4182.253877 | G63: =+F63/B63 -> 10.45563469 | H63: =+G63/42 -> 0.2489436831
B64: 500 | C64: 2685.946707 | D64: 508.0718753 | E64: 1235.294118 | F64: 4429.3127 | G64: 8.858625401 | H64: 0.2109196524
B65: 600 | C65: 2685.946707 | D65: 508.0718753 | E65: 1482.352941 | F65: 4676.371524 | G65: 7.79395254 | H65: 0.1855702986
B66: 700 | C66: 2685.946707 | D66: 508.0718753 | E66: 1729.411765 | F66: 4923.430347 | G66: 7.033471925 | H66: 0.1674636173
B67: 800 | C67: 2685.946707 | D67: 508.0718753 | E67: 1976.470588 | F67: 5170.489171 | G67: 6.463111464 | H67: 0.1538836063
B68: 900 | C68: 2685.946707 | D68: 508.0718753 | E68: 2223.529412 | F68: 5417.547994 | G68: 6.019497772 | H68: 0.1433213755
B69: 1000 | C69: 2685.946707 | D69: 508.0718753 | E69: 2470.588235 | F69: 5664.606818 | G69: 5.664606818 | H69: 0.1348715909
B70: 1100 | C70: 2685.946707 | D70: 508.0718753 | E70: 2717.647059 | F70: 5911.665641 | G70: 5.374241492 | H70: 0.1279581308
B71: 1200 | C71: 2685.946707 | D71: 508.0718753 | E71: 2964.705882 | F71: 6158.724465 | G71: 5.132270387 | H71: 0.122196914
B72: =+B71+100 -> 1300 | C72: 2685.946707 | D72: =+D71 -> 508.0718753 | E72: 3211.764706 | F72: =SUM(C72:E72) -> 6405.783289 | G72: =+F72/B72 -> 4.927525607 | H72: 0.1173220383
B73: =+B72+100 -> 1400 | C73: 2685.946707 | D73: =+D72 -> 508.0718753 | E73: 3458.823529 | F73: =SUM(C73:E73) -> 6652.842112 | G73: =+F73/B73 -> 4.75203008 | H73: 0.1131435733
B74: =+B73+100 -> 1500 | C74: 2685.946707 | D74: =+D73 -> 508.0718753 | E74: 3705.882353 | F74: =SUM(C74:E74) -> 6899.900936 | G74: =+F74/B74 -> 4.599933957 | H74: 0.1095222371

Sheet TS Profit
A1: Potential Profit for Tall Spindle
B3: Bushel | C3: Gross | D3: Annual | E3: Harvest | G3: Total | H3: Annual | I3: Accum
A4: Year | B4: Yield | C4: Income | D4: Costs | E4: Costs | F4: Interest | G4: Cost | H4: Profit | I4: Profit
A5: 0 | B5: =+'Factors & Yield'!D38 -> 0 | C5: =+B5*42*TSPrice -> 0 | D5: =+year0 -> 2013 | E5: =+B5*42*LaborPicking -> 0 | F5: =+(+D5+E5)*0.5*IntOper+LandCost*IntLand -> 440.26 | G5: =SUM(D5:F5) -> 2453.26 | H5: =+C5-G5 -> -2453.26 | I5: =+H5 -> -2453.26
A6: 1 | B6: =+'Factors & Yield'!D39 -> 0 | C6: 0 | D6: =+TSYear1 -> 24134.76027 | E6: =+B6*42*LaborPicking -> 0 | F6: =+(+D6+E6)*0.5*IntOper+LandCost*IntLand -> 882.6952054 | G6: =SUM(D6:F6) -> 25017.45548 | H6: =+C6-G6 -> -25017.45548 | I6: =+H6+I5 -> -27470.71548
A7: 2 | B7: =+'Factors & Yield'!D40 -> 0 | C7: 0 | D7: =+TSYear2 -> 2448.903555 | E7: 0 | F7: 448.9780711 | G7: 2897.881627 | H7: =+C7-G7 -> -2897.881627 | I7: -30368.5971
A8: 3 | B8: =+'Factors & Yield'!D41 -> 50 | C8: 630 | D8: =+TSYear3 -> 2084.213067 | E8: 123.5294118 | F8: 444.1548496 | G8: 2651.897328 | H8: -2021.897328 | I8: -32390.49443
A9: 4 | B9: =+'Factors & Yield'!D42 -> 400 | C9: 5040 | D9: =+TSYear4 -> 2223.207754 | E9: 988.2352941 | F9: 464.228861 | G9: 3675.671909 | H9: 1364.328091 | I9: -31026.16634
A10: 5 | B10: =+'Factors & Yield'!D43 -> 800 | C10: 10080 | D10: 2223.207754 | E10: 1976.470588 | F10: 483.9935669 | G10: 4683.671909 | H10: 5396.328091 | I10: -25629.83825
A11: 6 | B11: =+'Factors & Yield'!D44 -> 1100 | C11: 13860 | D11: 2223.207754 | E11: 2717.647059 | F11: 498.8170963 | G11: 5439.671909 | H11: 8420.328091 | I11: -17209.51016
A12: 7 | B12: =+'Factors & Yield'!D45 -> 1400 | C12: 17640 | D12: 2223.207754 | E12: 3458.823529 | F12: 513.6406257 | G12: 6195.671909 | H12: 11444.32809 | I12: -5765.18207
A13: 8 | B13: =+'Factors & Yield'!D46 -> 1400 | C13: 17640 | D13: 2223.207754 | E13: 3458.823529 | F13: 513.6406257 | G13: 6195.671909 | H13: 11444.32809 | I13: 5679.146021
A14: 9 | B14: =+'Factors & Yield'!D47 -> 1400 | C14: 17640 | D14: 2223.207754 | E14: 3458.823529 | F14: 513.6406257 | G14: 6195.671909 | H14: 11444.32809 | I14: 17123.47411
A15: 10 | B15: =+'Factors & Yield'!D48 -> 1400 | C15: 17640 | D15: 2223.207754 | E15: 3458.823529 | F15: 513.6406257 | G15: 6195.671909 | H15: 11444.32809 | I15: 28567.8022
A16: 11 | B16: =+'Factors & Yield'!D49 -> 1400 | C16: 17640 | D16: 2223.207754 | E16: 3458.823529 | F16: 513.6406257 | G16: 6195.671909 | H16: 11444.32809 | I16: 40012.13029
A17: 12 | B17: =+'Factors & Yield'!D50 -> 1400 | C17: 17640 | D17: 2223.207754 | E17: 3458.823529 | F17: 513.6406257 | G17: 6195.671909 | H17: 11444.32809 | I17: 51456.45838
A18: 13 | B18: =+'Factors & Yield'!D51 -> 1400 | C18: 17640 | D18: 2223.207754 | E18: 3458.823529 | F18: 513.6406257 | G18: 6195.671909 | H18: 11444.32809 | I18: 62900.78647
A19: 14 | B19: =+'Factors & Yield'!D52 -> 1400 | C19: 17640 | D19: 2223.207754 | E19: 3458.823529 | F19: 513.6406257 | G19: 6195.671909 | H19: 11444.32809 | I19: 74345.11456
A20: 15 | B20: =+'Factors & Yield'!D53 -> 1400 | C20: 17640 | D20: 2223.207754 | E20: 3458.823529 | F20: 513.6406257 | G20: 6195.671909 | H20: 11444.32809 | I20: 85789.44265
A21: 16 | B21: =+'Factors & Yield'!D54 -> 1400 | C21: 17640 | D21: 2223.207754 | E21: 3458.823529 | F21: 513.6406257 | G21: 6195.671909 | H21: 11444.32809 | I21: 97233.77075
A22: 17 | B22: =+'Factors & Yield'!D55 -> 1400 | C22: 17640 | D22: 2223.207754 | E22: 3458.823529 | F22: 513.6406257 | G22: 6195.671909 | H22: 11444.32809 | I22: 108678.0988
A23: 18 | B23: =+'Factors & Yield'!D56 -> 1400 | C23: 17640 | D23: 2223.207754 | E23: 3458.823529 | F23: 513.6406257 | G23: 6195.671909 | H23: 11444.32809 | I23: 120122.4269
A24: 19 | B24: =+'Factors & Yield'!D57 -> 1400 | C24: 17640 | D24: 2223.207754 | E24: 3458.823529 | F24: 513.6406257 | G24: 6195.671909 | H24: 11444.32809 | I24: 131566.755
A25: 20 | B25: =+'Factors & Yield'!D58 -> 1400 | C25: 17640 | D25: 2223.207754 | E25: 3458.823529 | F25: 513.6406257 | G25: 6195.671909 | H25: 11444.32809 | I25: 143011.0831
B27: =SUM(B5:B26) -> 21950 | C27: =SUM(C5:C26) -> 276570 | D27: 68475.40872 | E27: 54229.41176 | F27: 10854.09641 | G27: 133558.9169 | H27: 143011.0831 | I27: =+I25 -> 143011.0831
A29: Sales Price /lb. | D29: 0.3 | F29: Unskilled Labor Cost | J29: 20
A52: Potential Profit for Tall Spindle
A54: Effect of varing yield.
A56: This chart is based on Year 6, Mature Bearing Year.
B59: Yield | C59: Growing | D59: Interest | E59: Harvest | F59: Total | G59: Cost | H59: Cost
B60: /Acre | C60: Costs | D60: Costs | E60: Costs | F60: Costs | G60: /Bushel | H60: /lb.
B61: 200 | C61: 2712 | D61: 495 | E61: 579 | F61: 3786 | G61: 18.93 | H61: 0.45
B62: 300 | C62: 2712 | D62: 495 | E62: 869 | F62: 4076 | G62: 13.59 | H62: 0.32
B63: 400 | C63: 2712 | D63: 495 | E63: 1159 | F63: 4366 | G63: 10.91 | H63: 0.26
B64: 500 | C64: 2712 | D64: 495 | E64: 1448 | F64: 4655 | G64: 9.31 | H64: 0.22
B65: 600 | C65: 2712 | D65: 495 | E65: 1738 | F65: 4945 | G65: 8.24 | H65: 0.2
B66: 700 | C66: 2712 | D66: 495 | E66: 2028 | F66: 5235 | G66: 7.48 | H66: 0.18
B67: 800 | C67: 2712 | D67: 495 | E67: 2317 | F67: 5524 | G67: 6.91 | H67: 0.16
B68: 900 | C68: 2712 | D68: 495 | E68: 2607 | F68: 5814 | G68: 6.46 | H68: 0.15
B69: 1000 | C69: 2712 | D69: 495 | E69: 2897 | F69: 6104 | G69: 6.1 | H69: 0.15
B70: 1100 | C70: 2712 | D70: 495 | E70: 3186 | F70: 6393 | G70: 5.81 | H70: 0.14
B71: 1200 | C71: 2712 | D71: 495 | E71: 3476 | F71: 6683 | G71: 5.57 | H71: 0.13
B72: 1300 | C72: 2712 | D72: 495 | E72: 3766 | F72: 6973 | G72: 5.36 | H72: 0.13
B73: 1400 | C73: 2712 | D73: 495 | E73: 4055 | F73: 7262 | G73: 5.19 | H73: 0.12
B74: 1500 | C74: 2712 | D74: 495 | E74: 4345 | F74: 7552 | G74: 5.03 | H74: 0.12

Sheet SS Profit
A1: Potential Profit for Super Spindle
B3: Bushel | C3: Gross | D3: Annual | E3: Harvest | G3: Total | H3: Annual | I3: Accum
A4: Year | B4: Yield | C4: Income | D4: Costs | E4: Costs | F4: Interest | G4: Cost | H4: Profit | I4: Profit
A5: 0 | B5: =+'Factors & Yield'!E38 -> 0 | C5: =+B5*42*SSPrice -> 0 | D5: =+year0 -> 2013 | E5: =+B5*42*LaborPicking -> 0 | F5: =+(+D5+E5)*0.5*IntOper+LandCost*IntLand -> 440.26 | G5: =SUM(D5:F5) -> 2453.26 | H5: =+C5-G5 -> -2453.26 | I5: =+H5 -> -2453.26
A6: =+A5+1 -> 1 | B6: =+'Factors & Yield'!E39 -> 0 | C6: 0 | D6: =+SSYear1 -> 25186.99106 | E6: =+B6*42*LaborPicking -> 0 | F6: =+(+D6+E6)*0.5*IntOper+LandCost*IntLand -> 903.7398211 | G6: =SUM(D6:F6) -> 26090.73088 | H6: =+C6-G6 -> -26090.73088 | I6: =+H6+I5 -> -28543.99088
A7: =+A6+1 -> 2 | B7: =+'Factors & Yield'!E40 -> 0 | C7: 0 | D7: =+SSYear2 -> 3506.583194 | E7: 0 | F7: 470.1316639 | G7: 3976.714858 | H7: =+C7-G7 -> -3976.714858 | I7: -32520.70573
A8: =+A7+1 -> 3 | B8: =+'Factors & Yield'!E41 -> 300 | C8: 3780 | D8: =+SSYear3 -> 2550.773148 | E8: 741.1764706 | F8: 465.8389924 | G8: 3757.788611 | H8: 22.2113891 | I8: -32498.49435
A9: 4 | B9: =+'Factors & Yield'!E42 -> 700 | C9: 8820 | D9: =+SSYear4 -> 2688.746091 | E9: 1729.411765 | F9: 488.3631571 | G9: 4906.521013 | H9: 3913.478987 | I9: -28585.01536
A10: 5 | B10: =+'Factors & Yield'!E43 -> 1100 | C10: 13860 | D10: =+SSYear4 -> 2688.746091 | E10: 2717.647059 | F10: 508.127863 | G10: 5914.521013 | H10: 7945.478987 | I10: -20639.53637
A11: 6 | B11: =+'Factors & Yield'!E44 -> 1500 | C11: 18900 | D11: 2688.746091 | E11: 3705.882353 | F11: 527.8925689 | G11: 6922.521013 | H11: 11977.47899 | I11: -8662.057384
A12: 7 | B12: =+'Factors & Yield'!E45 -> 1500 | C12: 18900 | D12: 2688.746091 | E12: 3705.882353 | F12: 527.8925689 | G12: 6922.521013 | H12: 11977.47899 | I12: 3315.421603
A13: 8 | B13: =+'Factors & Yield'!E46 -> 1500 | C13: 18900 | D13: 2688.746091 | E13: 3705.882353 | F13: 527.8925689 | G13: 6922.521013 | H13: 11977.47899 | I13: 15292.90059
A14: 9 | B14: =+'Factors & Yield'!E47 -> 1500 | C14: 18900 | D14: 2688.746091 | E14: 3705.882353 | F14: 527.8925689 | G14: 6922.521013 | H14: 11977.47899 | I14: 27270.37958
A15: 10 | B15: =+'Factors & Yield'!E48 -> 1500 | C15: 18900 | D15: 2688.746091 | E15: 3705.882353 | F15: 527.8925689 | G15: 6922.521013 | H15: 11977.47899 | I15: 39247.85856
A16: 11 | B16: =+'Factors & Yield'!E49 -> 1500 | C16: 18900 | D16: 2688.746091 | E16: 3705.882353 | F16: 527.8925689 | G16: 6922.521013 | H16: 11977.47899 | I16: 51225.33755
A17: 12 | B17: =+'Factors & Yield'!E50 -> 1500 | C17: 18900 | D17: 2688.746091 | E17: 3705.882353 | F17: 527.8925689 | G17: 6922.521013 | H17: 11977.47899 | I17: 63202.81654
A18: 13 | B18: =+'Factors & Yield'!E51 -> 1500 | C18: 18900 | D18: 2688.746091 | E18: 3705.882353 | F18: 527.8925689 | G18: 6922.521013 | H18: 11977.47899 | I18: 75180.29552
A19: 14 | B19: =+'Factors & Yield'!E52 -> 1500 | C19: 18900 | D19: 2688.746091 | E19: 3705.882353 | F19: 527.8925689 | G19: 6922.521013 | H19: 11977.47899 | I19: 87157.77451
A20: 15 | B20: =+'Factors & Yield'!E53 -> 1500 | C20: 18900 | D20: 2688.746091 | E20: 3705.882353 | F20: 527.8925689 | G20: 6922.521013 | H20: 11977.47899 | I20: 99135.2535
A21: 16 | B21: =+'Factors & Yield'!E54 -> 1500 | C21: 18900 | D21: 2688.746091 | E21: 3705.882353 | F21: 527.8925689 | G21: 6922.521013 | H21: 11977.47899 | I21: 111112.7325
A22: 17 | B22: =+'Factors & Yield'!E55 -> 1500 | C22: 18900 | D22: 2688.746091 | E22: 3705.882353 | F22: 527.8925689 | G22: 6922.521013 | H22: 11977.47899 | I22: 123090.2115
A23: 18 | B23: =+'Factors & Yield'!E56 -> 1500 | C23: 18900 | D23: 2688.746091 | E23: 3705.882353 | F23: 527.8925689 | G23: 6922.521013 | H23: 11977.47899 | I23: 135067.6905
A24: 19 | B24: =+'Factors & Yield'!E57 -> 1500 | C24: 18900 | D24: 2688.746091 | E24: 3705.882353 | F24: 527.8925689 | G24: 6922.521013 | H24: 11977.47899 | I24: 147045.1694
A25: 20 | B25: =+'Factors & Yield'!E58 -> 1500 | C25: 18900 | D25: 2688.746091 | E25: 3705.882353 | F25: 527.8925689 | G25: 6922.521013 | H25: 11977.47899 | I25: 159022.6484
B27: =SUM(B5:B26) -> 24600 | C27: =SUM(C5:C26) -> 309960 | D27: 78966.03095 | E27: 60776.47059 | F27: 11194.85003 | G27: 150937.3516 | H27: 159022.6484 | I27: =+I25 -> 159022.6484
A29: Sales Price /lb. | D29: =+TSPrice -> 0.3 | F29: Unskilled Labor Cost | J29: =+LaborNoSkill -> 20
A52: =+A1 -> Potential Profit for Super Spindle
A54: Effect of varing yield.
A56: This chart is based on Year 6, Mature Bearing Year.
B59: Yield | C59: Growing | D59: Interest | E59: Harvest | F59: Total | G59: Cost | H59: Cost
B60: /Acre | C60: Costs | D60: Costs | E60: Costs | F60: Costs | G60: /Bushel | H60: /lb.
B61: 200 | C61: =+SSYear4 -> 2688.746091 | D61: =+F9 -> 488.3631571 | E61: =+B61*42*LaborPicking -> 494.1176471 | F61: =SUM(C61:E61) -> 3671.226895 | G61: =+F61/B61 -> 18.35613448 | H61: =+G61/42 -> 0.4370508209
B62: =+B61+100 -> 300 | C62: =+C61 -> 2688.746091 | D62: =+D61 -> 488.3631571 | E62: =+B62*42*LaborPicking -> 741.1764706 | F62: =SUM(C62:E62) -> 3918.285719 | G62: =+F62/B62 -> 13.0609524 | H62: =+G62/42 -> 0.3109750571
B63: =+B62+100 -> 400 | C63: =+C62 -> 2688.746091 | D63: =+D62 -> 488.3631571 | E63: 988.2352941 | F63: =SUM(C63:E63) -> 4165.344542 | G63: =+F63/B63 -> 10.41336136 | H63: =+G63/42 -> 0.2479371751
B64: 500 | C64: 2688.746091 | D64: 488.3631571 | E64: 1235.294118 | F64: 4412.403366 | G64: 8.824806732 | H64: 0.210114446
B65: 600 | C65: 2688.746091 | D65: 488.3631571 | E65: 1482.352941 | F65: 4659.462189 | G65: 7.765770316 | H65: 0.1848992932
B66: 700 | C66: 2688.746091 | D66: 488.3631571 | E66: 1729.411765 | F66: 4906.521013 | G66: 7.009315733 | H66: 0.1668884698
B67: 800 | C67: 2688.746091 | D67: 488.3631571 | E67: 1976.470588 | F67: 5153.579836 | G67: 6.441974796 | H67: 0.1533803523
B68: 900 | C68: 2688.746091 | D68: 488.3631571 | E68: 2223.529412 | F68: 5400.63866 | G68: 6.000709622 | H68: 0.1428740386
B69: 1000 | C69: 2688.746091 | D69: 488.3631571 | E69: 2470.588235 | F69: 5647.697484 | G69: 5.647697484 | H69: 0.1344689877
B70: 1100 | C70: 2688.746091 | D70: 488.3631571 | E70: 2717.647059 | F70: 5894.756307 | G70: 5.35886937 | H70: 0.1275921279
B71: 1200 | C71: 2688.746091 | D71: 488.3631571 | E71: 2964.705882 | F71: 6141.815131 | G71: 5.118179275 | H71: 0.1218614113
B72: =+B71+100 -> 1300 | C72: 2688.746091 | D72: =+D71 -> 488.3631571 | E72: 3211.764706 | F72: =SUM(C72:E72) -> 6388.873954 | G72: =+F72/B72 -> 4.914518426 | H72: 0.1170123435
B73: =+B72+100 -> 1400 | C73: 2688.746091 | D73: =+D72 -> 488.3631571 | E73: 3458.823529 | F73: =SUM(C73:E73) -> 6635.932778 | G73: =+F73/B73 -> 4.739951984 | H73: 0.1128559996
B74: =+B73+100 -> 1500 | C74: 2688.746091 | D74: =+D73 -> 488.3631571 | E74: 3705.882353 | F74: =SUM(C74:E74) -> 6882.991601 | G74: =+F74/B74 -> 4.588661067 | H74: 0.1092538349

Sheet FW Profit
A1: Potential Profit for Fruiting Wall
B3: Bushel | C3: Gross | D3: Annual | E3: Harvest | G3: Total | H3: Annual | I3: Accum
A4: Year | B4: Yield | C4: Income | D4: Costs | E4: Costs | F4: Interest | G4: Cost | H4: Profit | I4: Profit
A5: 0 | B5: =+'Factors & Yield'!F38 -> 0 | C5: =+B5*42*FWPrice -> 0 | D5: =+year0 -> 2013 | E5: =+B5*42*LaborPicking -> 0 | F5: =+(+D5+E5)*0.5*IntOper+LandCost*IntLand -> 440.26 | G5: =SUM(D5:F5) -> 2453.26 | H5: =+C5-G5 -> -2453.26 | I5: =+H5 -> -2453.26
A6: =+A5+1 -> 1 | B6: =+'Factors & Yield'!F39 -> 0 | C6: 0 | D6: =+FWYear1 -> 31378.28092 | E6: =+B6*42*LaborPicking -> 0 | F6: =+(+D6+E6)*0.5*IntOper+LandCost*IntLand -> 1027.565618 | G6: =SUM(D6:F6) -> 32405.84654 | H6: =+C6-G6 -> -32405.84654 | I6: =+H6+I5 -> -34859.10654
A7: =+A6+1 -> 2 | B7: =+'Factors & Yield'!F40 -> 0 | C7: 0 | D7: =+FWYear2 -> 2653.580899 | E7: 0 | F7: 453.071618 | G7: =SUM(D7:F7) -> 3106.652517 | H7: =+C7-G7 -> -3106.652517 | I7: -37965.75906
A8: =+A7+1 -> 3 | B8: =+'Factors & Yield'!F41 -> 300 | C8: 3780 | D8: =+FWYear3 -> 2354.159727 | E8: 741.1764706 | F8: 461.906724 | G8: 3557.242922 | H8: 222.757078 | I8: -37743.00198
A9: 4 | B9: =+'Factors & Yield'!F42 -> 700 | C9: 8820 | D9: =+FWYear4 -> 2587.908477 | E9: 1729.411765 | F9: 486.3464048 | G9: 4803.666647 | H9: 4016.333353 | I9: -33726.66862
A10: 5 | B10: =+'Factors & Yield'!F43 -> 1100 | C10: 13860 | D10: 2587.908477 | E10: 2717.647059 | F10: 506.1111107 | G10: 5811.666647 | H10: 8048.333353 | I10: -25678.33527
A11: 6 | B11: =+'Factors & Yield'!F44 -> 1400 | C11: 17640 | D11: 2587.908477 | E11: 3458.823529 | F11: 520.9346401 | G11: 6567.666647 | H11: 11072.33335 | I11: -14606.00192
A12: 7 | B12: =+'Factors & Yield'!F45 -> 1500 | C12: 18900 | D12: 2587.908477 | E12: 3705.882353 | F12: 525.8758166 | G12: 6819.666647 | H12: 12080.33335 | I12: -2525.668565
A13: 8 | B13: =+'Factors & Yield'!F46 -> 1500 | C13: 18900 | D13: 2587.908477 | E13: 3705.882353 | F13: 525.8758166 | G13: 6819.666647 | H13: 12080.33335 | I13: 9554.664788
A14: 9 | B14: =+'Factors & Yield'!F47 -> 1500 | C14: 18900 | D14: 2587.908477 | E14: 3705.882353 | F14: 525.8758166 | G14: 6819.666647 | H14: 12080.33335 | I14: 21634.99814
A15: 10 | B15: =+'Factors & Yield'!F48 -> 1500 | C15: 18900 | D15: 2587.908477 | E15: 3705.882353 | F15: 525.8758166 | G15: 6819.666647 | H15: 12080.33335 | I15: 33715.33149
A16: 11 | B16: =+'Factors & Yield'!F49 -> 1500 | C16: 18900 | D16: 2587.908477 | E16: 3705.882353 | F16: 525.8758166 | G16: 6819.666647 | H16: 12080.33335 | I16: 45795.66485
A17: 12 | B17: =+'Factors & Yield'!F50 -> 1500 | C17: 18900 | D17: 2587.908477 | E17: 3705.882353 | F17: 525.8758166 | G17: 6819.666647 | H17: 12080.33335 | I17: 57875.9982
A18: 13 | B18: =+'Factors & Yield'!F51 -> 1500 | C18: 18900 | D18: 2587.908477 | E18: 3705.882353 | F18: 525.8758166 | G18: 6819.666647 | H18: 12080.33335 | I18: 69956.33155
A19: 14 | B19: =+'Factors & Yield'!F52 -> 1500 | C19: 18900 | D19: 2587.908477 | E19: 3705.882353 | F19: 525.8758166 | G19: 6819.666647 | H19: 12080.33335 | I19: 82036.66491
A20: 15 | B20: =+'Factors & Yield'!F53 -> 1500 | C20: 18900 | D20: 2587.908477 | E20: 3705.882353 | F20: 525.8758166 | G20: 6819.666647 | H20: 12080.33335 | I20: 94116.99826
A21: 16 | B21: =+'Factors & Yield'!F54 -> 1500 | C21: 18900 | D21: 2587.908477 | E21: 3705.882353 | F21: 525.8758166 | G21: 6819.666647 | H21: 12080.33335 | I21: 106197.3316
A22: 17 | B22: =+'Factors & Yield'!F55 -> 1500 | C22: 18900 | D22: 2587.908477 | E22: 3705.882353 | F22: 525.8758166 | G22: 6819.666647 | H22: 12080.33335 | I22: 118277.665
A23: 18 | B23: =+'Factors & Yield'!F56 -> 1500 | C23: 18900 | D23: 2587.908477 | E23: 3705.882353 | F23: 525.8758166 | G23: 6819.666647 | H23: 12080.33335 | I23: 130357.9983
A24: 19 | B24: =+'Factors & Yield'!F57 -> 1500 | C24: 18900 | D24: 2587.908477 | E24: 3705.882353 | F24: 525.8758166 | G24: 6819.666647 | H24: 12080.33335 | I24: 142438.3317
A25: 20 | B25: =+'Factors & Yield'!F58 -> 1500 | C25: 18900 | D25: 2587.908477 | E25: 3705.882353 | F25: 525.8758166 | G25: 6819.666647 | H25: 12080.33335 | I25: 154518.665
B27: =SUM(B5:B26) -> 24500 | C27: =SUM(C5:C26) -> 308700 | D27: 82393.46566 | E27: 60529.41176 | F27: 11258.45755 | G27: 154181.335 | H27: 154518.665 | I27: =+I25 -> 154518.665
A29: Sales Price /lb. | D29: =+FWPrice -> 0.3 | F29: Unskilled Labor Cost | J29: =+LaborNoSkill -> 20
A52: =+A1 -> Potential Profit for Fruiting Wall
A54: Effect of varing yield.
A56: This chart is based on Year 6, Mature Bearing Year.
B59: Yield | C59: Growing | D59: Interest | E59: Harvest | F59: Total | G59: Cost | H59: Cost
B60: /Acre | C60: Costs | D60: Costs | E60: Costs | F60: Costs | G60: /Bushel | H60: /lb.
B61: 200 | C61: =+FWYear4 -> 2587.908477 | D61: =+F9 -> 486.3464048 | E61: =+B61*42*LaborPicking -> 494.1176471 | F61: =SUM(C61:E61) -> 3568.372529 | G61: =+F61/B61 -> 17.84186265 | H61: =+G61/42 -> 0.4248062535
B62: =+B61+100 -> 300 | C62: =+C61 -> 2587.908477 | D62: =+D61 -> 486.3464048 | E62: =+B62*42*LaborPicking -> 741.1764706 | F62: =SUM(C62:E62) -> 3815.431353 | G62: =+F62/B62 -> 12.71810451 | H62: =+G62/42 -> 0.3028120121
B63: =+B62+100 -> 400 | C63: =+C62 -> 2587.908477 | D63: 486.3464048 | E63: 988.2352941 | F63: =SUM(C63:E63) -> 4062.490176 | G63: =+F63/B63 -> 10.15622544 | H63: =+G63/42 -> 0.2418148915
B64: 500 | C64: 2587.908477 | D64: 486.3464048 | E64: 1235.294118 | F64: 4309.549 | G64: 8.619098 | H64: 0.205216619
B65: 600 | C65: 2587.908477 | D65: 486.3464048 | E65: 1482.352941 | F65: 4556.607824 | G65: 7.594346373 | H65: 0.1808177708
B66: 700 | C66: 2587.908477 | D66: 486.3464048 | E66: 1729.411765 | F66: 4803.666647 | G66: 6.862380924 | H66: 0.163390022
B67: 800 | C67: 2587.908477 | D67: 486.3464048 | E67: 1976.470588 | F67: 5050.725471 | G67: 6.313406838 | H67: 0.1503192104
B68: 900 | C68: 2587.908477 | D68: 486.3464048 | E68: 2223.529412 | F68: 5297.784294 | G68: 5.886426993 | H68: 0.1401530237
B69: 1000 | C69: 2587.908477 | D69: 486.3464048 | E69: 2470.588235 | F69: 5544.843118 | G69: 5.544843118 | H69: 0.1320200742
B70: 1100 | C70: 2587.908477 | D70: 486.3464048 | E70: 2717.647059 | F70: 5791.901941 | G70: 5.265365401 | H70: 0.1253658429
B71: 1200 | C71: 2587.908477 | D71: 486.3464048 | E71: 2964.705882 | F71: 6038.960765 | G71: 5.032467304 | H71: 0.1198206501
B72: =+B71+100 -> 1300 | C72: 2587.908477 | D72: =+D71 -> 486.3464048 | E72: 3211.764706 | F72: =SUM(C72:E72) -> 6286.019588 | G72: =+F72/B72 -> 4.835399683 | H72: 0.1151285639
B73: =+B72+100 -> 1400 | C73: 2587.908477 | D73: =+D72 -> 486.3464048 | E73: 3458.823529 | F73: =SUM(C73:E73) -> 6533.078412 | G73: =+F73/B73 -> 4.66648458 | H73: 0.1111067757
B74: =+B73+100 -> 1500 | C74: 2587.908477 | D74: =+D73 -> 486.3464048 | E74: 3705.882353 | F74: =SUM(C74:E74) -> 6780.137235 | G74: =+F74/B74 -> 4.52009149 | H74: 0.107621226

Sheet Spray Program
A1: Spray Program | D1: Full Program for Central Leader | M1: Pesticide Category
A2: Covers & Timing | C2: Pests | D2: # | E2: Material | F2: Rate Used | H2: Price/Unit | J2: % Farm Treated | K2: Total Cost/Acre | L2: Individual Pesticide Category | M2: d | N2: i | O2: pgr | P2: h | Q2: f | R2: n
A3: 1 | B3: Green Tip | C3: AS, FB | D3: 45 | E3: =VLOOKUP($D3,SprayCost,3) -> C-O-C-S | G3: =VLOOKUP($D3,SprayCost,12) -> lb | H3: =VLOOKUP($D3,SprayCost,17) -> 23.7 | I3: =VLOOKUP($D3,SprayCost,12) -> lb | J3: 100 | K3: =+H3*J3*0.01 -> 23.7 | L3: =VLOOKUP($D3,SprayCost,2) -> d | M3: =IF(IPestC=PestCat,ISprayC,0) -> 23.7 | N3: 0 | O3: 0 | P3: 0 | Q3: 0 | R3: 0
D4: 32 | E4: Oil | F4: 0.25 | G4: gal | H4: =VLOOKUP($D4,SprayCost,17) -> 45 | I4: gal | J4: 10 | K4: =+H4/6*F4*J4*0.01 -> 0.1875 | L4: i | M4: 0 | N4: 0.1875 | O4: 0 | P4: 0 | Q4: 0 | R4: 0
A5: 1.5 | B5: 1/4 Green | D5: 56 | E5: Dithane | F5: =VLOOKUP($D5,SprayCost,11) -> 6 | G5: lb | H5: 23.25 | J5: 100 | K5: =+H5*J5*0.01 -> 23.25 | L5: d | M5: 23.25 | N5: 0 | O5: 0 | P5: 0 | Q5: 0 | R5: 0
A6: =+A3+1 -> 2 | B6: 1/2" Green | C6: AS | D6: 56 | E6: Dithane | F6: 3 | G6: lb | H6: 23.25 | I6: lb | J6: 100 | K6: 23.25 | L6: d | M6: 23.25 | N6: 0 | O6: 0 | P6: 0 | Q6: 0 | R6: 0
D7: 133 | E7: Vanguard | F7: =VLOOKUP($D7,SprayCost,11) -> 3 | G7: oz | H7: 10.2 | I7: oz | J7: 100 | K7: 10.2 | L7: d | M7: 10.2 | N7: 0 | O7: 0 | P7: 0 | Q7: 0 | R7: 0
A8: =+A6+1 -> 3 | B8: Tight Cluster | C8: AS, PM | D8: 56 | E8: Dithane | F8: =VLOOKUP($D8,SprayCost,11) -> 6 | G8: lb | H8: 23.25 | I8: lb | J8: 100 | K8: 23.25 | L8: d | M8: 23.25 | N8: 0 | O8: 0 | P8: 0 | Q8: 0 | R8: 0
D9: 163 | E9: Rally | F9: =VLOOKUP($D9,SprayCost,11) -> 5 | G9: oz | H9: 17 | I9: oz | J9: 80 | K9: 13.6 | L9: d | M9: 13.6 | N9: 0 | O9: 0 | P9: 0 | Q9: 0 | R9: 0
A10: =+A8+1 -> 4 | B10: Pink | C10: AS, PM | D10: 56 | E10: Dithane | F10: =VLOOKUP($D10,SprayCost,11) -> 6 | G10: lb | H10: 23.25 | I10: lb | J10: 100 | K10: 23.25 | L10: d | M10: 23.25 | N10: 0 | O10: 0 | P10: 0 | Q10: 0 | R10: 0
C11: SJS, RA, OBLR | D11: 77 | E11: Lorsban 4E | F11: =VLOOKUP($D11,SprayCost,11) -> 1.5 | G11: qt | H11: 11.16 | I11: qt | J11: 100 | K11: 11.16 | L11: i | M11: 0 | N11: 11.16 | O11: 0 | P11: 0 | Q11: 0 | R11: 0
D12: 32 | E12: Oil | F12: 1 | G12: gal | H12: 45 | I12: gal | J12: 10 | K12: =+H12/6*F12*J12*0.01 -> 0.75 | L12: i | M12: 0 | N12: 0.75 | O12: 0 | P12: 0 | Q12: 0 | R12: 0
C13: STLM, OBLR | D13: 136 | E13: Warrior | F13: =VLOOKUP($D13,SprayCost,11) -> 5.12 | G13: oz | H13: 10.1668 | I13: oz | J13: 80 | K13: 8.13344 | L13: i | M13: =IF(IPestC=PestCat,ISprayC,0) -> 0 | N13: 8.13344 | O13: 0 | P13: 0 | Q13: 0 | R13: 0
A14: =+A10+1 -> 5 | B14: Bloom | C14: AS, PM | D14: 120 | E14: Sovran | F14: 2 | G14: oz | H14: 14.76 | I14: oz | J14: 100 | K14: 14.76 | L14: d | M14: 14.76 | N14: 0 | O14: 0 | P14: 0 | Q14: 0 | R14: 0
C15: AS, PM | D15: 56 | E15: Dithane | F15: 3 | G15: lb | H15: 23.25 | I15: lb | J15: 100 | K15: 23.25 | L15: d | M15: 23.25 | N15: 0 | O15: 0 | P15: 0 | Q15: 0 | R15: 0
C16: FB | D16: 14 | E16: Agri-Mycin 17 | F16: =VLOOKUP($D16,SprayCost,11) -> 1.5 | G16: lb | H16: 18.68 | I16: lb | J16: 55 | K16: 10.274 | L16: d | M16: 10.274 | N16: 0 | O16: 0 | P16: 0 | Q16: 0 | R16: 0
C17: FB | D17: 82 | E17: Mycoshield | F17: =VLOOKUP($D17,SprayCost,11) -> 1.5 | G17: lb | H17: 14 | I17: lb | J17: 60 | K17: =+H17*1.5*J17*0.01 -> 12.6 | L17: d | M17: 12.6 | N17: 0 | O17: 0 | P17: 0 | Q17: 0 | R17: 0
D18: 96 | E18: Promalin | F18: =VLOOKUP($D18,SprayCost,11) -> 1 | G18: pt | H18: 40.5 | I18: pt | J18: 30 | K18: 12.15 | L18: pgr | M18: 0 | N18: 0 | O18: 12.15 | P18: 0 | Q18: 0 | R18: 0
A19: =+A14+1 -> 6 | B19: Bloom | C19: AS, PM | D19: 120 | E19: Sovran | F19: 2 | G19: oz | H19: 14.76 | I19: oz | J19: 100 | K19: 14.76 | L19: d | M19: 14.76 | N19: 0 | O19: 0 | P19: 0 | Q19: 0 | R19: 0
C20: AS, PM | D20: 56 | E20: Dithane | F20: 3 | G20: lb | H20: 23.25 | I20: lb | J20: 100 | K20: 23.25 | L20: d | M20: 23.25 | N20: 0 | O20: 0 | P20: 0 | Q20: 0 | R20: 0
C21: FB | D21: 172 | E21: Kasumin | F21: 2 | G21: qt | H21: 60 | I21: 0 | J21: 40 | K21: 24 | L21: d | M21: 24 | N21: 0 | O21: 0 | P21: 0 | Q21: 0 | R21: 0
C22: FB | D22: 82 | E22: Mycoshield | F22: =VLOOKUP($D22,SprayCost,11) -> 1.5 | G22: lb | H22: 14 | I22: lb | J22: 50 | K22: 7 | L22: d | M22: 7 | N22: 0 | O22: 0 | P22: 0 | Q22: 0 | R22: 0
B23: Pheromone | C23: CM | D23: 74 | E23: Isomate C+ | F23: 200 | G23: ea | H23: 110 | I23: ea | J23: 70 | K23: =+H23*J23*0.01*0.5 -> 38.5 | L23: i | M23: =IF(IPestC=PestCat,ISprayC,0) -> 0 | N23: 38.5 | O23: 0 | P23: 0 | Q23: 0 | R23: 0
B24: Puffer | C24: CM | D24: 74 | E24: Puffer | F24: 1 | G24: ea | H24: 110 | I24: ea | J24: 10 | K24: 11 | L24: i | M24: 0 | N24: 11 | O24: 0 | P24: 0 | Q24: 0 | R24: 0
A25: =+A19+1 -> 7 | B25: KBPF | C25: FB | D25: 172 | E25: Kasumin | F25: 2 | G25: qt | H25: 60 | I25: 0 | J25: 35 | K25: 21 | L25: d | M25: 21 | N25: 0 | O25: 0 | P25: 0 | Q25: 0 | R25: 0
C26: FB | D26: 82 | E26: Mycoshield | F26: =VLOOKUP($D26,SprayCost,11) -> 1.5 | G26: lb | H26: 14 | I26: lb | J26: 80 | K26: 11.2 | L26: d | M26: 11.2 | N26: 0 | O26: 0 | P26: 0 | Q26: 0 | R26: 0
C27: Shoot Blight, PGR | D27: 21 | E27: Apogee | F27: 8 | G27: oz | H27: 48.36 | I27: oz | J27: 70 | K27: 33.852 | L27: pgr | M27: 0 | N27: 0 | O27: 33.852 | P27: 0 | Q27: 0 | R27: 0
A28: =+A25+1 -> 8 | B28: Petal Fall | C28: FB | D28: 56 | E28: Dithane | F28: =VLOOKUP($D28,SprayCost,11) -> 6 | G28: lb | H28: 23.25 | I28: lb | J28: 100 | K28: 23.25 | L28: d | M28: 23.25 | N28: 0 | O28: 0 | P28: 0 | Q28: 0 | R28: 0
C29: PC, OBLR | D29: 27 | E29: Avaunt | F29: =VLOOKUP($D29,SprayCost,11) -> 6 | G29: oz | H29: 36.78 | I29: oz | J29: 90 | K29: 33.102 | L29: i | M29: 0 | N29: 33.102 | O29: 0 | P29: 0 | Q29: 0 | R29: 0
C30: Mites | D30: 13 | E30: Agrimek | F30: =VLOOKUP($D30,SprayCost,11) -> 10 | G30: oz | H30: 39.6578125 | I30: oz | J30: 90 | K30: 35.69203125 | L30: i | M30: 0 | N30: 35.69203125 | O30: 0 | P30: 0 | Q30: 0 | R30: 0
C31: Mites | D31: 32 | E31: Oil | F31: 0.25 | G31: gal | H31: 45 | I31: gal | J31: 50 | K31: 22.5 | L31: i | M31: 0 | N31: 22.5 | O31: 0 | P31: 0 | Q31: 0 | R31: 0
D32: 98 | E32: Provide 10 SG | F32: =VLOOKUP($D32,SprayCost,11) -> 60 | G32: gr | H32: 39 | I32: gr | J32: 30 | K32: 11.7 | L32: pgr | M32: 0 | N32: 0 | O32: 11.7 | P32: 0 | Q32: 0 | R32: 0
A33: =+A28+1 -> 9 | B33: 1st Cover | C33: PC,CM | D33: 103 | E33: Rimon | F33: =VLOOKUP($D33,SprayCost,11) -> 20 | G33: oz | H33: 29 | I33: oz | J33: 100 | K33: 29 | L33: i | M33: =IF(IPestC=PestCat,ISprayC,0) -> 0 | N33: 29 | O33: 0 | P33: 0 | Q33: 0 | R33: 0
C34: AS, Sum Dis. | D34: 38 | E34: Captan 50W | F34: 6 | G34: lb | H34: 17.88 | I34: lb | J34: 100 | K34: 17.88 | L34: d | M34: 17.88 | N34: 0 | O34: 0 | P34: 0 | Q34: 0 | R34: 0
C35: Shoot Blight, PGR | D35: 21 | E35: Apogee | F35: 8 | G35: oz | H35: =VLOOKUP($D35,SprayCost,17) -> 48.36 | I35: oz | J35: 65 | K35: 31.434 | L35: pgr | M35: 0 | N35: 0 | O35: 31.434 | P35: 0 | Q35: 0 | R35: 0
D36: 98 | E36: Provide 10 SG | F36: =VLOOKUP($D36,SprayCost,11) -> 60 | G36: gr | H36: 39 | I36: gr | J36: 30 | K36: 11.7 | L36: pgr | M36: 0 | N36: 0 | O36: 11.7 | P36: 0 | Q36: 0 | R36: 0
A37: =+A33+1 -> 10 | B37: Thinning | C37: Cropping | D37: 115 | E37: Sevin XLR | F37: 1 | G37: qt | H37: 3.9375 | I37: qt | J37: 80 | K37: 3.15 | L37: pgr | M37: 0 | N37: 0 | O37: 3.15 | P37: 0 | Q37: 0 | R37: 0
C38: Cropping | D38: 80 | E38: Maxcel | F38: 2 | G38: qt | H38: 52 | I38: qt | J38: 80 | K38: 41.6 | L38: pgr | M38: 0 | N38: 0 | O38: 41.6 | P38: 0 | Q38: 0 | R38: 0
D39: 98 | E39: Provide 10 SG | F39: =VLOOKUP($D39,SprayCost,11) -> 60 | G39: gr | H39: 39 | I39: gr | J39: 30 | K39: 11.7 | L39: pgr | M39: 0 | N39: 0 | O39: 11.7 | P39: 0 | Q39: 0 | R39: 0
A40: =+A37+1 -> 11 | B40: Thinning | C40: Cropping | D40: 115 | E40: Sevin XLR | F40: 1 | G40: qt | H40: 3.9375 | I40: qt | J40: 60 | K40: 2.3625 | L40: pgr | M40: 0 | N40: 0 | O40: 2.3625 | P40: 0 | Q40: 0 | R40: 0
C41: Cropping | D41: 65 | E41: Fruitone N | F41: 4 | G41: oz | H41: 22.16 | I41: oz | J41: 60 | K41: 13.296 | L41: pgr | M41: 0 | N41: 0 | O41: 13.296 | P41: 0 | Q41: 0 | R41: 0
D42: 98 | E42: Provide 10 SG | F42: =VLOOKUP($D42,SprayCost,11) -> 60 | G42: gr | H42: 39 | I42: gr | J42: 30 | K42: 11.7 | L42: pgr | M42: 0 | N42: 0 | O42: 11.7 | P42: 0 | Q42: 0 | R42: 0
A43: =+A40+1 -> 12 | B43: 2nd Cover | C43: PC | D43: 36 | E43: Calypso | F43: 6 | G43: oz | H43: 35.1 | I43: oz | J43: 80 | K43: 28.08 | L43: i | M43: =IF(IPestC=PestCat,ISprayC,0) -> 0 | N43: 28.08 | O43: 0 | P43: 0 | Q43: 0 | R43: 0
C44: SJS | D44: 173 | E44: Movento | F44: 6 | G44: 0 | H44: 41.953125 | I44: 0 | J44: 20 | K44: 8.390625 | L44: i | M44: 0 | N44: 8.390625 | O44: 0 | P44: 0 | Q44: 0 | R44: 0
D45: 40 | E45: Captan 80WDG | F45: 3.75 | G45: lb | H45: 13.09 | I45: lb | J45: 100 | K45: 13.09 | L45: d | M45: 13.09 | N45: 0 | O45: 0 | P45: 0 | Q45: 0 | R45: 0
C46: Shoot Blight, PGR | D46: 21 | E46: Apogee | F46: 8 | G46: oz | H46: 48.36 | I46: oz | J46: 60 | K46: 29.016 | L46: pgr | M46: 0 | N46: 0 | O46: 29.016 | P46: 0 | Q46: 0 | R46: 0
C47: Return Bloom | D47: 65 | E47: Fruitone N | F47: 8 | G47: oz | H47: 22.16 | I47: oz | J47: 25 | K47: 5.54 | L47: pgr | M47: 0 | N47: 0 | O47: 5.54 | P47: 0 | Q47: 0 | R47: 0
A48: =+A43+1 -> 13 | B48: 3rd Cover | C48: AS, Sum Dis. | D48: 39 | E48: Captan 80WDG | F48: 3 | G48: lb | H48: 6.54 | I48: lb | J48: 100 | K48: 6.54 | L48: d | M48: 6.54 | N48: 0 | O48: 0 | P48: 0 | Q48: 0 | R48: 0
C49: AS, Sum Dis. | D49: 163 | E49: Rally | F49: =VLOOKUP($D49,SprayCost,11) -> 5 | G49: oz | H49: 17 | I49: oz | J49: 90 | K49: 15.3 | L49: d | M49: 15.3 | N49: 0 | O49: 0 | P49: 0 | Q49: 0 | R49: 0
D50: 95 | E50: Proclaim | F50: =VLOOKUP($D50,SprayCost,11) -> 4.8 | G50: oz | H50: 30.72 | I50: oz | J50: 100 | K50: 30.72 | L50: i | M50: 0 | N50: 30.72 | O50: 0 | P50: 0 | Q50: 0 | R50: 0
C51: Return Bloom | D51: 65 | E51: Fruitone N | F51: 8 | G51: oz | H51: 22.16 | I51: oz | J51: 25 | K51: 5.54 | L51: pgr | M51: 0 | N51: 0 | O51: 5.54 | P51: 0 | Q51: 0 | R51: 0
A52: =+A48+1 -> 14 | B52: 4th Cover | C52: Sum Dis. | D52: 39 | E52: Captan 80WDG | F52: 3 | G52: lb | H52: 6.54 | I52: lb | J52: 100 | K52: 6.54 | L52: d | M52: 6.54 | N52: 0 | O52: 0 | P52: 0 | Q52: 0 | R52: 0
C53: OBLR, Jap B | D53: 70 | E53: Imidan 70 WSB | F53: =VLOOKUP($D53,SprayCost,11) -> 3 | G53: lb | H53: 31.8 | I53: lb | J53: 35 | K53: 11.13 | L53: i | M53: =IF(IPestC=PestCat,ISprayC,0) -> 0 | N53: 11.13 | O53: 0 | P53: 0 | Q53: 0 | R53: 0
C54: Return Bloom | D54: 65 | E54: Fruitone N | F54: 8 | G54: oz | H54: 22.16 | I54: oz | J54: 25 | K54: 5.54 | L54: pgr | M54: 0 | N54: 0 | O54: 5.54 | P54: 0 | Q54: 0 | R54: 0
A55: =+A52+1 -> 15 | B55: 5th Cover | C55: Sum Dis. | D55: 39 | E55: Captan 80WDG | F55: 1.875 | G55: lb | H55: 6.54 | I55: lb | J55: 100 | K55: 6.54 | L55: d | M55: 6.54 | N55: 0 | O55: 0 | P55: 0 | Q55: 0 | R55: 0
C56: Sum Dis. | D56: 120 | E56: Sovran | F56: 4 | G56: oz | H56: 14.76 | I56: oz | J56: 50 | K56: 7.38 | L56: d | M56: 7.38 | N56: 0 | O56: 0 | P56: 0 | Q56: 0 | R56: 0
C57: AM, CM, Jap B | D57: 174 | E57: Voliam Flexi | F57: 7 | G57: oz | H57: 44.22 | I57: oz | J57: 90 | K57: 39.798 | L57: i | M57: 0 | N57: 39.798 | O57: 0 | P57: 0 | Q57: 0 | R57: 0
C58: Mites | D58: 137 | E58: Envidor | F58: 2 | G58: oz | H58: 33 | I58: oz | J58: 25 | K58: 8.25 | M58: 0 | N58: 0 | O58: 0 | P58: 0 | Q58: 0 | R58: 0
A59: =+A55+1 -> 16 | B59: 6th Cover | C59: Sum Dis. | D59: 39 | E59: Captan 80WDG | F59: 1.875 | G59: lb | H59: 6.54 | I59: lb | J59: 100 | K59: 6.54 | L59: d | M59: 6.54 | N59: 0 | O59: 0 | P59: 0 | Q59: 0 | R59: 0
C60: AM, CM, Jap B | D60: 70 | E60: Imidan 70 WSB | F60: 3 | G60: lb | H60: 31.8 | I60: lb | J60: 100 | K60: 31.8 | L60: i | M60: 0 | N60: 31.8 | O60: 0 | P60: 0 | Q60: 0 | R60: 0
A61: =+A59+1 -> 17 | B61: 7th Cover | C61: Sum Dis. | D61: 39 | E61: Captan 80WDG | F61: 1.875 | G61: lb | H61: 6.54 | I61: lb | J61: 60 | K61: 3.924 | L61: d | M61: 3.924 | N61: 0 | O61: 0 | P61: 0 | Q61: 0 | R61: 0
C62: Sum Dis. | D62: 120 | E62: Sovran | F62: 4 | G62: oz | H62: 14.76 | I62: oz | J62: 55 | K62: 8.118 | L62: d | M62: 8.118 | N62: 0 | O62: 0 | P62: 0 | Q62: 0 | R62: 0
C63: CM, OBLR, Jap B | D63: 70 | E63: Imidan 70 WSB | F63: 3 | G63: lb | H63: 31.8 | I63: lb | J63: 100 | K63: 31.8 | L63: i | M63: 0 | N63: 31.8 | O63: 0 | P63: 0 | Q63: 0 | R63: 0
C64: CM | D64: 17 | E64: Altachor | F64: 5 | G64: oz | H64: 36 | I64: oz | J64: 100 | K64: 36 | L64: i | M64: 0 | N64: 36 | O64: 0 | P64: 0 | Q64: 0 | R64: 0
C65: Stop Drop | D65: 101 | E65: Retain | F65: 0.5 | G65: ea | H65: 232.5 | I65: ea | J65: 40 | K65: 93 | L65: pgr | M65: 0 | N65: 0 | O65: 93 | P65: 0 | Q65: 0 | R65: 0
C66: Stop Drop | D66: 65 | E66: Fruitone N | F66: 16 | G66: oz | H66: 22.16 | I66: oz | J66: 30 | K66: =+H66*J66*0.01 -> 6.648 | L66: pgr | M66: 0 | N66: 0 | O66: 6.648 | P66: 0 | Q66: 0 | R66: 0
A67: =+A61+1 -> 18 | B67: Post-Harvest | C67: N, B, Zn | J67: 100
B68: Total Spray Trips | C68: =+A67 -> 18
A69: Total | J69: =SUM(K3:K67) -> 1163.618096 | M69: =SUM(M3:M68) -> 417.696 | N69: =SUM(N3:N68) -> 407.7435963 | O69: 329.9285 | P69: 0 | Q69: 0 | R69: 0
A70: Foliar Nutrient Sprays
A71: Apps & Timing | C71: Pests | D71: # | E71: Material | F71: Rate Used | H71: Price | J71: % Farm Treated | K71: Total Cost/Acre
A72: 1 | B72: Prebloom | C72: N, B, Zn | D72: 147 | E72: =VLOOKUP($D72,SprayCost,3) -> Foliar Feed II (16-8-3 + micros) | F72: 0.5 | G72: =VLOOKUP($D72,SprayCost,12) -> qt | H72: =VLOOKUP($D72,SprayCost,10) -> 0 | I72: =VLOOKUP($D72,SprayCost,12) -> qt | J72: 95 | K72: =+F72*H72*J72*0.01*A72 -> 0 | L72: f | M72: =IF(IPestC=PestCat,ISprayC,0) -> 0 | N72: 0 | O72: 0 | P72: 0 | Q72: 0 | R72: 0
A73: 1 | B73: Postbloom | C73: 0-50-30 | D73: 147 | E73: =VLOOKUP($D73,SprayCost,3) -> Foliar Feed II (16-8-3 + micros) | F73: 0.5 | G73: =VLOOKUP($D73,SprayCost,12) -> qt | H73: =VLOOKUP($D73,SprayCost,10) -> 0 | I73: =VLOOKUP($D73,SprayCost,12) -> qt | J73: 90 | K73: =+F73*H73*J73*0.01*A73 -> 0 | L73: f | M73: 0 | N73: 0 | O73: 0 | P73: 0 | Q73: 0 | R73: 0
A74: 6 | B74: Summer Calcium | C74: Calcium Sprays | D74: 143 | E74: =VLOOKUP($D74,SprayCost,3) -> Calcium 10% (1.25# Cal/gal) | F74: 0.5 | G74: =VLOOKUP($D74,SprayCost,12) -> gal | H74: =VLOOKUP($D74,SprayCost,10) -> 0 | I74: =VLOOKUP($D74,SprayCost,12) -> gal | J74: 40 | K74: =+F74*H74*J74*0.01*A74 -> 0 | L74: f | M74: 0 | N74: 0 | O74: 0 | P74: 0 | Q74: 0 | R74: 0
A75: 4 | B75: Complete Foliar | C75: 20-20-20 | D75: 148 | E75: =VLOOKUP($D75,SprayCost,3) -> Nuta Leaf 20-20-20 | F75: 1.5 | G75: =VLOOKUP($D75,SprayCost,12) -> lb | H75: =VLOOKUP($D75,SprayCost,10) -> 0 | I75: =VLOOKUP($D75,SprayCost,12) -> lb | J75: 100 | K75: =+F75*H75*J75*0.01*A75 -> 0 | L75: f | M75: 0 | N75: 0 | O75: 0 | P75: 0 | Q75: 0 | R75: 0
A76: 1 | B76: Post-Harvest | C76: N, B, Zn | D76: 147 | E76: =VLOOKUP($D76,SprayCost,3) -> Foliar Feed II (16-8-3 + micros) | F76: 2.5 | G76: =VLOOKUP($D76,SprayCost,12) -> qt | H76: =VLOOKUP($D76,SprayCost,10) -> 0 | I76: =VLOOKUP($D76,SprayCost,12) -> qt | J76: 95 | K76: =+F76*H76*J76*0.01*A76 -> 0 | L76: f | M76: 0 | N76: 0 | O76: 0 | P76: 0 | Q76: 0 | R76: 0
B77: All of these applications trips are already included in the Spray Program above. | L77: f | M77: 0 | N77: 0 | O77: 0 | P77: 0 | Q77: 0 | R77: 0
A78: Total Foliar Program | E78: =+FoliarMat -> 0 | K78: =SUM(K72:K77) -> 0 | M78: =SUM(M72:M77) -> 0 | N78: =SUM(N72:N77) -> 0 | O78: 0 | P78: 0 | Q78: 0 | R78: 0
A80: Total Spray Program Cost | E80: =+TotSpCost -> 1200 | K80: 1200 | M80: =+M69+M78 -> 417.696 | N80: 407.7435963 | O80: 329.9285 | P80: =+StandHerb -> 45 | Q80: 0 | R80: 0

Sheet SprayPrice
A1: 1
A2: 2 | B2: i=insecticide
A3: 3 | B3: d=disease material
A4: 4 | B4: h=herbicide
A5: 5 | B5: pgr=plant growth regulator
A6: 6 | B6: f=fertilizer
A7: 7 | B7: n=nutrition
A8: 8 | B8: Type | C8: Product | D8: Pkg Size | K8: Rate/ Acre | L8: Unit | M8: Price | Q8: Average Price per acre
A9: 9
A10: 10 | B10: i | C10: Actara | D10: 30 oz | K10: 2.75 | L10: oz | M10: 3.501818182 | Q10: 9.63 | R10: 9.63
A11: 11 | B11: i | C11: Actara | D11: 30 oz | K11: 4.5 | L11: oz | M11: 3.5 | Q11: 15.75 | R11: 15.75
A12: 12 | B12: i | C12: Actara | D12: 30 oz | K12: 5.5 | L12: oz | M12: 3.5 | Q12: 19.25 | R12: 19.25
A13: 13 | B13: i | C13: Agrimek | D13: 1 gal | K13: 10 | L13: oz | M13: 3.96578125 | Q13: 39.6578125
A14: 14 | B14: d | C14: Agri-Mycin 17 | D14: 2 lb | K14: 1.5 | L14: lb | M14: 12.45333333 | Q14: 18.68 | R14: 18.68
A15: 15 | B15: h | C15: Aim EW | D15: 1 qt | K15: 1 | L15: oz | M15: 6.11 | Q15: 6.11 | R15: 6.11
A16: 16 | B16: h | C16: Aim EW | D16: 1 qt | K16: 0.5 | L16: oz | M16: 5.97 | Q16: 2.985
A17: 17 | B17: i | C17: Altachor | K17: 5 | L17: oz | M17: 7.2 | Q17: 36 | R17: 36
A18: 18 | B18: d | C18: Alliette 80 WDG | D18: 5 lb | L18: lb
A19: 19 | B19: pgr | C19: Amid-Thin WC | D19: 1 lb | L19: lb
A20: 20 | B20: h | C20: Amine 2,4-D | D20: 2.5 gal | K20: 3 | L20: pt | M20: 1.626666667 | Q20: 4.88 | R20: 4.88
A21: 21 | B21: pgr | C21: Apogee | D21: 5 lb | K21: 12 | L21: oz | M21: 4.03 | Q21: 48.36 | R21: 48.36
A22: 22 | B22: d | C22: Applause DF | D22: 25 lb | K22: 2.8 | L22: lb | M22: 7 | Q22: 19.6
A23: 23 | C23: Apollo SC | D23: 1 pt | L23: pt
A24: 24 | B24: i | C24: Asana | D24: 1 gal | K24: 12.8 | L24: oz | M24: 0.609375 | Q24: 7.8 | R24: 7.8
A25: 25 | B25: i | C25: Assail 30SG | D25: 32 oz | K25: 2.5 | L25: oz | M25: 5.332 | Q25: 13.33 | R25: 13.33
A26: 26 | B26: i | C26: Assail 30SG | D26: 32 oz | K26: 6 | L26: oz | M26: 5.33 | Q26: 31.98 | R26: 31.98
A27: 27 | B27: i | C27: Avaunt | D27: 15 oz | K27: 6 | L27: oz | M27: 6.13 | Q27: 36.78
A28: 28 | B28: i | C28: Azinphos-M | D28: 5 lb | K28: 2 | L28: lb | M28: 10.19333333 | Q28: 20.38666667
A29: 29 | B29: i | C29: Battalion | D29: 1 gal | K29: 12.8 | L29: oz | M29: 0.6640625 | Q29: 8.5
A30: 30 | B30: i | C30: Baythroid XL | D30: 1 gal | K30: 2.8 | L30: oz | M30: 2.4765625 | Q30: 6.934375
A31: 31 | B31: i | C31: Biocover MLT | D31: 2.5 gal | K31: 6 | L31: gal | M31: 9.95 | Q31: 59.7 | R31: 59.7
A32: 32 | B32: i | C32: Oil | D32: 55 gal | K32: 6 | L32: gal | M32: 7.5 | Q32: 45 | R32: 45
A33: 33 | B33: i | C33: Biocover MLT | D33: bulk | K33: 6 | L33: gal | M33: 5.8 | Q33: 34.8
A34: 34 | B34: i | C34: Calypso | D34: 1 gal | K34: 2 | L34: oz | M34: 5.85 | Q34: 11.7 | R34: 11.7
A35: 35 | B35: i | C35: Calypso | D35: 1 gal | K35: 4 | L35: oz | M35: 5.85 | Q35: 23.4 | R35: 23.4
A36: 36 | B36: i | C36: Calypso | D36: 1 gal | K36: 6 | L36: oz | M36: 5.85 | Q36: 35.1 | R36: 35.1
A37: 37 | B37: d | C37: Captan 50W | D37: 30 lb | K37: 3 | L37: lb | M37: 2.98 | Q37: 8.94 | R37: 8.94
A38: 38 | B38: d | C38: Captan 50W | D38: 30 lb | K38: 6 | L38: lb | M38: 2.98 | Q38: 17.88 | R38: 17.88
A39: 39 | B39: d | C39: Captan 80WDG | D39: 30 lb | K39: 1.875 | L39: lb | M39: 3.488 | Q39: 6.54 | R39: 6.54
A40: 40 | B40: d | C40: Captan 80WDG | D40: 30 lb | K40: 3.75 | L40: lb | M40: 3.490666667 | Q40: 13.09 | R40: 13.09
A41: 41 | B41: d | C41: Captec 4L | D41: 2.5 gal | K41: 6 | L41: pt | M41: 2.97 | Q41: 17.82 | R41: 17.82
A42: 42 | B42: pgr | C42: Carbryl 4L | D42: 2.5 gal | K42: 2 | L42: pt | M42: 2.875 | Q42: 5.75 | R42: 5.75
A43: 43 | B43: i | C43: Carpovirusine | D43: 1 liter | K43: 6.7 | L43: oz | M43: 2.22 | Q43: 14.874
A44: 44 | B44: h | C44: Chateau WDG | D44: 2.5 lb | K44: 12 | L44: oz | M44: 6.13 | Q44: 73.56 | R44: 73.56
A45: 45 | B45: d | C45: C-O-C-S | D45: 20 lb | K45: 6 | L45: lb | M45: 3.95 | Q45: 23.7 | R45: 23.7
A46: 46 | B46: d | C46: C-O-C-S | D46: 20 lb | K46: 8 | L46: lb | M46: 3.95 | Q46: 31.6 | R46: 31.6
A47: 47 | B47: i | C47: Confirm 2F | D47: 2.5 gal | L47: gal
A48: 48 | B48: i | C48: Virosoft | D48: 1 qt | K48: 1.6 | L48: oz | M48: 10.04625 | Q48: 16.074
A49: 49 | B49: i | C49: Damoil | D49: 55 gal
A50: 50 | B50: i | C50: Danitol | D50: 1 gal | K50: 16 | L50: oz | M50: 1.39 | Q50: 22.24 | R50: 22.24
A51: 51 | B51: i | C51: Delegate | D51: 26 oz | K51: 7 | L51: oz | M51: 5.645714286 | Q51: 39.52 | R51: 39.52
A52: 52 | B52: i | C52: Deliver | D52: 2.5 lb | K52: 0.75 | L52: lb | M52: 17.13 | Q52: 12.8475
A53: 53 | B53: i | C53: Deliver | D53: 2.5 lb | K53: 1 | L53: lb | M53: 17.13 | Q53: 17.13
A54: 54 | B54: i | C54: Dipel | D54: 5 lb | K54: 1.5 | L54: lb | M54: 10.89333333 | Q54: 16.34
A55: 55 | B55: i | C55: Dipel | D55: 5 lb | K55: 2 | L55: lb | M55: 10.89333333 | Q55: 21.78666667
A56: 56 | B56: d | C56: Dithane | D56: 30 lb | K56: 6 | L56: lb | M56: 3.875 | Q56: 23.25
A57: 57 | B57: h | C57: Diuron 4L | D57: 2.5 gal | K57: 2 | L57: qt | M57: 7.5 | Q57: 15 | R57: 15
A58: 58 | B58: h | C58: Diuron 80 DF | D58: 5 lb
A59: 59 | B59: d | C59: Elite DF | D59: 2 lb | K59: 6 | L59: oz | M59: 3.334166667 | Q59: 20.005
A60: 60 | B60: i | C60: Envidor 2SC | D60: 1 gal | K60: 16 | L60: oz | M60: 2.04 | Q60: 32.64 | R60: 32.64
A61: 61 | B61: d | C61: Firewall | D61: 2 lb | K61: 1.5 | L61: lb | M61: 16.2 | Q61: 24.3
A62: 62 | B62: d | C62: Flamout | D62: 2 lb | K62: 1.5 | L62: lb | M62: 26.5 | Q62: 39.75
A63: 63 | B63: d | C63: Flint | D63: 20 oz | K63: 5 | L63: oz | M63: 4.32 | Q63: 21.6 | R63: 21.6
A64: 64 | B64: pgr | C64: Fruitone L | D64: 1 gal
A65: 65 | B65: pgr | C65: Fruitone N | D65: 1.25 lb | K65: 4 | L65: oz | M65: 5.54 | Q65: 22.16 | R65: =5.54*4 -> 22.16
A66: 66 | B66: i | C66: Fugimite 5 EC | D66: 2.5 gal
A67: 67 | B67: d | C67: Gem SC 500 | D67: 32 oz | K67: 2 | L67: oz | M67: 7.85 | Q67: 15.7
A68: 68 | B68: h | C68: Gramoxone Inteon | D68: 2.5 gal | K68: 3 | L68: pt | M68: 3.5 | Q68: 10.5 | R68: 10.5
A69: 69 | B69: i | C69: Guthion WSB | D69: 5 lb | K69: 2 | L69: lb | M69: 6.886666667 | Q69: 13.77333333
A70: 70 | B70: i | C70: Imidan 70 WSB | D70: 4 lb | K70: 3 | L70: lb | M70: 10.6 | Q70: 31.8 | R70: 31.8
A71: 71 | B71: d | C71: Indar | D71: 1 lb | K71: 2 | L71: oz | M71: 7.216875 | Q71: 14.43375
A72: 72 | B72: d | C72: Initiate 720 | D72: 2.5 gal | K72: 3.125 | L72: pt | M72: 3.9872 | Q72: 12.46 | R72: 12.46
A73: 73 | B73: i | C73: Intrepid | D73: 1 gal | K73: 1 | L73: pt | M73: 33.75 | Q73: 33.75
A74: 74 | B74: i | C74: Isomate C+ | D74: 400 | K74: 400 | L74: ea | M74: 0.275 | Q74: 110 | R74: 110
A75: 75 | B75: i | C75: Isomate CTT | D75: 400 | K75: 200 | M75: 1.04 | Q75: 208 | R75: 208
A76: 76 | B76: i | C76: Lannate SP | D76: 2 lb | K76: 1 | L76: lb | M76: 27.3 | Q76: 27.3
A77: 77 | B77: i | C77: Lorsban 4E | D77: 2.5 gal | K77: 1.5 | L77: qt | M77: 7.44 | Q77: 11.16 | R77: 11.16
A78: 78 | B78: i | C78: Lorsban 75 WDG | D78: 6.65 lb | K78: 1.33 | L78: lb | M78: 22 | Q78: 29.26 | R78: 29.26
A79: 79 | B79: h | C79: Makaze | D79: 2.5 gal | K79: 4 | L79: pt | M79: 4.69 | Q79: 18.76
A80: 80 | B80: pgr | C80: Maxcel | D80: 1 gal | K80: 2 | L80: qt | M80: 26 | Q80: 52 | R80: =26*2 -> 52
A81: 81 | C81: Mouse Bait | D81: 50 lb
A82: 82 | B82: d | C82: Mycoshield | D82: 2 lb | K82: 1.5 | L82: lb | M82: 9.333333333 | Q82: 14 | R82: 14
A83: 83 | B83: i | C83: Nexter | D83: 33 oz | K83: 6.6 | L83: oz | M83: 4.38030303 | Q83: 28.91 | R83: 28.91
A84: 84 | B84: d | C84: Nova | D84: 20 oz | K84: 3 | L84: oz | M84: 4.2 | Q84: 12.6
A85: 85 | B85: d | C85: Nova | D85: 20 oz | K85: 8 | L85: oz | M85: 4.2 | Q85: 33.6
A86: 86 | B86: d | C86: Orbit | D86: 1 qt | K86: 4 | L86: oz | M86: 3.1271875 | Q86: 12.50875
A87: 87 | B87: d | C87: Penncozeb DF | D87: 30 lb | K87: 3 | L87: lb | M87: 3.4 | Q87: 10.2
A88: 88 | B88: i | C88: Permethrin 3.2 | D88: 1 gal | K88: 8 | L88: oz | M88: 0.8359375 | Q88: 6.6875
A89: 89 | B89: d | C89: Polyram | D89: 30 lb | K89: 3 | L89: lb | M89: 3.3 | Q89: 9.9 | R89: 9.9
A90: 90 | B90: d | C90: Polyram | D90: 30 lb | K90: 6 | L90: lb | M90: 3.3 | Q90: 19.8 | R90: =+R89*2 -> 19.8
A91: 91 | B91: i | C91: Portal | D91: 2.5 gal | Q91: 27.5 | R91: 27.5
A92: 92 | B92: i | C92: Prey 1.6 F | D92: 1 gal | K92: 6 | L92: oz | M92: 0.76 | Q92: 4.56 | R92: 4.56
A93: 93 | B93: d | C93: Pristine | D93: 6.25 lb | K93: 14.5 | L93: oz | M93: 3.1 | Q93: 44.95 | R93: 44.95
A94: 94 | B94: i | C94: Proaxis | D94: 1 gal | K94: 5.12 | L94: oz | M94: 2.265625 | Q94: 11.6
A95: 95 | B95: i | C95: Proclaim | D95: 19.2 oz | K95: 4.8 | L95: oz | M95: 6.4 | Q95: 30.72 | R95: 30.72
A96: 96 | B96: pgr | C96: Promalin | D96: 1 qt | K96: 1 | L96: pt | M96: 40.5 | Q96: 40.5 | R96: 40.5
A97: 97 | B97: i | C97: Provado 1.6 F | D97: 1 gal | K97: 6 | L97: oz | M97: 2.582421875 | Q97: 15.49453125
A98: 98 | B98: pgr | C98: Provide 10 SG | D98: 100 gr | K98: 60 | L98: gr | M98: 0.65 | Q98: 39 | R98: 39
A99: 99 | B99: h | C99: Prowl H2O | D99: 2.5 gal | K99: 2 | L99: qt | M99: 8.81 | Q99: 17.62
A100: 100 | B100: h | C100: Prowl H2O | D100: 2.5 gal | K100: 4 | L100: qt | M100: 5 | Q100: 20 | R100: 20
A101: 101 | B101: pgr | C101: Retain | D101: 333 gr | K101: 1 | L101: ea | M101: 232.5 | Q101: 232.5
A102: 102 | B102: d | C102: Ridomil Gold SL | D102: 1 pt
A103: 103 | B103: i | C103: Rimon | D103: 2.5 gal | K103: 20 | L103: oz | M103: 1.45 | Q103: 29 | R103: 29
A104: 104 | B104: h | C104: Roundup Powermax | D104: 2.5 gal | K104: 3 | L104: pt | M104: 7.871875 | Q104: 23.615625
A105: 105 | B105: h | C105: Roundup Weather Max | D105: 2.5 gal | K105: 3 | L105: pt | M105: 5.626666667 | Q105: 16.88
A106: 106 | B106: d | C106: Rubigan | D106: 1 qt | K106: 8 | L106: oz | M106: 2.5296875 | Q106: 20.2375
A107: 107 | B107: d | C107: Rubigan | D107: 1 qt | K107: 12 | L107: oz | M107: 2.5296875 | Q107: 30.35625
A108: 108 | B108: h | C108: Saber | D108: 2.5 gal | K108: 3 | L108: pt | M108: 2.75 | Q108: 8.25
A109: 109 | B109: i | C109: Savey 50 DF | D109: 12 oz | L109: oz
A110: 110 | B110: d | C110: Scala | D110: 0.5 gal | K110: 5 | L110: oz | M110: 1.590625 | Q110: 7.953125
A111: 111 | B111: d | C111: Scala | D111: 0.5 gal | K111: 7 | L111: oz | M111: 1.72 | Q111: 12.04 | R111: 12.04
A112: 112 | B112: d | C112: Scala | D112: 0.5 gal | K112: 10 | L112: oz | M112: 1.72 | Q112: 17.2 | R112: 17.2
A113: 113 | B113: d | C113: Serenade Max | D113: 12 lb | K113: 3 | L113: lb | M113: 11.26666667 | Q113: 33.8
A114: 114 | B114: pgr | C114: Sevin 80S | D114: 10 lb | K114: 2 | L114: lb | M114: 6.64 | Q114: 13.28
A115: 115 | B115: pgr | C115: Sevin XLR | D115: 2.5 gal | K115: 1 | L115: qt | M115: 3.9375 | Q115: 3.9375
A116: 116 | B116: h | C116: Simazine 4L | D116: 2.5 gal | K116: 4 | L116: pt | M116: 2.72625 | Q116: 10.905
A117: 117 | B117: h | C117: Sinbar | D117: 5 lb | K117: 1 | L117: lb | M117: 43.5 | Q117: 43.5 | R117: 43.5
A118: 118 | B118: h | C118: Solicam DF | D118: 10 lb | L118: lb
A119: 119 | B119: d | C119: Sonata | D119: 2.5 gal | K119: 2 | L119: qt | M119: 6.44 | Q119: 12.88 | R119: 12.88
A120: 120 | B120: d | C120: Sovran | D120: 1.25 lb | K120: 4 | L120: oz | M120: 3.69 | Q120: 14.76 | R120: 14.76
A121: 121 | B121: i | C121: Spintor | D121: 1 gal | K121: 7.5 | L121: oz | M121: 5.3046875 | Q121: 39.78515625
A122: 122 | B122: i | C122: Sprayable Phermone GPTB | D122: 30 oz
A123: 123 | B123: i | C123: Sprayable Phermone LPTB | D123: 30 oz
A124: 124 | B124: i | C124: Sprayable Phermone Leafroller | D124: 30 oz
A125: 125 | B125: d | C125: Sulfur Micro 90W | D125: 30 lb | K125: 10 | L125: lb | M125: 0.6 | Q125: 6 | R125: 6
A126: 126 | B126: h | C126: Surflan AS | D126: 2.5 gal | K126: 8 | L126: pt | M126: 2.685 | Q126: 21.48 | R126: 21.48
A127: 127 | B127: d | C127: Syllit 3.4FL | D127: 2 gal | K127: 27 | L127: oz | M127: 0.51 | Q127: 13.77 | R127: 13.77
A128: 128 | B128: d | C128: Syllit 3.4FL | D128: 2 gal | K128: 72 | L128: oz | M128: 0.51 | Q128: 36.72 | R128: 36.72
A129: 129 | B129: i | C129: Thiodan 50W | D129: 5 lb | L129: lb
A130: 130 | B130: d | C130: Thiolux DF | D130: 50 lb | K130: 5 | L130: lb | M130: 0.75 | Q130: 3.75
A131: 131 | B131: i | C131: Tombstone Helios | D131: 1 gal | K131: 2.8 | L131: oz | M131: 2.859375 | Q131: 8.00625
A132: 132 | B132: d | C132: Topsin M | D132: 5 lb | K132: 8 | L132: oz | M132: 0.87 | Q132: 6.96 | R132: 6.96
A133: 133 | B133: d | C133: Vanguard | D133: 50 oz | K133: 3 | L133: oz | M133: 3.4 | Q133: 10.2 | R133: 10.2
A134: 134 | B134: d | C134: Vanguard | D134: 50 oz | K134: 5 | L134: oz | M134: 3.4 | Q134: 17 | R134: 17
A135: 135 | B135: i | C135: Warhawk | D135: 2.5 gal | K135: 1.5 | L135: qt | M135: 8.25 | Q135: 12.375
A136: 136 | B136: i | C136: Warrior | D136: 1 gal | K136: 5.12 | L136: oz | M136: 1.985703125 | Q136: 10.1668
A137: 137 | B137: i | C137: Zeal | D137: 14 oz | K137: 2 | L137: oz | M137: 16.5 | Q137: 33 | R137: 33
A138: 138 | B138: i | C138: Zeal (6x2 oz bag) | D138: 12 oz
A139: 139 | B139: d | C139: Ziram DF | D139: 40 lb | K139: 4 | L139: lb | M139: 3.9 | Q139: 15.6 | R139: 15.6
A140: 140
A141: 141
A142: 142
A143: 143 | B143: f | C143: Calcium 10% (1.25# Cal/gal) | D143: bulk | K143: 1 | L143: gal | M143: 5 | Q143: 5
A144: 144 | B144: f | C144: Calflow (3.32#/gal) | D144: 2.5 gal | K144: 2.8 | L144: pt | M144: 2.68 | Q144: 7.504
A145: 145 | B145: f | C145: Zinc 25% Citriplex | D145: 25 lb | K145: 2 | L145: lb | M145: 2.98 | Q145: 5.96
A146: 146 | B146: f | C146: Borosol 10 (1.1#/gal) | D146: 2.5 gal | K146: 1 | L146: pt | M146: 2.2 | Q146: 2.2
A147: 147 | B147: f | C147: Foliar Feed II (16-8-3 + micros) | D147: 2.5 gal | K147: 2 | L147: qt | M147: 2.45 | Q147: 4.9
A148: 148 | B148: f | C148: Nuta Leaf 20-20-20 | D148: 25 lb | K148: 5 | L148: lb | M148: 1.25 | Q148: 6.25
A149: 149 | B149: f | C149: Prosol 20-20-20 | D149: 25 lb | K149: 5 | L149: lb | M149: 1 | Q149: 5
A150: 150 | B150: f | C150: N-PACT 26-0-0 | D150: 2.5 gal | K150: 2 | L150: qt | M150: 4 | Q150: 8
A151: 151 | B151: f | C151: N-PACT 26-0-0 | D151: bulk | K151: 2 | L151: qt | M151: 3.5 | Q151: 7
A152: 152 | B152: f | C152: Star Phite | D152: 2.5 gal | K152: 1 | L152: qt | M152: 8 | Q152: 8
A153: 153 | B153: f | C153: Rampart | D153: 2.5 gal | K153: 1 | L153: qt | M153: 8.5 | Q153: 8.5
A154: 154 | B154: f | C154: Black Label | D154: bulk | K154: 2 | L154: gal | M154: 11.8 | Q154: 23.6
A155: 155 | B155: f | C155: Black Jack Zn | D155: 2.5 gal | K155: 1 | L155: pt | M155: 2.75 | Q155: 2.75
A156: 156 | B156: f | C156: Solubor DF | D156: 30 lb
A157: 157 | B157: i | C157: Belay | D157: 1.5 gal | K157: 6 | Q157: 9.96875
A158: 158 | B158: i | C158: Belt | D158: 1 gal | K158: 5 | Q158: 35.15625
A159: 159 | B159: i | C159: Isomate Flex | D159: 400 | K159: 400 | L159: ea | M159: 0.25 | Q159: 100 | R159: 110
A160: 160 | B160: i | C160: Isomate CM Puffer | D160: 1 each | K160: 1 | M160: 117 | Q160: 117 | R160: 208
A161: 161 | B161: i | C161: Inspire Super | D161: 1 gal | K161: 12 | M161: 1.5234375 | Q161: 18.28125 | R161: 208
A162: 162 | B162: d | C162: Rally | D162: 20 oz | K162: 3 | L162: oz | M162: 3.4 | Q162: 10.2
A163: 163 | B163: d | C163: Rally | D163: 20 oz | K163: 5 | L163: oz | M163: 3.4 | Q163: 17
A164: 164 | B164: d | C164: Fontelis | D164: 80 oz | K164: 16 | L164: oz | M164: 1.6 | Q164: 25.6
A165: 165 | B165: d | C165: Merivon | D165: 1 gal | K165: 4 | L165: oz | M165: 7.5 | Q165: 30
A166: 166 | B166: h | C166: Treevix | D166: 10 oz | K166: 1 | L166: oz | M166: 17.75 | Q166: 17.75
A167: 167 | B167: h | C167: Matrix SG | D167: 20 oz | K167: 3 | L167: oz | M167: 17.5 | Q167: 52.5
A168: 168 | B168: h | C168: Sandea | D168: 10 oz | K168: 1 | L168: oz | M168: 37.5 | Q168: 37.5
A169: 169 | B169: h | C169: Alion | D169: 32 oz | K169: 5 | L169: oz | M169: 11.75 | Q169: 58.75
A170: 170 | B170: h | C170: Trellis | D170: 1 lb | K170: 1 | L170: oz | M170: 72.65 | Q170: 72.65
A171: 171 | B171: pgr | C171: PoMaxa | D171: 1 gal | K171: 4 | L171: oz | M171: 4.309375 | Q171: 17.2375
A172: 172 | B172: f | C172: Kasumin | Q172: 60
A173: 173 | B173: i | C173: Movento | K173: 6 | M173: 6.9921875 | Q173: 41.953125
A174: 174 | B174: i | C174: Voliam Flexi | D174: oz | K174: 7 | L174: oz | M174: 44.22 | Q174: 44.22
A175: 175
A176: 176
A177: 177
A178: 178
A179: 179
A180: 180
A181: 181
A182: 182
A183: 183
A184: 184
A185: 185

Sheet Spray Costs
A1: Spray Material and Time Costs
A2: Cost of pesticide and foliar fertilizer materials applied per acre per season.
B3: Central Leader | D3: =+CLTRV -> 100 | E3: Vertical Axe | G3: =+VATRV -> 80 | H3: Tall Spindle | J3: =+TSTRV -> 75 | K3: Super Spindle | M3: =+SSTrV -> 75 | N3: Fruiting Wall | P3: =+FWTRV -> 75
A4: Year | B4: Program Applied | E4: =+B4 -> Program Applied | H4: =+E4 -> Program Applied | K4: =+H4 -> Program Applied | N4: =+K4 -> Program Applied
B5: Descrip. | C5: % of Full Program | D5: Cost /Acre | E5: =+B5 -> Descrip. | F5: =+C5 -> % of Full Program | G5: =+D5 -> Cost /Acre | H5: =+E5 -> Descrip. | I5: =+F5 -> % of Full Program | J5: =+G5 -> Cost /Acre | K5: =+E5 -> Descrip. | L5: =+F5 -> % of Full Program | M5: =+G5 -> Cost /Acre | N5: =+K5 -> Descrip. | O5: =+L5 -> % of Full Program | P5: =+M5 -> Cost /Acre
A6: 1 | B6: Planting Year | C6: 5 | D6: =+TotSpCost*'Spray Costs'!C6*0.01*CLTRV*0.01 -> 60 | E6: Planting Year | F6: 5 | G6: =+TotSpCost*'Spray Costs'!F6*0.01*VATRV*0.01 -> 48 | H6: =+B6 -> Planting Year | I6: =+C6 -> 5 | J6: =+TotSpCost*'Spray Costs'!I6*0.01*TSTRV*0.01 -> 45 | K6: Planting Year | L6: 5 | M6: =+TotSpCost*'Spray Costs'!L6*0.01*SSTrV*0.01 -> 45 | N6: Planting Year | O6: 5 | P6: =+TotSpCost*'Spray Costs'!O6*0.01*FWTRV*0.01 -> 45
A7: 2 | B7: Non-Bearing | C7: 10 | D7: =+TotSpCost*'Spray Costs'!C7*0.01*CLTRV*0.01 -> 120 | E7: Non-Bearing | F7: 20 | G7: =+TotSpCost*'Spray Costs'!F7*0.01*VATRV*0.01 -> 192 | H7: Planting Year | I7: 20 | J7: =+TotSpCost*'Spray Costs'!I7*0.01*TSTRV*0.01 -> 180 | K7: Early Cropping | L7: 50 | M7: =+TotSpCost*'Spray Costs'!L7*0.01*SSTrV*0.01 -> 450 | N7: Full | O7: 50 | P7: =+TotSpCost*'Spray Costs'!O7*0.01*FWTRV*0.01 -> 450
A8: 3 | B8: Early Cropping | C8: 40 | D8: =+TotSpCost*'Spray Costs'!C8*0.01*CLTRV*0.01 -> 480 | E8: Early Cropping | F8: 80 | G8: =+TotSpCost*'Spray Costs'!F8*0.01*VATRV*0.01 -> 768 | H8: Early Cropping | I8: 50 | J8: =+TotSpCost*'Spray Costs'!I8*0.01*TSTRV*0.01 -> 450 | K8: Full Program | L8: 80 | M8: =+TotSpCost*'Spray Costs'!L8*0.01*SSTrV*0.01 -> 720 | N8: Full Program | O8: 80 | P8: =+TotSpCost*'Spray Costs'!O8*0.01*FWTRV*0.01 -> 720
A9: 4 | B9: Early Cropping | C9: 60 | D9: =+TotSpCost*'Spray Costs'!C9*0.01*CLTRV*0.01 -> 720 | E9: Full Program | F9: 100 | G9: =+TotSpCost*'Spray Costs'!F9*0.01*VATRV*0.01 -> 960 | H9: Full Program | I9: 80 | J9: =+TotSpCost*'Spray Costs'!I9*0.01*TSTRV*0.01 -> 720 | K9: Full Program | L9: 100 | M9: =+TotSpCost*'Spray Costs'!L9*0.01*SSTrV*0.01 -> 900 | N9: Full Program | O9: 100 | P9: =+TotSpCost*'Spray Costs'!O9*0.01*FWTRV*0.01 -> 900
A10: 5 | B10: Full Program | C10: 100 | D10: =+TotSpCost*'Spray Costs'!C10*0.01*CLTRV*0.01 -> 1200 | E10: Full Program | F10: 100 | G10: =+TotSpCost*'Spray Costs'!F10*0.01*VATRV*0.01 -> 960 | H10: Full Program | I10: 100 | J10: =+TotSpCost*'Spray Costs'!I10*0.01*TSTRV*0.01 -> 900
A11: 6 | B11: =+B10 -> Full Program | C11: 100 | D11: =+TotSpCost*'Spray Costs'!C11*0.01*CLTRV*0.01 -> 1200 | E11: =+E10 -> Full Program | F11: 100 | G11: =+TotSpCost*'Spray Costs'!F11*0.01*VATRV*0.01 -> 960
A12: 7 | B12: Full Program | C12: 100 | D12: =+TotSpCost*'Spray Costs'!C12*0.01*CLTRV*0.01 -> 1200
A13: 8 | B13: =+B12 -> Full Program | C13: 100 | D13: =+TotSpCost*'Spray Costs'!C13*0.01*CLTRV*0.01 -> 1200
A14: Spray Time to treat 1 acre for 1 season.
A15: 1 | B15: Planting Year | C15: 5 | D15: =+CLTime*C15*0.01*TotSprTrips -> 0.09 | E15: Planting Year | F15: 5 | G15: =+VATime*F15*0.01*TotSprTrips -> 0.1285714286 | H15: Planting Year | I15: =+I6 -> 5 | J15: =+TSTime*L15*0.01*TotSprTrips -> 0.105 | K15: Planting Year | L15: =+L6 -> 5 | M15: =+SSTime*O15*0.01*TotSprTrips -> 0.1636363636 | N15: Planting Year | O15: 5 | P15: =+FWTime*O15*0.01*TotSprTrips -> 0.1636363636
A16: 2 | B16: Non-Bearing | C16: 10 | D16: 0.18 | E16: Non-Bearing | F16: 20 | G16: 0.5142857143 | H16: Early Cropping | I16: 60 | J16: =+TSTime*L16*0.01*TotSprTrips -> 1.26 | K16: Early Cropping | L16: 60 | M16: =+SSTime*O16*0.01*TotSprTrips -> 1.963636364 | N16: Early Cropping | O16: 60 | P16: =+FWTime*O16*0.01*TotSprTrips -> 1.963636364
A17: 3 | B17: Early Cropping | C17: 40 | D17: 0.72 | E17: Early Cropping | F17: 80 | G17: 2.057142857 | H17: Full Program | I17: 100 | J17: =+TSTime*L17*0.01*TotSprTrips -> 2.1 | K17: Full Program | L17: 100 | M17: =+SSTime*O17*0.01*TotSprTrips -> 3.272727273 | N17: Full Program | O17: 100 | P17: =+FWTime*O17*0.01*TotSprTrips -> 3.272727273
A18: 4 | B18: Early Cropping | C18: 60 | D18: 1.08 | E18: Full Program | F18: 100 | G18: 2.571428571 | H18: Full Program | I18: 100 | J18: =+TSTime*L18*0.01*TotSprTrips -> 2.1 | K18: Full Program | L18: 100 | M18: =+SSTime*O18*0.01*TotSprTrips -> 3.272727273 | N18: Full Program | O18: 100 | P18: =+FWTime*O18*0.01*TotSprTrips -> 3.272727273
A19: 5 | B19: Full Program | C19: 100 | D19: 1.8 | E19: Full Program | F19: 100 | G19: 2.571428571
A20: 6 | B20: =+B19 -> Full Program | C20: 100 | D20: 1.8 | E20: =+E19 -> Full Program | F20: 100 | G20: 2.571428571
A21: 7 | B21: Full Program | C21: 100 | D21: 1.8
A22: 8 | B22: =+B21 -> Full Program | C22: 100 | D22: 1.8
A23: Trip Time/spray. | C23: Row | D23: % of | E23: Hours | F23: Acres | G23: Time
C24: Spacing | D24: C.L. | E24: /Tank | F24: /Tank | G24: /Acre
A25: Central Leader | C25: =+CLRowSpace -> 20 | D25: =+C25/C25*100 -> 100 | E25: 1 | F25: 10 | G25: =+E25/F25*D25*0.01 -> 0.1 | H25: 1 hr /10 hours
A26: Vertical Axe | C26: =+VARowSpace -> 14 | D26: =+C25/C26*100 -> 142.8571429 | E26: 1 | F26: 10 | G26: =+E26/F26*D26*0.01 -> 0.1428571429
A27: Tall Spindle | C27: =+TSRowSpace -> 12 | D27: =+C26/C27*100 -> 116.6666667 | E27: 1 | F27: 10 | G27: =+E27/F27*D27*0.01 -> 0.1166666667
A28: SuperSpindle | C28: =+SSRowSpace -> 11 | D28: =+C25/C28*100 -> 181.8181818 | E28: 1 | F28: 10 | G28: 0.1818181818
A29: Fruiting Wall | C29: =+FWRowSpace -> 11 | D29: =+C25/C29*100 -> 181.8181818 | E29: 1 | F29: 10 | G29: 0.1818181818
C85: Sevin 80S

Sheet Herbicide
A1: Herbicide Program
C2: Central Leader | F2: Vertical Axe | I2: Tall Spindle | L2: Super Spindle | O2: Fruiting Wall
C3: Herbicide Strip | F3: =+C3 -> Herbicide Strip | I3: =+C3 -> Herbicide Strip | L3: =+F3 -> Herbicide Strip | O3: =+L3 -> Herbicide Strip
A4: Year | B4: Width | C4: Program | D4: Cost | E4: =+B4 -> Width | F4: =+C4 -> Program | G4: =+D4 -> Cost | H4: =+B4 -> Width | I4: =+C4 -> Program | J4: =+D4 -> Cost | K4: =+E4 -> Width | L4: =+F4 -> Program | M4: =+G4 -> Cost | N4: =+K4 -> Width | O4: =+L4 -> Program | P4: =+M4 -> Cost
A5: 1 | B5: 4 | C5: Soft | D5: =+B5/CLRowSpace*SoftHerb -> 6 | E5: 4 | F5: Soft | G5: =+E5/VARowSpace*SoftHerb -> 8.571428571 | H5: 4 | I5: Soft | J5: =+H5/TSRowSpace*SoftHerb -> 10 | K5: 4 | L5: Soft | M5: =+K5/SSRowSpace*SoftHerb -> 10.90909091 | N5: 3.5 | O5: Soft | P5: =+N5/FWRowSpace*SoftHerb -> 9.545454545
A6: 2 | B6: 4 | C6: =+C5 -> Soft | D6: =+B6/CLRowSpace*SoftHerb -> 6 | E6: 4 | F6: =+F5 -> Soft | G6: =+E6/VARowSpace*SoftHerb -> 8.571428571 | H6: 4 | I6: =+I5 -> Soft | J6: =+H6/TSRowSpace*SoftHerb -> 10 | K6: 4 | L6: =+L5 -> Soft | M6: =+K6/SSRowSpace*SoftHerb -> 10.90909091 | N6: 3.5 | O6: =+O5 -> Soft | P6: =+N6/FWRowSpace*SoftHerb -> 9.545454545
A7: 3 | B7: 6 | C7: =+C6 -> Soft | D7: =+B7/CLRowSpace*SoftHerb -> 9 | E7: 4 | F7: =+F6 -> Soft | G7: =+E7/VARowSpace*SoftHerb -> 8.571428571 | H7: 6 | I7: =+I6 -> Soft | J7: =+H7/TSRowSpace*SoftHerb -> 15 | K7: 6 | L7: =+L6 -> Soft | M7: =+K7/SSRowSpace*SoftHerb -> 16.36363636 | N7: 4.5 | O7: Standard | P7: =+N7/FWRowSpace*StandHerb -> 18.40909091
A8: 4 | B8: 6 | C8: =+C7 -> Soft | D8: =+B8/CLRowSpace*SoftHerb -> 9 | E8: 6 | F8: Standard | G8: =+E8/VARowSpace*StandHerb -> 19.28571429 | H8: 6 | I8: Standard | J8: =+H8/TSRowSpace*StandHerb -> 22.5 | K8: 6 | L8: Standard | M8: =+K8/SSRowSpace*StandHerb -> 24.54545455 | N8: 4.5 | O8: Standard | P8: =+N8/FWRowSpace*StandHerb -> 18.40909091
A9: 5 | B9: 6 | C9: Standard | D9: =+B9/CLRowSpace*StandHerb -> 13.5 | E9: 6 | F9: Standard | G9: =+E9/VARowSpace*StandHerb -> 19.28571429
A10: 6 | B10: 8 | C10: =+C9 -> Standard | D10: =+B10/CLRowSpace*StandHerb -> 18 | E10: 6 | F10: =+F9 -> Standard | G10: =+E10/VARowSpace*StandHerb -> 19.28571429
A11: 7 | B11: 8 | C11: =+C10 -> Standard | D11: =+B11/CLRowSpace*StandHerb -> 18
A12: 8 | B12: 8 | C12: =+C11 -> Standard | D12: =+B12/CLRowSpace*StandHerb -> 18
A13: Hours to apply
A14: 2 Trips | D14: 0.8 | G14: =+CLHerbTime*VARow/CLRow -> 1.142857143 | J14: =+CLHerbTime*TSRow/CLRow -> 1.333333333 | M14: =+CLHerbTime*SSRow/CLRow -> 1.454545455 | P14: =+CLHerbTime*FWRow/CLRow -> 1.454545455
A16: Soft Early Years Program
A17: Trips | B17: # | C17: Material | E17: Rate Used | G17: Price | J17: Total Cost/Acre
A18: 2 | B18: 68 | C18: =VLOOKUP($B18,SprayCost,3) -> Gramoxone Inteon | E18: =VLOOKUP(B18,SprayCost,11) -> 3 | F18: =VLOOKUP(+B18,SprayCost,12) -> pt | G18: =VLOOKUP(B18,SprayCost,13) -> 3.5 | H18: =VLOOKUP(B18,SprayCost,12) -> pt | J18: =+G18/4*E18 -> 2.625
B19: 126 | C19: =VLOOKUP($B19,SprayCost,3) -> Surflan AS | E19: =VLOOKUP(B19,SprayCost,11) -> 8 | F19: =VLOOKUP(+B19,SprayCost,12) -> pt | G19: =VLOOKUP(B19,SprayCost,13) -> 2.685 | H19: =VLOOKUP(B19,SprayCost,12) -> pt | J19: =+G19/4*E19 -> 5.37
B20: 68 | C20: =VLOOKUP($B20,SprayCost,3) -> Gramoxone Inteon | E20: =VLOOKUP(B20,SprayCost,11) -> 3 | F20: =VLOOKUP(+B20,SprayCost,12) -> pt | G20: =VLOOKUP(B20,SprayCost,13) -> 3.5 | H20: =VLOOKUP(B20,SprayCost,12) -> pt | J20: =+G20/4*E20 -> 2.625
B21: 20 | C21: =VLOOKUP($B21,SprayCost,3) -> Amine 2,4-D | E21: =VLOOKUP(B21,SprayCost,11) -> 3 | F21: =VLOOKUP(+B21,SprayCost,12) -> pt | G21: =VLOOKUP(B21,SprayCost,13) -> 1.626666667 | H21: =VLOOKUP(B21,SprayCost,12) -> pt | J21: =+G21/4*E21 -> 1.22
A23: Total material cost per treated acre | J23: 30
A25: Standard Program
A26: Trips | B26: # | C26: Material | E26: Rate Used | G26: Price | J26: Total Cost/Acre
A27: 2 | B27: 104 | C27: =VLOOKUP($B27,SprayCost,3) -> Roundup Powermax | E27: =VLOOKUP(B27,SprayCost,11) -> 3 | F27: =VLOOKUP(+B27,SprayCost,12) -> pt | G27: =VLOOKUP(B27,SprayCost,13) -> 7.871875 | H27: =VLOOKUP(B27,SprayCost,12) -> pt | J27: =+G27/4*E27 -> 5.90390625
B28: 100 | C28: =VLOOKUP($B28,SprayCost,3) -> Prowl H2O | E28: =VLOOKUP(B28,SprayCost,11) -> 4 | F28: =VLOOKUP(+B28,SprayCost,12) -> qt | G28: =VLOOKUP(B28,SprayCost,13) -> 5 | H28: =VLOOKUP(B28,SprayCost,12) -> qt | J28: =+G28/4*E28 -> 5
B29: 57 | C29: =VLOOKUP($B29,SprayCost,3) -> Diuron 4L | E29: =VLOOKUP(B29,SprayCost,11) -> 2 | F29: =VLOOKUP(+B29,SprayCost,12) -> qt | G29: =VLOOKUP(B29,SprayCost,13) -> 7.5 | H29: =VLOOKUP(B29,SprayCost,12) -> qt | J29: =+G29/4*E29 -> 3.75
B30: 44 | C30: =VLOOKUP($B30,SprayCost,3) -> Chateau WDG | E30: =VLOOKUP(B30,SprayCost,11) -> 12 | F30: =VLOOKUP(+B30,SprayCost,12) -> oz | G30: =VLOOKUP(B30,SprayCost,13) -> 6.13 | H30: =VLOOKUP(B30,SprayCost,12) -> oz | J30: =+G30/4*E30 -> 18.39
C31: Aim
C32: Treevix
C33: Matrix
C34: Sandea
B35: 20 | C35: =VLOOKUP($B35,SprayCost,3) -> Amine 2,4-D | E35: =VLOOKUP(B35,SprayCost,11) -> 3 | F35: =VLOOKUP(+B35,SprayCost,12) -> pt | G35: =VLOOKUP(B35,SprayCost,13) -> 1.626666667 | H35: =VLOOKUP(B35,SprayCost,12) -> pt | J35: =+G35/4*E35 -> 1.22
B36: 68 | C36: =VLOOKUP($B36,SprayCost,3) -> Gramoxone Inteon | E36: =VLOOKUP(B36,SprayCost,11) -> 3 | F36: =VLOOKUP(+B36,SprayCost,12) -> pt | G36: =VLOOKUP(B36,SprayCost,13) -> 3.5 | H36: =VLOOKUP(B36,SprayCost,12) -> pt | J36: =+G36/4*E36 -> 2.625
A38: =+A23 -> Total material cost per treated acre | J38: 45
C111: Sevin 80S

Sheet Irrigation
A1: Drip Irrigation System
B2: Central Leader | D2: Vertical Axe | F2: Tall Spindle | H2: Super Spindle | J2: 2 Leader
A3: Cost/acre | B3: 0 | D3: =+VAIrr -> 2333.687406 | F3: =+TSIrr -> 2440.51312 | H3: =+SSIrr -> 2508.49312 | J3: =+FWIrr -> 2508.49312
A4: Cost/tree | B4: =+CLIrr/CLTree -> 0 | D4: =+VAIrr/VATree -> 3.750186373 | F4: =+TSIrr/TSTree -> 2.016952992 | H4: =+SSIrr/SSTree -> 1.266915717 | J4: =+FWIrr/FWTree -> 1.900373576
A5: Ram Tubing 30" | B5: 206 | C5: 1000 | E5: =+B5/1000 -> 0.206 | G5: Well New 6" | I5: 40000
A6: Main 3" Sch 26 | B6: 2.58 | C6: /ft | E6: =+B6 -> 2.58 | G6: Controller | I6: 300
A7: Sub Main 2" 26 | B7: 1.23 | C7: /ft | E7: =+B7 -> 1.23
A8: Trenching | B8: 1 | C8: /ft | E8: 1
A9: Vertical Axe System
A11: Item | B11: Item | F11: Quanity | H11: Cost | J11: Total Cost
A12: Ram tubing | B12: =+VARow -> 6.222857143 | C12: rows | D12: =+'Factors & Yield'!C24 -> 500 | E12: row length | F12: =+B12*D12 -> 3111.428571 | G12: feet | H12: =IrrTube -> 0.206 | I12: /foot | J12: =+F12*H12 -> 640.9542857
A13: Main 3" | B13: 100 | C13: /acre | F13: =+B13 -> 100 | G13: feet | H13: =Main3 -> 2.58 | J13: =+B13*H13 -> 258
A14: Sub main 2" | B14: =+VARow*VARowSpace -> 87.12 | C14: /acre | F14: =+B14 -> 87.12 | G14: feet | H14: =SubMain2 -> 1.23 | J14: =+B14*H14 -> 107.1576
A15: Custom trenching | B15: =+B13+B14 -> 187.12 | C15: /acre | F15: =+B15 -> 187.12 | G15: feet | H15: =Trenching -> 1 | J15: =+B15*H15 -> 187.12
A16: Fittings & misc. | B16: 0.2 | C16: of sub main and main and trenching | J16: =+SUM(J13:J15)*B16 -> 110.45552
A17: Well | B17: =WellCost -> 40000 | C17: new 6" well | E17: 40 | F17: acres covered | J17: =+I5/E17 -> 1000
A18: Controller | B18: =Controller -> 300 | C18: per 10 acres | J18: =+I6/10 -> 30
A20: Total Cost | J20: =SUM(J12:J19) -> 2333.687406 | K20: 2000
A21: Tall Spindle System
A22: Item | B22: Item | F22: Quanity | H22: Cost | J22: Total Cost
A23: Ram tubing | B23: =+TSRow -> 7.26 | C23: rows | D23: 500 | E23: row length | F23: =+B23*D23 -> 3630 | G23: feet | H23: =IrrTube -> 0.206 | I23: /foot | J23: =+F23*H23 -> 747.78
A24: Main 3" | B24: 100 | C24: /acre | F24: =+B24 -> 100 | G24: feet | H24: =Main3 -> 2.58 | J24: =+B24*H24 -> 258
A25: Sub main 2" | B25: =+VARow*VARowSpace -> 87.12 | C25: /acre | F25: =+B25 -> 87.12 | G25: feet | H25: =SubMain2 -> 1.23 | J25: =+B25*H25 -> 107.1576
A26: Custom trenching | B26: =+B24+B25 -> 187.12 | C26: /acre | F26: =+B26 -> 187.12 | G26: feet | H26: =Trenching -> 1 | J26: =+B26*H26 -> 187.12
A27: Fittings & misc. | B27: 0.2 | C27: of sub main and main and trenching | J27: =+SUM(J24:J26)*B27 -> 110.45552
A28: Well | B28: =WellCost -> 40000 | C28: new 6" well | E28: 40 | F28: acres covered | J28: =+B28/E28 -> 1000
A29: Controller | B29: =Controller -> 300 | C29: per 10 acres | J29: =+B29/10 -> 30
A30: Total Cost | J30: =SUM(J23:J29) -> 2440.51312
A32: Super Spindle System
A33: Item | B33: Item | F33: Quanity | H33: Cost | J33: Total Cost
A34: Ram tubing | B34: =+SSRow -> 7.92 | C34: rows | D34: =+'Factors & Yield'!C24 -> 500 | E34: row length | F34: =+B34*D34 -> 3960 | G34: feet | H34: =IrrTube -> 0.206 | I34: /foot | J34: =+F34*H34 -> 815.76
A35: Main 3" | B35: 100 | C35: /acre | F35: =+B35 -> 100 | G35: feet | H35: =Main3 -> 2.58 | J35: =+B35*H35 -> 258
A36: Sub main 2" | B36: =+VARow*VARowSpace -> 87.12 | C36: /acre | F36: =+B36 -> 87.12 | G36: feet | H36: =SubMain2 -> 1.23 | J36: =+B36*H36 -> 107.1576
A37: Custom trenching | B37: =+B35+B36 -> 187.12 | C37: /acre | F37: =+B37 -> 187.12 | G37: feet | H37: =Trenching -> 1 | J37: =+B37*H37 -> 187.12
A38: Fittings & misc. | B38: 0.2 | C38: of sub main and main and trenching | J38: =+SUM(J35:J37)*B38 -> 110.45552
A39: Well | B39: =WellCost -> 40000 | C39: new 6" well | E39: 40 | F39: acres covered | J39: =+B39/E39 -> 1000
A40: Controller | B40: =Controller -> 300 | C40: per 10 acres | J40: =+B40/10 -> 30
A41: Total Cost | J41: =SUM(J34:J40) -> 2508.49312
A43: Fruiting Wall System
A44: Item | B44: Item | F44: Quanity | H44: Cost | J44: Total Cost
A45: Ram tubing | B45: =+FWRow -> 7.92 | C45: rows | D45: =+'Factors & Yield'!C24 -> 500 | E45: row length | F45: =+B45*D45 -> 3960 | G45: feet | H45: =IrrTube -> 0.206 | I45: /foot | J45: =+F45*H45 -> 815.76
A46: Main 3" | B46: 100 | C46: /acre | F46: =+B46 -> 100 | G46: feet | H46: =Main3 -> 2.58 | J46: =+B46*H46 -> 258
A47: Sub main 2" | B47: =+VARow*VARowSpace -> 87.12 | C47: /acre | F47: =+B47 -> 87.12 | G47: feet | H47: =SubMain2 -> 1.23 | J47: =+B47*H47 -> 107.1576
A48: Custom trenching | B48: =+B46+B47 -> 187.12 | C48: /acre | F48: =+B48 -> 187.12 | G48: feet | H48: =Trenching -> 1 | J48: =+B48*H48 -> 187.12
A49: Fittings & misc. | B49: 0.2 | C49: of sub main and main and trenching | J49: =+SUM(J46:J48)*B49 -> 110.45552
A50: Well | B50: =WellCost -> 40000 | C50: new 6" well | E50: 40 | F50: acres covered | J50: =+B50/E50 -> 1000
A51: Controller | B51: =Controller -> 300 | C51: per 10 acres | J51: =+B51/10 -> 30
A53: Total Cost | J53: =SUM(J45:J51) -> 2508.49312

Sheet Fertilizer
A1: Fertilizer Program
B2: Material | E2: Cost/Ton
B3: Urea | E3: 300 | I3: K in 1st preplant
B4: Potash | E4: 185 | I4: P in preplant
D7: Central Leader | G7: Vertical Axe | J7: Tall Spindle | M7: Super Spindle | P7: Fruiting Wall
D8: Rate | E8: Total | G8: =+D8 -> Rate | H8: =+E8 -> Total | J8: =+D8 -> Rate | K8: =+E8 -> Total | M8: =+G8 -> Rate | N8: =+H8 -> Total | P8: =+M8 -> Rate | Q8: =+N8 -> Total
A9: Year | B9: Material | C9: oz/tree | D9: #/acre | E9: Cost/acre | F9: =+C9 -> oz/tree | G9: =+D9 -> #/acre | H9: =+E9 -> Cost/acre | I9: =+C9 -> oz/tree | J9: =+D9 -> #/acre | K9: =+E9 -> Cost/acre | L9: =+F9 -> oz/tree | M9: =+G9 -> #/acre | N9: =+H9 -> Cost/acre | O9: =+L9 -> oz/tree | P9: =+M9 -> #/acre | Q9: =+N9 -> Cost/acre
A10: 1 | B10: Urea | C10: 1 | D10: =+C10/16*CLTree -> 11.34375 | E10: =+D10/2000*UreaTon+D11/2000*KTon -> 1.7015625 | F10: 1 | G10: =+F10/16*VATree -> 38.89285714 | H10: =+G10/2000*UreaTon+G11/2000*KTon -> 5.833928571 | I10: 1 | J10: =+I10/16*TSTree -> 75.625 | K10: =+J10/2000*UreaTon+J11/2000*KTon -> 11.34375 | L10: 1 | M10: =+L10/16*SSTree -> 123.75 | N10: =+M10/2000*UreaTon+M11/2000*KTon -> 18.5625 | O10: 1 | P10: =+O10/16*FWTree -> 82.5 | Q10: =+P10/2000*UreaTon+P11/2000*KTon -> 12.375
B11: Potash | C11: 0 | D11: =+C11/16*CLTree -> 0 | F11: 0 | G11: =+F11/16*VATree -> 0 | I11: 0 | J11: 0 | L11: 0 | M11: 0 | O11: 0 | P11: 0
A12: 2 | B12: Urea | C12: 2 | D12: 22.6875 | E12: =+D12/2000*UreaTon+D13/2000*KTon -> 3.403125 | F12: 1.5 | G12: =+F12/16*VATree -> 58.33928571 | H12: =+G12/2000*UreaTon+G13/2000*KTon -> 8.750892857 | I12: 1 | J12: 75.625 | K12: =+J12/2000*UreaTon+J13/2000*KTon -> 11.34375 | L12: 1 | M12: 123.75 | N12: =+M12/2000*UreaTon+M13/2000*KTon -> 18.5625 | O12: 1 | P12: 82.5 | Q12: =+P12/2000*UreaTon+P13/2000*KTon -> 12.375
B13: Potash | C13: 0 | D13: 0 | F13: 0 | G13: 0 | I13: 0 | J13: 0 | L13: 0 | M13: 0 | O13: 0 | P13: 0
A14: 3 | B14: Urea | C14: 3 | D14: 34.03125 | E14: =+D14/2000*UreaTon+D15/2000*KTon -> 5.1046875 | F14: 2 | G14: 77.78571429 | H14: =+G14/2000*UreaTon+G15/2000*KTon -> 11.66785714 | I14: 1.1 | J14: 83.1875 | K14: =+J14/2000*UreaTon+J15/2000*KTon -> 19.4734375 | L14: 1.1 | M14: 136.125 | N14: =+M14/2000*UreaTon+M15/2000*KTon -> 31.865625 | O14: 1.1 | P14: 90.75 | Q14: =+P14/2000*UreaTon+P15/2000*KTon -> 21.24375
B15: Potash | C15: 0 | D15: 0 | F15: 0 | G15: 0 | I15: 1 | J15: 75.625 | L15: 1 | M15: 123.75 | O15: 1 | P15: 82.5
A16: 4 | B16: Urea | C16: 4 | D16: 45.375 | E16: =+D16/2000*UreaTon+D17/2000*KTon -> 6.80625 | F16: 2 | G16: 77.78571429 | H16: =+G16/2000*UreaTon+G17/2000*KTon -> 18.86303571 | I16: 1.2 | J16: 90.75 | K16: =+J16/2000*UreaTon+J17/2000*KTon -> 27.603125 | L16: 1.2 | M16: 148.5 | N16: =+M16/2000*UreaTon+M17/2000*KTon -> 45.16875 | O16: 1.2 | P16: 99 | Q16: =+P16/2000*UreaTon+P17/2000*KTon -> 30.1125
B17: Potash | C17: 0 | D17: 0 | F17: 2 | G17: 77.78571429 | I17: 2 | J17: 151.25 | L17: 2 | M17: 247.5 | O17: 2 | P17: 165
A18: 5 | B18: Urea | C18: 5 | D18: 56.71875 | E18: =+D18/2000*UreaTon+D19/2000*KTon -> 10.60640625 | F18: 2 | G18: 77.78571429 | H18: =+G18/2000*UreaTon+G19/2000*KTon -> 18.86303571
B19: Potash | C19: 2 | D19: 22.6875 | F19: 2 | G19: 77.78571429 | J19: 40 to 50 # n | M19: 40 to 50 # n | P19: 40 to 50 # n
A20: 6 | B20: Urea | C20: 5 | D20: 56.71875 | E20: =+D20/2000*UreaTon+D21/2000*KTon -> 12.705 | F20: 2 | G20: 77.78571429 | H20: =+G20/2000*UreaTon+G21/2000*KTon -> 22.460625 | J20: =40*16 -> 640 | M20: =40*16 -> 640 | P20: =40*16 -> 640
B21: Potash | C21: 4 | D21: 45.375 | F21: 3 | G21: 116.6785714
A22: 7 | B22: Urea | C22: 6 | D22: 68.0625 | E22: =+D22/2000*UreaTon+D23/2000*KTon -> 16.50515625 | J22: K in 1st preplant | M22: K in 1st preplant | P22: K in 1st preplant
B23: Potash | C23: 6 | D23: 68.0625 | J23: P in preplant | M23: P in preplant | P23: P in preplant
A24: 8 | B24: Urea | C24: 6 | D24: 68.0625 | E24: =+D24/2000*UreaTon+D25/2000*KTon -> 18.60375
B25: Potash | C25: 8 | D25: 90.75
A28: Application Time of Fertilizer
A29: The time it takes to apply the fertilizer program per acre per season with vicon spreader.
B31: Central Leader | E31: Vertical Axe | H31: Tall Spindle | K31: Super Spindle | N31: Fruiting Wall
A32: Year | B32: # of trips | C32: # of trips | D32: Hours | E32: =+B32 -> # of trips | F32: # of trips | G32: Hours | H32: # of trips | I32: # of trips | J32: Hours | K32: =+H32 -> # of trips | L32: =+I32 -> # of trips | M32: =+J32 -> Hours | N32: =+K32 -> # of trips | O32: =+L32 -> # of trips | P32: =+M32 -> Hours
B33: Applied | C33: E.O.R. | D33: /Acre | E33: Applied | F33: E.O.R. | G33: /Acre | H33: Applied | I33: E.O.R. | J33: /Acre | K33: Applied | L33: E.O.R. | M33: /Acre | N33: Applied | O33: E.O.R. | P33: /Acre
A34: 1 | B34: 1 | C34: 1 | D34: =+CLFertTime -> 0.1 | E34: 1 | F34: 1 | G34: =+VAFertTime -> 0.1428571429 | H34: 1 | I34: 1 | J34: =+TSFertTime -> 0.1666666667 | K34: 1 | L34: 1 | M34: =+SSFertTime -> 0.1818181818 | N34: 1 | O34: 1 | P34: =+FWFertTime -> 0.1818181818
A35: 2 | B35: 1 | C35: 1 | D35: 0.1 | E35: 1 | F35: 1 | G35: 0.1428571429 | H35: 1 | I35: 1 | J35: =+TSFertTime -> 0.1666666667 | K35: 1 | L35: 1 | M35: =+SSFertTime -> 0.1818181818 | N35: 1 | O35: 1 | P35: =+FWFertTime -> 0.1818181818
A36: 3 | B36: 1 | C36: 1 | D36: 0.1 | E36: 1 | F36: 1 | G36: 0.1428571429 | H36: 1 | I36: 1 | J36: =+TSFertTime -> 0.1666666667 | K36: 1 | L36: 1 | M36: =+SSFertTime -> 0.1818181818 | N36: 1 | O36: 1 | P36: =+FWFertTime -> 0.1818181818
A37: 4 | B37: 1 | C37: 1 | D37: 0.1 | E37: 1 | F37: 1 | G37: 0.1428571429 | H37: 1 | I37: 1 | J37: =+TSFertTime -> 0.1666666667 | K37: 1 | L37: 1 | M37: =+SSFertTime -> 0.1818181818 | N37: 1 | O37: 1 | P37: =+FWFertTime -> 0.1818181818
A38: 5 | B38: 1 | C38: 1 | D38: 0.1 | E38: 1 | F38: 1 | G38: 0.1428571429
A39: 6 | B39: 1 | C39: 1 | D39: 0.1 | E39: 1 | F39: 1 | G39: 0.1428571429
A40: 7 | B40: 1 | C40: 1 | D40: 0.1
A41: 8 | B41: 1 | C41: 1 | D41: 0.1
A44: Trip Time | C44: Row | D44: % of | E44: Hours | F44: Acres | G44: Time | H44: 4.5 | I44: mph | J44: =+H44*5280 -> 23760 | K44: /hr
C45: Spacing | D45: C.L. | E45: /Load | F45: =+E45 -> /Load | G45: /Acre | H45: 18 | I45: =43560/H45 -> 2420 | J45: =+J44/I45 -> 9.818181818
A46: Central Leader | C46: =+CLRowSpace -> 20 | D46: =+C46/C46*100 -> 100 | E46: 0.1 | F46: 1 | G46: =+E46/F46 -> 0.1 | H46: RowSp | I46: ft/acre | J46: rows/hr
A47: Vertical Axe | C47: =+VARowSpace -> 14 | D47: =+C46/C47*100 -> 142.8571429 | E47: 0.1 | F47: 0.9 | G47: =+G46*D47*0.01 -> 0.1428571429 | H47: 175 acre | I47: 20 hours | J47: =200/20 -> 10
A48: Tall Spindle | C48: =+TSRowSpace -> 12 | D48: =+C46/C48*100 -> 166.6666667 | E48: 0.1 | F48: 0.8 | G48: =+G46*D48*0.01 -> 0.1666666667 | I48: to fert | J48: to do farm
A49: Super Spindle | C49: =+SSRowSpace -> 11 | D49: =+C46/C49*100 -> 181.8181818 | E49: 0.1 | F49: 0.75 | G49: =+G46*D49*0.01 -> 0.1818181818
A50: Fruiting Wall | C50: =+FWRowSpace -> 11 | D50: =+C46/C50*100 -> 181.8181818 | E50: 0.1 | F50: 0.75 | G50: =+G46*D50*0.01 -> 0.1818181818
A97: 1 | I97: 100 | J97: =+G97*E97*A97*I97*0.01 -> 0
A98: 1 | E98: 5 | I98: 100 | J98: =+G98*E98*A98*I98*0.01 -> 0
A99: 1 | E99: 5 | I99: 100 | J99: =+G99*E99*A99*I99*0.01 -> 0
I101: 100 | J101: =+G101*E101*A101*I101*0.01 -> 0
C103: Calcium Sprays | D103: EG-615 | I103: 100 | J103: =+G103*E103*A103*I103*0.01 -> 0
I105: 100 | J105: =+G105*E105*A105*I105*0.01 -> 0
A107: 1 | B107: Post-Harvest | C107: Boron | E107: 2 | I107: 100 | J107: =+G107*E107*A107*I107*0.01 -> 0
A108: 1 | E108: 5 | I108: 100 | J108: =+G108*E108*A108*I108*0.01 -> 0
A109: 1 | E109: 5 | I109: 100 | J109: =+G109*E109*A109*I109*0.01 -> 0
C115: Sevin 80S

Sheet Wildlife
A1: Mouse and Wildlife Control
C2: Central Leader | F2: Vertical Axe | I2: Tall Spindle | L2: SuperSpindle | O2: Fruiting Wall
C3: Mouse Control | F3: =+C3 -> Mouse Control | I3: =+F3 -> Mouse Control | L3: =+I3 -> Mouse Control | O3: =+L3 -> Mouse Control
A4: Year | B4: Time | C4: Percent | D4: Cost | E4: =+B4 -> Time | F4: =+C4 -> Percent | G4: =+D4 -> Cost | H4: =+E4 -> Time | I4: =+F4 -> Percent | J4: =+G4 -> Cost | K4: =+H4 -> Time | L4: =+I4 -> Percent | M4: =+J4 -> Cost | N4: =+K4 -> Time | O4: =+L4 -> Percent | P4: =+M4 -> Cost
B5: /Acre | C5: Applied | D5: /Acre | E5: =+B5 -> /Acre | F5: =+C5 -> Applied | G5: =+D5 -> /Acre | H5: =+E5 -> /Acre | I5: =+F5 -> Applied | J5: =+G5 -> /Acre | K5: =+H5 -> /Acre | L5: =+I5 -> Applied | M5: =+J5 -> /Acre | N5: =+K5 -> /Acre | O5: =+L5 -> Applied | P5: =+M5 -> /Acre
A6: 1 | B6: =1/8.5 -> 0.1176470588 | C6: 100 | D6: =+C6*BaitCost*0.01 -> 17.5 | E6: =VAFertTime -> 0.1428571429 | F6: 100 | G6: =+F6*BaitCost*0.01 -> 17.5 | H6: =TSFertTime -> 0.1666666667 | I6: 100 | J6: =+I6*BaitCost*0.01 -> 17.5 | K6: =SSFertTime -> 0.1818181818 | L6: 100 | M6: =+L6*BaitCost*0.01 -> 17.5 | N6: =FWFertTime -> 0.1818181818 | O6: 100 | P6: =+O6*BaitCost*0.01 -> 17.5
A7: 2 | B7: =1/8.5 -> 0.1176470588 | C7: 100 | D7: 17.5 | E7: =+VABaitTime1 -> 0.1428571429 | F7: 100 | G7: 17.5 | H7: =TSBaitTime1 -> 0.1666666667 | I7: 100 | J7: =+I7*BaitCost*0.01 -> 17.5 | K7: =+SSBaitTIme1 -> 0.1818181818 | L7: 100 | M7: =+L7*BaitCost*0.01 -> 17.5 | N7: =FWBaitTime1 -> 0.1818181818 | O7: 100 | P7: =+O7*BaitCost*0.01 -> 17.5
A8: 3 | B8: 0.1176470588 | C8: 100 | D8: 17.5 | E8: =+VABaitTime1 -> 0.1428571429 | F8: 100 | G8: 17.5 | H8: =TSBaitTime1 -> 0.1666666667 | I8: 110 | J8: =+I8*BaitCost*0.01 -> 19.25 | K8: =+SSBaitTIme1 -> 0.1818181818 | L8: 130 | M8: =+L8*BaitCost*0.01 -> 22.75 | N8: =FWBaitTime1 -> 0.1818181818 | O8: 125 | P8: =+O8*BaitCost*0.01 -> 21.875
A9: 4 | B9: 0.1176470588 | C9: 100 | D9: 17.5 | E9: =+VABaitTime1 -> 0.1428571429 | F9: 100 | G9: 17.5 | H9: =TSBaitTime1 -> 0.1666666667 | I9: =+I8 -> 110 | J9: =+I9*BaitCost*0.01 -> 19.25 | K9: =+SSBaitTIme1 -> 0.1818181818 | L9: =+L8 -> 130 | M9: =+L9*BaitCost*0.01 -> 22.75 | N9: =FWBaitTime1 -> 0.1818181818 | O9: =+O8 -> 125 | P9: =+O9*BaitCost*0.01 -> 21.875
A10: 5 | B10: 0.1176470588 | C10: =+C9 -> 100 | D10: 17.5 | E10: =+VABaitTime1 -> 0.1428571429 | F10: =+F9 -> 100 | G10: 17.5
A11: 6 | B11: 0.1176470588 | C11: =+C10 -> 100 | D11: 17.5 | E11: =+VABaitTime1 -> 0.1428571429 | F11: =+F10 -> 100 | G11: 17.5
A12: 7 | B12: 0.1176470588 | C12: =+C11 -> 100 | D12: 17.5
A13: 8 | B13: 0.1176470588 | C13: =+C12 -> 100 | D13: 17.5
G15: 8.5 acres/hour
A16: Application every other row with Vicon spreader @ 10# Bait per acre.
F17: $/# | G17: Rate Acre | H17: Cost /Acre | I17: Need to add labor for app and paint
B18: Mouse Bait | E18: 50# | F18: 1.75 | G18: 10 | H18: =+G18*F18 -> 17.5
B19: Tree Gards | E19: 1200 | F19: 0.35 | G19: =SSTree -> 1980 | H19: =+F19*G19 -> 693
B20: Pellets | E20: 3#
A21: Wildlife control
A23: Ribbons, Soap, etc. | D23: Cost/Tree | E23: 2 years treated | G23: Then no more
B24: Central Leader | D24: 0.05 | E24: Fabric Softeners | G24: 200/acre
B25: Vertical Axe | D25: 0.04
B26: Tall Spindle | D26: 0.03
B27: Super Spindle | D27: 0.03
B28: Fruiting Wall | D28: 0.02
A30: Deer Fence
A31: Deer Fence Installed | C31: =+DeerFence -> 3.25 | D31: per foot
C32: 40 | D32: acres | F32: Need to check this
C33: 5280 | D33: total feet
C34: =+C31*C33 -> 17160 | D34: total cost | G34: =+C34/C32 -> 429 | H34: per acre | I34: 15 | J34: =+G34/I34 -> 28.6
C35: 3 | D35: % of acreage

Sheet Trellis
A1: Support System
C2: Cost/acre | E2: Cost/tree
A3: Central Leader | D3: 0 | F3: =+D3/CLTree -> 0 | G3: Trellis Post | I3: 12.5
A4: Vertical Axe | D4: =+J29 -> 2657.044433 | F4: =+D4/VATree -> 4.269814286 | G4: Screw Anchors | I4: 8.6
A5: Tall Spindle | D5: =+J46 -> 4522.331314 | F5: =+D5/TSTree -> 3.737463896 | G5: Wire | I5: =104/3000 -> 0.03466666667
A6: Super Spinde | D6: =+J64 -> 4664.706514 | F6: =+D6/SSTree -> 2.355912381 | G6: Conduit | I6: 1.5
A7: Fruiting Wall | D7: =+J82 -> 6989.3208 | F7: =+D7/FWTree -> 5.29494 | G7: Wire Vice | I7: 2.07
G8: Gripples | I8: 1.25
G9: Gallagers | I9: 2
G10: Crimps | I10: 0.1
G11: Tree Ties | I11: 0.067
A12: Trellis System
A13: Vertical Axe System | J13: Rows /acre
A14: Item | B14: Quanity | D14: Rows | F14: Quanity | H14: Price | J14: =+D15 -> 6.222857143
A15: 5" tops, 12' CCA posts | B15: =+'Factors & Yield'!C24/35+1 -> 15.28571429 | C15: per row | D15: =+VARow -> 6.222857143 | E15: rows | F15: =+B15*D15 -> 95.12081633 | G15: posts | H15: =+TrellisPost -> 12.5 | I15: each | J15: =+F15*H15 -> 1189.010204 | K15: =+J32 -> 1513.285714 | L15: =+J50 -> 1513.285714 | M15: =+J68 -> 1749
C16: every 35' | K16: =+J33 -> 0 | L16: =+J51 -> 0 | M16: =+J69 -> 0
A17: Screw Achors | B17: 2 | C17: per row | D17: =+VARow -> 6.222857143 | E17: rows | F17: =+B17*D17 -> 12.44571429 | G17: anchors | H17: =ScrewAnchor -> 8.6 | I17: each | J17: =+H17*F17 -> 107.0331429 | K17: 237.6 | L17: 136.224 | M17: 136.224
K18: 0 | L18: 0 | M18: 0
A19: #12 high tensil wire | B19: 3 | C19: per row | D19: =+'Factors & Yield'!C24 -> 500 | E19: row length | F19: =+D19*B19*D17 -> 9334.285714 | G19: feet /acre | H19: =104/4000 -> 0.026 | I19: /foot | J19: =+F19*H19 -> 242.6914286 | K19: 475.2 | L19: 445.5 | M19: 178.2
A20: Conduit | B20: 1 | C20: per tree | F20: =+VATree -> 622.2857143 | H20: 1.5 | I20: each | J20: =+H20*F20 -> 933.4285714 | K20: 1815 | L20: 1815 | M20: 3960
A21: Wire vise anchors | B21: 3 | C21: per row | D21: =+VARow -> 6.222857143 | E21: rows | F21: =+B21*D21 -> 18.66857143 | G21: each | H21: 2.07 | I21: each | J21: =+H21*F21 -> 38.64394286 | K21: 81.972 | L21: 81.972 | M21: 81.972
K22: 0 | L22: 0 | M22: 0
A23: Gripples | B23: 2 | C23: per row | D23: =+VARow -> 6.222857143 | E23: rows | F23: =+B23*D23 -> 12.44571429 | G23: each | H23: 1.25 | I23: each | J23: =+H23*F23 -> 15.55714286 | K23: 24.8688 | L23: 24.8688 | M23: 24.8688
K24: 0 | L24: 0 | M24: 0
A25: Crimps | B25: =+B19*3 -> 9 | C25: per row | D25: =+VARow -> 6.222857143 | E25: rows | F25: =+B25*D25 -> 56.00571429 | G25: each | H25: 0.1 | I25: each | J25: =+H25*F25 -> 5.600571429 | K25: 11.4048 | L25: 14.256 | M25: 14.256
K26: 0 | L26: 0 | M26: 0
A27: Tree ties | B27: =+B19 -> 3 | C27: per tree | D27: =+VATree -> 622.2857143 | E27: trees /acre | F27: =+B27*D27 -> 1866.857143 | G27: =+G25 -> each | H27: 0.067 | I27: /foot | J27: =+F27*H27 -> 125.0794286 | K27: 363 | L27: 633.6 | M27: 844.8
K28: 0 | L28: 0 | M28: 0
A29: Total cost per acre | J29: =SUM(J15:J28) -> 2657.044433 | K29: 4522.331314 | L29: 4664.706514 | M29: 6989.3208
A30: Tall Spindle System | J30: Rows /acre
A31: Item | B31: Item | D31: Rows | F31: Quanity | H31: Price | J31: =+D32 -> 7.92
A32: 5" tops, 12' CCA posts | B32: =+'Factors & Yield'!D24/35+1 -> 15.28571429 | C32: per row | D32: =+SSRow -> 7.92 | E32: rows | F32: =+B32*D32 -> 121.0628571 | G32: posts | H32: =+TrellisPost -> 12.5 | I32: each | J32: =+F32*H32 -> 1513.285714
C33: every 35'
A34: Screw Achors | B34: 2 | C34: per row | D34: =+SSRow -> 7.92 | E34: rows | F34: =+B34*D34 -> 15.84 | G34: achors | H34: 15 | I34: each | J34: =+H34*F34 -> 237.6
A36: #12 high tensil wire | B36: 4 | C36: per row | D36: =+'Factors & Yield'!B24 -> 500 | E36: row length | F36: =+D36*B36*D34 -> 15840 | G36: feet /acre | H36: 0.03 | I36: /foot | J36: =+F36*H36 -> 475.2
A37: Conduit | B37: 1 | C37: per tree | F37: =+TSTree -> 1210 | H37: 1.5 | I37: each | J37: =+H37*F37 -> 1815
